{"text_format":"1","workbook":"xlsx","n_sheets":16,"sheets":["Mandals","Code","Mandals list Village wise","code2","Data","INCOME TAX","SALARY TABLE","ADVANCE TAX","Rent Receipt","10 i","Sections","FORM 16","Steps","DA S0FTWARE","DA code","DA calculation"],"not_rendered":{"charts":0,"images":9,"macros":1,"external_links":6,"defined_names":68,"comments":4,"pivot_tables":0},"unopened":[],"bounds":{"document_bytes":16777216,"sheet_cells":100000,"rows_first":2000,"rows_last":500,"rows_between":2000,"halvings":0,"cell_chars":16384,"cell_head_chars":4096},"cells_cut":0,"cells_raw":0,"read":"whole","date_system":"1900"}

{"sheet":"Mandals","index":0,"n_rows":68,"n_cols":28,"rows_kept":68,"cut":false,"hidden":true,"merged":[]}
[null,null,null,null,null,null,null,null,null,null,null,null,null,null,null,null,null,null,null,null,null,null,null,null,null,{"$f":"Code!$B$2","v":"Nellore District"},44]
[null,"Adilabad ","Anathapuram","Chittoor District","East godavari District ","Guntur District","Hyderabad   District ","Kadapa District","Kareemnagar District ","Khammam District ","Krishan District ","Kurnool District","Mahaboobnagar District ","Medak District ","Nalgonda District ","Nizamabad District ","Nellore District","Prakasam District","Ranga reddy District ","Sreekakulam District ","Visakhapatnam District","Vizianagaram District","Warangal District ","West godavari  District ","S.No","Districts",{"$f":"LOOKUP(AA1,Y3:Y68,AA3:AA68)","v":"Venkatagiri "}]
[1,"Adilabad ","Agali ","B Kothakota","Addateegala","Achampeta",null,"Atlur ","Bheemadevarpalle","Aswapuram ","A Konduru ","Adoni  ","Achampeta","Alladurg","Alair ","Armur ","Allur","Addanki","Balanagar ","Amadalavalasa ","Anakapalli","Badangi","Atmakur  ","Achanta",1,"Adilabad ",{"$f":" HLOOKUP($Z$1,$B$2:$X$68,AB3,FALSE)","v":"Allur"},2]
[2,"Narnoor","Amadagur","Baireddi Palle","Ainavilli","Amaravathi ",null,"B Kodur ","Boinpalle","Aswaraopeta","Agiripalle","Allagadda","Addakal","Andole","Anumula","Balkonda","Ananthasagaram","Ardhaveedu","Bantaram","Battili","Anandapuram ","Balajipeta","Bachannapeta","Akiveedu",2,"Anathapuram",{"$f":" HLOOKUP($Z$1,$B$2:$X$68,AB4,FALSE)","v":"Ananthasagaram"},3]
[3,"Bela","Amarapuram","Bangarupalem","Alamuru","Amruthalur ",null,"Badvel ","Chandurthi","Bayyaram","Avanigadda","Alur","Aiza ","Chegunta","Atmakur ","Banswada","Anumasamudrampeta","Ballikuruva ","Basheerabad","Bhamini","Ananthagiri","Bhoghapuram","Bhupalpalle","Attili",3,"Chittoor District","Anumasamudrampeta",4]
[4,"Boath","Anantapur","Buchinaidu Khandriga","Allavaram","Bapatla ",null,"Brahmamgarimattam ","Choppadandi","Bhadrachalam ","Bantumilli","Aspari","Alampur","Chinna Kodur","Atmakur","Bheemgal","Atmakur","Bestavaripeta ","Chevella","Burja","Araku Valley","Bobbili","Chennaraopet","Bheemavaram",4,"East godavari District ","Atmakur",5]
[5,"Dilawarpur","Atmakur","Chandragiri","Amalapuram","Bellamkonda",null,"Chakrayapet","Dharmapuri","Bonakal ","Bapulapadu","Atmakur","Amangal","Doultabad","Bhuvanagiri","Bhiknur","Balayapalli","Chadrasekara Puram  ","Dharur","Etcherla","Atchutapuram ","Bondapalle","Cheriyal","Bhimadole",5,"Guntur District","Balayapalli",6]
[6,"Jainad","Bathalapalle","Chinnagottigallu","Ambajipeta ","Bhattiprolu ",null,"Chapad ","Dharmaram","Burgampadu","Challapalli ","Banaganapalle","Amrabad","Dubbak","Bibinagar","Bichkunda","Bogole","Chimakurthi ","Domah","Ganguvari Singadam","Bheemunipatnam","Chintalavalasa","Chityal","Buttayagudem",6,"Hyderabad District ","Bogole",7]
[7,"Kaddampeddur","Beluguppa","Chittoor","Anaparthy","Bollapalle ",null,"Chennur","Ellanthakunta","Chandrugonda","Chandarlapadu","Bandi Atmakur","Atmakur","Eddumailaram","Bommalaramaram","Birkoor ","Buchireddipalem","Chinaganjam ","Gandeed","Kaligapatnam","Butchayyapeta ","Cheepurupalle","Devaruppula","Chagallu",7,"Kadapa District","Buchireddipalem",8]
[8,"Khanpur","Bommanahal","Chowdepalle","Atreyapuram","Chebrole ",null,"ChinnaChowk ","Gambhiraopet","Cherla","Chatrai","Bethamcherla","Balanagar","Gajwel","Chandam Pet","Bodhan","Chejerla ","Chirala ","Ghatkesar","Hiramandalam","Cheedikada","Dattirajeru","Dharmasagar","Chintalapudi",8,"Kareemnagar District ","Chejerla ",9]
[9,"Kuntala","Brahmasamudram ","Gangadhara Nellore","Biccavolu","Cherukupalle ",null,"Chinnamandem ","Gangadhara","Chinthakani","G Konduru","Bugganipalle","Balmoor","Hathnoora","Chandur","Dhar Palle","Chillakur ","Cumbum ","Hayathnagar","Ichchapuram","Chintapalle","Denkada","Dornakal","Denduluru",9,"Khammam District ","Chillakur ",10]
[10,"Mamda","Bukkapatnam","Gangavaram  ","Devipatnam","Chilakaluripet ",null,"Chintha Kommadinne ","Gollapalle","Chintur","Gampalagudem","C.Belagal","Bhoothpur ","Jagdevpur","Chilkur","Dich Palle","Chittamur ","Darsi ","Ibrahimpatam","Jalumuru","Chodavaram","Gajapathinagaram","Duggondi","Devarapalle",10,"Krishan District ","Chittamur ",11]
[11,"Rebbana","Bukkarayasamudram","Gudi Palle  ","Gandepalle","Dachepalle ",null,"Chitvel ","Husnabad","Dammapeta","Gannavaram","Chagalamarri","Bijinapalle","Jharasangam","Chintha Palle","Domakonda","Dagadarthi ","Donakonda","Kandukur","Kanchili","Devarapalle","Gantyada","Eturnagaram ","Dwaraka Tirumala",11,"Kurnool District","Dagadarthi ",12]
[12,"Talamadugu","Chenne Kothapalle","Gudipala ","Gangavaram","Duggirala ",null,"Duvvur  ","Huzurabad","Dummugudem","Ghantasala","Chippagiri","Bomraspeta","Jinnaram","Chityala","Gandhari","Dakkili","Dornala ","Keesara","Kaviti","Dumbriguda","Garividi","Geesugonda","Eluru",12,"Mahaboobnagar District ","Dakkili",13]
[13,"Tiryani","Chilamathur","Gurramkonda  ","Gokavaram","Durgi ",null,"Galiveedu ","Ibrahimpatnam","Enkuru","Gudivada","Devanakonda","Chinna Chinta Kunta","Kalher","Chivvemla","Jakranpalle","Doravarisatram","Giddaluru ","Kulkacharla","Kotabommili","Gajuwaka","Garugubilli","Ghanapur","Ganapavaram",13,"Medak District ","Doravarisatram",14]
[14,"Asifabad","D.Hirchal","Irala ","Gollaprolu","Edlapadu",null,"Gopavaram","Jagtial","Garla","Gudlavalleru","Dhone","Damaragidda","Kohir","Choutuppal","Jukkal","Duttalur ","Gudluru ","Maheswaram","Kothuru ","Gangaraju Madugula","Gummalakshmipuram","Ghanpur(Stn)","Gopalapuram",14,"Nalgonda District ","Duttalur ",15]
[15,"Bellampalle","Dharmavaram","K V P Puram ","I.Polavaram","Guntur ",null,"Jammalamadugu • ","Jammikunta","Gundala","Gudur","Dornipadu","Devarkadara","Kondapak","Dameracherla","Kamareddy","Gudur ","Hanumanthunipadu ","Malkajgiri","Laveru","Golugonda","Gurla","Govindaraopet","Iragavaram",15,"Nizamabad District ","Gudur ",16]
[16,"Chennur","Gandlapenta","Kalakada  ","Jaggampeta","Gurazala ",null,"Kadapa","Julapalle","Julurpad","Ibrahimpatnam","Gadivemula","Dhanwada","Kondapur","Devarakonda","Kammar Palle","Indukurpet ","Inkollu ","Manchal ","Mandasa ","Gudem Kothaveedhi","Jami","Gudur","Jangareddigudem",16,"Nellore District","Indukurpet ",17]
[17,"Gudihathnur","Garladinne","Kalikiri  ","Kadiam","Ipuru",null,"Kalasapadu ","Kamalapur","Kalluru ","Jaggayyapeta","Gonegandla","Dharur","Kowdipalle","Garide Palle","Kotgiri","Jaladanki ","Janakavaram Panguluru ","Marpalle","Meilaputti","Hukumpeta ","Jiyyamma Valasa","Hanamkonda","Jeelugumilli",17,"Prakasam District","Jaladanki ",18]
[18,"Jainoor","Gooty","Kambhamvaripalle ","Kajuluru","Kakumanu",null,"Kamalapuram  ","Kamanpur","Karepalli","Kaikalur","Gospadu","Doulatabad","Kulcharam","Gundala","Lingampet","Kaligiri ","Kandukur ","Medchal ","Nandigam","K Kotapadu","Komarada","Hasanparthy","Kalla ",18,"Ranga reddy District ","Kaligiri ",19]
[19,"Kagaz Nagar","Gorantla","Karvetinagar ","Kakinada(Rural)","Karempudi",null,"Khajipet ","Karimnagar","Khammam Rural","Kalidindi ","Gudur ","Farooqnagar","Manoor","Gundla Palle","Machareddy","Kaluvoya ","Kanigiri ","Moinabad","Narasannapeta","Kasimkota","Kothavalasa","Jangaon","Kamavarapukota",19,"Sreekakulam District ","Kaluvoya ",20]
[20,"Kotapalle","Gudibanda","Kuppam  ","Kakinada(Urban)","Karlapalem",null,"Kodur  ","Kataram","Khammam Urban","Kanchika Cherla","Halaharvi","Gadwal","Medak ","Gurrampode","Madnur","Kavali ","Karamchedu ","Mominpet","Palakonda","Kotauratla","Kurupam","Kesamudram","Kovvur",20,"Visakhapatnam District","Kavali ",21]
[21,"Laxmanchanda","Gummagatta","Kurabalakota  ","Kapileswarapuram","Kollipara ",null,"Kondapuram  ","Kathlapur","Konijerla ","Kankipadu","Holagunda","Ghanpur","Mirdoddi","Huzurnagar","Makloor","Kodavalur ","Komarolu ","Nawabpet","Palasa","Koyyuru","Lakkavarapukota","Khanapur","Koyyalagudem",21,"Vizianagaram District","Kodavalur ",22]
[22,"Mancherial","Guntakal ","Mandanpalle  ","Karapa","Kollur ",null,"Lakkireddipalle • ","Kesavapatnam","Kothagudem","Koduru ","Jupadu Bungalow","Ghattu","Mulug","Jaji Reddi Gudem","Mortad","Kondapuram","Konakanamitla","Pargi","Pathapatnam","Madugula","Makkuva","Kodakandla","Lingapalem",22,"Warangal District ","Kondapuram",23]
[23,"Nennal","Hindupur ","Mulakalacheruvu ","Katrenikona","Krosuru ",null,"Lingala ","Kodimial ","Kukunoor ","Kruthivennu ","Kallur","Gopalpeta","Munpalle"," Kangal","Naga Reddipet","Kota","Kondapi","Peddemul","Polaki","Makavarapalem","Mentada ","Kothagudem ","Mogalthur",23,"West godavari  District ","Kota",24]
[24," Sarangapur","Kadiri ","Nagalapuram  ","Kirlampudi ","Machavaram ",null,"Muddanur  ","Koheda","Kunavaram","Machilipatnam","Kodumur","Hanwada","Nanganur","Kattangoor","Nandipet ","Kovur","Korisapadu ","Pudur","Ponduru","Munagapaka","Merakamudidam","Kuravi ","Nallajerla",24,null,"Kovur",25]
[25,"Tamsi","Kalyandurg","Nagari  ","Korukonda","Macherla ",null,"Mylavaram ","Konaraopeta","Kusumanchi","Mandavalli","Koilkuntla","Itikyal ","Narayankhed","Kethepalle","Navipet ","Manubolu","Kothapatnam","Quthbullapur","Rajam","Munchingiputtu ","Nellimarla","Lingala Ghanpur","Narasapuram",25,null,"Manubolu",26]
[26,"Utnur","Kambadur","Narayanavanam  ","Kotananduru","Mangalagiri",null,"Mydukur  ","Koratla","Madhira","Mopidevi","Kolimigundla ","Jadcherla","Narsapur","Kodad ","Nizam Sagar","Marripadu","Kurichedu ","Rajendranagar ","Ranastalam","Nakkapalli","Pachipenta","Maddur","Nidadavole",26,null,"Marripadu",27]
[27,"Bazarhathnoor","Kanaganapalle","Nimmanapalle  ","Kothapalle","Medikonduru ",null,"Nandalur  ","Mahadevpur","Manuguru ","Movva","Kosigi ","Kalwakurthy","Nyalkal","M Turkapalle","Nizamabad","Muthukur","Lingasamudram ","Saroornagar"," Regidiamadalavalasa ","Narsipatnam","Parvathipuram","Mahabubabad","Nidamarru",27,null,"Muthukur",28]
[28,"Bhainsa","Kanekal","Nindra  ","Kothapeta","Muppalla",null,"Obulavaripalle  ","Malharrao","Mudigonda","Mudinepalli","Kothapalle","Keshampeta ","Papannapet","Marri Guda ","Pitlam","Naidupeta","Maddipadu ","Serilingampalle","Santhabommali ","Nathavaram","Pusapatirega","Mangapet","Palacole",28,null,"Naidupeta",29]
[29,"Dahegaon","Kothacheruvu","Pakala  ","Malikipuram","Nadendla ",null,"Peddamudium • ","Mallapur","Mulakalapalle","Musunuru","Kowthalam","Kodair","Patancheru","Mattampalle","Ranjal","Nellore","Markapur ","Shabad","Santhakaviti","Paderu","Ramabhadrapuram","Maripeda","Palakoderu",29,null,"Nellore",30]
[30,"Ichoda","Kudair","Palamaner  ","Mamidikuduru","Nagaram ",null,"Penagaluru ","Mallial","Nelakondapalle","Mylavaram","Krishnagiri","Kodangal","Pulkal ","Mellachervu","Sadasivanagar","Ojili","Marripudi ","Shamirpet","Saravakota","Padmanabham","Salur","Mogullapalle","Pedapadu",30,null,"Ojili",31]
[31,"Jaipur","Kundurpi","Palasamudram ","Mandapeta","Nakarikallu ",null,"Pendlimarri ","Manakondur","Palawancha","Nagayalanka","Kurnool","Koilkonda","Raikode","Miryalaguda","Sirkonda","Pellakur","Martur ","Shamshabad","Sarubujjili","Paravada ","Seethanagaram"," Mulug","Pedavegi",31,null,"Pellakur",32]
[32,"Kasipet","Lepakshi","Pedda Panjani  ","Maredumilli ","Narasaraopeta ",null,"Porumamilla  ","Manthani","Penuballi ","Nandigama","Maddikera East","Kollapur","Ramachandrapuram","Mothey","Tadwai ","Podlakur","Mundlamuru ","Shankarpalle","Seethampeta","Payakaraopeta ","Srungavarapukota","Nallabelly","Pentapadu",32,null,"Podlakur",33]
[33,"Kouthala","Mudigubba","Peddamandyam  ","Mummidivaram","Nizampatnam ",null,"Proddutur  ","Medipalle","Pinapaka","Nandivada ","Mahanandi","Kondurg ","Ramayampet ","Mothkur","Varni","Rapur ","Naguluppalapadu","Tandur ","Sompeta","Pedabayalu","Therlam","Narmetta","Penugonda",33,null,{"$f":" HLOOKUP($Z$1,$B$2:$X$68,AB35,FALSE)","v":"Rapur "},34]
[34," Lohesra","Nallacheruvu","Peddathippasamudram  ","P Gannavaram","Nuzendla ",null,"Pulivendla ","Metpalle","Sathupalle ","Nuzvid","Mantralayam","Kosgi","Regode","Munagala","Velpur","Sangam","Ongole ","Uppal","Srikakulam","Pedagantyada","Vepada","Narsampet","Penumantra",34,null,"Sangam",35]
[35,"Mandamarri","Nallamada","Penumuru ","Pamarru","Pedakakani ",null,"Pullampeta  ","Mustabad","Singareni","Pamarru","Midthur","Kothakota","Sadasivpet","Munugode","Yeda Palle","Seetharamapuram","Pamur ","Vikarabad","Tekkali","Pendurthi","Vizianagaram","Narsimhulapet","Peravali",35,null,"Seetharamapuram",36]
[36,"Neradigonda","Nambulipulikunta"," Pichatur ","Pedapudi","Pedakurapadu ",null,"Railway Koduru • ","Mutharam Mahadevpur","Thallada","Pamidimukkala","Nandavaram","Kothur","Sangareddy ","Nadigudem","Yellareddy","Sullurpeta","Parchur ","Yacharam","Vajrapukothuru","Rambilli",null,"Nekkonda","Poduru",36,null,"Sullurpeta",37]
[37,"Sirpur (T)","Narpala"," Pileru ","Peddapuram","Phirangipuram ",null,"Rajampet  ","Mutharam Manthani","Thirumalayapalem","Pedana","Nandi Kotkur","Lingal","Shankarampet (A)","Nakrekal",null,"Sydapuram ","Pedaaraveedu ","Yelal","Vangara","Ravikamatham",null,"Nellikudur","Polavaram ",37,null,"Sydapuram ",38]
[38,"Tandur","Obuladevaracheruvu","Pulicherla  ","Pithapuram ","Piduguralla ",null,"Raju Palem  ","Odela","Vararamachandrapuram","Pedaparupudi","Nandyal","Maddur","Shankarampet (R)","Nalgonda",null,"Tada ","Pedacherlopalle",null,"Veeraghattam","Rolugunta",null,"Palakurthi ","T Narasapuram",38,null,"Tada ",39]
[39,"Vemanpalle","Pamidi","Punganur ","Prathipadu","Pittalavanipalem ",null,"Ramapuram  ","Peddapalle","Velairpad ","Penamaluru","Orvakal","Madgul","Shivampet","Nampalle",null,"Thotapalligudur ","Podili ",null,null,"S Rayavaram ",null,"Parkal","Tadepalligudem",39,null,"Thotapalligudur ",40]
[40,"Bejjur","Parigi","Puthalapattu ","Rajahmundry (Urban)","Ponnur ",null,"Rayachoti  ","Pegadapalle","Vemsoor","Penuganchiprolu","Owk","Maganoor","Siddipet ","Narayanapur",null,"Udayagiri ","Ponnaluru ",null,null,"Sabbavaram",null,"Parvathagiri","Tanuku",40,null,"Udayagiri ",41]
[41,"Bheemini","Peddapappur  ","Puttur  ","Rajahmundry(Rural)","Prathipadu ",null,"S Mydukur  ","Raikal","Venkatapuram","Reddigudem","Pagidyala","Mahbubnagar","Tekmal","Narketpalle",null,"Vakadu ","Pullalacheruvu ",null,null,"Visakhapatnam",null,"Raghunatha Palle  ","Thallapudi",41,null,"Vakadu ",42]
[42,"Dandepalle","Peddavadugur","Rama Kuppam  ","Rajanagaram","Rajupalem ",null,"Sambepalle ","Ramadugu","Wazeed","Thotlavalluru","Pamulapadu","Makthal","Tupran","Nered Cherla",null,"Varikuntapadu ","Racherla ",null,null,"Visakhapatnam(U)",null,"Raiparthy ","Undi",42,null,"Varikuntapadu ",43]
[43,"Inderavelly","Penu Konda","Ramachandrapuram ","Rajavommangi","Rentacrintala ",null,"Sidhout  ","Ramagundam","Wyra","Tiruvuru","Panyam","Maldakal","Wargal","Nidamanur",null,"Venkatachalam ","Santhamaguluru ",null,null,"Yelamanchili",null,"Regonda","Undrajavaram",43,null,"Venkatachalam ",44]
[44,"Jannaram","Putlur","Ramasamudram  ","Ramachandrapuram","Repalle ",null,"Simhadripuram • ","Saidapur","Yellandu","Unguturu","Pattikanda","Manopadu","Yeldurthy","Nuthankal",null,"Venkatagiri ","Santhanuthlapadu ",null,null,null,null,"Sangem","Unguturu",44,null,"Venkatagiri ",45]
[45,"Kerameri","Puttaparthi","Renigunta  ","Rampachodavaram","Rompicherla",null,"T Sundupalle  ","Sarangapur","Yerrupalem","Vatsavai ","Peapally","Midjil","Zahirabad","Pedda Adiserlapalle",null,"Vidavalur ","Singarayakonda ",null,null,null,null,"Shayampet","Veeravasaram",45,null,"Vidavalur ",46]
[46,"Kubeer","Ramagiri ","Rompicherla  ","Rangampeta","Sattenapalle",null,"Thandur ","Sirsilla",null,"Veerullapadu","Pedda Kadubur","Nagar Kurnool",null,"Peddavura",null,"Vinjamur","Tangutur ",null,null,null,null,"Tadvai ","Yelamanchili",46,null,"Vinjamur",47]
[47,"Luxettipet","Raptadu","Santhi Puram  ","Ravula Palem","Savalyapuram",null,"Vallur ","Srirampur",null,"Vijayawada Rural","Rudravaram","Narayanpet",null,"Penpahad",null,null,"Tarlapadu ",null,null,null,null,"Thorrur",null,47,null,0,48]
[48,"Mudhole","Roddam","Satyavedu  ","Rayavaram","Tadikonda",null,"Veeraballe ","Sultanabad",null,"Vijayawada Urban","Sanjamala ","Narva",null,"Pochampalle",null,null,"Thallur ",null,null,null,null,"Venkatapur",null,48,null,0,49]
[49,"Nirmal","Rolla","Sodam  ","Razole","Tenali ",null,"Veerapunayunipalle •","Thimmapur",null,"Vissannapet","Sirvel","Nawabpet",null,"Rajapet",null,null,"Tripuranthakam ",null,null,null,null,"Wardhannapet",null,49,null,0,50]
[50,"Sirpur (U)","Settur","Somala  ","Sakhinetipalle","Thadepalle",null,"Vempalle  ","Veenavanka ",null,"Vuyyuru","Srisailam","Pangal",null,"Ramannapeta ",null,null,"Ulavapadu ",null,null,null,null,"Zaffergadh",null,50,null,0,51]
[51,"Tanur","Singanamala","Srikalahasti ","Samalkota","Thullur",null,"Vemula ","Velgatoor",null,null,"Tuggali","Pebbair",null,"Saligouraram",null,null,"Veligandla ",null,null,null,null,null,null,51,null,0,52]
[52,"Wankdi","Somandepalle","Srirangarajapuram  ","Sankhavaram","Tsundur",null,"Vontimitta ","Vemulawada",null,null,"Uyyalawada","Peddakothapalle",null,"Suryapet",null,null,"Vetapalem ",null,null,null,null,null,null,52,null,0,53]
[53,null,"Tadimarri ","Thamballapalle ","Seethanagaram","Vatticherukuru",null,"Yerraguntla","Yella Reddi Peta",null,null,"Veldurthi","Peddamandadi",null,"Thipparthi",null,null,"Voletivaripalem ",null,null,null,null,null,null,53,null,0,54]
[54,null,"Tadpatri ","Thavanampalle ","Thallarevu","Veldurthi ",null,"Yerraguntla",null,null,null,"Velgodu","Tadoor",null,"Thirumalagiri",null,null,"Yeddanapudi ",null,null,null,null,null,null,54,null,0,55]
[55,null,"Talupula","Thottambedu ","Thondangi","Vemuru",null,null,null,null,null,"Yemmiganur","Talakondapalle",null,"Thripuraram",null,null,"Yerragondapalem ",null,null,null,null,null,null,55,null,0,56]
[56,null,"Tanakal","Tirupati Rural ","Tuni","Vinukonda",null,null,null,null,null,null,"Telkapalle",null,"Thunga Thurthi",null,null,"Zarugumilli",null,null,null,null,null,null,56,null,0,57]
[57,null,"Uravakonda","Tirupati Urban ","Uppalaguptam",null,null,null,null,null,null,null,"Thimmajipeta",null,"Valigonda",null,null,null,null,null,null,null,null,null,57,null,0,58]
[58,null,"Vajrakarur","Vadamalapeta  ","Y Ramavaram ",null,null,null,null,null,null,null,"Uppununthala",null,"Vemulapalle",null,null,null,null,null,null,null,null,null,58,null,0,59]
[59,null,"Vidapanakal","Varadaiahpalem  ","Yeleswaram",null,null,null,null,null,null,null,"Utkoor",null,"Yadagirigutta",null,null,null,null,null,null,null,null,null,59,null,0,60]
[60,null,"Yadiki","Vayalpad  ",null,null,null,null,null,null,null,null,"Vangoor",null,null,null,null,null,null,null,null,null,null,null,60,null,0,61]
[61,null,"Yellanur","Veduru Kuppam  ",null,null,null,null,null,null,null,null,"Veepangandla",null,null,null,null,null,null,null,null,null,null,null,61,null,0,62]
[62,null,null,"Venkatagiri Kota  ",null,null,null,null,null,null,null,null,"Veldanda",null,null,null,null,null,null,null,null,null,null,null,62,null,0,63]
[63,null,null,"Vijaya Puram  ",null,null,null,null,null,null,null,null,"Waddepalle",null,null,null,null,null,null,null,null,null,null,null,63,null,0,64]
[64,null,null,"Yadamari ",null,null,null,null,null,null,null,null,"Wanaparthy",null,null,null,null,null,null,null,null,null,null,null,64,null,0,65]
[65,null,null,"Yerpedu ",null,null,null,null,null,null,null,null,null,null,null,null,null,null,null,null,null,null,null,null,65,null,{"$f":" HLOOKUP($Z$1,$B$2:$X$68,AB67,FALSE)","v":0},66]
[66,null,null,"Yerravaripalem",null,null,null,null,null,null,null,null,null,null,null,null,null,null,null,null,null,null,null,null,66,null,{"$f":" HLOOKUP($Z$1,$B$2:$X$68,AB68,FALSE)","v":0},67]

{"sheet":"Code","index":1,"n_rows":223,"n_cols":124,"rows_kept":223,"cut":false,"hidden":true,"merged":[[103,12,103,13],[160,22,160,24],[159,22,159,24],[156,15,156,16],[119,16,119,17],[124,11,127,19],[128,15,128,16],[129,15,129,26],[138,21,138,22],[120,21,120,22],[12,28,12,29],[21,22,21,23],[114,81,114,82],[129,76,129,79],[114,67,114,69],[109,76,109,79],[94,81,94,82],[53,67,53,68],[74,76,74,79],[1,40,1,41],[16,32,16,33],[3,36,3,37],[3,32,3,33],[3,34,3,35],[4,0,4,1],[4,2,4,3],[3,26,3,27],[1,38,1,39],[3,30,3,31],[1,65,1,66],[16,65,16,66],[16,59,16,60],[16,61,16,62],[1,59,1,60],[1,63,1,64],[196,22,196,23],[2,43,2,44],[74,83,74,84],[94,85,94,86],[109,83,109,84],[41,30,41,31],[29,30,29,31],[29,37,29,38],[21,32,21,33],[53,63,53,64],[59,67,59,72],[50,67,50,68],[53,65,53,66],[50,65,50,66],[59,81,59,82],[94,67,94,72]]}
[null,16,null,null,null,null,null,null,null,null,null,null,null,null,null,null,null,null,null,null,null,null,null,null,null,null,null,null,null,null,null,null,null,null,null,null,null,null,10,2,17,9]
[null,{"$f":"VLOOKUP(B1,Mandals!Y3:Z25,2)","v":"Nellore District"},null,null,null,null,null,null,null,null,null,null,null,null,null,null,null,null,null,null,null,null,"July basic",null,null,null,null,null,null,null,null,null,null,null,null,null,null,null,"Halyf Pay Leave",null,"Loss of Pay",null,null,1,{"$f":"VLOOKUP(AR2,AR4:AS11,2)","v":"Not Applicable"},null,1,{"$f":"LOOKUP(AU2,AU3:AU15,AV3:AV15)","v":0},null,null,null,null,null,null,null,null,null,null,null,"Start date",null,null,null,"Start date",null,"End date"]
[null,null,null,null,null,null,null,null,null,null,null,null,null,null,null,null,null,null,null,null,30,43,{"$f":"VLOOKUP(V3,U5:V84,2)","v":42490},null,null,null,16,{"$f":"LOOKUP(AA3,AA5:AB69,AB5:AB69)","v":7970},2,{"$f":"VLOOKUP(AC3,AC5:AD7,2)","v":15},2,null,4,{"$f":"VLOOKUP(AG3,AG5:AH12,2)","v":60},2,{"$f":"VLOOKUP(AI3,AI5:AJ10,2)","v":20},2,{"$f":"VLOOKUP(AK3,AK5:AL7,2)","v":20},2,{"$f":"LOOKUP(AM3,AM4:AN5)","v":"Not Applicale"},2,{"$f":"LOOKUP(AO3,AO4:AP5)","v":"Not Applicale"},null,"gis 2",null,null,1,0,null,null,null,null,null,null,null,null,null,null,null,6,7,null,null,null,null,7,9]
[null,null,null,null,null,null,null,null,null,null,null,null,null,null,null,19,18,{"$f":"LOOKUP(Q4,Q5:Q70,R5:R70)","v":"Kamalapuram • "},null,null,1,1,12,{"$f":"VLOOKUP(W4,W5:X17,2)","v":"2017-01-01"},4,{"$f":"VLOOKUP(Y4,Y5:Z10,2)","v":0.14499999999999999},"RPS 2005",null,"EARNED LEAVE",null,"PHC",null,"gis 1",null,"EWF",null,"SWF",null,1,"Applicable",1,"Applicable",null,1,"Not Applicable",null,2,400,null,null,null,null,null,null,null,null,null,null,null,"Half pay","Loss of pay",null,null,"Half pay","Loss of pay","Half pay","Loss of pay"]
["List of Mandals in Nellore District",null,"List of Mandals in Chittoor District",null,"List of Mandals in Prakasam District","List of Mandals in Guntur District","List of Mandals in Cuddapah District","List of Mandals in Anantapur District","List of Mandals in Kurnool District","List of Mandals in Visakhapatnam District","List of Mandals in Vizianagaram District","List of Mandals in Adilabad District",null,null,1,"Adilabad District",1,{"$f":"IF(B1=1,\" \",IF(B1=2,B6,IF(B1=3,D6,IF(B1=4,E6,IF(B1=5,F6,G6)))))","v":"Atlur • "},null,6700,1,13000,1,"Not Applicable",1,0.1,1,5470,1,{"$f":"IF(AD8=\"Applicable\",AF8,\" \")","v":0},1,"YES",1,0,1,0,1,0,2,"Not Applicale",2,"Not Applicale",null,2,30,null,3,800,null,null,null,null,null,null,null,null,null,null,null,{"$f":"IF(AN$3=\"Applicable\",AM18,\" \")","v":" "},{"$f":"IF(AP$3=\"Applicable\",AM18,\" \")","v":" "},1,null,1,1,{"$f":"IF(AN$3=\"Applicable\",AM18,\" \")","v":" "},{"$f":"IF(AP$3=\"Applicable\",AM18,\" \")","v":" "}]
[1,"Allur",1,"B Kothakota","Addanki","Achampeta","Atlur • ","Agali • Amadagur • Amarapuram • Anantapur • Atmakur • Bathalapalle • Beluguppa • Bommanahal • Brahmasamudram • Bukkapatnam • Bukkarayasamudram • Chenne Kothapalle • Chilamathur • D.Hirchal • Dharmavaram • Gandlapenta • Garladinne • Gooty • Gorantla • Gudibanda • Gummagatta • Guntakal • Hindupur • Kadiri • Kalyandurg • Kambadur • Kanaganapalle • Kanekal • Kothacheruvu • Kudair • Kundurpi • Lepakshi • Madakasira • Mudigubba • Nallacheruvu • Nallamada • Nambulipulikunta • Narpala • Obuladevaracheruvu • Pamidi • Parigi • Peddapappur • Peddavadugur • Penu Konda • Putlur • Puttaparthi • Ramagiri • Raptadu • Rayadurg • Roddam • Rolla • Settur • Singanamala • Somandepalle • Tadimarri • Tadpatri • Talupula • Tanakal • Uravakonda • Vajrakarur • Vidapanakal • Yadiki • Yellanur","Adoni • Allagadda • Alur • Aspari • Atmakur • Banaganapalle • Bandi Atmakur • Bethamcherla • Bugganipalle • C.Belagal • Chagalamarri • Chippagiri • Devanakonda • Dhone • Dornipadu • Gadivemula • Gonegandla • Gospadu • Gudur • Halaharvi • Holagunda • Jupadu Bungalow • Kallur • Kodumur • Koilkuntla • Kolimigundla • Kosigi • Kothapalle • Kowthalam • Krishnagiri • Kurnool • Maddikera East • Mahanandi • Mantralayam • Midthur • Nandavaram • Nandi Kotkur • Nandyal • Orvakal • Owk • Pagidyala • Pamulapadu • Panyam • Pattikanda • Peapally • Pedda Kadubur • Rudravaram • Sanjamala • Sirvel • Srisailam • Tuggali • Uyyalawada • Veldurthi (Kurnool District) • Velgodu • Yemmiganur","Anakapalli","Badangi • Balajipeta • Bhoghapuram • Bobbili • Bondapalle • Chintalavalasa • Cheepurupalle • Dattirajeru • Denkada • Gajapathinagaram • Gantyada • Garividi • Garugubilli • Gummalakshmipuram • Gurla • Jami • Jiyyamma Valasa • Komarada • Kothavalasa • Kurupam • Lakkavarapukota • Makkuva • Mentada • Merakamudidam • Nellimarla • Pachipenta • Parvathipuram • Pusapatirega • Ramabhadrapuram • Salur • Seethanagaram (Vizianagaram District) • Srungavarapukota • Therlam • Vepada • Vizianagaram","Adilabad • Bela • Boath • Dilawarpur • Jainad • Kaddampeddur • Khanpur • Kuntala • Mamda • Narnoor • Rebbana • Talamadugu • Tiryani • Asifabad • Bellampalle • Chennur • Gudihathnur • Jainoor • Kagaz Nagar • Kotapalle • Laxmanchanda • Mancherial • Nennal • Sarangapur • Tamsi • Utnur • Bazarhathnoor • Bhainsa • Dahegaon • Ichoda • Jaipur • Kasipet • Kouthala • Lohesra • Mandamarri • Neradigonda • Sirpur (T) • Tandur • Vemanpalle • Bejjur • Bheemini • Dandepalle • Inderavelly • Jannaram • Kerameri • Kubeer • Luxettipet • Mudhole • Nirmal • Sirpur (U) • Tanur • Wankdi",null,null,null,null,2,{"$f":"IF(B1=1,\" \",IF(B1=2,B7,IF(B1=3,D7,IF(B1=4,E7,IF(B1=5,F7,G7)))))","v":"B Kodur "},null,6900,2,13390,2,{"$f":"AQ18","v":"2016-03-01"},2,0.12,2,5605,2,{"$f":"IF(AD8=\"Applicable\",AF9,\" \")","v":15},2,"NO",2,15,2,20,2,20,2,{"$f":"IF(AN$3=\"Applicable\",AM18,\" \")","v":" "},1,{"$f":"IF(AP$3=\"Applicable\",AM18,\" \")","v":" "},null,3,60,null,4,1000,null,null,null,null,null,null,null,null,null,null,null,{"$f":"IF(AN$3=\"Applicable\",AM19,\" \")","v":" "},{"$f":"IF(AP$3=\"Applicable\",AM19,\" \")","v":" "},1,2015,{"$f":"IF(AN$3=\"Applicable\",BK6,\" \")","v":" "},{"$f":"IF(AP$3=\"Applicable\",BK6,\" \")","v":" "},{"$f":"IF(AN$3=\"Applicable\",AM19,\" \")","v":" "},{"$f":"IF(AP$3=\"Applicable\",AM19,\" \")","v":" "}]
[2,"Ananthasagaram",2,"Baireddi Palle","Ardhaveedu"," Amaravathi ","B Kodur ",null,null,"• Anandapuram •",null,null,null,null,2,"SPSR Nellore District",3,{"$f":"IF(B1=1,\" \",IF(B1=2,B8,IF(B1=3,D8,IF(B1=4,E8,IF(B1=5,F8,G8)))))","v":"• Badvel "},null,7100,3,13780,3,"2016-04-01",3,0.125,3,5750,3,{"$f":"IF(AD8=\"Applicable\",AF10,\" \")","v":30},null,null,3,30,3,50,3,50,null,{"$f":"IF(AN$3=\"Applicable\",AM19,\" \")","v":" "},null,{"$f":"IF(AP$3=\"Applicable\",AM19,\" \")","v":" "},null,4,75,null,5,1200,null,null,null,null,null,null,null,null,null,null,null," "," ",2,2016,{"$f":"IF(AN$3=\"Applicable\",BK7,\" \")","v":" "},{"$f":"IF(AP$3=\"Applicable\",BK7,\" \")","v":" "}," "," "]
[3,"Anumasamudrampeta",3,"Bangarupalem","Ballikuruva "," Amruthalur ","• Badvel ",null,null," Ananthagiri • Araku Valley • Atchutapuram • Bheemunipatnam • Butchayyapeta • Cheedikada • Chintapalle • Chodavaram • Devarapalle • Dumbriguda • Gajuwaka • Gangaraju Madugula • Golugonda • Gudem Kothaveedhi • Hukumpeta • K Kotapadu • Kasimkota • Kotauratla • Koyyuru • Madugula • Makavarapalem • Munagapaka • Munchingiputtu • Nakkapalli • Narsipatnam • Nathavaram • Paderu • Padmanabham • Paravada • Payakaraopeta • Pedabayalu • Pedagantyada • Pendurthi • Rambilli • Ravikamatham • Rolugunta • S Rayavaram • Sabbavaram • Visakhapatnam • Visakhapatnam(U) • Yelamanchili",null,null,null,null,3,"Chittoor District",4,{"$f":"IF(B1=1,\" \",IF(B1=2,B9,IF(B1=3,D9,IF(B1=4,E9,IF(B1=5,F9,G9)))))","v":"• Brahmamgarimattam "},null,7300,4,14170,4,"2016-05-01",4,0.14499999999999999,4,5895,1,{"$f":"LOOKUP(AC8,AC9:AC10,AD9:AD10)","v":"Applicable"},null,0,4,60,4,150,null,null,null," ",null," ",null,5,120,null,6,1400,null,null,null,null,null,null,null,null,null,null,null," "," ",null,"Year",{"$f":"LOOKUP(BL5,BJ6:BJ7,BL6:BL7)","v":" "},{"$f":"LOOKUP(BM5,BJ6:BJ7,BM6:BM7)","v":" "}," "," "]
[4,"Atmakur",4," Buchinaidu Khandriga","Bestavaripeta "," Bapatla ","• Brahmamgarimattam ",null,null,null,null,null,null,null,2,"East Godavari District",5,{"$f":"IF(B1=1,\" \",IF(B1=2,B10,IF(B1=3,D10,IF(B1=4,E10,IF(B1=5,F10,G10)))))","v":"• Chakrayapet"},null,7520,5,14600,5,"2016-06-01",5,0.2,5,6040,1,"Applicable",null,15,5,75,5,200,null,null,null," ",null," ",null,6,150,null,7,1600,null,null,null,null,null,null,null,null,null,null,null," "," ",null,null,null,null," "," ",null,null,null,9912340596]
[5,"Balayapalli",5,"Chandragiri","Chadrasekara Puram  "," Bellamkonda","• Chakrayapet",null,null,null,null,null,null,null,6,"Guntur District",6,{"$f":"IF(B1=1,\" \",IF(B1=2,B11,IF(B1=3,D11,IF(B1=4,E11,IF(B1=5,F11,G11)))))","v":" • Chapad • "},null,7740,6,15030,6,"2016-07-01",6,0.3,6,6195,2,"Not Applicale",null,30,6,120,6,300,null,null,null," ",null," ",null,7,200,null,8,1800,null,null,null,null,null,null,null,null,null,null,null," "," ",null,null,null,null," "," "]
[6,"Bogole",6,"Chinnagottigallu","Chimakurthi "," Bhattiprolu "," • Chapad • ",null,null,null,null,null,null,null,7,"Hyderabad District",7,{"$f":"IF(B1=1,\" \",IF(B1=2,B12,IF(B1=3,D12,IF(B1=4,E12,IF(B1=5,F12,G12)))))","v":"Chennur"},null,7960,7,15460,7,"2016-08-01",1,{"$f":"VLOOKUP(Y11,Y12:Z16,2)","v":0},7,6350,null,null,null,null,7,150,null,null,null,null,null," ",null," ",null,null,null,null,9,2000,null,null,null,null,null,null,null,null,null,null,null," "," ",null,null,null,null," "," "]
[7,"Buchireddipalem",7,"Chittoor","Chinaganjam "," Bollapalle ","Chennur",null,null,null,null,null,null,null,8,"Kareemnagar District",8,{"$f":"IF(B1=1,\" \",IF(B1=2,B13,IF(B1=3,D13,IF(B1=4,E13,IF(B1=5,F13,G13)))))","v":"• ChinnaChowk "},null,8200,8,15930,8,"2016-09-01",1,0,8,6505,3,{"$f":"LOOKUP(AC12,AC14:AD16)","v":"ZPPF"},null,null,8,200,null,null,null,null,null," ",null," ",null,null,null,null,10,2400,null,null,null,null,null,null,null,null,null,null,null," "," ",null,null,null,null," "," "]
[8,"Chejerla ",8," Chowdepalle","Chirala ","Chebrole ","• ChinnaChowk ",null,null,null,null,null,null,null,9,"Khammam District",9,{"$f":"IF(B1=1,\" \",IF(B1=2,B14,IF(B1=3,D14,IF(B1=4,E14,IF(B1=5,F14,G14)))))","v":"• Chinnamandem "},null,8440,9,16400,9,"2016-10-01",2,0.12,9,6675,"ZPPF/GPF/CPS",null,null,null,null,null,null,null,null,null,null," ",null," ",null,null,null,null,11,2800,null,null,null,null,null,null,null,null,null,null,null," "," ",null,null,null,null," "," "]
[9,"Chillakur ",9,"Gangadhara Nellore","Cumbum ","Cherukupalle ","• Chinnamandem ",null,null,null,null,null,null,null,10,"Krishna District",10,{"$f":"IF(B1=1,\" \",IF(B1=2,B15,IF(B1=3,D15,IF(B1=4,E15,IF(B1=5,F15,G15)))))","v":"• Chintha Kommadinne "},null,8680,10,16870,10,"2016-11-01",3,0.14499999999999999,10,6845,1,"CPS",null,null,null,null,null,null,null,null,null," ",null," ",null,null,null,null,12,3200,null,null,null,null,null,null,null,null,null,null,null," "," ",null,null,null,null," "," "]
[10,"Chittamur ",10,"Gangavaram  ","Darsi "," Chilakaluripet ","• Chintha Kommadinne ",null,null,null,null,null,null,null,11,"Kurnool District",11,{"$f":"IF(B1=1,\" \",IF(B1=2,B16,IF(B1=3,D16,IF(B1=4,E16,IF(B1=5,F16,G16)))))","v":"• Chitvel "},null,8940,11,17380,11,"2016-12-01",4,0.2,11,7015,2,"GPF",null,null,null,null,null,"earned L",12,{"$f":"LOOKUP(AK15,AE18:AE29,AL18:AL29)","v":"2017-02-01"},{"$f":"MATCH(AK15,AF18:AF29)","v":{"$error":"#N/A"}},{"$f":"AK15+2","v":14},null," ",null,null,null,null,13,3600,null,null,null,null,null,null,null,null,null,null,null," "," ",null,null,null,null," "," "]
[11,"Dagadarthi ",11,"Gudi Palle  ","Donakonda","Dachepalle ","• Chitvel ",null,null,null,null,null,null,null,12,"Mahboobnagar District",12,{"$f":"IF(B1=1,\" \",IF(B1=2,B17,IF(B1=3,D17,IF(B1=4,E17,IF(B1=5,F17,G17)))))","v":"• Cuddapah "},null,9200,12,17890,12,"2017-01-01",5,0.3,12,7200,3,"ZPPF",null,null,null,null,null,null,null,null,null," ",null," ",null,null,11,null,null,null,null,null,"Revised PF",null,null,null,null,null,null,null,null," "," ",null,null,null,null," "," "]
[12,"Dakkili",12,"Gudipala ","Dornala ","Duggirala ","• Cuddapah ",null,null,null,null,null,null,null,13,"Medak District",13,{"$f":"IF(B1=1,\" \",IF(B1=2,B18,IF(B1=3,D18,IF(B1=4,E18,IF(B1=5,F18,G18)))))","v":"• Duvvur • "},null,9460,13,18400,13,"2017-02-01",null,null,13,7385,1,null,9,{"$f":"VLOOKUP(AE17,AE18:AF29,2)","v":" "},"8/16/24 scale",null,"date",2,{"$f":"LOOKUP(AJ17,AE18:AE19,AK18:AK19)","v":" "},null,null," ",6," ",{"$f":"Data!W31","v":0},"apgli",{"$f":"Data!T31","v":1150},null,{"$f":"Data!$Y$31","v":0},null,null,null,4,null,null,null,null,null,null,null,null,"Start date",null,"End date",null,null,null,"End date"]
[13,"Doravarisatram",13,"Gurramkonda  ","Giddaluru "," Durgi ","• Duvvur • ",null,null,null,null,null,null,null,14,"Nalgonda District",14,{"$f":"IF(B1=1,\" \",IF(B1=2,B19,IF(B1=3,D19,IF(B1=4,E19,IF(B1=5,F19,G19)))))","v":"Galiveedu •"},null,9740,14,18950,null,null,null,null,14,7570,1,{"$f":"IF(AH18=\"Applicable\",AC18,\" \")","v":" "},1,{"$f":"IF(AH18=\"Applicable\",X6,\" \")","v":" "},2,{"$f":"LOOKUP(AG18,AG19:AH20)","v":"Not Applicable"},31,{"$f":"IF(AH18=\"Applicable\",AM18,\" \")","v":" "},{"$f":"IF(AH$18=\"Applicable\",2016,\" \")","v":" "},{"$f":"IF(OR(AD3=30,AD3=15),AQ18,\" \")","v":"2016-03-01"},"Jan",2016,1,{"$f":"IF(AQ17>0,AQ18,\" \")","v":" "},{"$f":"'SALARY TABLE'!B5","v":"2016-03-01"},{"$f":"'SALARY TABLE'!U5","v":1150},{"$f":"IF($AU$17>0,AQ18,\" \")","v":" "},{"$f":"$AS$17","v":1150},{"$f":"IF(AO18>=AO17,AQ17,AS17)","v":1150},{"$f":"IF($AO$17<=AO18,$AQ$17,0)","v":0},{"$f":"IF($AS$16<=AO18,$AU$17,0)","v":0},{"$f":"MAX(AU18,AV18,AW18,AT18)","v":1150},{"$f":"AQ18","v":"2016-03-01"},null,{"$f":"$AA$3","v":16},{"$f":"LOOKUP(BA18,BA19:BA83,BB19:BB83)","v":7970},{"$f":"LOOKUP(BB18,BB20:BB84,BC20:BC84)","v":14860},null,null,null,null,"Half pay","Loss of pay","Half pay","Loss of pay"]
[14,"Duttalur ",14,"Irala ","Gudluru ","Edlapadu","Galiveedu •",null,null,null,null,null,null,null,15,"Nizamabad District",15,{"$f":"IF(B1=1,\" \",IF(B1=2,B20,IF(B1=3,D20,IF(B1=4,E20,IF(B1=5,F20,G20)))))","v":" Gopavaram •"},null,10020,15,19500,2,{"$f":"VLOOKUP(W19,W20:X21,2)","v":"No"},null,null,15,7770,2,{"$f":"IF(AH18=\"Applicable\",AC19,\" \")","v":" "},2,{"$f":"IF(AH18=\"Applicable\",X7,\" \")","v":" "},1,"Applicable",28,{"$f":"IF(AH18=\"Applicable\",AM19,\" \")","v":" "},{"$f":"IF(AH$18=\"Applicable\",2017,\" \")","v":" "},{"$f":"IF(OR(AD3=30,AD3=15),AQ19,\" \")","v":"2016-04-01"},"Feb",2017,2,{"$f":"IF(AQ17>0,AQ19,\" \")","v":" "},{"$f":"'SALARY TABLE'!B6","v":"2016-04-01"},{"$f":"'SALARY TABLE'!U6","v":1150},{"$f":"IF($AU$17>0,AQ19,\" \")","v":" "},{"$f":"$AS$17","v":1150},{"$f":"IF(AO19>=AO17,AQ17,AS17)","v":1150},{"$f":"IF($AO$17<=AO19,$AQ$17,0)","v":0},{"$f":"IF($AS$16<=AO19,$AU$17,0)","v":0},{"$f":"MAX(AU19,AV19,AW19,AT19)","v":1150},{"$f":"AQ19","v":"2016-04-01"},null,null,0,"SGT","SA","HM",1,"Secondary Grade Teacher",{"$f":"IF($AN$3=\"Applicable\",AC18,\" \")","v":" "},{"$f":"IF($AP$3=\"Applicable\",AC18,\" \")","v":" "},{"$f":"IF($AN$3=\"Applicable\",AC18,\" \")","v":" "},{"$f":"IF($AP$3=\"Applicable\",AC18,\" \")","v":" "},null,null,"Half pay","Loss of pay"]
[15,"Gudur ",15,"K V P Puram ","Hanumanthunipadu "," Guntur "," Gopavaram •",null,null,null,null,null,null,null,16,"Prakasham District",16,{"$f":"IF(B1=1,\" \",IF(B1=2,B21,IF(B1=3,D21,IF(B1=4,E21,IF(B1=5,F21,G21)))))","v":" Jammalamadugu • "},null,10300,16,20050,1,"Yes",null,null,16,7970,3,{"$f":"IF(AH18=\"Applicable\",AC20,\" \")","v":" "},3,{"$f":"IF(AH18=\"Applicable\",X8,\" \")","v":" "},2,"Not Applicable",31,{"$f":"IF(AH18=\"Applicable\",AM20,\" \")","v":" "},null,{"$f":"IF(OR(AD3=30,AD3=15),AQ20,\" \")","v":"2016-05-01"},"Mar",null,3,{"$f":"IF(AQ17>0,AQ20,\" \")","v":" "},{"$f":"'SALARY TABLE'!B7","v":"2016-05-01"},{"$f":"'SALARY TABLE'!U7","v":1150}," ",1150,{"$f":"IF(AO20>=AO17,AQ17,AS17)","v":1150},0,0,1150,"2016-05-01",5470,1,5470,10900,14860,18030,2,"School Assistant"," ",{"$f":"IF($AP$3=\"Applicable\",AC19,\" \")","v":" "},{"$f":"IF($AN$3=\"Applicable\",AC19,\" \")","v":" "},{"$f":"IF($AP$3=\"Applicable\",AC19,\" \")","v":" "},1,null,1,1]
[16,"Indukurpet ",16,"Kalakada  ","Inkollu ","Gurazala "," Jammalamadugu • ",null,null,null,null,null,null,null,17,"Ranga Reddy District",17,{"$f":"IF(B1=1,\" \",IF(B1=2,B22,IF(B1=3,D22,IF(B1=4,E22,IF(B1=5,F22,G22)))))","v":"Kalasapadu • "},null,10600,17,20640,2,"No",null,null,17,8170,4,{"$f":"IF(AH18=\"Applicable\",AC21,\" \")","v":" "},4,{"$f":"IF(AH18=\"Applicable\",X9,\" \")","v":" "},null,null,30,{"$f":"IF(AH18=\"Applicable\",AM21,\" \")","v":" "},null,{"$f":"IF(OR(AD3=30,AD3=15),AQ21,\" \")","v":"2016-06-01"},"Apr",null,4,{"$f":"IF(AQ17>0,AQ21,\" \")","v":" "},{"$f":"'SALARY TABLE'!B8","v":"2016-06-01"},{"$f":"'SALARY TABLE'!U8","v":1150}," ",1150,{"$f":"IF(AO21>=AO17,AQ17,AS17)","v":1150},0,0,1150,"2016-06-01",5605,2,5605,10900,14860,18030,3,"HM"," "," "," "," ",1,2015,{"$f":"IF(AN$3=\"Applicable\",BM21,\" \")","v":" "},{"$f":"IF(AP$3=\"Applicable\",BM21,\" \")","v":" "}]
[17,"Jaladanki ",17,"Kalikiri  ","Janakavaram Panguluru "," Ipuru","Kalasapadu • ",null,null,null,null,null,null,null,18,"Sreekakulam District",18,{"$f":"IF(B1=1,\" \",IF(B1=2,B23,IF(B1=3,D23,IF(B1=4,E23,IF(B1=5,F23,G23)))))","v":"Kamalapuram • "},null,10900,18,21230,"With DA",null,null,null,18,8385,5,{"$f":"IF(AH18=\"Applicable\",AC22,\" \")","v":" "},5,{"$f":"IF(AH18=\"Applicable\",X10,\" \")","v":" "},"Stepup",null,31,{"$f":"IF(AH18=\"Applicable\",AM22,\" \")","v":" "},null,{"$f":"IF(OR(AD3=30,AD3=15),AQ22,\" \")","v":"2016-07-01"},"May",null,5,{"$f":"IF(AQ17>0,AQ22,\" \")","v":" "},{"$f":"'SALARY TABLE'!B9","v":"2016-07-01"},{"$f":"'SALARY TABLE'!U9","v":1150}," ",1150,{"$f":"IF(AO22>=AO17,AQ17,AS17)","v":1150},0,0,1150,"2016-07-01",5750,3,5750,10900,14860,18030,null,null," "," "," "," ",2,2016,{"$f":"IF(AN$3=\"Applicable\",BM22,\" \")","v":" "},{"$f":"IF(AP$3=\"Applicable\",BM22,\" \")","v":" "}]
[18,"Kaligiri ",18,"Kambhamvaripalle ","Kandukur "," Kakumanu","Kamalapuram • ",null,null,null,null,null,null,null,19,"Vishakapatnam District",19,{"$f":"IF(B1=1,\" \",IF(B1=2,B24,IF(B1=3,D24,IF(B1=4,E24,IF(B1=5,F24,G24)))))","v":"Khajipet •"},null,11200,19,21820,1,{"$f":"VLOOKUP(W23,W24:X25,2)","v":"Yes"},null,null,19,8600,6,{"$f":"IF(AH18=\"Applicable\",AC23,\" \")","v":" "},6,{"$f":"IF(AH18=\"Applicable\",X11,\" \")","v":" "},2,{"$f":"LOOKUP(AG23,AG24:AH25)","v":"Not Applicable"},30,{"$f":"IF(AH18=\"Applicable\",AM23,\" \")","v":" "},null,{"$f":"IF(OR(AD3=30,AD3=15),AQ23,\" \")","v":"2016-08-01"},"Jun",null,6,{"$f":"IF(AQ17>0,AQ23,\" \")","v":" "},{"$f":"'SALARY TABLE'!B10","v":"2016-08-01"},{"$f":"'SALARY TABLE'!U10","v":1150}," ",1150,{"$f":"IF(AO23>=AO17,AQ17,AS17)","v":0},0,0,1150,"2016-08-01",5895,4,5895,10900,14860,18030,null,null," "," "," "," ",null,"Year",{"$f":"LOOKUP(BN20,BL21:BL22,BN21:BN22)","v":" "},{"$f":"LOOKUP(BO20,BL21:BL22,BO21:BO22)","v":" "}]
[19,"Kaluvoya ",19,"Karvetinagar ","Kanigiri "," Karempudi","Khajipet •",null,null,null,null,null,null,null,20,"Vizianagaram District",20,{"$f":"IF(B1=1,\" \",IF(B1=2,B25,IF(B1=3,D25,IF(B1=4,E25,IF(B1=5,F25,G25)))))","v":" Kodur • "},null,11530,20,22460,1,"Yes",null,null,20,8815,7,{"$f":"IF(AH18=\"Applicable\",AC24,\" \")","v":" "},7,{"$f":"IF(AH18=\"Applicable\",X12,\" \")","v":" "},1,"Applicable",31,{"$f":"IF(AH18=\"Applicable\",AM24,\" \")","v":" "},null,{"$f":"IF(OR(AD3=30,AD3=15),AQ24,\" \")","v":"2016-09-01"},"Jul",null,7,{"$f":"IF(AQ17>0,AQ24,\" \")","v":" "},{"$f":"'SALARY TABLE'!B11","v":"2016-09-01"},{"$f":"'SALARY TABLE'!U11","v":1150}," ",1150,{"$f":"IF(AO24>=AO17,AQ17,AS17)","v":0},0,0,1150,"2016-09-01",6040,5,6040,11200,14860,18030,null,null," "," "," "," "]
[20,"Kavali ",20,"Kuppam  ","Karamchedu "," Karlapalem"," Kodur • ",null,null,null,null,null,null,null,null,"Warangal District",21,{"$f":"IF(B1=1,\" \",IF(B1=2,B26,IF(B1=3,D26,IF(B1=4,E26,IF(B1=5,F26,G26)))))","v":"Kondapuram • "},null,11860,21,23100,2,"No",null,null,21,9050,8,{"$f":"IF(AH18=\"Applicable\",AC25,\" \")","v":" "},8,{"$f":"IF(AH18=\"Applicable\",X13,\" \")","v":" "},2,"Not Applicable",31,{"$f":"IF(AH18=\"Applicable\",AM25,\" \")","v":" "},null,{"$f":"IF(OR(AD3=30,AD3=15),AQ25,\" \")","v":"2016-10-01"},"Aug",null,8,{"$f":"IF(AQ17>0,AQ25,\" \")","v":" "},{"$f":"'SALARY TABLE'!B12","v":"2016-10-01"},{"$f":"'SALARY TABLE'!U12","v":1150}," ",1150,{"$f":"IF(AO25>=AO17,AQ17,AS17)","v":0},0,0,1150,"2016-10-01",6195,6,6195,11530,14860,18030,null,null," "," "," "," "]
[21,"Kodavalur ",21,"Kurabalakota  "," Komarolu ","Kollipara ","Kondapuram • ",null,null,null,null,null,null,null,22,"West Godavari District",22,{"$f":"IF(B1=1,\" \",IF(B1=2,B27,IF(B1=3,D27,IF(B1=4,E27,IF(B1=5,F27,G27)))))","v":"Lakkireddipalle • "},null,12190,22,23740,null,null,null,null,22,9285,9,{"$f":"IF(AH18=\"Applicable\",AC26,\" \")","v":" "},9,{"$f":"IF(AH18=\"Applicable\",X14,\" \")","v":" "},1,1,30,{"$f":"IF(AH18=\"Applicable\",AM26,\" \")","v":" "},null,{"$f":"IF(OR(AD3=30,AD3=15),AQ26,\" \")","v":"2016-11-01"},"Sep",null,9,{"$f":"IF(AQ17>0,AQ26,\" \")","v":" "},{"$f":"'SALARY TABLE'!B13","v":"2016-11-01"},{"$f":"'SALARY TABLE'!U13","v":1150}," ",1150,{"$f":"IF(AO26>=AO17,AQ17,AS17)","v":0},0,0,1150,"2016-11-01",6350,7,6350,11530,14860,18030,null,null," "," "," "," "]
[22,"Kondapuram",22,"Mandanpalle  "," Konakanamitla"," Kollur ","Lakkireddipalle • ",null,null,null,null,null,null,null,23,"YSR Kadapa District",23,{"$f":"IF(B1=1,\" \",IF(B1=2,B28,IF(B1=3,D28,IF(B1=4,E28,IF(B1=5,F28,G28)))))","v":"Lingala • "},null,12550,23,24440,null,null,null,null,23,9520,10,{"$f":"IF(AH18=\"Applicable\",AC27,\" \")","v":" "},10,{"$f":"IF(AH18=\"Applicable\",X15,\" \")","v":" "},null,null,31,{"$f":"IF(AH18=\"Applicable\",AM27,\" \")","v":" "},null,{"$f":"IF(OR(AD3=30,AD3=15),AQ27,\" \")","v":"2016-12-01"},"Oct",null,10,{"$f":"IF(AQ17>0,AQ27,\" \")","v":" "},{"$f":"'SALARY TABLE'!B14","v":"2016-12-01"},{"$f":"'SALARY TABLE'!U14","v":1150}," ",1150,{"$f":"IF(AO27>=AO17,AQ17,AS17)","v":0},0,0,1150,"2016-12-01",6505,8,6505,11860,14860,18030,null,null," "," "," "," "]
[23,"Kota",23,"Mulakalacheruvu "," Kondapi"," Krosuru ","Lingala • ",null,null,null,null,null,null,null,null,null,24,{"$f":"IF(B1=1,\" \",IF(B1=2,B29,IF(B1=3,D29,IF(B1=4,E29,IF(B1=5,F29,G29)))))","v":"Muddanur • "},null,12910,24,25140,null,null,null,null,24,9775,11,{"$f":"IF(AH18=\"Applicable\",AC28,\" \")","v":" "},11,{"$f":"IF(AH18=\"Applicable\",X16,\" \")","v":" "},null,null,30,{"$f":"IF(AH18=\"Applicable\",AM28,\" \")","v":" "},null,{"$f":"IF(OR(AD3=30,AD3=15),AQ28,\" \")","v":"2017-01-01"},"Nov",null,11,{"$f":"IF(AQ17>0,AQ28,\" \")","v":" "},{"$f":"'SALARY TABLE'!B15","v":"2017-01-01"},{"$f":"'SALARY TABLE'!U15","v":1150}," ",1150,{"$f":"IF(AO28>=AO17,AQ17,AS17)","v":0},0,0,1150,"2017-01-01",6675,9,6675,12190,14860,18030,null,null," "," "," "," ",1,"2010-01-01",31,{"$f":"BN28","v":"1900-01-31"},null,40179,{"$f":"BQ29-BQ28","v":31}]
[24,"Kovur",24,"Nagalapuram  ","Korisapadu "," Machavaram ","Muddanur • ",null,null,null,null,null,null,null,null,null,25,{"$f":"IF(B1=1,\" \",IF(B1=2,B30,IF(B1=3,D30,IF(B1=4,E30,IF(B1=5,F30,G30)))))","v":"Mylavaram • "},null,13270,25,25840,null,null,null,null,25,10030,12,{"$f":"IF(AH18=\"Applicable\",AC29,\" \")","v":" "},12,{"$f":"IF(AH18=\"Applicable\",X17,\" \")","v":" "},2,{"$f":"LOOKUP(AG29,AG30:AG31,AH30:AH31)","v":" "},31,{"$f":"IF(AH18=\"Applicable\",AM29,\" \")","v":" "},null,{"$f":"IF(OR(AD3=30,AD3=15),AQ29,\" \")","v":"2017-02-01"},"Dec",null,12,{"$f":"IF(AQ17>0,AQ29,\" \")","v":" "},{"$f":"'SALARY TABLE'!B16","v":"2017-02-01"},{"$f":"'SALARY TABLE'!U16","v":1150}," ",1150,{"$f":"IF(AO29>=AO17,AQ17,AS17)","v":0},0,0,1150,"2017-02-01",6845,10,6845,12550,14860,18030,null,null," "," "," "," ",2,"2010-02-01",28,{"$f":"BN29","v":"1900-01-28"},null,40210,{"$f":"BQ30-BQ29","v":28}]
[25,"Manubolu",25,"Nagari  ","Kothapatnam"," Macherla ","Mylavaram • ",null,null,null,null,null,null,null,1,"Not applicable",26,{"$f":"IF(B1=1,\" \",IF(B1=2,B31,IF(B1=3,D31,IF(B1=4,E31,IF(B1=5,F31,G31)))))","v":"Mydukur • "},null,13660,26,26600,null,null,null,null,26,10285,13,{"$f":"IF(AH18=\"Applicable\",AC30,\" \")","v":" "},"8/16/24 scale",null,1,{"$f":"IF(AH$23=\"Applicable\",AN18,\" \")","v":" "},1,{"$f":"LOOKUP(AI30,AI31:AI32,AJ31:AJ32)","v":" "},null,"PHC",null,null,null,null,null,null,null,null,null,null,null,null,null,7015,11,7015,12910,14860,18030,null,null," "," "," "," ",3,"2010-03-01",31,"1900-01-31",null,40238,31]
[26,"Marripadu",26,"Narayanavanam  ","Kurichedu ","Mangalagiri","Mydukur • ",null,null,null,null,null,null,null,2,"SPSR Nellore District",27,{"$f":"IF(B1=1,\" \",IF(B1=2,B32,IF(B1=3,D32,IF(B1=4,E32,IF(B1=5,F32,G32)))))","v":"Nandalur • "},null,14050,27,27360,null,null,null,null,27,10565,14,{"$f":"IF(AH18=\"Applicable\",AC31,\" \")","v":" "},"Date",{"$f":"DATE(AK17,AE17,AC17)","v":{"$error":"#VALUE!"}},2,{"$f":"IF(AH$23=\"Applicable\",AN19,\" \")","v":" "},1,{"$f":"IF(AE3=1,AL31,\" \")","v":" "},null,"Vacation Post",null,null,null,null,null,null,null,null,null,null,null,null,null,7200,12,7200,13270,14860,18030,null,null," "," "," "," ",4,"2010-04-01",30,"1900-01-30",null,40269,30]
[27,"Muthukur",27,"Nimmanapalle  ","Lingasamudram ","Medikonduru ","Nandalur • ",null,null,null,null,null,null,null,3,"Chittoor District",28,{"$f":"IF(B1=1,\" \",IF(B1=2,B33,IF(B1=3,D33,IF(B1=4,E33,IF(B1=5,F33,G33)))))","v":"Obulavaripalle • "},null,14440,28,28120,1,24.824000000000002,{"$f":"'SALARY TABLE'!L59","v":0.12052},null,28,10845,15,{"$f":"IF(AH18=\"Applicable\",AC32,\" \")","v":" "},null,{"$f":"DATE(AK17,AE17,1)","v":{"$error":"#VALUE!"}},null,null,2,{"$f":"IF(AE3=1,AL32,\" \")","v":" "},null,"Non Vacation Post",null,null,11,{"$f":"LOOKUP(AY17,AO18:AO29,AY18:AY29)","v":"2016-06-01"},{"$f":"Data!Y29","v":8000},"PF",{"$f":"Data!T29","v":6000},null,null,null,null,null,null,7385,13,7385,13660,14860,18030,null,null," "," "," "," ",5,"2010-05-01",31,"1900-01-31",null,40299,31]
[28,"Naidupeta",28,"Nindra  ","Maddipadu "," Muppalla","Obulavaripalle • ",null,null,null,null,null,null,null,4,"Prakasham District",29,{"$f":"IF(B1=1,\" \",IF(B1=2,B34,IF(B1=3,D34,IF(B1=4,E34,IF(B1=5,F34,G34)))))","v":"Peddamudium • "},null,14860,29,28940,2,24.824000000000002,{"$f":"'SALARY TABLE'!L60","v":0.12052},null,29,11125,16,{"$f":"IF(AH18=\"Applicable\",AC33,\" \")","v":" "},null,{"$f":"LOOKUP(AE17,AE18:AE29,AI18:AI29)","v":30},null,{"$f":"IF($AH$23=\"Applicable\",AM18,\" \")","v":" "},null,null,null,null,null,null,1,{"$f":"IF(AQ32>0,AQ33,\" \")","v":"2016-03-01"},{"$f":"AQ18","v":"2016-03-01"},{"$f":"'SALARY TABLE'!R5","v":6000},null,null,{"$f":"IF(AO33>=AO32,AQ32,AS32)","v":6000},{"$f":"AS32","v":6000},{"$f":"ROUND(IF($AC$12=1,'SALARY TABLE'!W59,IF(AU33=0,AV33,AU33)),0)","v":6000},null,null,7570,14,7570,14050,14860,18030,null,null," "," "," "," ",6,"2010-06-01",30,"1900-01-30",null,40330,30]
[29,"Nellore",29,"Pakala  ","Markapur ","Nadendla ","Peddamudium • ",null,null,null,null,null,null,null,5,"Guntur District",30,{"$f":"IF(B1=1,\" \",IF(B1=2,B35,IF(B1=3,D35,IF(B1=4,E35,IF(B1=5,F35,G35)))))","v":"Penagaluru •"},null,15280,30,29760,3,24.824000000000002,{"$f":"'SALARY TABLE'!L61","v":0.12052},null,30,11440,17,{"$f":"IF(AH18=\"Applicable\",AC34,\" \")","v":" "},"Days",{"$f":"AF33-AC17+1","v":30},null,{"$f":"IF($AH$23=\"Applicable\",AM19,\" \")","v":" "},null,null,null,null,null,null,2,{"$f":"IF(AQ32>0,AQ34,\" \")","v":"2016-04-01"},{"$f":"AQ19","v":"2016-04-01"},{"$f":"'SALARY TABLE'!R6","v":6000},null,null,{"$f":"IF(AO34>=AO32,AQ32,AS32)","v":6000},{"$f":"AV33","v":6000},{"$f":"ROUND(IF($AC$12=1,'SALARY TABLE'!W60,IF(AU34=0,AV34,AU34)),0)","v":6000},null,null,7770,15,7770,14440,14860,18030,null,null," "," "," "," ",7,"2010-07-01",31,"1900-01-31",null,40360,31]
[30,"Ojili",30,"Palamaner  ","Marripudi "," Nagaram ","Penagaluru •",null,null,null,null,null,null,null,6,"YSR Kadapa District",31,{"$f":"IF(B1=1,\" \",IF(B1=2,B36,IF(B1=3,D36,IF(B1=4,E36,IF(B1=5,F36,G36)))))","v":" Pendlimarri • "},null,15700,31,30580,4,9.4160000000000004,{"$f":"'SALARY TABLE'!L62","v":0.12052},null,31,11755,18,{"$f":"IF(AH18=\"Applicable\",AC35,\" \")","v":" "},null,{"$f":"LOOKUP(AF32,'SALARY TABLE'!B57:B70,'SALARY TABLE'!C57:C70)","v":{"$error":"#VALUE!"}},null," ",null,"Vacation","N-V",null,null,null,3,{"$f":"IF(AQ32>0,AQ35,\" \")","v":"2016-05-01"},"2016-05-01",{"$f":"'SALARY TABLE'!R7","v":6000},null,null,{"$f":"IF(AO35>=AO32,AQ32,AS32)","v":6000},6000,{"$f":"ROUND(IF($AC$12=1,'SALARY TABLE'!W61,IF(AU35=0,AV35,AU35)),0)","v":6000},null,null,7970,16,7970,14860,14860,18030,null,null," "," "," "," ",8,"2010-08-01",31,"1900-01-31",null,40391,31]
[31,"Pellakur",31,"Palasamudram ","Martur "," Nakarikallu "," Pendlimarri • ",null,null,null,null,null,null,null,null,null,32,{"$f":"IF(B1=1,\" \",IF(B1=2,B37,IF(B1=3,D37,IF(B1=4,E37,IF(B1=5,F37,G37)))))","v":"Porumamilla • "},null,16150,32,31460,5,9.4160000000000004,{"$f":"'SALARY TABLE'!L63","v":0.12052},null,32,12070,19,{"$f":"IF(AH18=\"Applicable\",AC36,\" \")","v":" "},null,{"$f":"LOOKUP(AF35,'SALARY TABLE'!B50:CC50,'SALARY TABLE'!B51:CC51)","v":{"$error":"#VALUE!"}},null," ",{"$f":"'SALARY TABLE'!I59","v":42490},{"$f":"IF(AE3=1,IF(ROUND(AI36*10%,0)<650,ROUND(AI36*10%,0),650),0)","v":0},{"$f":"IF(AE3=1,IF(ROUND(AI36*10%,0)<650,ROUND(AI36*10%,0),650),0)","v":0},{"$f":"IF(AI30=1,AJ36,AK36)","v":0},null,null,4,{"$f":"IF(AQ32>0,AQ36,\" \")","v":"2016-06-01"},"2016-06-01",{"$f":"'SALARY TABLE'!R8","v":6000},null,null,{"$f":"IF(AO36>=AO32,AQ32,AS32)","v":6000},6000,{"$f":"ROUND(IF($AC$12=1,'SALARY TABLE'!W62,IF(AU36=0,AV36,AU36)),0)","v":6000},null,null,8170,17,8170,14860,14860,18030,null,null," "," "," "," ",9,"2010-09-01",30,"1900-01-30",null,40422,30]
[32,"Podlakur",32,"Pedda Panjani  ","Mundlamuru "," Narasaraopeta ","Porumamilla • ",null,null,null,null,null,null,null,null,null,33,{"$f":"IF(B1=1,\" \",IF(B1=2,B38,IF(B1=3,D38,IF(B1=4,E38,IF(B1=5,F38,G38)))))","v":"Proddutur • "},null,16600,33,32340,6,9.4160000000000004,{"$f":"'SALARY TABLE'!L64","v":0.15196000000000001},null,33,12385,20,{"$f":"IF(AH18=\"Applicable\",AC37,\" \")","v":" "},null,{"$f":"AF36-AF35","v":{"$error":"#VALUE!"}},null," ",{"$f":"'SALARY TABLE'!I60","v":42490},{"$f":"IF(AE3=1,IF(ROUND(AI37*10%,0)<900,ROUND(AI37*10%,0),900)/30*23,0)","v":0},{"$f":"IF(AE3=1,IF(ROUND(AI37*10%,0)<900,ROUND(AI37*10%,0),900),0)","v":0},{"$f":"IF(AI30=1,AJ37,AK37)","v":0},null,null,5,{"$f":"IF(AQ32>0,AQ37,\" \")","v":"2016-07-01"},"2016-07-01",{"$f":"'SALARY TABLE'!R9","v":6000},null,null,{"$f":"IF(AO37>=AO32,AQ32,AS32)","v":6000},6000,{"$f":"ROUND(IF($AC$12=1,'SALARY TABLE'!W63,IF(AU37=0,AV37,AU37)),0)","v":6000},null,null,8385,18,8385,15280,15280,18030,null,null," "," "," "," ",10,"2010-10-01",31,"1900-01-31",null,40452,31]
[33,"Rapur ",33,"Peddamandyam  "," Naguluppalapadu","Nizampatnam ","Proddutur • ",null,null,null,null,null,null,null,null,null,34,{"$f":"IF(B1=1,\" \",IF(B1=2,B39,IF(B1=3,D39,IF(B1=4,E39,IF(B1=5,F39,G39)))))","v":"Pulivendla • "},null,17050,34,33220,7,16.263999999999999,{"$f":"'SALARY TABLE'!L65","v":0.15196000000000001},null,34,12700,21,{"$f":"IF(AH18=\"Applicable\",AC38,\" \")","v":" "},null,{"$f":"ROUND(AF37/AF33*AF34,0)","v":{"$error":"#VALUE!"}},null," ",{"$f":"'SALARY TABLE'!I61","v":42490},0,{"$f":"IF(AE3=1,IF(ROUND(AI38*10%,0)<900,ROUND(AI38*10%,0),900),0)","v":0},{"$f":"IF(AI30=1,AJ38,AK38)","v":0},null,null,6,{"$f":"IF(AQ32>0,AQ38,\" \")","v":"2016-08-01"},"2016-08-01",{"$f":"'SALARY TABLE'!R10","v":6000},null,null,{"$f":"IF(AO38>=AO32,AQ32,AS32)","v":6000},6000,{"$f":"ROUND(IF($AC$12=1,'SALARY TABLE'!W64,IF(AU38=0,AV38,AU38)),0)","v":6000},null,null,8600,19,8600,15700,15700,18030,null,null," "," "," "," ",11,"2010-11-01",30,"1900-01-30",null,40483,30]
[34,"Sangam",34,"Peddathippasamudram  ","Ongole ","Nuzendla ","Pulivendla • ",null,null,null,null,null,null,null,null,null,35,{"$f":"IF(B1=1,\" \",IF(B1=2,B40,IF(B1=3,D40,IF(B1=4,E40,IF(B1=5,F40,G40)))))","v":"Pullampeta • "},null,17540,35,34170,8,16.263999999999999,{"$f":"'SALARY TABLE'!L66","v":0.15196000000000001},null,35,13030,22,{"$f":"IF(AH18=\"Applicable\",AC39,\" \")","v":" "},"8/16/24 DA",{"$f":"LOOKUP(AE17,W32:W43,Y32:Y43)","v":0.15196000000000001},{"$f":"LOOKUP(AE17,W32:W43,X32:X43)","v":16.263999999999999}," ",{"$f":"'SALARY TABLE'!I62","v":42490},{"$f":"IF(AE3=1,IF(ROUND(AI39*10%,0)<900,ROUND(AI39*10%,0),900)/30*17,0)","v":0},{"$f":"IF(AE3=1,IF(ROUND(AI39*10%,0)<900,ROUND(AI39*10%,0),900),0)","v":0},{"$f":"IF(AI30=1,AJ39,AK39)","v":0},null,null,7,{"$f":"IF(AQ32>0,AQ39,\" \")","v":"2016-09-01"},"2016-09-01",{"$f":"'SALARY TABLE'!R11","v":6000},null,null,{"$f":"IF(AO39>=AO32,AQ32,AS32)","v":6000},6000,{"$f":"ROUND(IF($AC$12=1,'SALARY TABLE'!W65,IF(AU39=0,AV39,AU39)),0)","v":6000},null,null,8815,20,8815,16150,16150,18030,null,null," "," "," "," ",12,"2010-12-01",31,"1900-01-31",null,40513,31]
[35,"Seetharamapuram",35,"Penumuru ","Pamur ","Pedakakani ","Pullampeta • ",null,null,null,null,null,null,null,null,null,36,{"$f":"IF(B1=1,\" \",IF(B1=2,B41,IF(B1=3,D41,IF(B1=4,E41,IF(B1=5,F41,G41)))))","v":"Railway Koduru • "},null,18030,36,35120,9,16.263999999999999,{"$f":"'SALARY TABLE'!L67","v":0.15196000000000001},null,36,13390,23,{"$f":"IF(AH18=\"Applicable\",AC40,\" \")","v":" "},"DA",{"$f":"ROUND(AF38*AF39,0)","v":{"$error":"#VALUE!"}},{"$f":"ROUND(AF38*AG39%,0)","v":{"$error":"#VALUE!"}}," ",{"$f":"'SALARY TABLE'!I63","v":42490},{"$f":"IF(AE3=1,IF(ROUND(AI40*10%,0)<900,ROUND(AI40*10%,0),900),0)","v":0},{"$f":"IF(AE3=1,IF(ROUND(AI40*10%,0)<900,ROUND(AI40*10%,0),900),0)","v":0},{"$f":"IF(AI30=1,AJ40,AK40)","v":0},null,null,8,{"$f":"IF(AQ32>0,AQ40,\" \")","v":"2016-10-01"},"2016-10-01",{"$f":"'SALARY TABLE'!R12","v":6000},null,null,{"$f":"IF(AO40>=AO32,AQ32,AS32)","v":6000},6000,{"$f":"ROUND(IF($AC$12=1,'SALARY TABLE'!W66,IF(AU40=0,AV40,AU40)),0)","v":6000},null,null,9050,21,9050,16600,16600,18030,null,null," "," "," "," ",13,"2011-01-01",31,"1900-01-31",null,40544,31]
[36,"Sullurpeta",36," Pichatur "," Parchur "," Pedakurapadu ","Railway Koduru • ",null,null,null,null,null,null,null,null,null,37,{"$f":"IF(B1=1,\" \",IF(B1=2,B42,IF(B1=3,D42,IF(B1=4,E42,IF(B1=5,F42,G42)))))","v":"Rajampet • "},null,18520,37,36070,10,16.263999999999999,{"$f":"'SALARY TABLE'!L68","v":0.15196000000000001},null,37,13750,24,{"$f":"IF(AH18=\"Applicable\",AC41,\" \")","v":" "},null,null,{"$f":"AF40-AG40","v":{"$error":"#VALUE!"}}," ",{"$f":"'SALARY TABLE'!I64","v":42490},{"$f":"IF(AE3=1,IF(ROUND(AI41*10%,0)<900,ROUND(AI41*10%,0),900),0)","v":0},{"$f":"IF(AE3=1,IF(ROUND(AI41*10%,0)<900,ROUND(AI41*10%,0),900),0)","v":0},{"$f":"IF(AI30=1,AJ41,AK41)","v":0},null,null,9,{"$f":"IF(AQ32>0,AQ41,\" \")","v":"2016-11-01"},"2016-11-01",{"$f":"'SALARY TABLE'!R13","v":6000},null,null,{"$f":"IF(AO41>=AO32,AQ32,AS32)","v":6000},6000,{"$f":"ROUND(IF($AC$12=1,'SALARY TABLE'!W67,IF(AU41=0,AV41,AU41)),0)","v":6000},null,null,9285,22,9285,17050,17050,18030,null,null," "," "," "," ",14,"2011-02-01",28,"1900-01-28",null,40575,{"$f":"BQ42-BQ41","v":28}]
[37,"Sydapuram ",37," Pileru ","Pedaaraveedu "," Phirangipuram ","Rajampet • ",null,null,null,null,null,null,null,null,null,38,{"$f":"IF(B1=1,\" \",IF(B1=2,B43,IF(B1=3,D43,IF(B1=4,E43,IF(B1=5,F43,G43)))))","v":"Raju Palem • "},null,19050,38,37100,11,16.263999999999999,{"$f":"'SALARY TABLE'!L69","v":0.15196000000000001},null,38,14175,25,{"$f":"IF(AH18=\"Applicable\",AC42,\" \")","v":" "},"Step up",null,null," ",{"$f":"'SALARY TABLE'!I65","v":42490},{"$f":"IF(AE3=1,IF(ROUND(AI42*10%,0)<900,ROUND(AI42*10%,0),900),0)","v":0},{"$f":"IF(AE3=1,IF(ROUND(AI42*10%,0)<900,ROUND(AI42*10%,0),900),0)","v":0},{"$f":"IF(AI30=1,AJ42,AK42)","v":0},null,null,10,{"$f":"IF(AQ32>0,AQ42,\" \")","v":"2016-12-01"},"2016-12-01",{"$f":"'SALARY TABLE'!R14","v":6000},null,null,{"$f":"IF(AO42>=AO32,AQ32,AS32)","v":6000},6000,{"$f":"ROUND(IF($AC$12=1,'SALARY TABLE'!W68,IF(AU42=0,AV42,AU42)),0)","v":6000},null,null,9520,23,9520,17540,17540,18030,null,null," "," "," "," ",null,"2011-03-01",null,null,null,40603]
[38,"Tada ",38,"Pulicherla  ","Pedacherlopalle"," Piduguralla ","Raju Palem • ",null,null,null,null,null,null,null,null,null,39,{"$f":"IF(B1=1,\" \",IF(B1=2,B44,IF(B1=3,D44,IF(B1=4,E44,IF(B1=5,F44,G44)))))","v":"Ramapuram • "},null,19580,39,38130,12,24.824000000000002,{"$f":"'SALARY TABLE'!L70","v":0.15196000000000001},null,39,14600,26,{"$f":"IF(AH18=\"Applicable\",AC43,\" \")","v":" "},"Date",{"$f":"DATE(AH29,AH26,AG26)","v":{"$error":"#VALUE!"}},null," ",{"$f":"'SALARY TABLE'!I66","v":42490},{"$f":"IF(AE3=1,ROUND(IF(ROUND(AI43*10%,0)<900,ROUND(AI43*10%,0),900)/31*19,0),0)","v":0},{"$f":"IF(AE3=1,IF(ROUND(AI43*10%,0)<900,ROUND(AI43*10%,0),900),0)","v":0},{"$f":"IF(AI30=1,AJ43,AK43)","v":0},null,null,11,{"$f":"IF(AQ32>0,AQ43,\" \")","v":"2017-01-01"},"2017-01-01",{"$f":"'SALARY TABLE'!R15","v":8000},null,null,{"$f":"IF(AO43>=AO32,AQ32,AS32)","v":8000},6000,{"$f":"ROUND(IF($AC$12=1,'SALARY TABLE'!W69,IF(AU43=0,AV43,AU43)),0)","v":8000},null,null,9775,24,9775,18030,18030,18030,null,null," "," "," "," "]
[39,"Thotapalligudur ",39,"Punganur ","Podili ","Pittalavanipalem ","Ramapuram • ",null,null,null,null,null,null,null,null,null,40,{"$f":"IF(B1=1,\" \",IF(B1=2,B45,IF(B1=3,D45,IF(B1=4,E45,IF(B1=5,F45,G45)))))","v":"Rayachoti • "},null,20110,40,39160,13,null,0.54783999999999999,null,40,15025,27,{"$f":"IF(AH18=\"Applicable\",AC44,\" \")","v":" "},null,{"$f":"DATE(AG26,AH26,1)","v":"1901-01-01"},null," ",{"$f":"'SALARY TABLE'!I67","v":42490},{"$f":"IF(AE3=1,IF(ROUND(AI44*10%,0)<900,ROUND(AI44*10%,0),900),0)","v":0},{"$f":"IF(AE3=1,IF(ROUND(AI44*10%,0)<900,ROUND(AI44*10%,0),900),0)","v":0},{"$f":"IF(AI30=1,AJ44,AK44)","v":0},null,null,12,{"$f":"IF(AQ32>0,AQ44,\" \")","v":"2017-02-01"},"2017-02-01",{"$f":"'SALARY TABLE'!R16","v":8000},null,null,{"$f":"IF(AO44>=AO32,AQ32,AS32)","v":8000},6000,{"$f":"ROUND(IF($AC$12=1,'SALARY TABLE'!W70,IF(AU44=0,AV44,AU44)),0)","v":8000},null,null,10030,25,10030,18520,18520,18520,null,null," "," "," "," "]
[40,"Udayagiri ",40,"Puthalapattu ","Ponnaluru "," Ponnur ","Rayachoti • ",null,null,null,null,null,null,null,null,null,41,{"$f":"IF(B1=1,\" \",IF(B1=2,B46,IF(B1=3,D46,IF(B1=4,E46,IF(B1=5,F46,G46)))))","v":"S Mydukur • "},null,20680,41,40270,14,null,0.63344,null,41,15500,28,{"$f":"IF(AH18=\"Applicable\",AC45,\" \")","v":" "},null,{"$f":"LOOKUP(AG26,AE18:AE29,AI18:AI29)","v":31},null,{"$f":"IF($AH$23=\"Applicable\",AC18,\" \")","v":" "},{"$f":"'SALARY TABLE'!I68","v":42490},{"$f":"IF(AE3=1,IF(ROUND(AI45*10%,0)<900,ROUND(AI45*10%,0),900),0)","v":0},{"$f":"IF(AE3=1,IF(ROUND(AI45*10%,0)<900,ROUND(AI45*10%,0),900),0)","v":0},{"$f":"IF(AI30=1,AJ45,AK45)","v":0},null,null,null,null,null,null,null,null,null,null,null,null,null,10285,26,10285,19050,19050,19050,null,null," "," "," "," "]
[41,"Vakadu ",41,"Puttur  ","Pullalacheruvu "," Prathipadu ","S Mydukur • ",null,null,null,null,null,null,null,null,null,42,{"$f":"IF(B1=1,\" \",IF(B1=2,B47,IF(B1=3,D47,IF(B1=4,E47,IF(B1=5,F47,G47)))))","v":"Sambepalle • "},null,21250,42,41380,null,null,null,null,42,15975,29,{"$f":"IF(AH18=\"Applicable\",AC46,\" \")","v":" "},"Days",{"$f":"AF45-AG26+1","v":31},null,{"$f":"IF($AH$23=\"Applicable\",AC19,\" \")","v":" "},{"$f":"'SALARY TABLE'!I69","v":43680},{"$f":"IF(AE3=1,ROUND(IF(ROUND(AI46*10%,0)<900,ROUND(AI46*10%,0),900)/31*21,0),0)","v":0},{"$f":"IF(AE3=1,IF(ROUND(AI46*10%,0)<900,ROUND(AI46*10%,0),900),0)","v":0},{"$f":"IF(AI30=1,AJ46,AK46)","v":0},null,null,null,null,null,null,null,null,null,null,null,null,null,10565,27,10565,19580,19580,19580,null,null," "," "," "," "]
[42,"Varikuntapadu ",42,"Rama Kuppam  ","Racherla ","Rajupalem ","Sambepalle • ",null,null,null,null,null,null,null,null,null,43,{"$f":"IF(B1=1,\" \",IF(B1=2,B48,IF(B1=3,D48,IF(B1=4,E48,IF(B1=5,F48,G48)))))","v":"Sidhout • "},null,21820,43,42490,null,null,null,null,43,16450,30,{"$f":"IF(AH18=\"Applicable\",AC47,\" \")","v":" "},null,{"$f":"LOOKUP(AF43,'SALARY TABLE'!B57:B70,'SALARY TABLE'!I57:I70)","v":{"$error":"#VALUE!"}},null," ",{"$f":"'SALARY TABLE'!I70","v":43680},{"$f":"IF(AE3=1,IF(ROUND(AI47*10%,0)<900,ROUND(AI47*10%,0),900),0)","v":0},{"$f":"IF(AE3=1,IF(ROUND(AI47*10%,0)<900,ROUND(AI47*10%,0),900),0)","v":0},{"$f":"IF(AI30=1,AJ47,AK47)","v":0},null,null,9,{"$f":"LOOKUP(AO47,AO48:AO59,AP48:AP59)","v":" "},{"$f":"Data!Y37","v":0},"LIC",{"$f":"Data!T37","v":3018},null,null,null,null,null,null,10845,28,10845,20110,20110,20110,null,null," "," "," "," "]
[43,"Venkatachalam ",43,"Ramachandrapuram ","Santhamaguluru "," Rentacrintala ","Sidhout • ",null,null,null,null,null,null,null,null,null,44,{"$f":"IF(B1=1,\" \",IF(B1=2,B49,IF(B1=3,D49,IF(B1=4,E49,IF(B1=5,F49,G49)))))","v":"Simhadripuram • "},null,22430,44,43680,null,null,null,null,44,16925,31,{"$f":"IF(AH18=\"Applicable\",AC48,\" \")","v":" "},null,{"$f":"LOOKUP(AF47,'SALARY TABLE'!B50:CC50,'SALARY TABLE'!B51:CC51)","v":{"$error":"#VALUE!"}},null," ",null,null,null,null,null,null,1,{"$f":"IF(AQ47>0,AQ48,\" \")","v":" "},{"$f":"AQ33","v":"2016-03-01"},{"$f":"'SALARY TABLE'!T5","v":3018},null,null,{"$f":"IF(AO48>=AO47,AQ47,AS47)","v":3018},{"$f":"AS47","v":3018},{"$f":"IF(AU48=0,AV48,AU48)","v":3018},null,null,11125,29,11125,20680,20680,20680,null,null," "," "," "," ",null,null,null,null,{"$f":"BN3-1","v":6}]
[44,"Venkatagiri ",44,"Ramasamudram  ","Santhanuthlapadu ","Repalle ","Simhadripuram • ",null,null,null,null,null,null,null,null,null,45,{"$f":"IF(B1=1,\" \",IF(B1=2,B50,IF(B1=3,D50,IF(B1=4,E50,IF(B1=5,F50,G50)))))","v":"T Sundupalle • "},null,23040,45,44870,null,null,null,null,45,17475,null,null,null,{"$f":"AF48-AF47","v":{"$error":"#VALUE!"}},null," ",null,null,null,null,null,null,2,{"$f":"IF(AQ47>0,AQ49,\" \")","v":" "},{"$f":"AQ34","v":"2016-04-01"},{"$f":"'SALARY TABLE'!T6","v":3018},null,null,{"$f":"IF(AO49>=AO47,AQ47,AS47)","v":3018},{"$f":"AV48","v":3018},{"$f":"IF(AU49=0,AV49,AU49)","v":3018},null,null,11440,30,11440,21250,21250,21250,null,null," "," "," "," ",null,null,null,null,{"$f":"IF(BN3<12,BN3-1,1)","v":6},{"$f":"IF(BO3<12,BO3-1,1)","v":8}]
[45,"Vidavalur ",45,"Renigunta  ","Singarayakonda ","Rompicherla","T Sundupalle • ",null,null,null,null,null,null,null,null,null,46,{"$f":"IF(B1=1,\" \",IF(B1=2,B51,IF(B1=3,D51,IF(B1=4,E51,IF(B1=5,F51,G51)))))","v":"Thandur •"},null,23650,46,46060,null,null,null,null,46,18025,null,null,null,{"$f":"ROUND(AF49/AF45*AF46,0)","v":{"$error":"#VALUE!"}},null," ",null,null,null,null,null,null,3,{"$f":"IF(AQ47>0,AQ50,\" \")","v":" "},"2016-05-01",{"$f":"'SALARY TABLE'!T7","v":3018},null,null,{"$f":"IF(AO50>=AO47,AQ47,AS47)","v":3018},3018,3018,null,null,11755,31,11755,21820,21820,21820,null,null,null,null,null,null,{"$f":"LOOKUP(BN3,$AE$18:$AE$29,$AI$18:$AI$29)","v":31},{"$f":"LOOKUP(BO3,$AE$18:$AE$29,$AI$18:$AI$29)","v":30},null,null,{"$f":"LOOKUP(BP49,AE18:AE29,AI18:AI29)","v":30},{"$f":"LOOKUP(BQ49,$AE$18:$AE$29,$AI$18:$AI$29)","v":31}]
[46,"Vinjamur",46,"Rompicherla  ","Tangutur ","Sattenapalle","Thandur •",null,null,null,null,null,null,null,null,null,47,{"$f":"IF(B1=1,\" \",IF(B1=2,B52,IF(B1=3,D52,IF(B1=4,E52,IF(B1=5,F52,G52)))))","v":" Vallur •"},null,24300,47,47330,null,null,null,null,47,18575,null,null,"8/16/24 DA",{"$f":"LOOKUP(AH26,W32:W43,Y32:Y43)","v":0.12052},{"$f":"LOOKUP(AH26,W32:W43,X32:X43)","v":24.824000000000002}," ",null,null,null,null,null,null,4,{"$f":"IF(AQ47>0,AQ51,\" \")","v":" "},"2016-06-01",{"$f":"'SALARY TABLE'!T8","v":3018},null,null,{"$f":"IF(AO51>=AO47,AQ47,AS47)","v":3018},3018,3018,null,null,12070,32,12070,22430,22430,22430,null,"Half Paf/Loss of pay",20,16,17,22,{"$f":"LOOKUP(BH3,$AE$18:$AE$29,$AI$18:$AI$29)","v":30},{"$f":"LOOKUP(BI3,$AE$18:$AE$29,$AI$18:$AI$29)","v":31},"days",null,"Months"]
[null,null,47,"Santhi Puram  ","Tarlapadu ","Savalyapuram"," Vallur •",null,null,null,null,null,null,null,null,null,48,{"$f":"IF(B1=1,\" \",IF(B1=2,B53,IF(B1=3,D53,IF(B1=4,E53,IF(B1=5,F53,G53)))))","v":" Veeraballe •"},null,24950,48,48600,null,null,null,null,48,19125,null,null,"DA",{"$f":"ROUND(AF50*AF51%,0)","v":{"$error":"#VALUE!"}},{"$f":"ROUND(AF50*AG51%,0)","v":{"$error":"#VALUE!"}}," ",null,null,null,null,null,null,5,{"$f":"IF(AQ47>0,AQ52,\" \")","v":" "},"2016-07-01",{"$f":"'SALARY TABLE'!T9","v":3018},null,null,{"$f":"IF(AO52>=AO47,AQ47,AS47)","v":3018},3018,3018,null,null,12385,33,12385,23040,23040,23040,null,"Start Date",{"$f":"IF(AM3=1,DATE(BL8,BH3,BH51),0)","v":"00:00:00"},{"$f":"IF(AO3=1,DATE(BM8,BI3,BI51),0)","v":"00:00:00"},{"$f":"LOOKUP(MONTH(BH52),$AE$18:$AE$29,$AM$18:$AM$29)&\"-\"&RIGHT(BL8,2)","v":"Jan- "},{"$f":"LOOKUP(MONTH(BI52),$AE$18:$AE$29,$AM$18:$AM$29)&\"-\"&RIGHT(BM8,2)","v":"Jan- "},{"$f":"DATE(BL8,BH3,1)","v":{"$error":"#VALUE!"}},{"$f":"DATE(BM8,BI3,1)","v":{"$error":"#VALUE!"}},{"$f":"DATEDIF(BL52,BH52,\"d\")","v":{"$error":"#VALUE!"}},{"$f":"DATEDIF(BM52,BI52,\"d\")","v":{"$error":"#VALUE!"}},{"$f":"DATE(BL8,BH3+1,1)","v":{"$error":"#VALUE!"}},{"$f":"DATE(BM8,BI3+1,1)","v":{"$error":"#VALUE!"}}]
[null,null,48,"Satyavedu  ","Thallur ","Tadikonda"," Veeraballe •",null,null,null,null,null,null,null,null,null,49,{"$f":"IF(B1=1,\" \",IF(B1=2,B54,IF(B1=3,D54,IF(B1=4,E54,IF(B1=5,F54,G54)))))","v":" Veerapunayunipalle •"},null,25600,49,49870,null,null,null,null,49,19675,null,null,null,null,null," ",null,null,null,null,null,null,6,{"$f":"IF(AQ47>0,AQ53,\" \")","v":" "},"2016-08-01",{"$f":"'SALARY TABLE'!T10","v":3018},null,null,{"$f":"IF(AO53>=AO47,AQ47,AS47)","v":3018},3018,3018,null,null,12700,34,12700,23040,23040,23040,null,"end date",{"$f":"IF(AM3=1,DATE(BN23,BN3,BJ51),0)","v":"00:00:00"},{"$f":"IF(AO3=1,DATE(BO23,BO3,BK51),0)","v":"00:00:00"},{"$f":"LOOKUP(MONTH(BH53),$AE$18:$AE$29,$AM$18:$AM$29)&\"-\"&RIGHT(BN23,2)","v":"Jan- "},{"$f":"LOOKUP(MONTH(BI53),$AE$18:$AE$29,$AM$18:$AM$29)&\"-\"&RIGHT(BO23,2)","v":"Jan- "},{"$f":"DATE(BN23,BN3,1)","v":{"$error":"#VALUE!"}},{"$f":"DATE(BO23,BO3,1)","v":{"$error":"#VALUE!"}},{"$f":"DATEDIF(BL53,BH53,\"d\")","v":{"$error":"#VALUE!"}},{"$f":"DATEDIF(BM53,BI53,\"d\")","v":{"$error":"#VALUE!"}},{"$f":"DATE(BN23,BP48,BP50)","v":{"$error":"#VALUE!"}},{"$f":"DATE(BO23,BO3-1,BQ50)","v":{"$error":"#VALUE!"}}]
[null,null,49,"Sodam  ","Tripuranthakam ","Tenali "," Veerapunayunipalle •",null,null,null,null,null,null,null,null,null,50,{"$f":"IF(B1=1,\" \",IF(B1=2,B55,IF(B1=3,D55,IF(B1=4,E55,IF(B1=5,F55,G55)))))","v":" Vempalle • "},null,26300,50,51230,null,null,null,null,50,20300,null,null,null,null,null," ",null,null,null,null,null,null,7,{"$f":"IF(AQ47>0,AQ54,\" \")","v":" "},"2016-09-01",{"$f":"'SALARY TABLE'!T11","v":3018},null,null,{"$f":"IF(AO54>=AO47,AQ47,AS47)","v":3018},3018,3018,null,null,13030,35,13030,23650,23650,23650,null,"Months",{"$f":"BJ54","v":0},{"$f":"BK54","v":0},{"$f":"DATEDIF(BH52,BH53,\"ym\")","v":0},{"$f":"DATEDIF(BI52,BI53,\"ym\")","v":0},"Real Days",null,"Months",null,"Months"]
[null,null,50,"Somala  ","Ulavapadu ","Thadepalle"," Vempalle • ",null,null,null,null,null,null,null,null,null,51,{"$f":"IF(B1=1,\" \",IF(B1=2,B56,IF(B1=3,D56,IF(B1=4,E56,IF(B1=5,F56,G56)))))","v":"Vemula •"},null,27000,51,52590,null,null,null,null,51,20925,null,null,1,{"$f":"IF(AD55=\"Applicable\",AI55,\" \")","v":" "},null," ",null,null,null,null,null,null,8,{"$f":"IF(AQ47>0,AQ55,\" \")","v":" "},"2016-10-01",{"$f":"'SALARY TABLE'!T12","v":3018},null,null,{"$f":"IF(AO55>=AO47,AQ47,AS47)","v":3018},3018,3018,null,null,13390,36,13390,24300,24300,24300,null,"days",{"$f":"BJ55+1","v":1},{"$f":"BK55+1","v":1},{"$f":"DATEDIF(BH52,BH53,\"md\")","v":0},{"$f":"DATEDIF(BI52,BI53,\"md\")","v":0},{"$f":"BL51-BN52","v":{"$error":"#VALUE!"}},{"$f":"BM51-BO52","v":{"$error":"#VALUE!"}},{"$f":"BP55+1","v":{"$error":"#VALUE!"}},{"$f":"BQ55+1","v":{"$error":"#VALUE!"}},{"$f":"DATEDIF(BP52,BP53,\"ym\")","v":{"$error":"#VALUE!"}},{"$f":"DATEDIF(BQ52,BQ53,\"ym\")","v":{"$error":"#VALUE!"}}]
[null,null,51,"Srikalahasti ","Veligandla "," Thullur","Vemula •",null,null,null,null,null,null,null,null,null,52,{"$f":"IF(B1=1,\" \",IF(B1=2,B57,IF(B1=3,D57,IF(B1=4,E57,IF(B1=5,F57,G57)))))","v":" Vontimitta •"},null,27700,52,53950,null,null,null,null,52,21550,null,null,2,{"$f":"IF(AD55=\"Applicable\",AI56,\" \")","v":" "},null," ",null,null,null,null,null,null,9,{"$f":"IF(AQ47>0,AQ56,\" \")","v":" "},"2016-11-01",{"$f":"'SALARY TABLE'!T13","v":3018},null,null,{"$f":"IF(AO56>=AO47,AQ47,AS47)","v":0},3018,3018,null,null,13750,37,13750,24950,24950,24950,null,"Basic pays",{"$f":"LOOKUP(BH52,'SALARY TABLE'!B57:B70,'SALARY TABLE'!I57:I70)","v":{"$error":"#N/A"}},{"$f":"LOOKUP(BI52,'SALARY TABLE'!B57:B70,'SALARY TABLE'!I57:I70)","v":{"$error":"#N/A"}},null,null,{"$f":"BN53+1","v":{"$error":"#VALUE!"}},{"$f":"BO53+1","v":{"$error":"#VALUE!"}}]
[null,null,52," Srirangarajapuram  ","Vetapalem "," Tsundur"," Vontimitta •",null,null,null,null,null,null,null,null,null,53,{"$f":"IF(B1=1,\" \",IF(B1=2,B58,IF(B1=3,D58,IF(B1=4,E58,IF(B1=5,F58,G58)))))","v":" Yerraguntla"},null,28450,53,55410,null,null,null,null,53,22175,null,null,3,{"$f":"IF(AD55=\"Applicable\",AI57,\" \")","v":" "},null," ",2,{"$f":"LOOKUP(AI57,AI58:AI59,AJ58:AJ59)","v":" "},null,2,{"$f":"LOOKUP(AL57,AL58:AL59,AM58:AM59)","v":"Not Applicable"},null,10,{"$f":"IF(AQ47>0,AQ57,\" \")","v":" "},"2016-12-01",{"$f":"'SALARY TABLE'!T14","v":3018},null,null,{"$f":"IF(AO57>=AO47,AQ47,AS47)","v":0},3018,3018,null,null,14175,38,14175,26300,26300,26300,null,null,{"$f":"LOOKUP(BH53,'SALARY TABLE'!B57:B70,'SALARY TABLE'!I57:I70)","v":{"$error":"#N/A"}},{"$f":"LOOKUP(BI53,'SALARY TABLE'!B57:B70,'SALARY TABLE'!I57:I70)","v":{"$error":"#N/A"}},null,null,null,null,null,null,null,null,null,null,null,null,null,null,null,null,null,null,null,null,null,{"$f":"DATEDIF(BR61,BU61,\"d\")","v":0}]
[null,null,53,"Thamballapalle ","Voletivaripalem ","Vatticherukuru"," Yerraguntla",null,null,null,null,null,null,null,null,null,54,{"$f":"IF(B1=1,\" \",IF(B1=2,B59,IF(B1=3,D59,IF(B1=4,E59,IF(B1=5,F59,G59)))))","v":0},null,29200,54,56870,null,null,null,null,54,22800,null,null,4,{"$f":"IF(AD55=\"Applicable\",AI58,\" \")","v":" "},null," ",1,{"$f":"IF(AL57=1,\"Rented House\",\" \")","v":" "},null,1,"Applicable",null,11,{"$f":"IF(AQ47>0,AQ58,\" \")","v":" "},"2017-01-01",{"$f":"'SALARY TABLE'!T15","v":3018},null,null,{"$f":"IF(AO58>=AO47,AQ47,AS47)","v":0},3018,3018,null,null,14600,39,14600,27000,27000,27000,null,"Arrears",{"$f":"ROUND(BH56*BL55/BL51/2,0)","v":{"$error":"#N/A"}},{"$f":"ROUND(BI56*BM55/BM51/2,0)","v":{"$error":"#N/A"}}]
[null,null,54,"Thavanampalle ","Yeddanapudi ","Veldurthi ",null,null,null,null,null,null,null,null,null,null,55,{"$f":"IF(B1=1,\" \",IF(B1=2,B60,IF(B1=3,D60,IF(B1=4,E60,IF(B1=5,F60,G60)))))","v":0},null,29950,55,58330,null,null,null,null,55,23500,null,null,5,{"$f":"IF(AD55=\"Applicable\",AI59,\" \")","v":" "},null," ",2,{"$f":"IF(AL57=1,\"Own House\",\" \")","v":" "},null,2,"Not Applicable",null,12,{"$f":"IF(AQ47>0,AQ59,\" \")","v":" "},"2017-02-01",{"$f":"'SALARY TABLE'!T16","v":3018},null,null,{"$f":"IF(AO59>=AO47,AQ47,AS47)","v":0},3018,3018,null,null,15025,40,15025,27700,27700,27700,null,null,{"$f":"ROUND(BH57*BL56/BL50/2,0)","v":{"$error":"#N/A"}},{"$f":"ROUND(BI57*BM56/BM50/2,0)","v":{"$error":"#N/A"}}]
[null,null,55," Thottambedu ","Yerragondapalem ","Vemuru",null,null,null,null,null,null,null,null,null,null,56,{"$f":"IF(B1=1,\" \",IF(B1=2,B61,IF(B1=3,D61,IF(B1=4,E61,IF(B1=5,F61,G61)))))","v":0},null,30750,56,59890,null,null,null,null,56,24200,null,null,6,{"$f":"IF(AD55=\"Applicable\",AI60,\" \")","v":" "},null," ",null,null,null,null,null,null,null,null,null,null,null,null,null,null,null,null,null,15500,41,15500,28450,28450,28450,null,"Total arrears",{"$f":"BH58+BH59","v":{"$error":"#N/A"}},null,null,null,null,null,null,null,"Half Pay",null,null,null,null,null,null,"HPD",null,null,"FPD",null,"HPA","FPA","DA",null,"HMA","HRA","HRA amount"]
[null,null,56,"Tirupati Rural ","Zarugumilli","Vinukonda",null,null,null,null,null,null,null,null,null,null,57,{"$f":"IF(B1=1,\" \",IF(B1=2,B62,IF(B1=3,D62,IF(B1=4,E62,IF(B1=5,F62,G62)))))","v":0},null,31550,57,61450,null,null,null,null,57,24900,null,null,7,{"$f":"IF(AD55=\"Applicable\",AI61,\" \")","v":" "},null," ",null,null,null,null,null,null,null,null,null,null,null,null,null,null,null,null,null,15975,42,15975,29200,29200,29200,null,null,null,null,null,"Requires Analysis Toolpak",null,null,null,null,1,{"$f":"'SALARY TABLE'!B57","v":"2016-01-01"},{"$f":"BQ61","v":"2016-01-01"},{"$f":"IF(AND(MONTH(BQ61)=MONTH($BH$52),YEAR(BQ61)=YEAR($BH$52)),$BH$52,BQ61)","v":"2016-01-01"},{"$f":"IF(AND(MONTH(BQ61)=MONTH($BH$53),YEAR(BQ61)=YEAR($BH$53)),$BH$53,BQ61)","v":"2016-01-01"},{"$f":"IF(DAY(BS61)>1,BS61,BT61)","v":"2016-01-01"},{"$f":"IF(BU61=$BH$52,LOOKUP(BU61,$BM$28:$BM$41,$BN$28:$BN$41)-DATEDIF(BR61,BU61,\"d\"),IF(BU61=$BH$53,DATEDIF($BL$53,$BH$53,\"d\")+1,LOOKUP(BU61,$BM$28:$BM$41,$BN$28:$BN$41)))","v":28},{"$f":"IF(AND($BH$52<=BU61,BU61<=$BH$53),BV61,0)","v":0},{"$f":"IF(BW61>0,BW61/2,BV61)","v":28},{"$f":"LOOKUP(BQ61,$BM$28:$BM$41,$BN$28:$BN$41)","v":28},{"$f":"BY61-BV61","v":0},{"$f":"'SALARY TABLE'!S57","v":42490},{"$f":"ROUND(CA61*BX61/BY61,0)","v":42490},{"$f":"IF(BZ61=0,0,ROUND(CA61*BZ61/BY61,0))","v":0},0,{"$f":"ROUND(CC61*CD61,0)","v":0},{"$f":"Data!CS85","v":0},null,"HPA","FPA"]
[null,null,57,"Tirupati Urban ",null,null,null,null,null,null,null,null,null,null,null,null,58,{"$f":"IF(B1=1,\" \",IF(B1=2,B63,IF(B1=3,D63,IF(B1=4,E63,IF(B1=5,F63,G63)))))","v":0},null,32350,58,63010,null,null,null,null,58,25600,null,null,8,{"$f":"IF(AD55=\"Applicable\",AI62,\" \")","v":" "},null," ",null,null,{"$f":"Z11","v":0},null,null,null,null,null,null,null,null,null,null,null,null,null,null,16450,43,16450,29950,29950,29950,null,null,null,null,null,null,null,null,null,null,2,{"$f":"'SALARY TABLE'!B58","v":"2016-02-01"},{"$f":"BQ62","v":"2016-02-01"},"2016-02-01","2016-02-01",{"$f":"IF(DAY(BS62)>1,BS62,BT62)","v":"2016-02-01"},28,0,{"$f":"IF(BW62>0,BW62/2,BV62)","v":28},28,{"$f":"BY62-BV62","v":0},{"$f":"'SALARY TABLE'!S58","v":42490},{"$f":"ROUND(CA62*BX62/BY62,0)","v":42490},{"$f":"IF(BZ62=0,0,ROUND(CA62*BZ62/BY62,0))","v":0},9.4159999999999994E-2,{"$f":"ROUND(CC62*CD62,0)","v":0},{"$f":"CF61","v":0}]
[null,null,58,"Vadamalapeta  ",null,null,null,null,null,null,null,null,null,null,null,null,59,{"$f":"IF(B1=1,\" \",IF(B1=2,B64,IF(B1=3,D64,IF(B1=4,E64,IF(B1=5,F64,G64)))))","v":0},null,33200,59,64670,null,null,null,null,59,26300,null,null,9,{"$f":"IF(AD55=\"Applicable\",#REF!,\" \")","v":" "},null," ",9,{"$f":"LOOKUP(AI63,AI64:AI75,AJ64:AJ75)","v":" "},{"$f":"Z11","v":0},"HRA",{"$f":"Z4","v":0.14499999999999999},null,null,null,null,null,"HRA%",null,null,null,null,null,null,16925,44,16925,30750,30750,30750,null,null,null,null,null,null,null,null,null,null,3,{"$f":"'SALARY TABLE'!B59","v":"2016-03-01"},"2016-03-01","2016-03-01","2016-03-01","2016-03-01",28,0,28,28,0,{"$f":"'SALARY TABLE'!S59","v":42490},{"$f":"ROUND(CA63*BX63/BY63,0)","v":42490},0,{"$f":"'SALARY TABLE'!L59","v":0.12052},{"$f":"ROUND(CC63*CD63,0)","v":0},{"$f":"'SALARY TABLE'!I5","v":0},{"$f":"AS64","v":0.14499999999999999},{"$f":"IF(BZ63=0,0,ROUND(CB63*CG63,0))","v":0},{"$f":"IF(BZ63=0,0,ROUND(CC63*CG63,0))","v":0}]
[null,null,59,"Varadaiahpalem  ",null,null,null,null,null,null,null,null,null,null,null,null,60,{"$f":"IF(B1=1,\" \",IF(B1=2,B65,IF(B1=3,D65,IF(B1=4,E65,IF(B1=5,F65,G65)))))","v":0},null,34050,60,66330,null,null,null,null,60,27000,null,null,10,{"$f":"IF(AD55=\"Applicable\",#REF!,\" \")","v":" "},null," ",1,{"$f":"IF($AK$62=0,\" \",AK64)","v":" "},"2016-03-01",{"$f":"'SALARY TABLE'!C5","v":42490},{"$f":"ROUND(IF(AI64>=$AI$63,$AM$63,$AK$62),0)","v":"00:00:00"},{"$f":"ROUND(IF(AI64>=$AI$63,AL64*$AK$62,AL64*$AM$63),0)","v":6161},{"$f":"$AM$63*AL64","v":6161.0499999999993},{"$f":"IF(AN64=0,AO64,AN64)","v":6161},{"$f":"IF($AL$57=1,ROUND(AL64*8%,0),0)","v":0},{"$f":"IF(AQ64>1000,1000,AQ64)","v":0},{"$f":"IF($AK$62=0,$AM$63,IF(AI64>=$AI$63,$AK$62,$AM$63))","v":0.14499999999999999},null,null,null,null,null,null,17475,45,17475,32350,32350,32350,null,null,null,null,null,null,null,null,null,null,4,{"$f":"'SALARY TABLE'!B60","v":"2016-04-01"},"2016-04-01","2016-04-01","2016-04-01","2016-04-01",28,0,28,28,0,{"$f":"'SALARY TABLE'!S60","v":42490},42490,0,{"$f":"'SALARY TABLE'!L60","v":0.12052},0,{"$f":"'SALARY TABLE'!I6","v":0},0.14499999999999999,{"$f":"IF(BZ64=0,0,ROUND(CB64*CG64,0))","v":0},{"$f":"IF(BZ64=0,0,ROUND(CC64*CG64,0))","v":0}]
[null,null,60,"Vayalpad  ",null,null,null,null,null,null,null,null,null,null,null,null,61,{"$f":"IF(B1=1,\" \",IF(B1=2,B66,IF(B1=3,D66,IF(B1=4,E66,IF(B1=5,F66,G66)))))","v":0},null,34900,61,67990,null,null,null,null,61,27750,null,null,11,{"$f":"IF(AD55=\"Applicable\",#REF!,\" \")","v":" "},null," ",2,{"$f":"IF($AK$62=0,\" \",AK65)","v":" "},"2016-04-01",{"$f":"'SALARY TABLE'!C6","v":42490},{"$f":"ROUND(IF(AI65>=$AI$63,$AM$63,$AK$62),0)","v":"00:00:00"},{"$f":"ROUND(IF(AI65>=$AI$63,AL65*$AK$62,AL65*$AM$63),0)","v":6161},6161.0499999999993,{"$f":"IF(AN65=0,AO65,AN65)","v":6161},{"$f":"IF($AL$57=1,ROUND(AL65*8%,0),0)","v":0},{"$f":"IF(AQ65>1000,1000,AQ65)","v":0},{"$f":"IF($AK$62=0,$AM$63,IF(AI65>=$AI$63,$AK$62,$AM$63))","v":0.14499999999999999},null,null,null,null,null,null,18025,46,18025,33200,33200,33200,null,null,null,null,null,null,null,null,null,null,5,{"$f":"'SALARY TABLE'!B61","v":"2016-05-01"},"2016-05-01","2016-05-01","2016-05-01","2016-05-01",28,0,28,28,0,{"$f":"'SALARY TABLE'!S61","v":42490},42490,0,{"$f":"'SALARY TABLE'!L61","v":0.12052},0,{"$f":"'SALARY TABLE'!I7","v":0},0.14499999999999999,0,0]
[null,null,61,"Veduru Kuppam  ",null,null,null,null,null,null,null,null,null,null,null,null,62,{"$f":"IF(B1=1,\" \",IF(B1=2,B67,IF(B1=3,D67,IF(B1=4,E67,IF(B1=5,F67,G67)))))","v":0},null,35800,62,69750,null,null,null,null,62,28500,null,null,12,{"$f":"IF(AD55=\"Applicable\",#REF!,\" \")","v":" "},null," ",3," ","2016-05-01",{"$f":"'SALARY TABLE'!C7","v":42490},"00:00:00",6161,6161.0499999999993,6161,0,0,0.14499999999999999,null,null,null,null,null,null,18575,47,18575,34050,34050,34050,null,null,null,null,null,null,null,null,null,null,6,{"$f":"'SALARY TABLE'!B62","v":"2016-06-01"},"2016-06-01","2016-06-01","2016-06-01","2016-06-01",28,0,28,28,0,{"$f":"'SALARY TABLE'!S62","v":42490},42490,0,{"$f":"'SALARY TABLE'!L62","v":0.12052},0,{"$f":"'SALARY TABLE'!I8","v":0},0.14499999999999999,0,0]
[null,null,62,"Venkatagiri Kota  ",null,null,null,null,null,null,null,null,null,null,null,null,63,{"$f":"IF(B1=1,\" \",IF(B1=2,B68,IF(B1=3,D68,IF(B1=4,E68,IF(B1=5,F68,G68)))))","v":0},null,36700,63,71510,null,null,null,null,63,29250,null,null,13,null,null," ",4," ","2016-06-01",{"$f":"'SALARY TABLE'!C8","v":42490},"00:00:00",6161,6161.0499999999993,6161,0,0,0.14499999999999999,null,null,null,null,null,null,19125,48,19125,34900,34900,34900,null,null,null,null,null,null,null,null,null,null,7,{"$f":"'SALARY TABLE'!B63","v":"2016-07-01"},"2016-07-01","2016-07-01","2016-07-01","2016-07-01",28,0,28,28,0,{"$f":"'SALARY TABLE'!S63","v":42490},42490,0,{"$f":"'SALARY TABLE'!L63","v":0.12052},0,{"$f":"'SALARY TABLE'!I9","v":0},0.14499999999999999,0,0]
[null,null,63,"Vijaya Puram  ",null,null,null,null,null,null,null,null,null,null,null,null,64,{"$f":"IF(B1=1,\" \",IF(B1=2,B69,IF(B1=3,D69,IF(B1=4,E69,IF(B1=5,F69,G69)))))","v":0},null,37600,64,73270,null,null,null,null,64,30000,null,null,14,null,null," ",5," ","2016-07-01",{"$f":"'SALARY TABLE'!C9","v":42490},"00:00:00",6161,6161.0499999999993,6161,0,0,0.14499999999999999,null,null,null,null,null,null,19675,49,19675,35800,35800,35800,null,null,null,null,"YEAR(A2)-YEAR(A1)-IF(OR(MONTH(A2)<MONTH…",null,null,null,null,null,8,{"$f":"'SALARY TABLE'!B64","v":"2016-08-01"},"2016-08-01","2016-08-01","2016-08-01","2016-08-01",28,0,28,28,0,{"$f":"'SALARY TABLE'!S64","v":42490},42490,0,{"$f":"'SALARY TABLE'!L64","v":0.15196000000000001},0,{"$f":"'SALARY TABLE'!I10","v":0},0.14499999999999999,0,0]
[null,null,64,"Yadamari ",null,null,null,null,null,null,null,null,null,null,null,null,65,{"$f":"IF(B1=1,\" \",IF(B1=2,B70,IF(B1=3,D70,IF(B1=4,E70,IF(B1=5,F70,G70)))))","v":0},null,38570,65,75150,null,null,null,null,65,30765,null,null,15,null,null," ",6," ","2016-08-01",{"$f":"'SALARY TABLE'!C10","v":42490},"00:00:00",6161,6161.0499999999993,6161,0,0,0.14499999999999999,null,null,null,null,null,null,20300,50,20300,37600,37600,37600,null,null,null,null,"DAY(A2)<DAY(A1))),1,0)&\" years, \"&MONTH(A2)-MONTH(A1)+IF(AND(MONTH(A2)",null,null,null,null,null,9,{"$f":"'SALARY TABLE'!B65","v":"2016-09-01"},"2016-09-01","2016-09-01","2016-09-01","2016-09-01",28,0,28,28,0,{"$f":"'SALARY TABLE'!S65","v":42490},42490,0,{"$f":"'SALARY TABLE'!L65","v":0.15196000000000001},0,{"$f":"'SALARY TABLE'!I11","v":0},0.14499999999999999,0,0]
[null,null,65,"Yerpedu ",null,null,null,null,null,null,null,null,null,null,null,null,66,{"$f":"IF(B1=1,\" \",IF(B1=2,B71,IF(B1=3,D71,IF(B1=4,E71,IF(B1=5,F71,G71)))))","v":0},null,39540,66,77030,null,null,null,null,66,null,null,null,16,null,null," ",7," ","2016-09-01",{"$f":"'SALARY TABLE'!C11","v":42490},"00:00:00",6161,6161.0499999999993,6161,0,0,0.14499999999999999,null,null,null,null,null,null,20925,51,20925,38570,38570,38570,null,null,null,null,"<=MONTH(A1),DAY(A2)<DAY(A1)),11,IF(AND…",null,null,null,null,null,10,{"$f":"'SALARY TABLE'!B66","v":"2016-10-01"},"2016-10-01","2016-10-01","2016-10-01","2016-10-01",28,0,28,28,0,{"$f":"'SALARY TABLE'!S66","v":42490},42490,0,{"$f":"'SALARY TABLE'!L66","v":0.15196000000000001},0,{"$f":"'SALARY TABLE'!I12","v":0},0.14499999999999999,0,0]
[null,null,66,"Yerravaripalem",null,null,null,null,null,null,null,null,null,null,null,null,null,null,null,40510,67,78910,null,null,null,null,67,null,null,null,17,null,null," ",8," ","2016-10-01",{"$f":"'SALARY TABLE'!C12","v":42490},"00:00:00",6161,6161.0499999999993,6161,0,0,0.14499999999999999,null,null,null,null,null,null,21550,52,21550,39540,39540,39540,null,null,null,null,">=DAY(A1)),12,IF(AND(MONTH(A2)>MONTH(A… months,",null,null,null,null,null,11,{"$f":"'SALARY TABLE'!B67","v":"2016-11-01"},"2016-11-01","2016-11-01","2016-11-01","2016-11-01",28,0,28,28,0,{"$f":"'SALARY TABLE'!S67","v":42490},{"$f":"ROUND(CA71*BX71/BY71,0)","v":42490},0,{"$f":"'SALARY TABLE'!L67","v":0.15196000000000001},0,{"$f":"'SALARY TABLE'!I13","v":0},0.14499999999999999,0,0]
[null,null,null,null,null,null,null,null,null,null,null,null,null,null,null,null,null,null,null,41550,68,80930,null,null,null,null,68,null,null,null,18,null,null," ",9," ","2016-11-01",{"$f":"'SALARY TABLE'!C13","v":42490},"00:00:00",0,6161.0499999999993,6161.0499999999993,0,0,0.14499999999999999,null,null,null,null,null,null,22175,53,22175,40510,40510,40510,null,null,null,null,"\"&A2-DATE(YEAR(A2),MONTH(A2)-IF(DAY(A2… days\"",null,null,null,null,null,12,{"$f":"'SALARY TABLE'!B68","v":"2016-12-01"},"2016-12-01","2016-12-01","2016-12-01","2016-12-01",28,0,28,28,0,{"$f":"'SALARY TABLE'!S68","v":42490},42490,0,{"$f":"'SALARY TABLE'!L68","v":0.15196000000000001},0,{"$f":"'SALARY TABLE'!I14","v":0},0.14499999999999999,0,0]
[null,null,null,null,null,null,null,null,null,null,null,null,null,null,null,null,null,null,null,42590,69,82950,null,null,null,null,69,null,null,null,19,null,null," ",10," ","2016-12-01",{"$f":"'SALARY TABLE'!C14","v":42490},"00:00:00",0,6161.0499999999993,6161.0499999999993,0,0,0.14499999999999999,null,null,null,null,null,null,22800,54,22800,41550,41550,41550,null,null,null,null,null,null,null,null,null,null,13,{"$f":"'SALARY TABLE'!B69","v":"2017-01-01"},"2017-01-01","2017-01-01","2017-01-01","2017-01-01",28,0,28,28,0,{"$f":"'SALARY TABLE'!S69","v":43680},43680,0,{"$f":"'SALARY TABLE'!L69","v":0.15196000000000001},0,{"$f":"'SALARY TABLE'!I15","v":0},0.14499999999999999,0,0]
[null,null,null,null,null,null,null,null,null,null,null,null,null,null,null,null,null,null,null,43630,70,84970,null,null,null,null,70,null,null,null,20,null,null," ",11," ","2017-01-01",{"$f":"'SALARY TABLE'!C15","v":43680},"00:00:00",0,6333.5999999999995,6333.5999999999995,0,0,0.14499999999999999,null,null,null,null,null,null,23500,55,23500,43630,43630,43630,null,null,null,null,null,null,null,null,null,null,14,{"$f":"'SALARY TABLE'!B70","v":"2017-02-01"},"2017-02-01","2017-02-01","2017-02-01","2017-02-01",28,0,28,28,0,{"$f":"'SALARY TABLE'!S70","v":43680},43680,0,{"$f":"'SALARY TABLE'!L70","v":0.15196000000000001},0,{"$f":"'SALARY TABLE'!I16","v":0},0.14499999999999999,0,0]
[null,null,null,null,null,null,null,null,null,null,null,null,null,null,null,null,null,null,null,44740,71,87130,null,null,null,null,71,null,null,null,21,null,null," ",12," ","2017-02-01",{"$f":"'SALARY TABLE'!C16","v":43680},"00:00:00",0,6333.5999999999995,6333.5999999999995,0,0,0.14499999999999999,null,null,null,null,null,null,24200,56,24200,44740,44740,44740,null,null,null,null,null,null,null,null,null,null,null,null,null,null,null,null,null,null,null,"Half PayArrears",null,null,null,{"$f":"SUM(CC61:CC74)","v":0},"DA",{"$f":"SUM(CE61:CE74)","v":0},"HRA",null,{"$f":"SUM(CH62:CH74)","v":0},{"$f":"SUM(CI62:CI74)","v":0}]
[null,null,null,null,null,null,null,null,null,null,null,null,null,null,null,null,null,null,null,45850,72,89290,null,null,null,null,72,null,null,null,22,null,null,{"$f":"IF(AH54=\"Applicable\",AC49,\" \")","v":" "},null,null,null,null,null,null,null,null,null,null,null,null,null,null,null,null,null,24900,57,24900,45850,45850,45850,null,null,null,null,{"$f":"IF(OR(MONTH(BH53)<MONTH(BH52),DAY(BH53)<DAY(BH52)),1,0)","v":0}]
[null,null,null,null,null,null,null,null,null,null,null,null,null,null,null,null,null,null,null,46960,73,91450,null,null,null,null,73,null,null,null,23,null,null,{"$f":"IF(AH55=\"Applicable\",AC50,\" \")","v":" "},null,null,null,null,null,null,null,null,null,null,null,null,null,null,null,null,null,25600,58,25600,46960,46960,46960]
[null,null,null,null,null,null,null,null,null,null,null,null,null,null,null,null,null,null,null,48160,74,93780,null,null,null,null,null,null,null,null,24,null,null,{"$f":"IF(AH56=\"Applicable\",AC51,\" \")","v":" "},null,null,null,null,null,null,null,null,null,null,null,null,null,null,null,null,null,26300,59,26300,48160,48160,48160]
[null,null,null,null,null,null,null,null,null,null,null,null,null,null,null,null,null,null,null,49360,75,96110,null,null,null,null,null,null,null,null,25,null,null,{"$f":"IF(AH57=\"Applicable\",AC52,\" \")","v":" "},null,null,null,null,null,null,null,null,null,null,null,null,null,null,null,null,null,27000,60,27000,49360,49360,49360]
[null,null,null,null,null,null,null,null,null,null,null,null,null,null,null,null,null,null,null,50560,76,98440,null,null,null,null,null,null,null,null,26,null,null,null,null,null,null,null,null,null,null,null,null,null,null,null,null,null,null,null,null,27750,61,null,50560,50560,50560]
[null,null,null,null,null,null,null,null,null,null,null,null,null,null,null,null,null,null,null,51760,77,100770,null,null,null,null,null,null,null,null,27,null,null,null,null,null,null,null,null,null,null,null,null,null,null,null,null,null,null,null,null,28500,62,null,51760,51760,51760]
[null,null,null,null,null,null,null,null,null,null,null,null,null,null,null,null,null,null,null,53060,78,103290,null,null,null,null,null,null,null,null,28,null,null,null,null,null,null,null,null,null,null,null,null,null,null,null,null,null,null,null,null,29250,63,null,53060,53060,53060]
[null,null,null,null,null,null,null,null,null,null,null,null,null,null,null,null,null,null,null,54360,79,105810,null,null,null,null,null,null,null,null,29,null,null,null,null,null,null,null,null,null,null,null,null,null,null,null,null,null,null,null,null,30000,64,null,55660,55660,55660]
[null,null,null,null,null,null,null,null,null,null,null,null,null,null,null,null,null,null,null,55660,80,108330,null,null,null,null,null,null,null,null,30,null,null,null,null,null,null,null,null,null,null,null,null,null,null,null,null,null,null,null,null,30765,65,null,56960,56960,56960]
[null,null,null,null,null,null,null,null,null,null,null,null,null,null,null,null,null,null,null,null,81,110850,null,null,null,null,null,null,null,null,31,null,null,null,null,null,null,null,null,null,null,null,null,null,null,null,null,null,null,null,null,null,null,null,null,null,null,null,null,null,null,null,null,null,null,null,null,null,null,{"$f":"CELL(\"filename\")","v":"E:\\GSR\\Dropbox\\Dropbox\\Teacher's Softwares\\Income Tax\\Income Tax 2016-17\\[INCOMETAX 2016-17 GSREDDY latest software ver 8 STUAP.xlsm]SALARY TABLE"}]
[]
[]
[null,null,null,13000,13390,13780,14170,14600,15030,15460,15930,16400,16870,17380,17890,18400,18950,19500,20050,20640,21230,21820,22460,23100,23740,24440,25140,25840,26600,27360,28120,28940,29760,30580,31460,32340,33220,34170,35120,36070,37100,38130,39160,40270,41380,42490,43680,44870,46060,47330,48600,49870,51230,52590,53950,55410,56870,58330,59890,61450,63010,64670,66330,67990,69750,71510,73270,75150,77030,78910,80930,82950,84970,87130,89290,91450,93780,96110,98440,100770,103290,105810,108330,110850]
[null,null,null,13390,13780,14170,14600,15030,15460,15930,16400,16870,17380,17890,18400,18950,19500,20050,20640,21230,21820,22460,23100,23740,24440,25140,25840,26600,27360,28120,28940,29760,30580,31460,32340,33220,34170,35120,36070,37100,38130,39160,40270,41380,42490,43680,44870,46060,47330,48600,49870,51230,52590,53950,55410,56870,58330,59890,61450,63010,64670,66330,67990,69750,71510,73270,75150,77030,78910,80930,82950,84970,87130,89290,91450,93780,96110,98440,100770,103290,105810,108330,110850,56960]
[null,null,null,1,"Assistant Director"]
[null,null,null,2,"Assistant Engineer"]
[null,null,null,3,"Assistant Executive Engineer"]
[null,null,null,4,"Asst. Commissioner for Govt. Exams",null,null,null,null,null,null,null,null,null,null,null,null,null,null,null,null,null,null,null,null,{"$f":"AND($N$102>M107,$N$102<N107)","v":false}]
[null,null,null,5,"Asst. Section Officer",null,null,null,null,null,null,null,null,null,null,{"$f":"IF(A5=I,HLOOKUP(Code!W3,Code!D88:CF89,2,Code!D89:CF89),'SALARY TABLE'!C5)","v":42490},null,null,null,null,null,null,null,null,null,{"$f":"HLOOKUP($M$102,$P$104:$R$110,S107)","v":0.2},null,null,null,null,null,null,null,null,null,null,null,null,null,null,null,null,null,null,null,null,null,null,null,"Revised PF"]
[null,null,null,6,"Asst. Statistical Officer",null,null,null,null,null,null,null,null,null,null,{"$f":"HLOOKUP(W3,D88:CF89,2,D89:CF89)","v":43680},null,null,null,null,null,null,null,null,null,null,null,null,null,null,null,null,null,null,null,null,null,null,null,6,{"$f":"LOOKUP(AX95,AN96:AN107,AX96:AX107)","v":"2010-06-01"},{"$f":"Data!V25","v":0},"HMA",{"$f":"Data!S25","v":0},null,null,null,null,null,4,null,null,null,null,null,null,null,null,null,null,null,null,null,null,null,null,null,"Loss of pay",null,null,null,null,null,null,"LPD",null,null,"FPD",null,"LPA","FPA","DA",null,"HMA",{"$f":"CG60","v":"HRA"},"HRA amount"]
[null,null,null,7,"Auditor",null,null,null,null,null,null,null,null,null,null,{"$f":"HLOOKUP(Code!W3,Code!D88:CF89,2,Code!D89:CF89)","v":43680},null,null,null,null,null,null,null,null,null,null,null,1,{"$f":"LOOKUP(AB96,AB97:AB98,AC97:AC98)","v":"Applicable"},null,null,null,null,null,null,null,null,null,null,1,{"$f":"IF(AP95>0,AP96,\" \")","v":" "},"2016-03-01",{"$f":"'SALARY TABLE'!I5","v":0},null,null,{"$f":"IF(AN96>=AN95,AP95,AR95)","v":0},{"$f":"AR95","v":0},{"$f":"ROUND(IF(AT96=0,AU96,AT96),0)","v":0},null,"2010-03-01",null,null,null,null,null,null,null,null,null,null,null,null,null,null,null,null,null,1,"2010-01-01",{"$f":"BQ96","v":"2010-01-01"},{"$f":"IF(AND(MONTH(BQ96)=MONTH($BI$52),YEAR(BQ96)=YEAR($BI$52)),$BI$52,BQ96)","v":"2010-01-01"},{"$f":"IF(AND(MONTH(BQ96)=MONTH($BI$53),YEAR(BQ96)=YEAR($BI$53)),$BI$53,BQ96)","v":"2010-01-01"},{"$f":"IF(DAY(BS96)>1,BS96,BT96)","v":"2010-01-01"},{"$f":"IF(BU96=$BI$52,LOOKUP(BU96,$BM$28:$BM$41,$BN$28:$BN$41)-DATEDIF(BR96,BU96,\"d\"),IF(BU96=$BI$53,DATEDIF($BM$53,$BI$53,\"d\")+1,LOOKUP(BU96,$BM$28:$BM$41,$BN$28:$BN$41)))","v":31},{"$f":"IF(AND($BI$52<=BU96,BU96<=$BI$53),BV96,0)","v":0},{"$f":"IF(BW96>0,0,BV96)","v":31},{"$f":"LOOKUP(BQ96,$BM$28:$BM$41,$BN$28:$BN$41)","v":31},{"$f":"BY96-BV96","v":0},{"$f":"CB61","v":42490},{"$f":"ROUND(CA96*BX96/BY96,0)","v":42490},{"$f":"IF(BZ96=0,0,ROUND(CA96*BZ96/BY96,0))","v":0},0,{"$f":"ROUND(CC96*CD96,0)","v":0},{"$f":"Data!CS120","v":0},0,"LPA"]
[null,null,null,8,"Cashier",null,null,null,null,null,null,null,null,null,null,null,null,null,null,null,null,null,null,null,null,null,null,1,"Applicable",null,null,null,null,null,null,null,null,null,null,2,{"$f":"IF(AP95>0,AP97,\" \")","v":" "},"2016-04-01",{"$f":"'SALARY TABLE'!I6","v":0},null,null,{"$f":"IF(AN97>=AN95,AP95,AR95)","v":0},{"$f":"AU96","v":0},{"$f":"ROUND(IF(AT97=0,AU97,AT97),0)","v":0},null,"2010-04-01",null,null,null,null,null,null,null,null,null,null,null,null,null,null,null,null,null,2,"2010-02-01",{"$f":"BQ97","v":"2010-02-01"},{"$f":"IF(AND(MONTH(BQ97)=MONTH($BI$52),YEAR(BQ97)=YEAR($BI$52)),$BI$52,BQ97)","v":"2010-02-01"},{"$f":"IF(AND(MONTH(BQ97)=MONTH($BI$53),YEAR(BQ97)=YEAR($BI$53)),$BI$53,BQ97)","v":"2010-02-01"},{"$f":"IF(DAY(BS97)>1,BS97,BT97)","v":"2010-02-01"},{"$f":"IF(BU97=$BI$52,LOOKUP(BU97,$BM$28:$BM$41,$BN$28:$BN$41)-DATEDIF(BR97,BU97,\"d\"),IF(BU97=$BI$53,DATEDIF($BM$53,$BI$53,\"d\")+1,LOOKUP(BU97,$BM$28:$BM$41,$BN$28:$BN$41)))","v":28},{"$f":"IF(AND($BI$52<=BU97,BU97<=$BI$53),BV97,0)","v":0},{"$f":"IF(BW97>0,0,BV97)","v":28},28,{"$f":"BY97-BV97","v":0},42490,{"$f":"ROUND(CA97*BX97/BY97,0)","v":42490},{"$f":"IF(BZ97=0,0,ROUND(CA97*BZ97/BY97,0))","v":0},{"$f":"CD62","v":9.4159999999999994E-2},{"$f":"ROUND(CC97*CD97,0)","v":0},{"$f":"CF96","v":0},0,0,0]
[null,null,null,9,"CHO",null,null,null,null,null,null,null,null,null,null,null,null,null,null,null,null,null,null,null,null,null,null,null,"Not Applicale",null,null,null,null,null,null,null,null,null,null,3,{"$f":"IF(AP95>0,AP98,\" \")","v":" "},"2016-05-01",{"$f":"'SALARY TABLE'!I7","v":0},null,null,{"$f":"IF(AN98>=AN95,AP95,AR95)","v":0},0,0,null,"2010-05-01",null,null,null,null,null,null,null,null,null,null,null,null,null,null,null,null,null,3,"2010-03-01","2010-03-01","2010-03-01","2010-03-01","2010-03-01",31,0,31,31,0,42490,42490,0,0.12052,{"$f":"ROUND(CC98*CD98,0)","v":0},{"$f":"'SALARY TABLE'!I44","v":0},0.14499999999999999,{"$f":"IF(BZ98=0,0,ROUND(CC98*CG98,0))","v":0},0]
[null,null,null,10,"Deputy Director",57,{"$f":"IF(G102=0,LOOKUP(F99,D90:D161,E90:E161),G102)","v":"School Assistant (Maths)"},null,null,null,null,null,null,null,null,{"$f":"IF(A5=I,HLOOKUP(Code!W3,Code!D88:CF89,2,Code!D89:CF89),'SALARY TABLE'!C5)","v":42490},null,null,null,null,null,null,null,null,null,null,null,null,null,null,null,null,null,null,null,null,null,null,null,4,{"$f":"IF(AP95>0,AP99,\" \")","v":" "},"2016-06-01",{"$f":"'SALARY TABLE'!I8","v":0},null,null,{"$f":"IF(AN99>=AN95,AP95,AR95)","v":0},0,0,null,"2010-06-01",null,null,null,null,null,null,null,null,null,null,null,null,null,null,null,null,null,4,"2010-04-01","2010-04-01","2010-04-01","2010-04-01","2010-04-01",30,0,30,30,0,42490,42490,0,0.12052,0,{"$f":"'SALARY TABLE'!I45","v":0},0.14499999999999999,{"$f":"IF(BZ99=0,0,ROUND(CC99*CG99,0))","v":0},0]
[null,null,null,11,"Deputy Educational Officer",null,null,null,null,null,null,null,null,null,null,null,null,null,null,null,null,null,null,null,null,null,null,null,null,null,null,null,null,null,null,null,null,null,null,5,{"$f":"IF(AP95>0,AP100,\" \")","v":" "},"2016-07-01",{"$f":"'SALARY TABLE'!I9","v":0},null,null,{"$f":"IF(AN100>=AN95,AP95,AR95)","v":0},0,0,null,"2010-07-01",null,null,null,null,null,null,null,null,null,null,null,null,null,null,null,null,null,5,"2010-05-01","2010-05-01","2010-05-01","2010-05-01","2010-05-01",31,0,31,31,0,42490,42490,0,0.12052,0,{"$f":"'SALARY TABLE'!I46","v":0},0.14499999999999999,0,0]
[null,null,null,12,"Deputy Inspector of Schools",null,null,null,null,null,null,null,"gender","Tax Amount",null,null,null,null,null,2,null,null,null,null,null,null,null,null,null,null,null,null,null,null,null,null,null,null,null,6,{"$f":"IF(AP95>0,AP101,\" \")","v":" "},"2016-08-01",{"$f":"'SALARY TABLE'!I10","v":0},null,null,{"$f":"IF(AN101>=AN95,AP95,AR95)","v":0},0,0,null,"2010-08-01",null,null,null,null,null,null,null,null,null,null,null,null,null,null,null,null,null,6,"2010-06-01","2010-06-01","2010-06-01","2010-06-01","2010-06-01",30,0,30,30,0,42490,42490,0,0.12052,0,{"$f":"'SALARY TABLE'!I47","v":0},0.14499999999999999,0,0]
[null,null,null,13,"District B.C. Welfare Officer",null,{"$f":"Data!R6","v":0},null,null,null,null,null,{"$f":"code2!G4","v":1},{"$f":"'INCOME TAX'!$O$63","v":488804},null,{"$f":"'INCOME TAX'!O63","v":488804},{"$f":"VLOOKUP(M102,AE102:AF104,2)","v":200000},{"$f":"N102-Q102","v":288804},null,null,null,null,null,null,null,null,null,null,null,{"$f":"AND($N$102>M105,$N$102<N105)","v":false},1,200000,null,{"$f":"HLOOKUP($M$102,$P$104:$R$110,S108)","v":0.3},null,null,null,null,null,7,{"$f":"IF(AP95>0,AP102,\" \")","v":" "},"2016-09-01",{"$f":"'SALARY TABLE'!I11","v":0},null,null,{"$f":"IF(AN102>=AN95,AP95,AR95)","v":0},0,0,null,"2010-09-01",null,null,null,null,null,null,null,null,null,null,null,null,null,null,null,null,null,7,"2010-07-01","2010-07-01","2010-07-01","2010-07-01","2010-07-01",31,0,31,31,0,42490,42490,0,0.12052,0,{"$f":"'SALARY TABLE'!I48","v":0},0.14499999999999999,0,0]
[null,null,null,14,"District Educational Officer",null,null,null,null,null,null,null,null,null,null,null,{"$f":"R102-N105","v":38804},null,null,null,null,null,null,null,null,null,null,null,null,true,2,200000,{"$f":"HLOOKUP($M$102,$P$104:$R$110,S108)-VLOOKUP(M102,AE102:AF104,2)","v":-199999.7},null,null,null,null,null,null,8,{"$f":"IF(AP95>0,AP103,\" \")","v":" "},"2016-10-01",{"$f":"'SALARY TABLE'!I12","v":0},null,null,{"$f":"IF(AN103>=AN95,AP95,AR95)","v":0},0,0,null,"2010-10-01",null,null,null,null,null,null,null,null,null,null,null,null,null,null,null,null,null,8,"2010-08-01","2010-08-01","2010-08-01","2010-08-01","2010-08-01",31,0,31,31,0,42490,42490,0,0.15196000000000001,0,{"$f":"'SALARY TABLE'!I49","v":0},0.14499999999999999,0,0]
[null,null,null,15,"District Tribal Welfare Officer",null,null,null,null,null,null,null,"Annual Income",null,null,1,2,3,1,null,null,null,null,null,null,null,null,null,null,false,3,200000,null,null,null,null,null,null,null,9,{"$f":"IF(AP95>0,AP104,\" \")","v":" "},"2016-11-01",{"$f":"'SALARY TABLE'!I13","v":0},null,null,{"$f":"IF(AN104>=AN95,AP95,AR95)","v":0},0,0,null,"2010-11-01",null,null,null,null,null,null,null,null,null,null,null,null,null,null,null,null,null,9,"2010-09-01","2010-09-01","2010-09-01","2010-09-01","2010-09-01",30,0,30,30,0,42490,42490,0,0.15196000000000001,0,{"$f":"'SALARY TABLE'!H50","v":15460},0.14499999999999999,0,0]
[null,null,null,16,"Divisional Engineer",null,null,null,null,null,null,null,0,250000,{"$f":"IF(P102>250000,250000,P102)","v":250000},0,0,0,2,{"$f":"ROUND(IF(AND($N$102>M105,$N$102<N105),HLOOKUP($M$102,$P$104:$R$110,S105)*$O$105,0),0)","v":0},null,null,null,null,null,null,null,null,{"$f":"HLOOKUP($M$102,$P$104:$R$110,S108)","v":0.3},false,null,null,null,null,null,null,null,null,null,10,{"$f":"IF(AP95>0,AP105,\" \")","v":" "},"2016-12-01",{"$f":"'SALARY TABLE'!I14","v":0},null,null,{"$f":"IF(AN105>=AN95,AP95,AR95)","v":0},0,0,null,"2010-12-01",null,null,null,null,null,null,null,null,null,null,null,null,null,null,null,null,null,10,"2010-10-01","2010-10-01","2010-10-01","2010-10-01","2010-10-01",31,0,31,31,0,42490,42490,0,0.15196000000000001,0,{"$f":"'SALARY TABLE'!H51","v":15930},0.14499999999999999,0,0]
[null,null,null,17,"Dy Executive Engineer",null,null,null,null,null,null,null,250001,500000,{"$f":"IF((P102-O105)>250000,250000,P102-O105)","v":238804},0.1,0.1,0.1,3,{"$f":"ROUND(O106*P106,0)","v":23880},null,null,null,null,null,null,null,null,null,false,null,null,null,null,null,null,null,null,null,11,{"$f":"IF(AP95>0,AP106,\" \")","v":" "},"2017-01-01",{"$f":"'SALARY TABLE'!I15","v":0},null,null,{"$f":"IF(AN106>=AN95,AP95,AR95)","v":0},0,0,null,"2011-01-01",null,null,null,null,null,null,null,null,null,null,null,null,null,null,null,null,null,11,"2010-11-01","2010-11-01","2010-11-01","2010-11-01","2010-11-01",30,0,30,30,0,42490,42490,0,0.15196000000000001,0,{"$f":"'SALARY TABLE'!I52","v":0},0.14499999999999999,0,0]
[null,null,null,18,"Executive Engineer",null,null,null,null,null,null,null,500001,1000000,{"$f":"IF((P102-O105-O106)>1000000,1000000,IF((P102-O105-O106)<0,0,P102-O105-O106))","v":0},0.2,0.2,0.2,4,{"$f":"IF(O107=0,0,ROUND(O107*P107,0))","v":0},null,null,null,null,null,null,null,null,null,false,null,null,null,null,null,null,null,null,null,12,{"$f":"IF(AP95>0,AP107,\" \")","v":" "},"2017-02-01",{"$f":"'SALARY TABLE'!I16","v":0},null,null,{"$f":"IF(AN107>=AN95,AP95,AR95)","v":0},0,0,null,"2011-02-01",null,null,null,null,null,null,null,null,null,null,null,null,null,null,null,null,null,12,"2010-12-01","2010-12-01","2010-12-01","2010-12-01","2010-12-01",31,{"$f":"IF(AND($BI$52<=BU107,BU107<=$BI$53),BV107,0)","v":0},31,31,0,42490,42490,0,0.15196000000000001,{"$f":"ROUND(CC107*CD107,0)","v":0},{"$f":"'SALARY TABLE'!I53","v":0},0.14499999999999999,0,0]
[null,null,null,19,"Gazetted H.M. Gr-I ",null,null,null,null,null,null,null,1000001,null,null,0.3,0.3,0.3,5,{"$f":"IF(O108=0,0,ROUND(O108*P108,0)+130000)","v":0},null,null,null,null,null,null,null,null,null,null,null,null,null,null,null,null,null,null,null,null,null,null,null,null,null,null,null,null,null,null,null,null,null,null,null,null,null,null,null,null,null,null,null,null,null,null,null,13,"2011-01-01","2011-01-01","2011-01-01","2011-01-01","2011-01-01",31,0,31,31,0,43680,43680,0,0.15196000000000001,0,{"$f":"'SALARY TABLE'!I54","v":0},0.14499999999999999,0,0]
[null,null,null,20,"Gazetted H.M. Gr-II ",null,null,null,null,null,null,null,null,null,null,null,null,null,6,{"$f":"ROUND(IF(AND($N$102>M109,$N$102<N109),HLOOKUP($M$102,$P$104:$R$110,S109)*$R$102,0),0)","v":0},null,null,null,null,null,null,null,null,null,null,null,{"$f":"HLOOKUP($M$102,$P$104:$R$110,S107)","v":0.2},{"$f":"R102","v":288804},{"$f":"AG109*AF109","v":57760.800000000003},null,null,null,null,null,null,null,null,null,null,null,null,null,null,null,null,null,null,null,null,null,null,null,null,null,null,null,null,null,null,null,null,null,14,"2011-02-01","2011-02-01","2011-02-01","2011-02-01","2011-02-01",28,0,28,28,0,43680,43680,0,0.15196000000000001,0,{"$f":"'SALARY TABLE'!I55","v":"1 incre"},0.14499999999999999,0,0]
[null,null,null,21,"Head Master",null,null,null,null,null,null,null,null,null,null,null,null,null,7,{"$f":"ROUND(IF(AND($N$102>M110,$N$102<N110),HLOOKUP($M$102,$P$104:$R$110,S110)*$R$102,0),0)","v":0},null,"Reader allowance",null,null,"SCA",1,null,null,null,null,null,null,null,null,null,null,null,null,null,null,null,null,null,null,null,null,null,null,null,null,null,null,null,null,null,null,null,null,null,null,null,null,null,null,null,null,null,null,null,null,null,null,null,null,null,null,"Half PayArrears",null,null,null,{"$f":"SUM(CC96:CC109)","v":0},"DA",{"$f":"SUM(CE96:CE109)","v":0},"HRA",null,{"$f":"SUM(CH98:CH109)","v":0}]
[null,null,null,22,"Health assistant",null,null,null,null,null,null,null,null,null,null,null,null,null,null,{"$f":"SUM(T105:T110)","v":23880},null,1,{"$f":"LOOKUP(V111,V112:W115,W112:W115)","v":"Not Applicable"},1,"Not Applicable",{"$f":"LOOKUP(Z110,X111:Y114,Y111:Y114)","v":"Not Applicable"}]
[null,null,null,23,"Health Educator",null,null,null,null,null,null,null,null,null,null,null,null,null,null,null,null,1,"Not Applicable",2,"Non-Mandals"]
[null,null,null,24,"Joint Director",null,null,null,null,null,null,null,null,null,null,null,null,null,null,null,null,2,400,3,"Mandals"]
[null,null,null,25,"Junior Assistant",null,null,null,null,null,null,null,null,null,null,null,null,null,null,null,null,3,500,4,"Hills / Hill Tops",null,null,null,null,null,null,null,null,null,null,null,null,null,null,null,null,null,null,null,null,null,null,null,null,null,null,null,null,null,null,null,null,null,null,null,null,null,null,null,null,null,null,null,null,null,null,null,null,{"$f":"$Z$4","v":0.14499999999999999}]
[null,null,null,26,"Junior Lecturer",null,null,null,null,null,null,null,null,null,null,null,null,null,null,null,null,4,600,null,null,null,null,null,null,null,null,null,null,null,null,null,null,null,null,null,null,null,null,null,null,null,null,null,null,null,null,null,null,null,null,null,null,null,null,null,null,null,null,null,null,null,null,"PT",null,null,"Basic Pay","DA %","DA","HRA","HMA","AI",{"$f":"'SALARY TABLE'!M4","v":"PP/Special pay"},{"$f":"'SALARY TABLE'!N4","v":"FPI"},{"$f":"'SALARY TABLE'!P4","v":"CA\n(PHA)"},"Total","PT"]
[null,null,null,27,"L.F.L. Head Master",null,null,null,null,null,null,null,null,null,null,null,null,null,null,null,null,null,null,null,null,null,null,null,null,null,null,null,null,null,null,null,null,null,null,null,null,null,null,null,null,null,null,null,null,null,null,null,null,null,null,null,null,null,null,null,null,null,null,null,null,null,null,1,"2010-01-01",{"$f":"BQ116","v":"2010-01-01"},{"$f":"'SALARY TABLE'!S57","v":42490},{"$f":"'SALARY TABLE'!L57","v":"00:00:00"},{"$f":"ROUND(BS116*BT116,0)","v":0},{"$f":"$BV$114*BS116","v":6161.0499999999993},{"$f":"Data!$U$25","v":0},{"$f":"Data!$U$21","v":0},{"$f":"Data!$U$22","v":0},{"$f":"Data!$U$23","v":0},null,{"$f":"SUM(BU116:CA116)+BS116","v":48651.05},{"$f":"IF(CB116>20000,200,IF(CB116>15000,150,IF(CB116>10000,100,IF(CB116>6000,80,IF(CB116>5000,60,IF(CB116>4000,45,IF(CB116>3000,35,IF(CB116>2000,25,0))))))))","v":200}]
[null,null,null,28,"L.F.L. Head Mistress",null,null,null,null,null,null,null,null,null,null,null,null,null,null,null,null,null,null,null,null,null,null,null,null,null,null,null,null,null,null,null,null,null,null,null,null,{"$f":"IF(AP$3=\"Applicable\",AM129,\" \")","v":" "},null,null,11,null,null,null,null,null,null,null,null,null,null,null,null,null,null,null,null,null,null,null,null,null,null,2,"2010-02-01",{"$f":"BQ117","v":"2010-02-01"},{"$f":"'SALARY TABLE'!S58","v":42490},{"$f":"'SALARY TABLE'!L58","v":"00:00:00"},{"$f":"ROUND(BS117*BT117,0)","v":0},{"$f":"$BV$114*BS117","v":6161.0499999999993},{"$f":"Data!$U$25","v":0},{"$f":"Data!$U$21","v":0},{"$f":"Data!$U$22","v":0},{"$f":"Data!$U$23","v":0},null,{"$f":"SUM(BU117:CA117)+BS117","v":48651.05},{"$f":"IF(CB117>20000,200,IF(CB117>15000,150,IF(CB117>10000,100,IF(CB117>6000,80,IF(CB117>5000,60,IF(CB117>4000,45,IF(CB117>3000,35,IF(CB117>2000,25,0))))))))","v":200}]
[null,null,null,29,"Lab Technician",null,null,null,null,null,null,null,null,null,null,null,null,null,null,null,null,"SCA",null,null,null,null,null,2,null,null,null,null,null,null,null,null,null,null,null,null,1,"2010-06-01",{"$f":"Data!W32","v":0},"HMA",{"$f":"Data!T32","v":120},null,null,null,null,null,null,null,null,null,null,null,null,null,null,null,null,null,null,null,null,null,null,3,"2010-03-01","2010-03-01",{"$f":"'SALARY TABLE'!S59","v":42490},{"$f":"'SALARY TABLE'!L59","v":"02:53:32.928"},{"$f":"ROUND(BS118*BT118,0)","v":5121},6161.0499999999993,{"$f":"Data!$U$25","v":0},{"$f":"Data!$U$21","v":0},{"$f":"Data!$U$22","v":0},{"$f":"Data!$U$23","v":0},{"$f":"'SALARY TABLE'!P5","v":0},{"$f":"SUM(BU118:CA118)+BS118+CF118","v":53772.05},200,null,null,{"$f":"'SALARY TABLE'!H5","v":0}]
[null,null,null,30,"Language Pandit",null,null,null,null,null,null,null,null,null,null,null,null,null,null,null,null,{"$f":"Z110","v":1},null,{"$f":"'INCOME TAX'!H75","v":0},{"$f":"VLOOKUP(V119,AE122:AF124,2)","v":0},{"$f":"X119-Y119","v":0},null,"SCA",null,null,null,null,null,null,null,null,null,null,null,null,1,{"$f":"IF(AQ118>0,AQ119,\" \")","v":" "},"2015-03-01",90,null,null,{"$f":"IF(AO119>=AO118,AQ118,AS118)","v":0},{"$f":"AS118","v":120},{"$f":"ROUND(IF(AU119=0,AV119,AU119),0)","v":120},null,null,null,null,null,null,null,null,null,null,null,null,null,null,null,null,null,null,4,"2010-04-01","2010-04-01",{"$f":"'SALARY TABLE'!S60","v":42490},{"$f":"'SALARY TABLE'!L60","v":"02:53:32.928"},5121,6161.0499999999993,{"$f":"Data!$U$25","v":0},{"$f":"Data!$U$21","v":0},{"$f":"Data!$U$22","v":0},{"$f":"Data!$U$23","v":0},{"$f":"'SALARY TABLE'!P6","v":0},{"$f":"SUM(BU119:CA119)+BS119+CF119","v":53772.05},200,null,null,{"$f":"'SALARY TABLE'!H6","v":0}]
[null,null,null,31,"Language Pandit (Hindi)",null,null,null,null,null,null,null,null,null,null,null,"Rented/Own",null,null,null,null,null,null,null,null,null,null,null,null,null,null,null,null,null,null,null,null,null,null,null,2,{"$f":"IF(AQ118>0,AQ120,\" \")","v":" "},"2015-04-01",90,null,null,{"$f":"IF(AO120>=AO118,AQ118,AS118)","v":0},{"$f":"AV119","v":120},{"$f":"ROUND(IF(AU120=0,AV120,AU120),0)","v":120},null,null,null,null,null,null,null,null,null,null,null,null,null,null,null,null,null,null,5,"2010-05-01","2010-05-01",{"$f":"'SALARY TABLE'!S61","v":42490},{"$f":"'SALARY TABLE'!L61","v":"02:53:32.928"},5121,6161.0499999999993,{"$f":"Data!$U$25","v":0},{"$f":"Data!$U$21","v":0},{"$f":"Data!$U$22","v":0},{"$f":"Data!$U$23","v":0},{"$f":"'SALARY TABLE'!P7","v":0},53772.05,200,null,null,{"$f":"'SALARY TABLE'!H7","v":0}]
[null,null,null,32,"Language Pandit (Sanskrit)",null,null,null,null,null,null,null,null,null,null,null,null,null,null,null,null,"Basic Pay",null,2,3,4,1,null,{"$f":"'SALARY TABLE'!C5","v":42490},{"$f":"IF(AND(AC121>=$V$122,AC121<=$W$122),HLOOKUP($V$119,$X$121:$Z$127,$AA$122),IF(AND(AC121>=$V$123,AC121<=$W$123),HLOOKUP($V$119,$X$121:$Z$127,$AA$123),IF(AND(AC121>=$V$124,AC121<=$W$124),HLOOKUP($V$119,$X$121:$Z$127,$AA$124),IF(AND(AC121>=$V$125,AC121<=$W$125),HLOOKUP($V$119,$X$121:$Z$127,$AA$125),IF(AND(AC121>=$V$126,AC121<=$W$126),HLOOKUP($V$119,$X$121:$Z$127,$AA$126),IF(AND(AC121>=$V$127,AC121<=$W$127),HLOOKUP($V$119,$X$121:$Z$127,$AA$127),0))))))","v":0},{"$f":"IF($V$119=1,0,AD121)","v":0},null,null,null,null,null,null,null,null,null,3,{"$f":"IF(AQ118>0,AQ121,\" \")","v":" "},"2015-05-01",90,null,null,{"$f":"IF(AO121>=AO118,AQ118,AS118)","v":0},120,120,null,null,null,null,null,null,null,null,null,null,null,null,null,null,null,null,null,null,6,"2010-06-01","2010-06-01",{"$f":"'SALARY TABLE'!S62","v":42490},{"$f":"'SALARY TABLE'!L62","v":"02:53:32.928"},5121,6161.0499999999993,{"$f":"Data!$U$25","v":0},{"$f":"Data!$U$21","v":0},{"$f":"Data!$U$22","v":0},{"$f":"Data!$U$23","v":0},{"$f":"'SALARY TABLE'!P8","v":0},53772.05,200,null,null,{"$f":"'SALARY TABLE'!H8","v":0}]
[null,null,null,33,"Language Pandit (Tamil)",null,null,null,null,null,null,null,null,null,null,1,null,null,null,null,null,0,10600,325,400,475,2,{"$f":"ROUND(IF(AND($AC$121>=V122,$AC$121<=W122),HLOOKUP($V$119,$X$121:$Z$127,AA122),0),0)","v":0},{"$f":"'SALARY TABLE'!C6","v":42490},0,{"$f":"IF($V$119=1,0,AD122)","v":0},null,null,null,null,null,null,null,null,null,4,{"$f":"IF(AQ118>0,AQ122,\" \")","v":" "},"2015-06-01",90,null,null,{"$f":"IF(AO122>=AO118,AQ118,AS118)","v":0},120,120,null,null,null,null,null,null,null,null,null,null,null,null,null,null,null,null,null,null,7,"2010-07-01","2010-07-01",{"$f":"'SALARY TABLE'!S63","v":42490},{"$f":"'SALARY TABLE'!L63","v":"02:53:32.928"},5121,6161.0499999999993,{"$f":"Data!$U$25","v":0},{"$f":"Data!$U$21","v":0},{"$f":"Data!$U$22","v":0},{"$f":"Data!$U$23","v":0},{"$f":"'SALARY TABLE'!P9","v":0},53772.05,200,null,null,{"$f":"'SALARY TABLE'!H9","v":0}]
[null,null,null,34,"Language Pandit (Telugu)",null,null,null,null,null,null,null,null,null,null,1,"Rented ",{"$f":"Data!V19","v":11800},null,null,null,10601,13660,400,475,550,3,{"$f":"ROUND(IF(AND($AC$121>=V123,$AC$121<=W123),HLOOKUP($V$119,$X$121:$Z$127,AA123),0),0)","v":0},{"$f":"'SALARY TABLE'!C7","v":42490},0,0,null,null,null,null,null,null,null,null,null,5,{"$f":"IF(AQ118>0,AQ123,\" \")","v":" "},"2015-07-01",90,null,null,{"$f":"IF(AO123>=AO118,AQ118,AS118)","v":0},120,120,null,null,null,null,null,null,null,null,null,null,null,null,null,null,null,null,null,null,8,"2010-08-01","2010-08-01",{"$f":"'SALARY TABLE'!S64","v":42490},{"$f":"'SALARY TABLE'!L64","v":"03:38:49.344"},6457,6161.0499999999993,{"$f":"Data!$U$25","v":0},{"$f":"Data!$U$21","v":0},{"$f":"Data!$U$22","v":0},{"$f":"Data!$U$23","v":0},{"$f":"'SALARY TABLE'!P10","v":0},55108.05,200,null,null,{"$f":"'SALARY TABLE'!H10","v":0}]
[null,null,null,35,"Language Pandit (Urdu)",null,null,null,null,null,null,null,null,null,null,2,"Own",null,null,null,null,13661,17050,475,575,625,4,{"$f":"ROUND(IF(AND($AC$121>V124,$AC$121<W124),HLOOKUP($V$119,$X$121:$Z$127,AA124),0),0)","v":0},{"$f":"'SALARY TABLE'!C8","v":42490},0,0,null,null,null,null,null,null,null,null,null,6,{"$f":"IF(AQ118>0,AQ124,\" \")","v":" "},"2015-08-01",150,null,null,{"$f":"IF(AO124>=AO118,AQ118,AS118)","v":0},120,120,null,null,null,null,null,null,null,null,null,null,null,null,null,null,null,null,null,null,9,"2010-09-01","2010-09-01",{"$f":"'SALARY TABLE'!S65","v":42490},{"$f":"'SALARY TABLE'!L65","v":"03:38:49.344"},6457,6161.0499999999993,{"$f":"Data!$U$25","v":0},{"$f":"Data!$U$21","v":0},{"$f":"Data!$U$22","v":0},{"$f":"Data!$U$23","v":0},{"$f":"'SALARY TABLE'!P11","v":0},55108.05,200,null,null,{"$f":"'SALARY TABLE'!H11","v":0}]
[null,null,null,36,"M.P.D.O",null,null,null,null,null,null,{"$f":"\"                 \"&\"This is to certify that I have paid an amount of Rs.\"&R123*12&\"(\"&Y180&\") towards House Rent for the year \"&RIGHT(Data!Q3,10)&\".(Rent @Rs.\"&R123&\" Per Month).\"","v":"                 This is to certify that I have paid an amount of Rs.141600(One Lakh Forty one Thousand Six Hundred rupees only) towards House Rent for the year  2016-2017.(Rent @Rs.11800 Per Month)."},null,null,null,null,null,null,null,null,null,17051,21250,575,625,700,5,{"$f":"ROUND(IF(AND($AC$121>V125,$AC$121<W125),HLOOKUP($V$119,$X$121:$Z$127,AA125),0),0)","v":0},{"$f":"'SALARY TABLE'!C9","v":42490},0,0,null,null,null,null,null,null,null,null,null,7,{"$f":"IF(AQ118>0,AQ125,\" \")","v":" "},"2015-09-01",150,null,null,{"$f":"IF(AO125>=AO118,AQ118,AS118)","v":0},120,120,null,null,null,null,null,null,null,null,null,null,null,null,null,null,null,null,null,null,10,"2010-10-01","2010-10-01",{"$f":"'SALARY TABLE'!S66","v":42490},{"$f":"'SALARY TABLE'!L66","v":"03:38:49.344"},6457,6161.0499999999993,{"$f":"Data!$U$25","v":0},{"$f":"Data!$U$21","v":0},{"$f":"Data!$U$22","v":0},{"$f":"Data!$U$23","v":0},{"$f":"'SALARY TABLE'!P12","v":0},55108.05,200,null,null,{"$f":"'SALARY TABLE'!H12","v":0}]
[null,null,null,37,"Tahsildar",null,null,null,null,null,null,null,null,null,null,null,null,null,null,null,null,21251,28450,625,675,775,6,{"$f":"ROUND(IF(AND($AC$121>V126,$AC$121<W126),HLOOKUP($V$119,$X$121:$Z$127,AA126),0),0)","v":0},{"$f":"'SALARY TABLE'!C10","v":42490},0,0,null,null,null,null,null,null,null,null,null,8,{"$f":"IF(AQ118>0,AQ126,\" \")","v":" "},"2015-10-01",150,null,null,{"$f":"IF(AO126>=AO118,AQ118,AS118)","v":0},120,120,null,null,null,null,null,null,null,null,null,null,null,null,null,null,null,null,null,null,11,"2010-11-01","2010-11-01",{"$f":"'SALARY TABLE'!S67","v":42490},{"$f":"'SALARY TABLE'!L67","v":"03:38:49.344"},6457,6161.0499999999993,{"$f":"Data!$U$25","v":0},{"$f":"Data!$U$21","v":0},{"$f":"Data!$U$22","v":0},{"$f":"Data!$U$23","v":0},{"$f":"'SALARY TABLE'!P13","v":0},55108.05,200,null,null,{"$f":"'SALARY TABLE'!H13","v":0}]
[null,null,null,38,"Mandal Educational Officer",null,null,null,null,null,null,null,null,null,null,null,null,null,null,null,null,28451,null,675,725,850,7,{"$f":"ROUND(IF(AND($AC$121>V127,$AC$121<W127),HLOOKUP($V$119,$X$121:$Z$127,AA127),0),0)","v":0},{"$f":"'SALARY TABLE'!C11","v":42490},0,0,null,null,null,null,null,null,null,null,null,9,{"$f":"IF(AQ118>0,AQ127,\" \")","v":" "},"2015-11-01",150,null,null,{"$f":"IF(AO127>=AO118,AQ118,AS118)","v":0},120,120,null,null,null,null,null,null,null,null,null,null,null,null,null,null,null,null,null,null,12,"2010-12-01","2010-12-01",{"$f":"'SALARY TABLE'!S68","v":42490},{"$f":"'SALARY TABLE'!L68","v":"03:38:49.344"},6457,6161.0499999999993,{"$f":"Data!$U$25","v":0},{"$f":"Data!$U$21","v":0},{"$f":"Data!$U$22","v":0},{"$f":"Data!$U$23","v":0},{"$f":"'SALARY TABLE'!P14","v":0},55108.05,200,null,null,{"$f":"'SALARY TABLE'!H14","v":0}]
[null,null,null,39,"Mandal Engineering Officer",null,null,null,null,null,null,null,null,null,null,null,null,null,null,null,null,null,null,null,null,null,null,{"$f":"SUM(AB122:AB127)","v":0},{"$f":"'SALARY TABLE'!C12","v":42490},0,0,null,null,null,null,null,null,null,null,null,10,{"$f":"IF(AQ118>0,AQ128,\" \")","v":" "},"2015-12-01",150,null,null,{"$f":"IF(AO128>=AO118,AQ118,AS118)","v":0},120,120,null,null,null,null,null,null,null,null,null,null,null,null,null,null,null,null,null,null,13,"2011-01-01","2011-01-01",{"$f":"'SALARY TABLE'!S69","v":43680},{"$f":"'SALARY TABLE'!L69","v":"03:38:49.344"},6638,6333.5999999999995,{"$f":"Data!$U$25","v":0},{"$f":"Data!$U$21","v":0},{"$f":"Data!$U$22","v":0},{"$f":"Data!$U$23","v":0},{"$f":"'SALARY TABLE'!P15","v":0},56651.6,200,null,null,{"$f":"'SALARY TABLE'!H15","v":0}]
[null,null,null,40,"MPHA Female",null,null,null,null,null,null,null,null,null,null,null,null,null,null,null,null,null,null,null,null,null,null,null,{"$f":"'SALARY TABLE'!C13","v":42490},0,0,null,null,null,null,null,null,null,null,null,11,{"$f":"IF(AQ118>0,AQ129,\" \")","v":" "},"2016-01-01",150,null,null,{"$f":"IF(AO129>=AO118,AQ118,AS118)","v":0},120,120,null,null,null,null,null,null,null,null,null,null,null,null,null,null,null,null,null,null,14,"2011-02-01","2011-02-01",{"$f":"'SALARY TABLE'!S70","v":43680},{"$f":"'SALARY TABLE'!L70","v":"03:38:49.344"},6638,6333.5999999999995,{"$f":"Data!$U$25","v":0},{"$f":"Data!$U$21","v":0},{"$f":"Data!$U$22","v":0},{"$f":"Data!$U$23","v":0},{"$f":"'SALARY TABLE'!P16","v":0},56651.6,200,null,null,{"$f":"'SALARY TABLE'!H16","v":0}]
[null,null,null,41,"MPHA Male",null,null,null,null,null,null,null,null,null,null,{"$f":"IF(P122=1,L125,P129)","v":"                 This is to certify that I have paid an amount of Rs.141600(One Lakh Forty one Thousand Six Hundred rupees only) towards House Rent for the year  2016-2017.(Rent @Rs.11800 Per Month)."},null,null,null,null,null,null,null,null,null,null,null,null,{"$f":"'SALARY TABLE'!C14","v":42490},0,0,null,null,null,null,null,null,null,null,null,12,{"$f":"IF(AQ118>0,AQ130,\" \")","v":" "},"2016-02-01",150,null,null,{"$f":"IF(AO130>=AO118,AQ118,AS118)","v":0},120,120,null,null,null,null,null,null,null,null,null,null,null,null,null,null,null,null,null,null,null,null,null,null,null,null,null,null,null,null,null,null,null,null,null,{"$f":"SUM(CE116:CE129)","v":0}]
[null,null,null,42,"MPHEO",null,null,null,null,null,null,null,null,null,null,null,null,null,null,null,null,null,null,null,null,null,null,null,{"$f":"'SALARY TABLE'!C15","v":43680},0,0]
[null,null,null,43,"MPHS Female",null,null,null,null,null,null,null,null,null,null,null,null,null,null,null,null,null,null,null,null,null,null,null,{"$f":"'SALARY TABLE'!C16","v":43680},0,0]
[null,null,null,44,"MPHS Male"]
[null,null,null,45,"Office Subordinate"]
[null,null,null,46,"Pharmacist"]
[null,null,null,47,"PHN",null,null,null,null,null,null,null,null,null,null,null,null,null,null,null,null,"CCA"]
[null,null,null,48,"Physical Education Teacher",null,null,null,null,null,null,null,null,null,null,null,null,null,null,null,null,{"$f":"X148","v":1},null,{"$f":"'INCOME TAX'!K95","v":0},null,{"$f":"X137-Y137","v":0},null,"CCA"]
[null,null,null,49,"Principal"]
[null,null,null,50,"Project Officer",null,null,null,null,null,null,null,null,null,null,null,null,null,null,null,null,"Basic Pay",null,2,3,4,1,null,{"$f":"AC121","v":42490},{"$f":"IF(AND(AC139>=$V$140,AC139<=$W$140),HLOOKUP($V$137,$X$139:$Z$143,$AA$140),IF(AND(AC139>=$V$141,AC139<=$W$141),HLOOKUP($V$137,$X$139:$Z$143,$AA$141),IF(AND(AC139>=$V$142,AC139<=$W$142),HLOOKUP($V$137,$X$139:$Z$143,$AA$142),IF(AND(AC139>=$V$143),HLOOKUP($V$137,$X$139:$Z$143,$AA$143),0))))","v":{"$error":"#N/A"}},{"$f":"IF($V$137=1,0,AD139)","v":0}]
[null,null,null,51,"R.J.D.S.E.",null,null,null,null,null,null,null,null,null,null,null,null,null,null,null,null,0,8200,200,120,100,2,{"$f":"ROUND(IF(AND($AC$139>V140,$AC$139<W140),HLOOKUP($V$137,$X$139:$Z$143,AA140),0),0)","v":0},42490,{"$error":"#N/A"},{"$f":"IF($V$137=1,0,AD140)","v":0}]
[null,null,null,52,"Record Assistant",null,null,null,null,null,null,null,null,null,null,null,null,null,null,null,null,8201,13270,300,160,120,3,0,42490,{"$error":"#N/A"},0]
[null,null,null,53,"School Assistant",null,null,null,null,null,null,null,null,null,null,null,null,null,null,null,null,13271,18030,350,230,130,4,0,42490,{"$error":"#N/A"},0]
[null,null,null,54,"School Assistant (Bio. Sc.)",null,null,null,null,null,null,null,null,null,null,null,null,null,null,null,null,18031,null,525,350,140,5,0,42490,{"$error":"#N/A"},0]
[null,null,null,55,"School Assistant (English)",null,null,null,null,null,null,null,null,null,null,null,null,null,null,null,null,null,null,null,null,null,6,0,42490,{"$error":"#N/A"},0]
[null,null,null,56,"School Assistant (Hindi)",null,null,null,null,null,null,null,null,null,null,null,null,null,null,null,null,null,null,null,null,null,7,0,42490,{"$error":"#N/A"},0,{"$f":"IF(AND($AC$139>V140,$AC$139<W140),HLOOKUP($V$137,$X$139:$Z$143,AA140),IF(AND($AC$139>V141,$AC$139<W141),HLOOKUP($V$137,$X$139:$Z$143,AA141),0))","v":0}]
[null,null,null,57,"School Assistant (Maths)",null,null,null,null,null,null,null,null,null,null,null,null,null,null,null,null,null,null,null,null,null,null,0,42490,{"$error":"#N/A"},0]
[null,null,null,58,"School Assistant (Phy. Edn.)",null,null,null,null,null,null,null,null,null,null,null,null,null,null,null,null,null,null,null,null,null,null,0,42490,{"$error":"#N/A"},0]
[null,null,null,59,"School Assistant (Phy. Science)",null,null,null,null,null,null,null,null,null,null,null,null,null,null,null,null,null,"CCA",1,null,null,null,{"$error":"#N/A"},42490,{"$error":"#N/A"},0]
[null,null,null,60,"School Assistant (Soc. Stu.)",null,null,null,null,null,null,null,null,null,null,null,null,null,null,null,null,1,"Not Applicable",{"$f":"LOOKUP(X148,V149:W152,W149:W152)","v":"Not Applicable"},null,null,null,{"$error":"#N/A"},43680,{"$error":"#N/A"},0]
[null,null,null,61,"School Assistant (Telugu)",null,null,null,null,null,null,null,null,null,null,null,null,null,null,null,null,2,"Greater HYD Municipal Corporation",null,null,null,null,{"$error":"#N/A"},43680,{"$error":"#N/A"},0]
[null,null,null,62,"School Assistant (Urdu)",null,null,null,null,null,null,null,null,null,null,null,null,null,null,null,null,3,"Greater Vizag Municipal corporation and Vijayawada"]
[null,null,null,63,"Secondary Grade Teacher",null,null,null,null,null,null,null,null,null,null,null,null,null,null,null,null,4,"Other Municipal Corporations"]
[null,null,null,64,"Senior Assistant"]
[null,null,null,65,"Senior Lecturer"]
[null,null,null,66,"Staff Nurse"]
[null,null,null,67,"Superintendent"]
[null,null,null,68,"Typist",10,{"$f":"IF(E$3=\"Applicable\",B169,\" \")","v":" "},{"$f":"IF(AS2=\"Not Applicable\",0,AS2)","v":0},"GIS",{"$f":"AH3","v":60},null,{"$f":"Data!$Y$31","v":0},null,null,null,"RPS 2005",null,null,{"$f":"AB3","v":7970}]
[null,null,null,69,"Revenue Inspector",1,{"$f":"IF(H157>0,H158,\" \")","v":" "},{"$f":"X6","v":"2016-03-01"},{"$f":"'SALARY TABLE'!#REF!","v":{"$error":"#REF!"}},{"$f":"IF($AU$17>0,H158,\" \")","v":" "},{"$f":"$J$157","v":60},{"$f":"IF(F158>=F157,H157,J157)","v":60},{"$f":"MAX(K158,L158)","v":60},null,null,1,5470,5605]
[null,null,null,70,"Deputy Tahsildal",2,{"$f":"IF(H157>0,H159,\" \")","v":" "},"2016-04-01",{"$f":"'SALARY TABLE'!#REF!","v":{"$error":"#REF!"}},{"$f":"IF($AU$17>0,H159,\" \")","v":" "},60,{"$f":"IF(F159>=F157,H157,J157)","v":60},{"$f":"MAX(K159,L159)","v":60},null,null,2,5605,5750,{"$f":"IF(W4=12,1,2)","v":1},null,null,null,null,null,null,"pay","da","hra","IR","total","new Pay","PT"]
[null,null,null,71,"VRO",3,{"$f":"IF(H157>0,H160,\" \")","v":" "},"2016-05-01",{"$f":"'SALARY TABLE'!#REF!","v":{"$error":"#REF!"}}," ",60,{"$f":"IF(F160>=F157,H157,J157)","v":60},60,null,null,3,5750,5895,1,"Yes",null,null,"With notional Basic Pay",null,null,{"$f":"IF(S159=1,LOOKUP(S157,Q158:R221,R158:R221),$AB$3)","v":8170},{"$f":"ROUND(Z160*60.288/100,0)","v":4926},{"$f":"ROUND(Z160*Z4,0)","v":1185},{"$f":"ROUND(Z160*22%,0)","v":1797},{"$f":"SUM(Z160:AC160)","v":16078},{"$f":"Z160+AA160+AC160","v":14893},{"$f":"IF(AD160>20000,200,IF(AD160>15000,150,IF(AD160>10000,100,IF(AD160>6000,80,IF(AD160>5000,60,IF(AD160>4000,45,IF(AD160>3000,35,IF(AD160>2000,25,0))))))))","v":150}]
[null,null,null,72,"Excise Constiable",4,{"$f":"IF(H157>0,H161,\" \")","v":" "},"2016-06-01",{"$f":"'SALARY TABLE'!#REF!","v":{"$error":"#REF!"}}," ",60,{"$f":"IF(F161>=F157,H157,J157)","v":60},60,null,null,4,5895,6040,2,"No",null,null," PRC 10 Feb 2010 Basic Pay",null,null,{"$f":"$W$3","v":42490},{"$f":"ROUND(Z161*9.416/100,0)","v":4001},{"$f":"ROUND(Z161*Z4,0)","v":6161},null,{"$f":"SUM(Z161:AC161)","v":52652},null,{"$f":"IF(AD161>20000,200,IF(AD161>15000,150,IF(AD161>10000,100,IF(AD161>6000,80,IF(AD161>5000,60,IF(AD161>4000,45,IF(AD161>3000,35,IF(AD161>2000,25,0))))))))","v":200}]
[null,null,null,null,null,5,{"$f":"IF(H157>0,H162,\" \")","v":" "},"2016-07-01",{"$f":"'SALARY TABLE'!#REF!","v":{"$error":"#REF!"}}," ",60,{"$f":"IF(F162>=F157,H157,J157)","v":60},60,null,null,5,6040,6195,null,null,null,null,null,null,"Difference",{"$f":"Z161-AE160","v":27597},{"$f":"AA161","v":4001},{"$f":"AB161-AB160","v":4976},null,{"$f":"Z162+AA162+AB162","v":36574}]
[null,null,null,null,null,6,{"$f":"IF(H157>0,H163,\" \")","v":" "},"2016-08-01",{"$f":"'SALARY TABLE'!#REF!","v":{"$error":"#REF!"}}," ",60,{"$f":"IF(F163>=F157,H157,J157)","v":60},60,null,null,6,6195,6350,null,null,null,null,null,null,"pt Differ",{"$f":"AF161-AF160","v":50}]
[null,null,null,null,null,7,{"$f":"IF(H157>0,H164,\" \")","v":" "},"2016-09-01",{"$f":"'SALARY TABLE'!#REF!","v":{"$error":"#REF!"}}," ",60,{"$f":"IF(F164>=F157,H157,J157)","v":60},60,null,null,7,6350,6505]
[null,null,null,null,null,8,{"$f":"IF(H157>0,H165,\" \")","v":" "},"2016-10-01",{"$f":"'SALARY TABLE'!#REF!","v":{"$error":"#REF!"}}," ",60,{"$f":"IF(F165>=F157,H157,J157)","v":60},60,null,null,8,6505,6675]
[null,null,null,null,null,9,{"$f":"IF(H157>0,H166,\" \")","v":" "},"2016-11-01",{"$f":"'SALARY TABLE'!#REF!","v":{"$error":"#REF!"}}," ",60,{"$f":"IF(F166>=F157,H157,J157)","v":60},60,null,null,9,6675,6845]
[null,null,null,null,null,10,{"$f":"IF(H157>0,H167,\" \")","v":" "},"2016-12-01",{"$f":"'SALARY TABLE'!#REF!","v":{"$error":"#REF!"}}," ",60,{"$f":"IF(F167>=F157,H157,J157)","v":0},60,null,null,10,6845,7015]
[null,null,null,null,null,11,{"$f":"IF(H157>0,H168,\" \")","v":" "},"2017-01-01",{"$f":"'SALARY TABLE'!#REF!","v":{"$error":"#REF!"}}," ",60,{"$f":"IF(F168>=F157,H157,J157)","v":0},60,null,null,11,7015,7200]
[null,null,null,null,null,12,{"$f":"IF(H157>0,H169,\" \")","v":" "},"2017-02-01",{"$f":"'SALARY TABLE'!#REF!","v":{"$error":"#REF!"}}," ",60,{"$f":"IF(F169>=F157,H157,J157)","v":0},60,null,null,12,7200,7385]
[null,null,null,null,null,null,null,null,null,null,null,null,null,null,null,13,7385,7570]
[null,null,null,null,null,null,null,null,null,null,null,null,null,null,null,14,7570,7770]
[null,null,null,null,null,null,null,null,null,null,null,null,null,null,null,15,7770,7970]
[null,null,null,null,null,null,null,null,null,null,null,null,null,null,null,16,7970,8170]
[null,null,null,null,null,null,null,null,null,null,null,null,null,null,null,17,8170,8385]
[null,null,null,null,null,null,null,null,null,null,null,null,null,null,null,18,8385,8600]
[null,null,null,null,null,null,null,null,null,null,null,null,null,null,null,19,8600,8815]
[null,null,null,null,null,null,null,null,null,null,null,null,null,null,null,20,8815,9050,null,null,null,null,null,null,1,2,3,4,5,6,7,null,null,null,8,9,10,11,12,13,14,15,16,17,18,19,20,21,22,23,24,25,26,27,30,31,32,33,34,35,36,37,38,39,40,41,42,43,44,45,46,47,48,49,50,51,52,53,54,55,56,57,58,59,60,61,62,63,64,65,66,67,68,69,70,71,72,73,74,75,76,77,78,79,80,81,82,83,84,85,86,87,88,89,90,91,92,93,94,95,96,97,98,99]
[null,null,null,null,null,null,null,null,null,null,null,null,null,null,null,21,9050,9285,null,null,null,null,null,null,"One","Two","Three","Four","Five","Six","Seven",null,null,null,"Eight","Nine","Ten","Eleven","Twelve","Thirteen","Fourteen","Fifteen","Sixteen","Seventeen","Eighteen","Nineteen","Twenty","Twenty one","Twenty two","Twenty three","Twenty four","Twenty five","Twenty six","Twenty seven","Thirty ","Thirty one","Thirty two","Thirty three","Thirty four","Thirty five","Thirty six","Thirty seven","Thirty eight","Thirty nine","Forty ","Forty one","Forty two","Forty three","Forty four","Forty five","Forty six","Forty seven","Forty eight","Forty nine","Fifty","Fifty one","Fifty two","Fifty three","Fifty four","Fifty five","Fifty six","Fifty seven","Fifty eight","Fifty nine","sixty","Sixty one","Sixty two","Sixty three","Sixty four","Sixty five","Sixty six","Sixty seven","Sixty eight","Sixty nine","Seventy","Seventy one","Seventy two","Seventy three","Seventy four","Seventy five","Seventy six","Seventy seven","Seventy eight","Seventy nine","Eighty ","Eighty one","Eighty two","Eighty three","Eighty four","Eighty five","Eighty six","Eighty seven","Eighty eight","Eighty nine","Ninety","Ninety one","Ninety two","Ninety three","Ninety four","Ninety five","Ninety six","Ninety seven","Ninety eight","Ninety nine"]
[null,null,null,null,null,null,null,null,null,null,null,null,null,null,null,22,9285,9520]
[null,null,null,null,null,null,null,null,null,null,null,null,null,null,null,23,9520,9775,null,null,null,null,null,{"$f":"R123*12","v":141600},{"$f":"IF(X180=\"\",\"\",CONCATENATE(AN180,\" rupees only\"))","v":"One Lakh Forty one Thousand Six Hundred rupees only"},{"$f":"INT(X180/100000)","v":1},{"$f":"INT(X180/1000-Z180*100)","v":41},{"$f":"INT(X180/100-Z180*1000-AA180*10)","v":6},{"$f":"INT(X180-Z180*100000-AA180*1000-AB180*100)","v":0},{"$f":"IF(Z180=0,\"\",LOOKUP(Z180,Y177:DU177,Y178:DU178))","v":"One"},{"$f":"IF(AA180=0,\"\",LOOKUP(AA180,Y177:DU177,Y178:DU178))","v":"Forty one"},{"$f":"IF(AB180=0,\"\",LOOKUP(AB180,Y177:DU177,Y178:DU178))","v":"Six"},{"$f":"IF(AC180=0,\"\",LOOKUP(AC180,Y177:DU177,Y178:DU178))","v":""},{"$f":"IF(AND(AB180=0,AC180=0),1,2)","v":2},{"$f":"IF(AC180=0,3,4)","v":3},{"$f":"IF(OR(AH180=1,AI180=3),5,6)","v":5},{"$f":"IF(Z180>1,\" Lakhs \",IF(Z180>0,\" Lakh \",\"\"))","v":" Lakh "},{"$f":"IF(AA180>0,\" Thousand \",\"\")","v":" Thousand "},{"$f":"IF(AB180>0,\" Hundred \",\"\")","v":" Hundred "},{"$f":"IF(X180=0,\"Zero\",IF(X180>0,TRIM(CONCATENATE(AD180,AK180,AE180,AL180,AF180,AM180,IF(AND(X180>100,AJ180=6),\" and \",\"\"),AG180)),\"\"))","v":"One Lakh Forty one Thousand Six Hundred"}]
[null,null,null,null,null,null,null,null,null,null,null,null,null,null,null,24,9775,10030,null,null,null,null,null,null,{"$f":"IF(X181=\"\",\"\",CONCATENATE(AN181,\" rupees only\"))","v":""},{"$f":"INT(X181/100000)","v":0},{"$f":"INT(X181/1000-Z181*100)","v":0},{"$f":"INT(X181/100-Z181*1000-AA181*10)","v":0},{"$f":"INT(X181-Z181*100000-AA181*1000-AB181*100)","v":0},{"$f":"IF(Z181=0,\"\",LOOKUP(Z181,Y177:DU177,Y178:DU178))","v":""},{"$f":"IF(AA181=0,\"\",LOOKUP(AA181,Y177:DU177,Y178:DU178))","v":""},{"$f":"IF(AB181=0,\"\",LOOKUP(AB181,Y177:DU177,Y178:DU178))","v":""},{"$f":"IF(AC181=0,\"\",LOOKUP(AC181,Y177:DU177,Y178:DU178))","v":""},{"$f":"IF(AND(AB181=0,AC181=0),1,2)","v":1},{"$f":"IF(AC181=0,3,4)","v":3},{"$f":"IF(OR(AH181=1,AI181=3),5,6)","v":5},{"$f":"IF(Z181>1,\" Lakhs \",IF(Z181>0,\" Lakh \",\"\"))","v":""},{"$f":"IF(AA181>0,\" Thousand \",\"\")","v":""},{"$f":"IF(AB181>0,\" Hundred \",\"\")","v":""},{"$f":"IF(X181=0,\"Zero\",IF(X181>0,TRIM(CONCATENATE(AD181,AK181,AE181,AL181,AF181,AM181,IF(AND(X181>100,AJ181=6),\" and \",\"\"),AG181)),\"\"))","v":"Zero"}]
[null,null,null,null,null,null,null,null,null,null,null,null,null,null,null,25,10030,10285,null,null,null,null,null,null,"",0,0,0,0,{"$f":"IF(Z182=0,\"\",LOOKUP(Z182,Y177:DU177,Y178:DU178))","v":""},{"$f":"IF(AA182=0,\"\",LOOKUP(AA182,Y177:DU177,Y178:DU178))","v":""},{"$f":"IF(AB182=0,\"\",LOOKUP(AB182,Y177:DU177,Y178:DU178))","v":""},{"$f":"IF(AC182=0,\"\",LOOKUP(AC182,Y177:DU177,Y178:DU178))","v":""},1,3,5,"","","","Zero"]
[null,null,null,null,null,null,null,null,null,null,null,null,null,null,null,26,10285,10565,null,null,null,null,null,null,"",0,0,0,0,{"$f":"IF(Z183=0,\"\",LOOKUP(Z183,Y177:DU177,Y178:DU178))","v":""},{"$f":"IF(AA183=0,\"\",LOOKUP(AA183,Y177:DU177,Y178:DU178))","v":""},{"$f":"IF(AB183=0,\"\",LOOKUP(AB183,Y177:DU177,Y178:DU178))","v":""},{"$f":"IF(AC183=0,\"\",LOOKUP(AC183,Y177:DU177,Y178:DU178))","v":""},1,3,5,"","","","Zero"]
[null,null,null,null,null,null,null,null,null,null,null,null,null,null,null,27,10565,10845,null,null,null,null,null,null,"",0,0,0,0,{"$f":"IF(Z184=0,\"\",LOOKUP(Z184,Y177:DU177,Y178:DU178))","v":""},{"$f":"IF(AA184=0,\"\",LOOKUP(AA184,Y177:DU177,Y178:DU178))","v":""},{"$f":"IF(AB184=0,\"\",LOOKUP(AB184,Y177:DU177,Y178:DU178))","v":""},{"$f":"IF(AC184=0,\"\",LOOKUP(AC184,Y177:DU177,Y178:DU178))","v":""},1,3,5,"","","","Zero"]
[null,null,null,null,null,null,null,null,null,null,null,null,null,null,null,28,10845,11125,null,null,null,null,null,null,"",0,0,0,0,{"$f":"IF(Z185=0,\"\",LOOKUP(Z185,Y177:DU177,Y178:DU178))","v":""},{"$f":"IF(AA185=0,\"\",LOOKUP(AA185,Y177:DU177,Y178:DU178))","v":""},{"$f":"IF(AB185=0,\"\",LOOKUP(AB185,Y177:DU177,Y178:DU178))","v":""},{"$f":"IF(AC185=0,\"\",LOOKUP(AC185,Y177:DU177,Y178:DU178))","v":""},1,3,5,"","","","Zero"]
[null,null,null,null,null,null,null,null,null,null,null,null,null,null,null,29,11125,11440,null,null,null,null,null,null,"",0,0,0,0,{"$f":"IF(Z186=0,\"\",LOOKUP(Z186,Y177:DU177,Y178:DU178))","v":""},{"$f":"IF(AA186=0,\"\",LOOKUP(AA186,Y177:DU177,Y178:DU178))","v":""},{"$f":"IF(AB186=0,\"\",LOOKUP(AB186,Y177:DU177,Y178:DU178))","v":""},{"$f":"IF(AC186=0,\"\",LOOKUP(AC186,Y177:DU177,Y178:DU178))","v":""},1,3,5,"","","","Zero"]
[null,null,null,null,null,null,null,null,null,null,null,null,null,null,null,30,11440,11755,null,null,null,null,null,null,"",0,0,0,0,{"$f":"IF(Z187=0,\"\",LOOKUP(Z187,Y177:DU177,Y178:DU178))","v":""},{"$f":"IF(AA187=0,\"\",LOOKUP(AA187,Y177:DU177,Y178:DU178))","v":""},{"$f":"IF(AB187=0,\"\",LOOKUP(AB187,Y177:DU177,Y178:DU178))","v":""},{"$f":"IF(AC187=0,\"\",LOOKUP(AC187,Y177:DU177,Y178:DU178))","v":""},1,3,5,"","","","Zero"]
[null,null,null,null,null,null,null,null,null,null,null,null,null,null,null,31,11755,12070,null,null,null,null,null,null,"",0,0,0,0,{"$f":"IF(Z188=0,\"\",LOOKUP(Z188,Y177:DU177,Y178:DU178))","v":""},{"$f":"IF(AA188=0,\"\",LOOKUP(AA188,Y177:DU177,Y178:DU178))","v":""},{"$f":"IF(AB188=0,\"\",LOOKUP(AB188,Y177:DU177,Y178:DU178))","v":""},{"$f":"IF(AC188=0,\"\",LOOKUP(AC188,Y177:DU177,Y178:DU178))","v":""},1,3,5,"","","","Zero"]
[null,null,null,null,null,null,null,null,null,null,null,null,null,null,null,32,12070,12385,null,null,null,null,"Income Tax",null,"",0,0,0,0,{"$f":"IF(Z189=0,\"\",LOOKUP(Z189,Y177:DU177,Y178:DU178))","v":""},{"$f":"IF(AA189=0,\"\",LOOKUP(AA189,Y177:DU177,Y178:DU178))","v":""},{"$f":"IF(AB189=0,\"\",LOOKUP(AB189,Y177:DU177,Y178:DU178))","v":""},{"$f":"IF(AC189=0,\"\",LOOKUP(AC189,Y177:DU177,Y178:DU178))","v":""},1,3,5,"","","","Zero"]
[null,null,null,null,null,null,null,null,null,null,null,null,null,null,null,33,12385,12700,null,null,null,null,"NET",null,"",0,0,0,0,{"$f":"IF(Z190=0,\"\",LOOKUP(Z190,Y177:DU177,Y178:DU178))","v":""},{"$f":"IF(AA190=0,\"\",LOOKUP(AA190,Y177:DU177,Y178:DU178))","v":""},{"$f":"IF(AB190=0,\"\",LOOKUP(AB190,Y177:DU177,Y178:DU178))","v":""},{"$f":"IF(AC190=0,\"\",LOOKUP(AC190,Y177:DU177,Y178:DU178))","v":""},1,3,5,"","","","Zero"]
[null,null,null,null,null,null,null,null,null,null,null,null,null,null,null,34,12700,13030,null,null,null,null,"Under RS",null,"",0,0,0,0,{"$f":"IF(Z191=0,\"\",LOOKUP(Z191,Y177:DU177,Y178:DU178))","v":""},{"$f":"IF(AA191=0,\"\",LOOKUP(AA191,Y177:DU177,Y178:DU178))","v":""},{"$f":"IF(AB191=0,\"\",LOOKUP(AB191,Y177:DU177,Y178:DU178))","v":""},{"$f":"IF(AC191=0,\"\",LOOKUP(AC191,Y177:DU177,Y178:DU178))","v":""},1,3,5,"","","","Zero"]
[null,null,null,null,null,null,null,null,null,null,null,null,null,null,null,35,13030,13390,null,null,null,null,"LIC",null,"",0,0,0,0,{"$f":"IF(Z192=0,\"\",LOOKUP(Z192,Y177:DU177,Y178:DU178))","v":""},{"$f":"IF(AA192=0,\"\",LOOKUP(AA192,Y177:DU177,Y178:DU178))","v":""},{"$f":"IF(AB192=0,\"\",LOOKUP(AB192,Y177:DU177,Y178:DU178))","v":""},{"$f":"IF(AC192=0,\"\",LOOKUP(AC192,Y177:DU177,Y178:DU178))","v":""},1,3,5,"","","","Zero"]
[null,null,null,null,null,null,null,null,null,null,null,null,null,null,null,36,13390,13750,null,null,null,null,"EWF",null,"",0,0,0,0,{"$f":"IF(Z193=0,\"\",LOOKUP(Z193,Y177:DU177,Y178:DU178))","v":""},{"$f":"IF(AA193=0,\"\",LOOKUP(AA193,Y177:DU177,Y178:DU178))","v":""},{"$f":"IF(AB193=0,\"\",LOOKUP(AB193,Y177:DU177,Y178:DU178))","v":""},{"$f":"IF(AC193=0,\"\",LOOKUP(AC193,Y177:DU177,Y178:DU178))","v":""},1,3,5,"","","","Zero"]
[null,null,null,null,null,null,null,null,null,null,null,null,null,null,null,37,13750,14175,null,null,null,null,"CM RF",null,"",0,0,0,0,{"$f":"IF(Z194=0,\"\",LOOKUP(Z194,Y177:DU177,Y178:DU178))","v":""},{"$f":"IF(AA194=0,\"\",LOOKUP(AA194,Y177:DU177,Y178:DU178))","v":""},{"$f":"IF(AB194=0,\"\",LOOKUP(AB194,Y177:DU177,Y178:DU178))","v":""},{"$f":"IF(AC194=0,\"\",LOOKUP(AC194,Y177:DU177,Y178:DU178))","v":""},1,3,5,"","","","Zero"]
[null,null,null,null,null,null,null,null,null,null,null,null,null,null,null,38,14175,14600,null,null,null,null,null,null,"",0,0,0,0,{"$f":"IF(Z195=0,\"\",LOOKUP(Z195,Y177:DU177,Y178:DU178))","v":""},{"$f":"IF(AA195=0,\"\",LOOKUP(AA195,Y177:DU177,Y178:DU178))","v":""},{"$f":"IF(AB195=0,\"\",LOOKUP(AB195,Y177:DU177,Y178:DU178))","v":""},{"$f":"IF(AC195=0,\"\",LOOKUP(AC195,Y177:DU177,Y178:DU178))","v":""},1,3,5,"","","","Zero"]
[null,null,null,null,null,null,null,null,null,null,null,null,null,null,null,39,14600,15025]
[null,null,null,null,null,null,null,null,null,null,null,null,null,null,null,40,15025,15500,null,null,null,null,"IR"]
[null,null,null,null,null,null,null,null,null,null,null,null,null,null,null,41,15500,15975,null,null,null,null,14,{"$f":"VLOOKUP(W198,W199:X217,2)","v":0.27}]
[null,null,null,null,null,null,null,null,null,null,null,null,null,null,null,42,15975,16450,null,null,null,null,1,"Not aplicable"]
[null,null,null,null,null,null,null,null,null,null,null,null,null,null,null,43,16450,16925,null,null,null,null,2,0.15]
[null,null,null,null,null,null,null,null,null,null,null,null,null,null,null,44,16925,17475,null,null,null,null,3,0.16]
[null,null,null,null,null,null,null,null,null,null,null,null,null,null,null,45,17475,18025,null,null,null,null,4,0.17]
[null,null,null,null,null,null,null,null,null,null,null,null,null,null,null,46,18025,18575,null,null,null,null,5,0.18]
[null,null,null,null,null,null,null,null,null,null,null,null,null,null,null,47,18575,19125,null,null,null,null,6,0.19]
[null,null,null,null,null,null,null,null,null,null,null,null,null,null,null,48,19125,19675,null,null,null,null,7,0.2]
[null,null,null,null,null,null,null,null,null,null,null,null,null,null,null,49,19675,20300,null,null,null,null,8,0.21]
[null,null,null,null,null,null,null,null,null,null,null,null,null,null,null,50,20300,20925,null,null,null,null,9,0.22]
[null,null,null,null,null,null,null,null,null,null,null,null,null,null,null,51,20925,21550,null,null,null,null,10,0.23]
[null,null,null,null,null,null,null,null,null,null,null,null,null,null,null,52,21550,22175,null,null,null,null,11,0.24]
[null,null,null,null,null,null,null,null,null,null,null,null,null,null,null,53,22175,22800,null,null,null,null,12,0.25]
[null,null,null,null,null,null,null,null,null,null,null,null,null,null,null,54,22800,23500,null,null,null,null,13,0.26]
[null,null,null,null,null,null,null,null,null,null,null,null,null,null,null,55,23500,24200,null,null,null,null,14,0.27]
[null,null,null,null,null,null,null,null,null,null,null,null,null,null,null,56,24200,24900,null,null,null,null,15,0.28000000000000003]
[null,null,null,null,null,null,null,null,null,null,null,null,null,null,null,57,24900,25600,null,null,null,null,16,0.28999999999999998]
[null,null,null,null,null,null,null,null,null,null,null,null,null,null,null,58,25600,26300,null,null,null,null,17,0.3]
[null,null,null,null,null,null,null,null,null,null,null,null,null,null,null,59,26300,27000,null,null,null,null,18,0.31]
[null,null,null,null,null,null,null,null,null,null,null,null,null,null,null,60,27000,27750,null,null,null,null,19,0.32]
[null,null,null,null,null,null,null,null,null,null,null,null,null,null,null,61,27750,28500]
[null,null,null,null,null,null,null,null,null,null,null,null,null,null,null,62,28500,29250]
[null,null,null,null,null,null,null,null,null,null,null,null,null,null,null,63,29250,30000]
[null,null,null,null,null,null,null,null,null,null,null,null,null,null,null,64,30000,30765]
[null,null,null,null,null,null,null,null,null,null,null,null,null,null,null,65,30765]
[null,null,null,null,null,null,null,null,null,null,null,null,null,null,null,66]

{"sheet":"Mandals list Village wise","index":2,"n_rows":44,"n_cols":1,"rows_kept":44,"cut":false,"hidden":true,"merged":[[0,0,0,10],[2,0,2,10],[1,0,1,10],[3,0,3,10],[8,0,8,10],[9,0,9,10],[4,0,4,10],[5,0,5,10],[6,0,6,10],[7,0,7,10],[10,0,10,10],[23,0,23,10],[24,0,24,10],[19,0,19,10],[12,0,12,10],[13,0,13,10],[14,0,14,10],[15,0,15,10],[11,0,11,10],[16,0,16,10],[20,0,20,10],[21,0,21,10],[22,0,22,10],[17,0,17,10],[18,0,18,10],[34,0,34,10],[25,0,25,10],[26,0,26,10],[27,0,27,10],[28,0,28,10],[29,0,29,10],[30,0,30,10],[31,0,31,10],[32,0,32,10],[33,0,33,10],[35,0,35,10],[42,0,42,10],[43,0,43,10],[36,0,36,10],[37,0,37,10],[38,0,38,10],[39,0,39,10],[40,0,40,10],[41,0,41,10]]}
["List of Mandals in Adilabad District"]
["Adilabad • Bela • Boath • Dilawarpur • Jainad • Kaddampeddur • Khanpur • Kuntala • Mamda • Narnoor • Rebbana • Talamadugu • Tiryani • Asifabad • Bellampalle • Chennur • Gudihathnur • Jainoor • Kagaz Nagar • Kotapalle • Laxmanchanda • Mancherial • Nennal • Sarangapur • Tamsi • Utnur • Bazarhathnoor • Bhainsa • Dahegaon • Ichoda • Jaipur • Kasipet • Kouthala • Lohesra • Mandamarri • Neradigonda • Sirpur (T) • Tandur • Vemanpalle • Bejjur • Bheemini • Dandepalle • Inderavelly • Jannaram • Kerameri • Kubeer • Luxettipet • Mudhole • Nirmal • Sirpur (U) • Tanur • Wankdi"]
["List of Mandals in Anantapur District"]
["Agali • Amadagur • Amarapuram • Anantapur • Atmakur • Bathalapalle • Beluguppa • Bommanahal • Brahmasamudram • Bukkapatnam • Bukkarayasamudram • Chenne Kothapalle • Chilamathur • D.Hirchal • Dharmavaram • Gandlapenta • Garladinne • Gooty • Gorantla • Gudibanda • Gummagatta • Guntakal • Hindupur • Kadiri • Kalyandurg • Kambadur • Kanaganapalle • Kanekal • Kothacheruvu • Kudair • Kundurpi • Lepakshi • Madakasira • Mudigubba • Nallacheruvu • Nallamada • Nambulipulikunta • Narpala • Obuladevaracheruvu • Pamidi • Parigi • Peddapappur • Peddavadugur • Penu Konda • Putlur • Puttaparthi • Ramagiri • Raptadu • Rayadurg • Roddam • Rolla • Settur • Singanamala • Somandepalle • Tadimarri • Tadpatri • Talupula • Tanakal • Uravakonda • Vajrakarur • Vidapanakal • Yadiki • Yellanur"]
["List of Mandals in Chittoor District"]
["B Kothakota • Baireddi Palle • Bangarupalem • Buchinaidu Khandriga • Chandragiri • Chinnagottigallu • Chittoor • Chowdepalle • Gangadhara Nellore • Gangavaram • Gudi Palle • Gudipala • Gurramkonda • Irala • K V P Puram • Kalakada • Kalikiri • Kambhamvaripalle • Karvetinagar • Kuppam • Kurabalakota • Mandanpalle • Mulakalacheruvu • Nagalapuram • Nagari • Narayanavanam • Nimmanapalle • Nindra • Pakala • Palamaner • Palasamudram • Pedda Panjani • Peddamandyam • Peddathippasamudram • Penumuru • Pichatur • Pileru • Pulicherla • Punganur • Puthalapattu • Puttur • Rama Kuppam • Ramachandrapuram • Ramasamudram • Renigunta • Rompicherla • Santhi Puram • Satyavedu • Sodam • Somala • Srikalahasti • Srirangarajapuram • Thamballapalle • Thavanampalle • Thottambedu • Tirupati Rural • Tirupati Urban • Vadamalapeta • Varadaiahpalem • Vayalpad • Veduru Kuppam • Venkatagiri Kota • Vijaya Puram • Yadamari • Yerpedu • Yerravaripalem"]
["List of Mandals in Cuddapah District"]
["Atlur • B Kodur • Badvel • Brahmamgarimattam • Chakrayapet • Chapad • Chennur (Cuddapah District) • ChinnaChowk • Chinnamandem • Chintha Kommadinne • Chitvel • Cuddapah • Duvvur • Galiveedu • Gopavaram • Jammalamadugu • Kalasapadu • Kamalapuram • Khajipet • Kodur • Kondapuram • Lakkireddipalle • Lingala • Muddanur • Mylavaram • Mydukur • Nandalur • Obulavaripalle • Peddamudium • Penagaluru • Pendlimarri • Porumamilla • Proddutur • Pulivendla • Pullampeta • Railway Koduru • Rajampet • Raju Palem • Ramapuram • Rayachoti • S Mydukur • Sambepalle • Sidhout • Simhadripuram • T Sundupalle • Thandur • Vallur • Veeraballe • Veerapunayunipalle • Vempalle • Vemula • Vontimitta • Yerraguntla"]
["List of Mandals in East Godavari District"]
["Addateegala • Ainavilli • Alamuru • Allavaram • Amalapuram • Ambajipeta • Anaparthi • Atreyapuram • Bandarulanka • Biccavolu • Devipatnam • Gandepalle • Gangavaram (East Godavari District) • Gokavaram • Gollaprolu • I Polavaram • Jaggampeta • Kadiam • Kajuluru • Kakinada (Rural) • Kakunada (Urban) • Kapileswarapuram • Karapa • Katrenikona • Kirlampudi • Korukonda • Kotananduru • Kothapalli • Kothapeta • Malikipuram • Mamidikuduru • Mandapeta • Maredumilli • Mummidivaram • P Gannavaram • Pamarru • Pedapudi • Peddapuram • Pithapuram • Prathipadu • Rajahmundry(Rural) • Rajahmundry(Urban) • Rajanagaram • Rajavommangi • Ramachandrapuram (East Godavari District) • Rampachodavaram • Rangampeta • Ravulapalem • Rayavaram • Razole • Sakhinetipalle • Samalkota • Sankhavaram • Seethanagaram • Thallarevu • Thondangi • Tuni • Uppalaguptam • Y Ramavaram • Yeleswaram"]
["List of Mandals in Guntur District"]
["Achampeta • Amaravathi • Amruthalur • Bapatla • Bellamkonda • Bhattiprolu (Guntur District) • Bollapalle • Chebrole • Cherukupalle • Chilakaluripet • Dachepalle • Duggirala • Durgi • Edlapadu • Guntur • Gurazala • Ipuru • Kakumanu • Karempudi • Karlapalem • Kollipara • Kollur • Krosuru • Machavaram • Macherla • Mangalagiri • Medikonduru • Muppalla • Nadendla • Nagaram • Nakarikallu • Narasaraopeta • Nizampatnam • Nuzendla • Pedakakani • Pedakurapadu • Pedanandipadu • Phirangipuram • Piduguralla • Pittalavanipalem • Ponnur • Prathipadu (Guntur District) • Rajupalem • Rentacrintala • Repalle • Rompicherla (Guntur District) • Sattenapalle • Savalyapuram • Tadikonda • Tenali • Thadepalle • Thullur • Tsundur • Vatticherukuru • Veldurthi • Vemuru • Vinukonda"]
["List of Mandals in Karimnagar District"]
["Bheemadevarpalle • Boinpalle • Chandurthi • Choppadandi • Dharmapuri • Dharmaram • Ellanthakunta • Gambhiraopet • Gangadhara • Gollapalle • Husnabad • Huzurabad • Ibrahimpatnam • Jagtial • Jammikunta • Julapalle • Kamalapur • Kamanpur • Karimnagar • Kataram • Kathlapur • Kesavapatnam • Kodimial • Koheda • Konaraopeta • Koratla • Mahadevpur • Malharrao • Mallapur • Mallial • Manakondur • Manthani • Medipalle • Metpalle • Mustabad • Mutharam Mahadevpur • Mutharam Manthani • Odela • Peddapalle • Pegadapalle • Raikal (KarimnagarDistrict) • Ramadugu • Ramagundam • Saidapur • Sarangapur (KarimnagarDistrict) • Sirsilla • Srirampur • Sultanabad • Thimmapur • Veenavanka • Velgatoor • Vemulawada • Yella Reddi Peta"]
["List of Mandals in Khammam District"]
["Aswapuram • Aswaraopeta • Bayyaram • Bhadrachalam • Bonakal • Burgampadu • Chandrugonda • Cherla • Chinthakani • Chintur • Dammapeta • Dummugudem • Enkuru • Garla • Gundala • Julurpad • Kalluru • Karepalli • Khammam Rural • Khammam Urban • Konijerla • Kothagudem • Kukunoor • Kunavaram • Kusumanchi • Madhira • Manuguru • Mudigonda • Mulakalapalle • Nelakondapalle • Palawancha • Penuballi • Pinapaka • Sathupalle • Singareni • Tekulapalle • Thallada • Thirumalayapalem • Vararamachandrapuram • Velairpad • Vemsoor • Venkatapuram • Wazeed • Wyra • Yellandu • Yerrupalem"]
["List of Mandals in Krishna District"]
["A Konduru • Agiripalle • Avanigadda • Bantumilli • Bapulapadu • Challapalli • Chandarlapadu • Chatrai • G Konduru • Gampalagudem • Gannavaram • Ghantasala • Gudivada • Gudlavalleru • Gudur • Ibrahimpatnam (Krishna District) • Jaggayyapeta • Kaikalur • Kalidindi • Kanchika Cherla • Kankipadu • Koduru • Kruthivennu • Machilipatnam • Mandavalli • Mopidevi • Movva • Mudinepalli • Musunuru • Mylavaram (Krishna District) • Nagayalanka • Nandigama • Nandivada • Nuzvid • Pamarru (Krishna District • Pamidimukkala • Pedana • Pedaparupudi • Penamaluru • Penuganchiprolu • Reddigudem • Thotlavalluru • Tiruvuru • Unguturu • Vatsavai • Veerullapadu • Vijayawada Rural • Vijayawada Urban • Vissannapet • Vuyyuru"]
["List of Mandals in Kurnool District"]
["Adoni • Allagadda • Alur • Aspari • Atmakur • Banaganapalle • Bandi Atmakur • Bethamcherla • Bugganipalle • C.Belagal • Chagalamarri • Chippagiri • Devanakonda • Dhone • Dornipadu • Gadivemula • Gonegandla • Gospadu • Gudur • Halaharvi • Holagunda • Jupadu Bungalow • Kallur • Kodumur • Koilkuntla • Kolimigundla • Kosigi • Kothapalle • Kowthalam • Krishnagiri • Kurnool • Maddikera East • Mahanandi • Mantralayam • Midthur • Nandavaram • Nandi Kotkur • Nandyal • Orvakal • Owk • Pagidyala • Pamulapadu • Panyam • Pattikanda • Peapally • Pedda Kadubur • Rudravaram • Sanjamala • Sirvel • Srisailam • Tuggali • Uyyalawada • Veldurthi (Kurnool District) • Velgodu • Yemmiganur"]
["List of Mandals in Mahaboobnagar District"]
["Achampeta (Mahaboobnagar District) • Addakal • Aiza • Alampur • Amangal • Amrabad • Atmakur (Mahaboobnagar District) • Balanagar • Balmoor • Bhoothpur • Bijinapalle • Bomraspeta • Chinna Chinta Kunta • Damaragidda • Devarkadara • Dhanwada • Dharur (Mahboobanagar District • Doulatabad • Farooqnagar • Gadwal • Ghanpur • Ghattu • Gopalpeta • Hanwada • Itikyal • Jadcherla • Kalwakurthy • Keshampeta • Kodair • Kodangal • Koilkonda • Kollapur • Kondurg • Kosgi • Kothakota • Kothur • Lingal • Maddur • Madgul • Maganoor • Mahbubnagar • Makthal • Maldakal • Manopadu • Midjil • Nagar Kurnool • Narayanpet • Narva • Nawabpet • Pangal • Pebbair • Peddakothapalle • Peddamandadi • Tadoor • Talakondapalle • Telkapalle • Thimmajipeta • Uppununthala • Utkoor • Vangoor • Veepangandla • Veldanda • Waddepalle • Wanaparthy"]
["List of Mandals in Medak District"]
["Alladurg • Andole • Chegunta • Chinna Kodur • Doultabad • Dubbak • Eddumailaram • Gajwel • Hathnoora • Jagdevpur • Jharasangam • Jinnaram • Kalher • Kangti • Kohir • Kondapak • Kondapur • Kowdipalle • Kulcharam • Manoor • Medak • Mirdoddi • Mulug • Munpalle • Nanganur • Narayankhed • Narsapur • Nyalkal • Papannapet • Patancheru • Pulkal • Raikode • Ramachandrapuram (Medak District) • Ramayampet • Regode • Sadasivpet • Sangareddy • Shankarampet (A) • Shankarampet (R) • Shivampet • Siddipet • Tekmal • Tupran • Wargal • Yeldurthy • Zahirabad •"]
["List of Mandals in Nalgonda District"]
["Alair • Anumula • Atmakur (M) • Atmakur (S) • Bhuvanagiri • Bibinagar • Bommalaramaram • Chandam Pet • Chandur • Chilkur • Chintha Palle • Chityala • Chivvemla • Choutuppal • Dameracherla • Devarakonda • Garide Palle • Gundala • Gundla Palle • Gurrampode • Huzurnagar • Jaji Reddi Gudem • Kangal • Kattangoor • Kethepalle • Kodad • M Turkapalle • Marri Guda • Mattampalle • Mellachervu • Miryalaguda • Mothey • Mothkur • Munagala • Munugode • Nadigudem • Nakrekal • Nalgonda • Nampalle • Narayanapur • Narketpalle • Nered Cherla • Nidamanur • Nuthankal • Pedda Adiserlapalle • Peddavura • Penpahad • Pochampalle • Rajapet • Ramannapeta • Saligouraram • Suryapet • Thipparthi • Thirumalagiri • Thripuraram • Thunga Thurthi • Valigonda • Vemulapalle • Yadagirigutta •"]
["List of Mandals in Nellore District"]
["Allur • Ananthasagaram • Anumasamudrampeta • Atmakur • Balayapalle • Bogole • Buchireddipalem • Chejerla • Chillakur • Chittamur • Dagadarthi • Dakkili • Doravarisatram • Duttalur • Gudur • Indukurpet • Jaladanki • Kaligiri • Kaluvoya • Kavali • Kodavalur • Kondapuram (Nellore District) • Kota • Kovur • Manubolu • Marripadu • Muthukur • Naidupeta • Nellore • Ojili • Pellakur • Podlakur • Rapur • Sangam • Seetharamapuram • Sullurpeta • Sydapuram • Tada • Thotapalligudur • Udayagiri • Vakadu • Varikuntapadu • Venkatachalam • Venkatagiri • Vidavalur • Vinjamur •"]
["List of Mandals in Nizamabad District"]
["Armur • Balkonda • Banswada • Bheemgal • Bhiknur • Bichkunda • Birkoor • Bodhan • Dhar Palle • Dich Palle • Domakonda • Gandhari • Jakranpalle • Jukkal • Kamareddy • Kammar Palle • Kotgiri • Lingampet • Machareddy • Madnur • Makloor • Mortad • Naga Reddipet • Nandipet • Navipet • Nizam Sagar • Nizamabad • Pitlam • Ranjal • Sadasivanagar • Sirkonda • Tadwai • Varni • Velpur • Yeda Palle • Yellareddy •"]
["List of Mandals in Prakasam District"]
[" • Ardhaveedu • Ballikuruva • Bestavaripeta • Chadrasekara Puram • Chimakurthi • Chinaganjam • Chirala • Cumbum • Darsi • Donakonda • Dornala • Gi• Gudluru • Hanumanthunipadu • Inkollu • Janakavaram Panguluru • Kandukur • Kanigiri • Karamchedu • Komarolu • Konakanamitla • Kondapi • Korisapadu • Kothapatnam • Kurichedu • Lingasamudram • Maddipadu • Markapur • Marripudi • Martur • Mundlamuru • Naguluppalapadu • Ongole • Pamur • Parchur • Pedaaraveedu • Pedacherlopalle • Podili • Ponnaluru • Pullalacheruvu • Racherla • Santhamaguluru • Santhanuthlapadu • Singarayakonda • Tangutur • Tarlapadu • Thallur • Tripuranthakam • Ulavapadu • Veligandla • Vetapalem • Voletivaripalem • Yeddanapudi • Yerragondapalem • Zarugumilli"]
["List of Mandals in Rangareddy District"]
["Balanagar • Bantaram • Basheerabad • Chevella • Dharur • Domah • Gandeed • Ghatkesar • Hayathnagar • Ibrahimpatam • Kandukur • Keesara • Kulkacharla • Maheswaram • Malkajgiri • Manchal • Marpalle • Medchal • Moinabad • Mominpet • Nawabpet(Rangareddy District) • Pargi • Peddemul • Pudur • Quthbullapur • Rajendranagar • Saroornagar • Serilingampalle • Shabad • Shamirpet • Shamshabad • Shankarpalle • Tandur (Rangareddy District) • Uppal • Vikarabad • Yacharam • Yelal •"]
["List of Mandals in Srikakulam District"]
["Amadalavalasa • Battili • Bhamini • Burja • Etcherla • Ganguvari Singadam • Kaligapatnam • Hiramandalam • Ichchapuram • Jalumuru • Kanchili • Kaviti • Kotabommili • Kothuru • Laveru • Mandasa • Meilaputti • Nandigam • Narasannapeta • Palakonda • Palasa • Pathapatnam • Polaki • Ponduru • Rajam • Ranastalam • Regidiamadalavalasa • Santhabommali • Santhakaviti • Saravakota • Sarubujjili • Seethampeta • Sompeta • Srikakulam • Tekkali • Vajrapukothuru • Vangara • Veeraghattam •"]
["List of Mandals in Visakhapatnam District"]
["Anakapalli • Anandapuram • Ananthagiri • Araku Valley • Atchutapuram • Bheemunipatnam • Butchayyapeta • Cheedikada • Chintapalle • Chodavaram • Devarapalle • Dumbriguda • Gajuwaka • Gangaraju Madugula • Golugonda • Gudem Kothaveedhi • Hukumpeta • K Kotapadu • Kasimkota • Kotauratla • Koyyuru • Madugula • Makavarapalem • Munagapaka • Munchingiputtu • Nakkapalli • Narsipatnam • Nathavaram • Paderu • Padmanabham • Paravada • Payakaraopeta • Pedabayalu • Pedagantyada • Pendurthi • Rambilli • Ravikamatham • Rolugunta • S Rayavaram • Sabbavaram • Visakhapatnam • Visakhapatnam(U) • Yelamanchili"]
["List of Mandals in Vizianagaram District"]
["Badangi • Balajipeta • Bhoghapuram • Bobbili • Bondapalle • Chintalavalasa • Cheepurupalle • Dattirajeru • Denkada • Gajapathinagaram • Gantyada • Garividi • Garugubilli • Gummalakshmipuram • Gurla • Jami • Jiyyamma Valasa • Komarada • Kothavalasa • Kurupam • Lakkavarapukota • Makkuva • Mentada • Merakamudidam • Nellimarla • Pachipenta • Parvathipuram • Pusapatirega • Ramabhadrapuram • Salur • Seethanagaram (Vizianagaram District) • Srungavarapukota • Therlam • Vepada • Vizianagaram"]
["List of Mandals in Warangal District"]
["Atmakur (Warangal District) • Bachannapeta • Bhupalpalle • Chennaraopet • Cheriyal • Chityal • Devaruppula • Dharmasagar • Dornakal • Duggondi • Eturnagaram • Geesugonda • Ghanapur • Ghanpur(Stn) • Govindaraopet • Gudur • Hanamkonda • Hasanparthy • Jangaon • Kesamudram • Khanapur • Kodakandla • Kothagudem • Kuravi • Lingala Ghanpur • Maddur (Warangal District) • Mahabubabad • Mangapet • Maripeda • Mogullapalle • Mulug (Warangal District) • Nallabelly • Narmetta • Narsampet • Narsimhulapet • Nekkonda • Nellikudur • Palakurthi • Parkal • Parvathagiri • Raghunatha Palle • Raiparthy • Regonda • Sangem • Shayampet • Tadvai • Thorrur • Venkatapur • Wardhannapet • Zaffergadh"]
["List of Mandals in West Godavari District"]
["Achanta • Akiveedu • Attili • Bheemavaram • Bhimadole • Buttayagudem • Chagallu • Chintalapudi • Denduluru • Devarapalle • Dwaraka Tirumala • Eluru • Ganapavaram • Gopalapuram • Iragavaram • Jangareddigudem • Jeelugumilli • Kalla • Kamavarapukota • Kovvur • Koyyalagudem • Lingapalem • Mogalthur • Nallajerla • Narasapuram • Nidadavole • Nidamarru • Palacole • Palakoderu • Pedapadu • Pedavegi • Pentapadu • Penugonda • Penumantra • Peravali • Poduru • Polavaram • T Narasapuram • Tadepalligudem • Tanuku • Thallapudi • Undi • Undrajavaram • Unguturu • Veeravasaram • Yelamanchili"]

{"sheet":"code2","index":3,"n_rows":48,"n_cols":103,"rows_kept":48,"cut":false,"hidden":true,"merged":[[0,3,0,4]]}
[1,"Adilabad District","Adilabad","DDO Desgn",null,1,"Sri."]
[2,"Not applicable","Ananthapur",1,"Assistant Director",2,"Smt."]
[3,"SPSR Nellore District","Nellore",2,"Deputy Director",3,"Kum."]
[4,"Chittoor District","Chittoor",3,"Deputy Educational Officer","GENDER",1,null,{"$f":"IF(G4=1,G1,IF(G4=2,G2&\"/\"&G3,G1&\"/\"&G2))","v":"Sri."}]
[5,"East Godavari District","Kakinada",4,"Deputy Inspector of Schools",null,{"$f":"LOOKUP(G4,F1:G3,G1:G3)","v":"Sri."}]
[6,"Guntur District","Guntur",5,"Gazetted H.M. Gr-I ",2,{"$f":"LOOKUP(F6,F7:G9,G7:G9)","v":"Smt."}]
[7,"Hyderabad District","Hyderabad",6,"Gazetted H.M. Gr-II ",1,"Sri."]
[8,"Kareemnagar District","Kareem Nagar",7,"Head Master",2,"Smt."]
[9,"Khammam District","Khammam",8,"Head Mistress",3,"Kum."]
[10,"Krishna District","Machilipatnam",9,"Mandal Educational Officer"]
[11,"Kurnool District","Kurnool",10,"Principal"]
[12,"Mahboobnagar District","Mahboobnagar",11,"Project Officer"]
[13,"Medak District","Sanga Reddy",12,"R.J.D.S.E."]
[14,"Nalgonda District","Nalgonda",null,null,null,null,null,{"$f":"IF(Data!$T$5=0,Code!G99,Data!$T$5)","v":"School Assistant (Maths)"}]
[15,"Nizamabad District","Nizamabad"]
[16,"Prakasham District","Ongole"]
[17,"Ranga Reddy District","Hyderabad"]
[18,"Sreekakulam District","Sreekakulam"]
[19,"Vishakapatnam District","Vishakapatnam"]
[20,"Vizianagaram District","Vizianagaram"]
[21,"Warangal District","Warangal"]
[22,"West Godavari District","Elure"]
[23,"YSR Kadapa District","Kadapa"]
[]
[null,"Not applicable"]
[null,"SPSR Nellore District"]
[null,"Chittoor District"]
[]
[]
[null,null,null,1,2,3,4,5,6,7,null,null,null,8,9,10,11,12,13,14,15,16,17,18,19,20,21,22,23,24,25,26,27,30,31,32,33,34,35,36,37,38,39,40,41,42,43,44,45,46,47,48,49,50,51,52,53,54,55,56,57,58,59,60,61,62,63,64,65,66,67,68,69,70,71,72,73,74,75,76,77,78,79,80,81,82,83,84,85,86,87,88,89,90,91,92,93,94,95,96,97,98,99]
[null,null,null,"One","Two","Three","Four","Five","Six","Seven",null,null,null,"Eight","Nine","Ten","Eleven","Twelve","Thirteen","Fourteen","Fifteen","Sixteen","Seventeen","Eighteen","Nineteen","Twenty","Twenty one","Twenty two","Twenty three","Twenty four","Twenty five","Twenty six","Twenty seven","Thirty ","Thirty one","Thirty two","Thirty three","Thirty four","Thirty five","Thirty six","Thirty seven","Thirty eight","Thirty nine","Forty ","Forty one","Forty two","Forty three","Forty four","Forty five","Forty six","Forty seven","Forty eight","Forty nine","Fifty","Fifty one","Fifty two","Fifty three","Fifty four","Fifty five","Fifty six","Fifty seven","Fifty eight","Fifty nine","sixty","Sixty one","Sixty two","Sixty three","Sixty four","Sixty five","Sixty six","Sixty seven","Sixty eight","Sixty nine","Seventy","Seventy one","Seventy two","Seventy three","Seventy four","Seventy five","Seventy six","Seventy seven","Seventy eight","Seventy nine","Eighty ","Eighty one","Eighty two","Eighty three","Eighty four","Eighty five","Eighty six","Eighty seven","Eighty eight","Eighty nine","Ninety","Ninety one","Ninety two","Ninety three","Ninety four","Ninety five","Ninety six","Ninety seven","Ninety eight","Ninety nine"]
[]
[null,"NEt",null,{"$f":"IF(C33=\"\",\"\",CONCATENATE(S33,\" rupees only\"))","v":""},{"$f":"INT(C33/100000)","v":0},{"$f":"INT(C33/1000-E33*100)","v":0},{"$f":"INT(C33/100-E33*1000-F33*10)","v":0},{"$f":"INT(C33-E33*100000-F33*1000-G33*100)","v":0},{"$f":"IF(E33=0,\"\",LOOKUP(E33,D30:CZ30,D31:CZ31))","v":""},{"$f":"IF(F33=0,\"\",LOOKUP(F33,D30:CZ30,D31:CZ31))","v":""},{"$f":"IF(G33=0,\"\",LOOKUP(G33,D30:CZ30,D31:CZ31))","v":""},{"$f":"IF(H33=0,\"\",LOOKUP(H33,D30:CZ30,D31:CZ31))","v":""},{"$f":"IF(AND(G33=0,H33=0),1,2)","v":1},{"$f":"IF(H33=0,3,4)","v":3},{"$f":"IF(OR(M33=1,N33=3),5,6)","v":5},{"$f":"IF(E33>1,\" Lakhs \",IF(E33>0,\" Lakh \",\"\"))","v":""},{"$f":"IF(F33>0,\" Thousand \",\"\")","v":""},{"$f":"IF(G33>0,\" Hundred \",\"\")","v":""},{"$f":"IF(C33=0,\"Zero\",IF(C33>0,TRIM(CONCATENATE(I33,P33,J33,Q33,K33,R33,IF(AND(C33>100,O33=6),\" and \",\"\"),L33)),\"\"))","v":"Zero"}]
[null,"Under RS",null,{"$f":"IF(C34=\"\",\"\",CONCATENATE(S34,\" rupees only\"))","v":""},{"$f":"INT(C34/100000)","v":0},{"$f":"INT(C34/1000-E34*100)","v":0},{"$f":"INT(C34/100-E34*1000-F34*10)","v":0},{"$f":"INT(C34-E34*100000-F34*1000-G34*100)","v":0},{"$f":"IF(E34=0,\"\",LOOKUP(E34,D30:CZ30,D31:CZ31))","v":""},{"$f":"IF(F34=0,\"\",LOOKUP(F34,D30:CZ30,D31:CZ31))","v":""},{"$f":"IF(G34=0,\"\",LOOKUP(G34,D30:CZ30,D31:CZ31))","v":""},{"$f":"IF(H34=0,\"\",LOOKUP(H34,D30:CZ30,D31:CZ31))","v":""},{"$f":"IF(AND(G34=0,H34=0),1,2)","v":1},{"$f":"IF(H34=0,3,4)","v":3},{"$f":"IF(OR(M34=1,N34=3),5,6)","v":5},{"$f":"IF(E34>1,\" Lakhs \",IF(E34>0,\" Lakh \",\"\"))","v":""},{"$f":"IF(F34>0,\" Thousand \",\"\")","v":""},{"$f":"IF(G34>0,\" Hundred \",\"\")","v":""},{"$f":"IF(C34=0,\"Zero\",IF(C34>0,TRIM(CONCATENATE(I34,P34,J34,Q34,K34,R34,IF(AND(C34>100,O34=6),\" and \",\"\"),L34)),\"\"))","v":"Zero"}]
[null,null,{"$f":"SUM('ADVANCE TAX'!C3:C14)","v":3000},"Three Thousand rupees only",0,3,0,0,{"$f":"IF(E35=0,\"\",LOOKUP(E35,D30:CZ30,D31:CZ31))","v":""},{"$f":"IF(F35=0,\"\",LOOKUP(F35,D30:CZ30,D31:CZ31))","v":"Three"},{"$f":"IF(G35=0,\"\",LOOKUP(G35,D30:CZ30,D31:CZ31))","v":""},{"$f":"IF(H35=0,\"\",LOOKUP(H35,D30:CZ30,D31:CZ31))","v":""},1,3,5,""," Thousand ","","Three Thousand"]
[null,null,{"$f":"'FORM 16'!K77","v":16447},{"$f":"IF(C36=\"Nil\",\"Zero only\",CONCATENATE(S36,\" rupees only\"))","v":"Sixteen Thousand Four Hundred and Forty seven rupees only"},0,16,4,47,{"$f":"IF(E36=0,\"\",LOOKUP(E36,D30:CZ30,D31:CZ31))","v":""},{"$f":"IF(F36=0,\"\",LOOKUP(F36,D30:CZ30,D31:CZ31))","v":"Sixteen"},{"$f":"IF(G36=0,\"\",LOOKUP(G36,D30:CZ30,D31:CZ31))","v":"Four"},{"$f":"IF(H36=0,\"\",LOOKUP(H36,D30:CZ30,D31:CZ31))","v":"Forty seven"},2,4,6,""," Thousand "," Hundred ","Sixteen Thousand Four Hundred and Forty seven"]
[null,null,0,null,0,0,0,0,{"$f":"IF(E37=0,\"\",LOOKUP(E37,D30:CZ30,D31:CZ31))","v":""},{"$f":"IF(F37=0,\"\",LOOKUP(F37,D30:CZ30,D31:CZ31))","v":""},{"$f":"IF(G37=0,\"\",LOOKUP(G37,D30:CZ30,D31:CZ31))","v":""},{"$f":"IF(H37=0,\"\",LOOKUP(H37,D30:CZ30,D31:CZ31))","v":""},1,3,5,"","","","Zero"]
[null,null,0,"Zero rupees only",0,0,0,0,{"$f":"IF(E38=0,\"\",LOOKUP(E38,D30:CZ30,D31:CZ31))","v":""},{"$f":"IF(F38=0,\"\",LOOKUP(F38,D30:CZ30,D31:CZ31))","v":""},{"$f":"IF(G38=0,\"\",LOOKUP(G38,D30:CZ30,D31:CZ31))","v":""},{"$f":"IF(H38=0,\"\",LOOKUP(H38,D30:CZ30,D31:CZ31))","v":""},1,3,5,"","","","Zero"]
[null,null,0,"Zero rupees only",0,0,0,0,{"$f":"IF(E39=0,\"\",LOOKUP(E39,D30:CZ30,D31:CZ31))","v":""},{"$f":"IF(F39=0,\"\",LOOKUP(F39,D30:CZ30,D31:CZ31))","v":""},{"$f":"IF(G39=0,\"\",LOOKUP(G39,D30:CZ30,D31:CZ31))","v":""},{"$f":"IF(H39=0,\"\",LOOKUP(H39,D30:CZ30,D31:CZ31))","v":""},1,3,5,"","","","Zero"]
[null,null,0,"Zero rupees only",0,0,0,0,{"$f":"IF(E40=0,\"\",LOOKUP(E40,D30:CZ30,D31:CZ31))","v":""},{"$f":"IF(F40=0,\"\",LOOKUP(F40,D30:CZ30,D31:CZ31))","v":""},{"$f":"IF(G40=0,\"\",LOOKUP(G40,D30:CZ30,D31:CZ31))","v":""},{"$f":"IF(H40=0,\"\",LOOKUP(H40,D30:CZ30,D31:CZ31))","v":""},1,3,5,"","","","Zero"]
[null,null,0,"Zero rupees only",0,0,0,0,{"$f":"IF(E41=0,\"\",LOOKUP(E41,D30:CZ30,D31:CZ31))","v":""},{"$f":"IF(F41=0,\"\",LOOKUP(F41,D30:CZ30,D31:CZ31))","v":""},{"$f":"IF(G41=0,\"\",LOOKUP(G41,D30:CZ30,D31:CZ31))","v":""},{"$f":"IF(H41=0,\"\",LOOKUP(H41,D30:CZ30,D31:CZ31))","v":""},1,3,5,"","","","Zero"]
[null,null,0,"Zero rupees only",0,0,0,0,{"$f":"IF(E42=0,\"\",LOOKUP(E42,D30:CZ30,D31:CZ31))","v":""},{"$f":"IF(F42=0,\"\",LOOKUP(F42,D30:CZ30,D31:CZ31))","v":""},{"$f":"IF(G42=0,\"\",LOOKUP(G42,D30:CZ30,D31:CZ31))","v":""},{"$f":"IF(H42=0,\"\",LOOKUP(H42,D30:CZ30,D31:CZ31))","v":""},1,3,5,"","","","Zero"]
[null,null,0,"Zero rupees only",0,0,0,0,{"$f":"IF(E43=0,\"\",LOOKUP(E43,D30:CZ30,D31:CZ31))","v":""},{"$f":"IF(F43=0,\"\",LOOKUP(F43,D30:CZ30,D31:CZ31))","v":""},{"$f":"IF(G43=0,\"\",LOOKUP(G43,D30:CZ30,D31:CZ31))","v":""},{"$f":"IF(H43=0,\"\",LOOKUP(H43,D30:CZ30,D31:CZ31))","v":""},1,3,5,"","","","Zero"]
[null,null,null,"",0,0,0,0,{"$f":"IF(E44=0,\"\",LOOKUP(E44,D30:CZ30,D31:CZ31))","v":""},{"$f":"IF(F44=0,\"\",LOOKUP(F44,D30:CZ30,D31:CZ31))","v":""},{"$f":"IF(G44=0,\"\",LOOKUP(G44,D30:CZ30,D31:CZ31))","v":""},{"$f":"IF(H44=0,\"\",LOOKUP(H44,D30:CZ30,D31:CZ31))","v":""},1,3,5,"","","","Zero"]
[null,null,0,"Zero rupees only",0,0,0,0,{"$f":"IF(E45=0,\"\",LOOKUP(E45,D30:CZ30,D31:CZ31))","v":""},{"$f":"IF(F45=0,\"\",LOOKUP(F45,D30:CZ30,D31:CZ31))","v":""},{"$f":"IF(G45=0,\"\",LOOKUP(G45,D30:CZ30,D31:CZ31))","v":""},{"$f":"IF(H45=0,\"\",LOOKUP(H45,D30:CZ30,D31:CZ31))","v":""},1,3,5,"","","","Zero"]
[null,null,0,"Zero rupees only",0,0,0,0,{"$f":"IF(E46=0,\"\",LOOKUP(E46,D30:CZ30,D31:CZ31))","v":""},{"$f":"IF(F46=0,\"\",LOOKUP(F46,D30:CZ30,D31:CZ31))","v":""},{"$f":"IF(G46=0,\"\",LOOKUP(G46,D30:CZ30,D31:CZ31))","v":""},{"$f":"IF(H46=0,\"\",LOOKUP(H46,D30:CZ30,D31:CZ31))","v":""},1,3,5,"","","","Zero"]
[null,null,0,"Zero rupees only",0,0,0,0,{"$f":"IF(E47=0,\"\",LOOKUP(E47,D30:CZ30,D31:CZ31))","v":""},{"$f":"IF(F47=0,\"\",LOOKUP(F47,D30:CZ30,D31:CZ31))","v":""},{"$f":"IF(G47=0,\"\",LOOKUP(G47,D30:CZ30,D31:CZ31))","v":""},{"$f":"IF(H47=0,\"\",LOOKUP(H47,D30:CZ30,D31:CZ31))","v":""},1,3,5,"","","","Zero"]
[null,null,null,"",0,0,0,0,{"$f":"IF(E48=0,\"\",LOOKUP(E48,D30:CZ30,D31:CZ31))","v":""},{"$f":"IF(F48=0,\"\",LOOKUP(F48,D30:CZ30,D31:CZ31))","v":""},{"$f":"IF(G48=0,\"\",LOOKUP(G48,D30:CZ30,D31:CZ31))","v":""},{"$f":"IF(H48=0,\"\",LOOKUP(H48,D30:CZ30,D31:CZ31))","v":""},1,3,5,"","","","Zero"]

{"sheet":"Data","index":4,"n_rows":127,"n_cols":65,"rows_kept":127,"cut":false,"hidden":false,"merged":[[2,40,4,42],[9,16,10,21],[14,46,19,46],[47,41,59,41],[50,16,58,16],[33,20,33,21],[42,22,42,25],[1,43,62,43],[43,40,48,40],[8,20,8,21],[60,16,60,25],[13,17,13,19],[25,22,25,25],[27,22,27,25],[45,17,45,20],[12,24,12,25],[0,14,0,42],[4,20,4,21],[5,20,5,21],[25,20,25,21],[20,20,20,21],[21,20,21,21],[3,15,8,15],[10,15,26,15],[7,17,7,19],[3,20,3,21],[11,20,11,21],[18,19,18,20],[3,22,3,23],[3,24,3,25],[7,41,40,41],[4,22,8,23],[63,14,63,42],[54,17,54,20],[43,17,43,20],[52,17,52,20],[44,23,44,25],[50,23,50,24],[58,17,58,20],[40,15,59,15],[43,22,44,22],[44,17,44,20],[42,17,42,20],[62,17,62,24],[59,17,59,20],[40,24,40,25],[58,23,58,24],[53,17,53,20],[40,16,49,16],[26,17,26,19],[45,22,45,25],[46,17,46,20],[28,20,28,21],[36,20,36,21],[37,20,38,25],[39,22,39,24],[41,24,41,25],[24,22,24,25],[26,22,26,25],[20,24,23,25],[1,13,62,13],[2,16,2,25],[40,17,40,20],[41,17,41,20],[39,16,39,21],[27,16,27,21],[28,15,38,15],[48,17,48,20],[47,17,47,20],[55,17,55,20],[56,17,56,20],[49,17,49,20],[6,20,6,21],[5,17,5,18],[4,17,4,19],[22,20,22,21],[57,17,57,20],[51,17,51,20],[8,17,8,19],[34,20,35,25],[50,17,50,20],[23,20,23,21],[24,19,24,20],[49,22,49,25],[46,22,46,25],[47,22,47,25],[48,22,48,25],[17,19,17,21],[16,18,16,19]]}
[null,null,null,null,null,null,null,null,null,null,null,null,null,null,"Join STUAP            Join STUAP              Join STUAP"]
[null,null," ",null,null,null,null,null,null,null,null,null,null,"Join STUAP       Join STUAP       Join STUAP       Join STUAP         Join STUAP              ",null,null,null,null,null,null,null,null,null,null,null,null,null,null,null,null,null,null,null,null,null,null,null,null,null,null,null,null,null,"Join STUAP       Join STUAP         Join STUAP         Join STUAP           Join STUAP        "]
[null,null," ",null,null,null,null,null,null,null,null,null,null,null,null,null,"INCOME TAX 2016-2017"]
[null,null," ",null,null,null,null,null,null,null,null,null,null,null,null,"Personal details",1,"Name of the Employee",null,1,"G.Bhasker",null,"Emp ID",null,"0830475",null,null,null,null,null,null,null,3850,10]
[null,null," ",null,null,null,null,null,null,null,null,null,null,null,null,null,2,"Other Designation type here",null,null,53,null,null,null,null,null,null,null,null,null,null,null,3950]
[null,null," ",null,null,null,null,null,null,null,null,null,null,null,null,null,null,null,null,"3. PAN NO","AKRPG8547M"]
[null,null," ",null,null,null,null,null,null,null,null,null,null,null,null,null,4,"Name of the Office",null,null,"ZPHS,Venkatagiri"]
[null,null," ",null,null,null,null,null,null,null,null,null,null,null,null,null,5,"District",null,null,3,null,null,null,null,null,null,null,null,null,null,null,null,null,null,null,null,null,null,null,null,"Enter your details in only green color cells"]
[null,null," ",null,null,null,null,null,null,null,null,null,null,null,null,null,6,"Mandal",null,null,5,null,null,null,null,null,null,null,null,null,null,null,4050,20]
[null,null," ",null,null,null,null,null,null,null,null,null,null,null,null,null,"EARNINGS",null,null,null,null,null,null,null,null,null,null,null,null,null,null,null,4150]
[null,null," ",null,null,null,null,null,null,null,null,null,null,null,null,"Earnings"]
[null,null," ",null,null,null,null,null,null,null,null,null,null,null,null,null,1,"Basic Pay as on March 2016",null,null,null,null,null,null,null,null,null,10,null,null,null,null,4260]
[null,null," ",null,null,null,null,null,null,null,null,null,null,null,null,null,2,"6/12/18/24 scale or one Extra increment",null,null,null,null,null,null,"Taxable Amount"]
[null,null," ",null,null,null,null,null,null,null,null,null,null,null,null,null,3,"Stepup benefit or one extra increment",null,null,null,null,null,null,"Gross",{"$f":"Y52","v":720026}]
[null,null,null,null,null,null,null,null,null,null,null,null,null,null,null,null,4,"Half Pay leave",null,null,"    To",null,null,null,"<1.5 laksh",150000,null,null,null,null,null,null,null,null,null,null,null,null,null,null,null,null,null,null,null,null,{"$f":"IF('INCOME TAX'!K19>=36000,\"Submit House Rent Receipt\",\"Not Submit House Rent Receipt \")","v":"Submit House Rent Receipt"}]
[null,null,null,null,null,null,null,null,null,null,null,null,null,null,null,null,5,"Loss of Pay ",null,null,"    To",null,null,null,">1.5 laksh",1440]
[null,null,null,null,null,null,null,null,null,null,null,null,null,null,null,null,6,"HRA","HRA REVISED PERCENT",null,null,"From",null,null,"Tax amount",238800]
[null,null,null,null,null,null,null,null,null,null,null,null,null,null,null,null,7,"AHRA",null,"City Compensatory Allowance(CCA)",null,null,null,null,"Tax",19447]
[null,null,null,null,null,null,null,null,null,null,null,null,null,null,null,null,8,"Rented/Own House",{"$f":"Code!P122","v":1},"Rent Paid per month",null,11800,null,{"$f":"'INCOME TAX'!K19","v":77445},"Ad. Tax",3000]
[null,null,null,null,null,null,null,null,null,null,null,null,null,null,null,null,9,"Reader allowance(RA)",null,"Special Compensatory allowance (SCA)",null,null,null,{"$f":"'INCOME TAX'!K20","v":77342},"Net Tax",16447]
[null,null,null,null,null,null,null,null,null,null,null,null,null,null,null,null,10,"Additional Increments  (AI)",null,null,null,null,null,{"$f":"'INCOME TAX'!K21","v":257032},null,null,null,null,null,null,null,null,{"$f":"4480+115","v":4595},null,null,null,null,null,null,75]
[null,null,null,null,null,null,null,null,null,null,null,null,null,null,null,null,11,"Personal Pay(PP)/Special Pay",null,null,null,null,null,null,null,null,null,null,null,null,null,null,{"$f":"AG21+115","v":4710}]
[null,null,null,null,null,null,null,null,null,null,null,null,null,null,null,null,12,"Family Planning Increment (F.P.I)"]
[null,null,null,null,null,null,null,null,null,null,null,null,null,null,null,null,13,"CA(PHA)"]
[null,null,null,null,null,null,null,null,null,null,null,null,null,null,null,null,14,"HMA",null,"HMA REVISED AMOUNT",null,null,"VISIT:http://ww.gsreddy.4-all.org",null,null,null,null,null,null,null,null,null,{"$f":"AG22+115","v":4825},null,null,null,0]
[null,null,null,null,null,null,null,null,null,null,null,null,null,null,null,null,15,"Increment Month"]
[null,null,null,null,null,null,null,null,null,null,null,null,null,null,null,null,16,"Child Education Consession"]
[null,null,null,null,null,null,null,null,null,null,null,null,null,null,null,null,"SALARY DEDUCTIONS",null,null,null,null,null,null,null,null,null,null,null,null,null,null,null,{"$f":"#REF!+125","v":{"$error":"#REF!"}},75,null,15,60]
[null,null,null,null,null,null,null,null,null,null,null,null,null,null,null,"Salary Deductions",1,"ZPPF/GPF/CPS",null,6000,"ZPPF/GPF REVISED AMOUNT",null,{"$f":"IF(Code!AB12=1,\"Not Applicable\",\"Enter amonut\")","v":"Enter amonut"},null,8000,null,null,null,null,null,null,null,{"$f":"AG28+125","v":{"$error":"#REF!"}},null,null,30,75]
[null,null,null,null,null,null,null,null,null,null,null,null,null,null,null,null,null,null,null,null,null,null,{"$f":"IF(Code!AB13=1,\"Not Applicable\",\"Enter amonut\")","v":"Enter amonut"}]
[null,null,null,null,null,null,null,null,null,null,null,null,null,null,null,null,2,"APGLI",null,1150,"APGLI REVISED",{"$f":"IF(Code!AA14=1,\"Not Applicable\",\"Enter amonut\")","v":"Enter amonut"},null,null,null,null,null,null,null,null,null,null,5470,null,null,120,null,null,null,null,null,null,null,null,null,null,null,null,null,null,null,null,null,null,null,null,null,null,null,null,null,null,null,null,{"$f":"Code!AD12","v":"ZPPF"}]
[null,null,null,null,null,null,null,null,null,null,null,null,null,null,null,null,3,"EHF",null,120,"EHF REVISED",{"$f":"IF(Code!AA15=1,\"Not Applicable\",\"Enter amonut\")","v":"Enter amonut"},null,null,null,null,null,null,null,null,null,null,5605,null,15]
[null,null,null,null,null,null,null,null,null,null,null,null,null,null,null,null,null,null,null,null,null,null,null,null,null,null,null,null,null,null,null,null,5750,null,30]
[null,null,null,null,null,null,null,null,null,null,null,null,null,null,null,null,5,"GIS",null,null,"GIS REVISED"]
[null,null,null,null,null,null,null,null,null,null,null,null,null,null,null,null,6,"EWF",null,null,"ZPPF/GPF LOAN AND FESTIVAL ADVANCE CAN NOT BE TREATED AS SAVINGS.                                 [Use Legal Pepar for print]"]
[null,null,null,null,null,null,null,null,null,null,null,null,null,null,null,null,7,"SWF"]
[null,null,null,null,null,null,null,null,null,null,null,null,null,null,null,null,8,"LIC(SALARY)",null,3018,"REVISED LIC AMOUNT",null,{"$f":"IF(Code!AC20=1,\"Not Applicable\",\"Enter amonut\")","v":"Enter amonut"},null,null,null,null,null,null,null,null,null,5895]
[null,null,null,null,null,null,null,null,null,null,null,null,null,null,null,null,9,"LIC(BYHAND)",null,null,"TOTAL DEDUCTION U/S 80C  Max. Rs 1,50,000/- + 20,000/- Infrustructure Bond, Total Rs.1,70,000/-"]
[null,null,null,null,null,null,null,null,null,null,null,null,null,null,null,null,10,"Advance Tax"]
[null,null,null,null,null,null,null,null,null,null,null,null,null,null,null,null,"NON SALARY DEDUCTIONS",null,null,null,null,null,"D.A",null,null,null,null,null,null,null,null,null,8170,null,null,"SA(SS)"]
[null,null,null,null,null,null,null,null,null,null,null,null,null,null,null,"Non salary deductions","(Below 1 laksh)           Deductions","Housing Loan Principle  (80 C)",null,null,null,null,8.9080000000000006E-2,"TO",0.1205,null,null,null,null,null,null,null,8385,null,null,"SA(PS)"]
[null,null,null,null,null,null,null,null,null,null,null,null,null,null,null,null,null,"Tuition Fee for two Children   (80 C)",null,null,null,null,null,null,null,null,null,null,null,null,null,null,8600,null,null,"SA(ENG)"]
[null,null,null,null,null,null,null,null,null,null,null,null,null,null,null,null,null,"N.S.C.                              (80 C)",null,null,null,null,"Surrender Leave DA difference claim",null,null,null,null,null,null,null,null,null,null,null,null,null,null,null,null,null,null,2]
[null,null,null,null,null,null,null,null,null,null,null,null,null,null,null,null,null,"P.L.I                                   (80 C)",null,null,null,{"$f":"698*12","v":8376},"SURRENDER\nLEAVE",null,null,null,null,null,null,null,null,null,null,null,null,null,null,null,null,null,"Arrear Earnings",1,"1 Basic"]
[null,null,null,null,null,null,null,null,null,null,null,null,null,null,null,null,null,"L.I.C(Jeevan Suraksha)",null,null,null,null,null,null,null,null,null,null,null,null,null,null,8815,null,null,"SA(TEL)",null,null,null,null,null,2,"1/2 basic"]
[null,null,null,null,null,null,null,null,null,null,null,null,null,null,null,null,null,"ING/SBI/Bajaj allianz/Reliance/ING Birla sun  life insurance",null,null,null,null,"Directly Enter in Salary Table",null,null,null,null,null,null,null,null,null,null,null,null,null,null,null,null,null,null,3,"2 basic"]
[null,null,null,null,null,null,null,null,null,null,null,null,null,null,null,null,null,"Fixed deposits for more than 5 years",null,null,null,null,"NOTIONAL INC ARREARS",null,null,null,null,null,null,null,null,null,9050,null,null,"SA(HIN)"]
[null,null,null,null,null,null,null,null,null,null,null,null,null,null,null,null,null,"PUBLIC PROVIDENT FUND (P.P.F)",null,null,null,null,"AAS ARREARS",null,null,null,null,null,null,null,null,null,9775,null,null,"GR-I TP",null,null,null,null,null,"Check and submit.I am not responsiable for any mistaktes.any doubts call.",null,null,null,null,null,null,"IR ARRears ( 3 Months)"]
[null,null,null,null,null,null,null,null,null,null,null,null,null,null,null,null,null,null,null,null,null,null,"STEPUP/Prephonement Arrears",null,null,null,null,null,null,null,null,null,10030,null,null,"GR-I HP"]
[null,null,null,null,null,null,null,null,null,null,null,null,null,null,null,null,null,null,null,null,null,null,null,null,null,null,null,null,null,null,null,null,10285,null,null,"GR-II TP",null,null,null,null,null,null,null,null,4260,"D.Lakshmidevi"]
[null,null,null,null,null,null,null,null,null,null,null,null,null,null,null,null,"(Above 1 laksh)          Examptions",null,null,null,null,null,null,"Taxable Amount",null,null,null,null,null,null,null,null,10565,null,null,"GR-II HP",null,null,null,null,null,null,null,null,4370,"M.Karunakumari"]
[null,null,null,null,null,null,null,null,null,null,null,null,null,null,null,null,null,null,null,null,null,null,null,"Gross",{"$f":"'INCOME TAX'!K15","v":720026}]
[null,null,null,null,null,null,null,null,null,null,null,null,null,null,null,null,null,"Interest on Housing loan(U/S 24(L)(VI)",null,null,null,null,null,"<1.5 laksh",{"$f":"'INCOME TAX'!O52","v":150000},null,null,null,null,null,null,null,10845,null,null,"PET",null,null,null,null,null,null,null,null,4480,"Ch.Gayatri"]
[null,null,null,null,null,null,null,null,null,null,null,null,null,null,null,null,null,"Infrastructure Bonds(Max Rs.20,000/- only)",null,null,null,null,null,">1.5 laksh",{"$f":"SUM('INCOME TAX'!K55:K61)","v":1440},null,null,null,null,null,null,null,11125,null,null,"PED",null,null,null,null,null,null,null,null,4595,"V.Vishnumohanrao"]
[null,null,null,null,null,null,null,null,null,null,null,null,null,null,null,null,null,"Donations (80 G)",null,null,null,null,null,"Tax amount",{"$f":"'INCOME TAX'!O65","v":238800},null,null,null,null,null,null,null,11440,null,null,"SGT",null,null,null,null,null,null,null,null,4710,"Ch.Seenaiah"]
[null,null,null,null,null,null,null,null,null,null,null,null,null,null,null,null,null,"Exption on PHC dependent (80DD)  (Submit Medical Certificate)",null,null,null,null,null,"Tax",{"$f":"'INCOME TAX'!$O$71","v":19447},null,null,null,null,null,null,null,11755,null,null,null,null,null,null,null,null,null,null,null,4825,"G.Uma"]
[null,null,null,null,null,null,null,null,null,null,null,null,null,null,null,null,null,"Exp. On Medical Treatment(80 DDB)",null,null,null,null,null,"Ad. Tax",{"$f":"'INCOME TAX'!$O$73","v":3000},null,null,null,null,null,null,null,12385,null,null,null,null,null,null,null,null,null,null,null,4950,"G.Saivijaya Kumar"]
[null,null,null,null,null,null,null,null,null,null,null,null,null,null,null,null,null,"interest on Education loan(80 E)",null,null,null,null,null,"Net Tax",{"$f":"'INCOME TAX'!O74","v":16447},null,null,null,null,null,null,null,12700,null,null,null,null,null,null,null,null,null,null,null,5075,"T.Subba Rao"]
[null,null,null,null,null,null,null,null,null,null,null,null,null,null,null,null,null,"Mediclaim Insurance (80 D)",null,null,null,null,null,"Johar YSR",null,null,null,null,null,null,null,null,null,null,null,null,null,null,null,null,null,null,null,null,5200,"D.Sivaramaiah"]
[null,null,null,null,null,null,null,null,null,null,null,null,null,null,null,null,null,"New section 80CCF from financial year 2010-11",null,null,null,20000]
[null,null,null,null,null,null,null,null,null,null,null,null,null,null,null,null,"PRESENTED BY GSREDDY,NELLORE.cell:9666570250",null,null,null,null,null,null,null,null,null,null,null,null,null,null,null,13030,null,null,null,null,null,null,null,null,null,null,null,5335,"G.MohanRaju"]
[null,null,null,null,null,null,null,null,null,null,null,null,null,null,null,null,null,null,null,null,null,null,null,null,null,null,null,null,null,null,null,null,15975,null,null,null,null,null,null,null,null,null,null,null,5470,"N.Bharathy"]
[null,null,null,null,null,null,null,null,null,null,null,null,null,null,null,null,null,"Thanks for using this software & visit my website https://sites.google.com/site/andrateachers/",null,null,null,null,null,null,null,null,null,null,null,null,null,null,{"$f":"AG62+475","v":16450},null,null,null,null,null,null,null,null,null,null,null,null,"P.Mallikarjuna"]
[null,null,null,null,null,null,null,null,null,null,null,null,null,null,"https://sites.google.com/site/andrateachers/",null,null,null,null,null,null,null,null,null,null,null,null,null,null,null,null,null,null,null,null,null,null,null,null,null,null,null,null,null,5605,"V.Sreenivasulu"]
[null,null,null,null,null,null,null,null,null,null,null,null,null,null,null,null,null,null,null,null,null,null,null,null,null,null,null,null,null,null,null,null,{"$f":"16925+550","v":17475},null,null,null,null,null,null,null,null,null,null,null,5750]
[null,null,null,null,null,null,null,null,null,null,null,null,null,null,null,null,null,null,null,null,null,null,null,null,null,null,null,null,null,null,null,null,{"$f":"AG65+550","v":18025},null,null,null,null,null,null,null,null,null,null,null,5895]
[null,null,null,null,null,null,null,null,null,null,null,null,null,null,null,null,null,null,null,null,null,null,null,null,null,null,null,null,null,null,null,null,{"$f":"AG66+550","v":18575},null,null,null,null,null,null,null,null,null,null,null,6040]
[null,null,null,null,null,null,null,null,null,null,null,null,null,null,null,null,null,null,null,null,null,null,null,null,null,null,null,null,null,null,null,null,{"$f":"AG67+550","v":19125},null,null,null,null,null,null,null,null,null,null,null,6195]
[null,null,null,null,null,null,null,null,null,null,null,null,null,null,null,null,null,null,null,null,null,null,null,null,null,null,null,null,null,null,null,null,{"$f":"19125+550","v":19675},null,null,null,null,null,null,null,null,null,null,null,6350]
[null,null,null,null,null,null,null,null,null,null,null,null,null,null,null,null,null,null,null,null,null,null,null,null,null,null,null,null,null,null,null,null,{"$f":"19675+625","v":20300},null,null,null,null,null,null,null,null,null,null,null,6505]
[null,null,null,null,null,null,null,null,null,null,null,null,null,null,null,null,null,null,null,null,null,null,null,null,null,null,null,null,null,null,null,null,{"$f":"AG70+625","v":20925},null,null,null,null,null,null,null,null,null,null,null,6675]
[null,null,null,null,null,null,null,null,null,null,null,null,null,null,null,null,null,null,null,null,null,null,null,null,null,null,null,null,null,null,null,null,{"$f":"AG71+625","v":21550},null,null,null,null,null,null,null,null,null,null,null,6845]
[null,null,null,null,null,null,null,null,null,null,null,null,null,null,null,null,null,null,null,null,null,null,null,null,null,null,null,null,null,null,null,null,{"$f":"AG72+625","v":22175},null,null,null,null,null,null,null,null,null,null,null,7015]
[null,null,null,null,null,null,null,null,null,null,null,null,null,null,null,null,null,null,null,null,null,null,null,null,null,null,null,null,null,null,null,null,{"$f":"22175+625","v":22800},null,null,null,null,null,null,null,null,null,null,null,7200]
[null,null,null,null,null,null,null,null,null,null,null,null,null,null,null,null,null,null,null,null,null,null,null,null,null,null,null,null,null,null,null,null,{"$f":"AG74+700","v":23500},null,null,null,null,null,null,null,null,null,null,null,7385]
[null,null,null,null,null,null,null,null,null,null,null,null,null,null,null,null,null,null,null,null,null,null,null,null,null,null,null,null,null,null,null,null,24200,null,null,null,null,null,null,null,null,null,null,null,7570]
[null,null,null,null,null,null,null,null,null,null,null,null,null,null,null,null,null,null,null,null,null,null,null,null,null,null,null,null,null,null,null,null,24900,null,null,null,null,null,null,null,null,null,null,null,7770]
[null,null,null,null,null,null,null,null,null,null,null,null,null,null,null,null,null,null,null,null,null,null,null,null,null,null,null,null,null,null,null,null,25600,null,null,null,null,null,null,null,null,null,null,null,7970]
[null,null,null,null,null,null,null,null,null,null,null,null,null,null,null,null,null,null,null,null,null,null,null,null,null,null,null,null,null,null,null,null,26300,null,null,null,null,null,null,null,null,null,null,null,8170]
[null,null,null,null,null,null,null,null,null,null,null,null,null,null,null,null,null,null,null,null,null,null,null,null,null,null,null,null,null,null,null,null,27000,null,null,null,null,null,null,null,null,null,null,null,8385]
[null,null,null,null,null,null,null,null,null,null,null,null,null,null,null,null,null,null,null,null,null,null,null,null,null,null,null,null,null,null,null,null,{"$f":"AG80+750","v":27750},null,null,null,null,null,null,null,null,null,null,null,8600]
[null,null,null,null,null,null,null,null,null,null,null,null,null,null,null,null,null,null,null,null,null,null,null,null,null,null,null,null,null,null,null,null,{"$f":"AG81+750","v":28500},null,null,null,null,null,null,null,null,null,null,null,8815]
[null,null,null,null,null,null,null,null,null,null,null,null,null,null,null,null,null,null,null,null,null,null,null,null,null,null,null,null,null,null,null,null,{"$f":"AG82+750","v":29250},null,null,null,null,null,null,null,null,null,null,null,9050]
[null,null,null,null,null,null,null,null,null,null,null,null,null,null,null,null,null,null,null,null,null,null,null,null,null,null,null,null,null,null,null,null,{"$f":"AG83+750","v":30000},null,null,null,null,null,null,null,null,null,null,null,9285]
[null,null,null,null,null,null,null,null,null,null,null,null,null,null,null,null,null,null,null,null,null,null,null,null,null,null,null,null,null,null,null,null,{"$f":"AG84+765","v":30765},null,null,null,null,null,null,null,null,null,null,null,9520]
[null,null,null,null,null,null,null,null,null,null,null,null,null,null,null,null,null,null,null,null,null,null,null,null,null,null,null,null,null,null,null,null,null,null,null,null,null,null,null,null,null,null,null,null,9775]
[null,null,null,null,null,null,null,null,null,null,null,null,null,null,null,null,null,null,null,null,null,null,null,null,null,null,null,null,null,null,null,null,null,null,null,null,null,null,null,null,null,null,null,null,10030]
[null,null,null,null,null,null,null,null,null,null,null,null,null,null,null,null,null,null,null,null,null,null,null,null,null,null,null,null,null,null,null,null,null,null,null,null,null,null,null,null,null,null,null,null,10285]
[null,null,null,null,null,null,null,null,null,null,null,null,null,null,null,null,null,null,null,null,null,null,null,null,null,null,null,null,null,null,null,null,null,null,null,null,null,null,null,null,null,null,null,null,10565]
[null,null,null,null,null,null,null,null,null,null,null,null,null,null,null,null,null,null,null,null,null,null,null,null,null,null,null,null,null,null,null,null,null,null,null,null,null,null,null,null,null,null,null,null,10845]
[null,null,null,null,null,null,null,null,null,null,null,null,null,null,null,null,null,null,null,null,null,null,null,null,null,null,null,null,null,null,null,null,null,null,null,null,null,null,null,null,null,null,null,null,11125]
[null,null,null,null,null,null,null,null,null,null,null,null,null,null,null,null,null,null,null,null,null,null,null,null,null,null,null,null,null,null,null,null,null,null,null,null,null,null,null,null,null,null,null,null,11440]
[null,null,null,null,null,null,null,null,null,null,null,null,null,null,null,null,null,null,null,null,null,null,null,null,null,null,null,null,null,null,null,null,null,null,null,null,null,null,null,null,null,null,null,null,11755]
[null,null,null,null,null,null,null,null,null,null,null,null,null,null,null,null,null,null,null,null,null,null,null,null,null,null,null,null,null,null,null,null,null,null,null,null,null,null,null,null,null,null,null,null,12070]
[null,null,null,null,null,null,null,null,null,null,null,null,null,null,null,null,null,null,null,null,null,null,null,null,null,null,null,null,null,null,null,null,null,null,null,null,null,null,null,null,null,null,null,null,12385]
[null,null,null,null,null,null,null,null,null,null,null,null,null,null,null,null,null,null,null,null,null,null,null,null,null,null,null,null,null,null,null,null,null,null,null,null,null,null,null,null,null,null,null,null,12700]
[null,null,null,null,null,null,null,null,null,null,null,null,null,null,null,null,null,null,null,null,null,null,null,null,null,null,null,null,null,null,null,null,null,null,null,null,null,null,null,null,null,null,null,null,13030]
[null,null,null,null,null,null,null,null,null,null,null,null,null,null,null,null,null,null,null,null,null,null,null,null,null,null,null,null,null,null,null,null,null,null,null,null,null,null,null,null,null,null,null,null,13390]
[null,null,null,null,null,null,null,null,null,null,null,null,null,null,null,null,null,null,null,null,null,null,null,null,null,null,null,null,null,null,null,null,null,null,null,null,null,null,null,null,null,null,null,null,13750]
[null,null,null,null,null,null,null,null,null,null,null,null,null,null,null,null,null,null,null,null,null,null,null,null,null,null,null,null,null,null,null,null,null,null,null,null,null,null,null,null,null,null,null,null,14175]
[null,null,null,null,null,null,null,null,null,null,null,null,null,null,null,null,null,null,null,null,null,null,null,null,null,null,null,null,null,null,null,null,null,null,null,null,null,null,null,null,null,null,null,null,14600]
[null,null,null,null,null,null,null,null,null,null,null,null,null,null,null,null,null,null,null,null,null,null,null,null,null,null,null,null,null,null,null,null,null,null,null,null,null,null,null,null,null,null,null,null,15025]
[null,null,null,null,null,null,null,null,null,null,null,null,null,null,null,null,null,null,null,null,null,null,null,null,null,null,null,null,null,null,null,null,null,null,null,null,null,null,null,null,null,null,null,null,15500]
[null,null,null,null,null,null,null,null,null,null,null,null,null,null,null,null,null,null,null,null,null,null,null,null,null,null,null,null,null,null,null,null,null,null,null,null,null,null,null,null,null,null,null,null,15975]
[null,null,null,null,null,null,null,null,null,null,null,null,null,null,null,null,null,null,null,null,null,null,null,null,null,null,null,null,null,null,null,null,null,null,null,null,null,null,null,null,null,null,null,null,16450]
[null,null,null,null,null,null,null,null,null,null,null,null,null,null,null,null,null,null,null,null,null,null,null,null,null,null,null,null,null,null,null,null,null,null,null,null,null,null,null,null,null,null,null,null,16925]
[null,null,null,null,null,null,null,null,null,null,null,null,null,null,null,null,null,null,null,null,null,null,null,null,null,null,null,null,null,null,null,null,null,null,null,null,null,null,null,null,null,null,null,null,17475]
[null,null,null,null,null,null,null,null,null,null,null,null,null,null,null,null,null,null,null,null,null,null,null,null,null,null,null,null,null,null,null,null,null,null,null,null,null,null,null,null,null,null,null,null,18025]
[null,null,null,null,null,null,null,null,null,null,null,null,null,null,null,null,null,null,null,null,null,null,null,null,null,null,null,null,null,null,null,null,null,null,null,null,null,null,null,null,null,null,null,null,18575]
[null,null,null,null,null,null,null,null,null,null,null,null,null,null,null,null,null,null,null,null,null,null,null,null,null,null,null,null,null,null,null,null,null,null,null,null,null,null,null,null,null,null,null,null,19125]
[null,null,null,null,null,null,null,null,null,null,null,null,null,null,null,null,null,null,null,null,null,null,null,null,null,null,null,null,null,null,null,null,null,null,null,null,null,null,null,null,null,null,null,null,19675]
[null,null,null,null,null,null,null,null,null,null,null,null,null,null,null,null,null,null,null,null,null,null,null,null,null,null,null,null,null,null,null,null,null,null,null,null,null,null,null,null,null,null,null,null,20300]
[null,null,null,null,null,null,null,null,null,null,null,null,null,null,null,null,null,null,null,null,null,null,null,null,null,null,null,null,null,null,null,null,null,null,null,null,null,null,null,null,null,null,null,null,20925]
[null,null,null,null,null,null,null,null,null,null,null,null,null,null,null,null,null,null,null,null,null,null,null,null,null,null,null,null,null,null,null,null,null,null,null,null,null,null,null,null,null,null,null,null,21550]
[null,null,null,null,null,null,null,null,null,null,null,null,null,null,null,null,null,null,null,null,null,null,null,null,null,null,null,null,null,null,null,null,null,null,null,null,null,null,null,null,null,null,null,null,22175]
[null,null,null,null,null,null,null,null,null,null,null,null,null,null,null,null,null,null,null,null,null,null,null,null,null,null,null,null,null,null,null,null,null,null,null,null,null,null,null,null,null,null,null,null,22800]
[null,null,null,null,null,null,null,null,null,null,null,null,null,null,null,null,null,null,null,null,null,null,null,null,null,null,null,null,null,null,null,null,null,null,null,null,null,null,null,null,null,null,null,null,23500]
[null,null,null,null,null,null,null,null,null,null,null,null,null,null,null,null,null,null,null,null,null,null,null,null,null,null,null,null,null,null,null,null,null,null,null,null,null,null,null,null,null,null,null,null,24200]
[null,null,null,null,null,null,null,null,null,null,null,null,null,null,null,null,null,null,null,null,null,null,null,null,null,null,null,null,null,null,null,null,null,null,null,null,null,null,null,null,null,null,null,null,24900]
[null,null,null,null,null,null,null,null,null,null,null,null,null,null,null,null,null,null,null,null,null,null,null,null,null,null,null,null,null,null,null,null,null,null,null,null,null,null,null,null,null,null,null,null,25600]
[null,null,null,null,null,null,null,null,null,null,null,null,null,null,null,null,null,null,null,null,null,null,null,null,null,null,null,null,null,null,null,null,null,null,null,null,null,null,null,null,null,null,null,null,26300]
[null,null,null,null,null,null,null,null,null,null,null,null,null,null,null,null,null,null,null,null,null,null,null,null,null,null,null,null,null,null,null,null,null,null,null,null,null,null,null,null,null,null,null,null,27000]
[null,null,null,null,null,null,null,null,null,null,null,null,null,null,null,null,null,null,null,null,null,null,null,null,null,null,null,null,null,null,null,null,null,null,null,null,null,null,null,null,null,null,null,null,27750]
[null,null,null,null,null,null,null,null,null,null,null,null,null,null,null,null,null,null,null,null,null,null,null,null,null,null,null,null,null,null,null,null,null,null,null,null,null,null,null,null,null,null,null,null,28500]
[null,null,null,null,null,null,null,null,null,null,null,null,null,null,null,null,null,null,null,null,null,null,null,null,null,null,null,null,null,null,null,null,null,null,null,null,null,null,null,null,null,null,null,null,29250]
[null,null,null,null,null,null,null,null,null,null,null,null,null,null,null,null,null,null,null,null,null,null,null,null,null,null,null,null,null,null,null,null,null,null,null,null,null,null,null,null,null,null,null,null,30000]
[null,null,null,null,null,null,null,null,null,null,null,null,null,null,null,null,null,null,null,null,null,null,null,null,null,null,null,null,null,null,null,null,null,null,null,null,null,null,null,null,null,null,null,null,30765]

{"sheet":"INCOME TAX","index":5,"n_rows":90,"n_cols":32,"rows_kept":90,"cut":false,"hidden":false,"merged":[[21,1,21,4],[60,2,60,7],[77,3,77,4],[78,3,78,4],[79,3,79,4],[76,5,76,7],[77,5,77,7],[78,5,78,7],[79,5,79,7],[74,3,75,4],[18,12,18,13],[19,12,19,13],[18,6,18,7],[81,9,81,10],[32,5,32,7],[80,5,80,7],[74,5,75,7],[1,1,1,14],[17,12,17,13],[2,4,2,5],[2,7,2,10],[3,4,3,14],[5,9,5,14],[4,9,4,14],[89,1,89,14],[75,1,75,2],[31,3,31,5],[48,3,48,7],[49,3,49,7],[59,3,59,7],[50,3,50,7],[87,7,87,14],[87,1,87,3],[86,3,86,14],[85,3,85,14],[82,1,82,2],[76,3,76,4],[80,3,80,4],[26,16,26,18],[73,16,73,21],[64,4,64,5],[67,2,67,4],[63,2,63,5],[64,6,64,11]]}
[]
[null,{"$f":"CONCATENATE(\"INCOME TAX RETURN FOR THE YEAR \",RIGHT(Data!Q3,10))","v":"INCOME TAX RETURN FOR THE YEAR  2016-2017"}]
[null,1,"Name of the Employee                 ",null,{"$f":"CONCATENATE(\":\",code2!G5,Data!U4)","v":":Sri.G.Bhasker"},null,null,"Employee Treasury ID",null,null,null,null,{"$f":"\":\"&Data!Y4","v":":0830475"},null,null,null,null,null,null,null,null,null,null,null,null,null,null,null,null,"Gross amount",null,{"$f":"O17","v":720026}]
[null,2,"Desigation & Address   ",null,{"$f":"\":\"&Designation&\",\"&Data!U7&\",\"&IF(Mandals!Z1=Mandals!Z8,\" \",CONCATENATE(Mandals!AA2,\" Mandal\"))&\",\"&Mandals!Z1&\".\"","v":":School Assistant (Maths),ZPHS,Venkatagiri,Venkatagiri  Mandal,Nellore District."}]
[null,3,{"$f":"\"Income Tax No.(PAN) if already alloted\"","v":"Income Tax No.(PAN) if already alloted"},null,null,{"$f":"\":\"&Data!U6","v":":AKRPG8547M"},null,null,{"$f":"IF(J5=0,0,\":\")","v":0},null,null,null,null,null,null,null,null,null,null,null,null,null,null,null,null,null,null,null,null,"HRA",null,{"$f":"O22","v":77342}]
[null,3,"Income Tax No.(PAN) if already alloted.",null,null,null,null,null,{"$f":"IF(J6=0,0,\":\")","v":":"},{"$f":"Data!U6","v":"AKRPG8547M"}]
[null,4,"Income Receipts For The Year"]
[null,null,"a)","Pay",null,null,null,null,":","Rs.",{"$f":"'SALARY TABLE'!$C$30","v":534100}]
[null,null,"b)","Personal pay/H.M.A/AI/CA/FPI",null,null,null,null,{"$f":"IF(K9=0,0,\":\")","v":0},{"$f":"IF(K9=0,0,\"Rs.\")","v":0},{"$f":"'SALARY TABLE'!I30+'SALARY TABLE'!L30+'SALARY TABLE'!M30+'SALARY TABLE'!N30+'SALARY TABLE'!P30","v":0}]
[null,null,"c)","Dearness Allowance(D.A)",null,null,null,null,":","Rs.",{"$f":"'SALARY TABLE'!$E$30","v":108481}]
[null,null,"d)","House Rent Allowance",null,null,null,null,":","Rs.",{"$f":"'SALARY TABLE'!$F$30","v":77445}]
[null,null,"e)","I.R",null,null,null,null,{"$f":"IF(K12=0,0,\":\")","v":0},{"$f":"IF(K12=0,0,\"Rs.\")","v":0},{"$f":"'SALARY TABLE'!H30","v":0}]
[null,null,"f )","Child Education Consession",null,null,null,null,{"$f":"IF(K13=0,0,\":\")","v":0},{"$f":"IF(K13=0,0,\"Rs.\")","v":0},{"$f":"'SALARY TABLE'!Q24","v":0}]
[null,null,"g)","others(F.P.I/C.A/SCA/RA/CCA etc)",null,null,null,null,{"$f":"IF(K14=0,0,\":\")","v":0},{"$f":"IF(K14=0,0,\"Rs.\")","v":0},{"$f":"Data!$Z$47+Data!$Z$48+'SALARY TABLE'!G30+'SALARY TABLE'!J30+'SALARY TABLE'!O30+'SALARY TABLE'!K30","v":0}]
[null,5,"Gross salary(a+b+c+d+e+f+g)",null,null,null,null,null,":","Rs.",{"$f":"SUM(K8:K14)","v":720026}]
[null,6,"Income from other sources",null,null,null,null,null,{"$f":"IF(K16=0,0,\":\")","v":0},{"$f":"IF(K16=0,0,\"Rs.\")","v":0},0]
[null,7,"Gross Total income(5+6)",null,null,null,null,null,null,null,null,null,":","Rs.",{"$f":"K15+K16","v":720026}]
[null,8,"House rent allowance ",null,null,null,null,"vis 10(2A),13(A)",null,null,null,null,"(Pay+DA)*10%",null,{"$f":"ROUND((K8+K10)*10%,0)","v":64258}]
[null,null,"a)","Actual House Rent received",null,{"$f":"IF(Data!V19*12>=100000,\"House owners PAN No\",0)","v":"House owners PAN No"},null,null,":","Rs.",{"$f":"'SALARY TABLE'!$F$30","v":77445},null,"Per month * 12",null,{"$f":"Code!R123*12","v":141600}]
[null,null,"b)",{"$f":"\"Excess of house rent received over & above of 10% of (Pay+DA)\"&IF(K20=\"Nil\",\" \",\" per month Rs.\"&Data!V19)","v":"Excess of house rent received over & above of 10% of (Pay+DA) per month Rs.11800"},null,null,null,null,":","Rs.",{"$f":"IF(Code!P122=2,\"Nil\",ABS(Code!R123*12-ROUND((K8+K10)*10%,0)))","v":77342},null,"Difference",null,{"$f":"ABS(Code!R123*12-ROUND((K8+K10)*10%,0))","v":77342}]
[null,null,"c)","40% of (Pay+DA)",null,null,null,null,":","Rs.",{"$f":"ROUND(0.4*(K8+K10),0)","v":257032},null,null,null,{"$f":"IF(O22=0,0,\":\")","v":":"}]
[null,"(deduct (a) or (b) or (c) which ever less)          ",null,null,null,null,null,null,null,null,null,null,null,{"$f":"IF(O22=0,0,\"Rs.\")","v":"Rs."},{"$f":"IF(Code!P122=2,\"Nil\",IF(K19>K20,K20,IF(K19>K21,K21,K19)))","v":77342}]
[null,9,"Net Salary Income (7-8)",null,null,null,null,null,null,null,null,null,":","Rs.",{"$f":"IF(Code!P122=1,O17-SMALL(K19:K21,1),O17)","v":642684}]
[null,10,"Deductions"]
[null,null,"Professional Tax u/s 16 III",null,null,null,null,null,null,null,null,null,":","Rs.",{"$f":"'SALARY TABLE'!$W$30","v":2400}]
[null,null,"Special/conveyance/traveling allowance",null,null,null,null,null,null,null,null,null,{"$f":"IF(O26=0,0,\":\")","v":0},{"$f":"IF(O26=0,0,\"Rs.\")","v":0},0]
[null,11,"Net Salary Income (9-10)",null,null,null,null,null,null,null,null,null,":","Rs.",{"$f":"O23-O25","v":640284},null,"Income Tax Slab for F.Y. 2014-2015"]
[null,12,"Deductions Under Chapter VI - A",null,null,null,null,null,null,null,null,null,null,null,null,null,"MALE/FEMALE","Below 60 years"]
[null,null,"a)","C.M. Relief Fund ",null,null,null,null,{"$f":"IF(K29=0,0,\":\")","v":0},{"$f":"IF(K29=0,0,\"Rs.\")","v":0},{"$f":"'SALARY TABLE'!Y10+'SALARY TABLE'!Y13","v":0},null,null,null,null,null,"From","To","Rate"]
[null,null,"b)","Housing Loan Interst",null,null,null,null,{"$f":"IF(K30=0,0,\":\")","v":0},{"$f":"IF(K30=0,0,\"Rs.\")","v":0},{"$f":"IF(Data!V53>=200000,200000,Data!V53)","v":0},null,null,null,null,null,0,250000,"No Tax"]
[null,null,"c)","T.W.F/E.W.F/S.W.F and flag day",null,null,null,null,{"$f":"IF(K31=0,0,\":\")","v":":"},{"$f":"IF(K31=0,0,\"Rs.\")","v":"Rs."},{"$f":"'SALARY TABLE'!$Y$5+'SALARY TABLE'!Y14","v":40},null,null,null,null,null,250001,500000,0.1]
[null,null,"d)","Exemption from conveyance allowance u/s.10(14)(i)",null,null,null,null,{"$f":"IF(K32=0,0,\":\")","v":0},{"$f":"IF(K32=0,0,\"Rs.\")","v":0},{"$f":"'SALARY TABLE'!P30","v":0},null,null,null,null,null,500001,1000000,0.2]
[null,null,null,"Total",null,"(a+b+c+d)",null,null,null,null,null,null,":","Rs.",{"$f":"K29+K30+K31+K32","v":40},null,"1000001 onwards",null,0.3]
[null,13,"Net Salary Income (11-12)",null,null,null,null,null,null,null,null,null,":","Rs.",{"$f":"O27-O33","v":640244}]
[null,14,"Deductions Under Section 80 C.C.E"]
[null,null,"a)","L.I.C",null,null,null,null,{"$f":"IF(K36=0,0,\":\")","v":":"},{"$f":"IF(K36=0,0,\"Rs.\")","v":"Rs."},{"$f":"'SALARY TABLE'!T30","v":36216}]
[null,null,"b)","L.I.C(Personal)",null,null,null,null,0,0,{"$f":"Data!T38","v":0}]
[null,null,"c)","P.L.I",null,null,null,null,":","Rs.",{"$f":"Data!V44","v":8376}]
[null,null,"d)",{"$f":"\"G.I.S per Month Rs.\"&Code!J157","v":"G.I.S per Month Rs.60"},null,null,null,null,":","Rs.",{"$f":"'SALARY TABLE'!S30","v":720}]
[null,null,"e)",{"$f":"\"A.P.G.L.I.S per Month Rs.\"&Data!T31","v":"A.P.G.L.I.S per Month Rs.1150"},null,null,null,null,":","Rs.",{"$f":"'SALARY TABLE'!U30","v":13800}]
[null,null,"f)",{"$f":"Code!AD12&\" per Month Rs.\"&Data!T29","v":"ZPPF per Month Rs.6000"},null,null,null,null,":","Rs.",{"$f":"'SALARY TABLE'!R30","v":109996}]
[null,null,"g)","CSS",null,null,null,null,0,0]
[null,null,"h)","N.S.E",null,null,null,null,0,0,{"$f":"Data!V43","v":0}]
[null,null,"i)","Tution Fee",null,null,null,null,0,0,{"$f":"Data!V42","v":0}]
[null,null,"j)","Houseing Loan Principle",null,null,null,null,0,0,{"$f":"Data!V41","v":0}]
[null,null,"k)",{"$f":"Data!R47","v":"Fixed deposits for more than 5 years"},null,null,null,null,0,0,{"$f":"Data!V47","v":0}]
[null,null,"l)","L.I.C(Jeevan Suraksha)",null,null,null,null,0,0,{"$f":"Data!V45","v":0}]
[null,null,"m)",{"$f":"Data!R46","v":"ING/SBI/Bajaj allianz/Reliance/ING Birla sun  life insurance"},null,null,null,null,0,0,{"$f":"Data!V46","v":0}]
[null,null,"n)","P.P.F",null,null,null,null,0,0,{"$f":"Data!V48","v":0}]
[null,null,{"$f":"IF(D50>0,\"g)\",0)","v":0},{"$f":"Data!R49","v":0},null,null,null,null,0,0,{"$f":"Data!V49","v":0}]
[null,null,{"$f":"IF(D51>0,\"g)\",0)","v":0},{"$f":"Data!R50","v":0},null,null,null,null,0,0,{"$f":"Data!V50","v":0}]
[null,15,"Total (a+b+c+d+e+f+g+h+i+j+k+l+m+n+o+p)",null,null,null,null,null,":","Rs.",{"$f":"SUM(K36:K51)","v":169108},null,":","Rs.",{"$f":"IF(K52<=150000,K52,150000)","v":150000}]
[null,16,"Taxable Income(14-15)",null,null,null,null,null,null,null,null,null,":","Rs.",{"$f":"IF(SUM(K36:K51)>150000,O34-150000,O34-O52)","v":490244}]
[null,17,"Taxable income after deductions of savings"]
[null,null,"a)",{"$f":"Data!R55","v":"Donations (80 G)"},null,null,null,null,{"$f":"IF(K55=0,0,\":\")","v":0},{"$f":"IF(K55=0,0,\"Rs.\")","v":0},{"$f":"Data!V55","v":0}]
[null,null,"b)",{"$f":"Data!R56","v":"Exption on PHC dependent (80DD)  (Submit Medical Certificate)"},null,null,null,null,0,0,{"$f":"Data!V56","v":0}]
[null,null,"c)",{"$f":"Data!R57","v":"Exp. On Medical Treatment(80 DDB)"},null,null,null,null,0,0,{"$f":"Data!V57","v":0}]
[null,null,"d)",{"$f":"Data!R58","v":"interest on Education loan(80 E)"},null,null,null,null,0,0,{"$f":"Data!V58","v":0}]
[null,null,"e)",{"$f":"Data!R59","v":"Mediclaim Insurance (80 D)"},null,null,null,null,0,0,{"$f":"Data!V59","v":0},null,null,null,null,null,null,null,null,null,null,null,null,null,null,null,null,null,null,"Income Tax Slabs 2009/2010 for Men"]
[null,null,"f)",{"$f":"Data!R54","v":"Infrastructure Bonds(Max Rs.20,000/- only)"},null,null,null,null,0,0,{"$f":"Data!V54","v":0}]
[null,null,"g) EHF (80D)",null,null,null,null,null,":","Rs.",{"$f":"IF(C61=\"g) EHF (80D)\",'SALARY TABLE'!V30,0)","v":1440}]
[null,18,"Total (a+b+c+d+e+f+g+h)",null,null,null,null,null,null,null,null,null,{"$f":"IF(O62=0,0,\":\")","v":":"},{"$f":"IF(O62=0,0,\"Rs.\")","v":"Rs."},{"$f":"SUM(K55:K61)","v":1440},null,null,null,null,null,null,null,null,null,null,null,null,null,null,"Income: upto 1.6 lacs","NO TAX"]
[null,19,"Tax Payble income(16-18)",null,null,null,null,null,null,null,null,null,":","Rs.",{"$f":"IF(O53<O62,\"Nil\",O53-O62)","v":488804},null,null,null,null,null,null,null,null,null,null,null,null,null,null,"Income : 1.6 lacs to 3 lacs",0.1]
[null,20,{"$f":"CONCATENATE(\"No Tax for income upto Rs.\",O64)","v":"No Tax for income upto Rs.250000"},null,null,null,null,{"$f":"IF((O63-O64)<0,\"Nil\",O63-O64)","v":238804},null,null,null,null,":","Rs.",{"$f":"IF(code2!G4=1,250000,IF(code2!G4=2,250000,250000))","v":250000}]
[null,21,"Final Taxable amount",null,{"$f":"\"(Rounded off nerest 10)\"","v":"(Rounded off nerest 10)"},null,{"$f":" \"(Taxable Amount(19-20)=Rs.\"&O63-O64&\")\"","v":"(Taxable Amount(19-20)=Rs.238804)"},null,null,null,null,null,":","Rs.",{"$f":"IF(H64=\"Nil\",\"Nil\",ROUND(IF((O63-O64)<0,\"Nil\",O63-O64),-1))","v":238800}]
[null,22,"Tax(see note)",null,null,null,null,null,null,null,null,null,":","Rs.",{"$f":"IF(O65=\"Nil\",\"Nil\",tax)","v":23880},null,null,null,null,null,null,null,null,null,null,null,null,null,null,"Income : 3 lacs to 5 lacs",0.2]
[null,23,"Tax examption(See: S.No:19 not greater than 5 laksh,examption tax Rs.5000) Rule 87A",null,null,null,null,null,null,null,null,null,":","Rs.",{"$f":"IF(OR(O65=\"Nil\"),\"Nil\",IF(O63<=500000,5000,\"Nil\"))","v":5000}]
[null,24,"Tax Payable (22)-(23)",null,null,null,null,null,null,null,{"$f":"IF(OR(O65=\"Nil\"),\"Nil\",IF(O67=\"Nil\",O66,O66-O67))","v":18880},null,":","Rs.",{"$f":"IF(K68=\"Nil\",\"Nil\",IF(K68>0,K68,\"Nil\"))","v":18880}]
[null,25,"Education cess(2%)",null,null,null,null,null,null,null,null,null,":","Rs.",{"$f":"IF(OR(O65=\"Nil\",K68=\"Nil\",K68<0),\"Nil\",ROUND((K68*2/100),0))","v":378},null,null,null,null,null,null,null,null,null,null,null,null,null,null,"Income : above 5 lacs",0.3]
[null,26,"Secondary & Higher Education cess(1%)",null,null,null,null,null,null,null,null,null,null,"Rs.",{"$f":"IF(OR(O65=\"Nil\",K68=\"Nil\",K68<0),\"Nil\",ROUND(K68/100,0))","v":189}]
[null,27,"Tax to be paid",null,null,null,null,null,null,null,null,null,":","Rs.",{"$f":"IF(OR(O65=\"Nil\",K68=\"Nil\",K68<0),\"Nil\",SUM(O68:O70))","v":19447},null,null,null,null,null,null,null,null,null,null,null,null,null,null,"Income Tax Slabs 2009/2010 or Women"]
[]
[null,28,"Advance tax paid",null,null,null,null,null,null,null,null,null,":","Rs.",{"$f":"IF(OR(O66=\"Nil\",K68=\"Nil\",'ADVANCE TAX'!B3=\"Not Applicable\"),\"Nil\",IF('SALARY TABLE'!X30=0,\"Nil\",SUM('ADVANCE TAX'!C3:C14)))","v":3000}]
[null,29,"Net TAX Payable",null,null,null,null,null,null,null,null,null,":","Rs.",{"$f":"IF(OR(O63=\"Nil\",O65=\"Nil\",O68=\"Nil\"),\"Nil\",IF(OR(O67=5000,O67=\"Nil\"),IF(O73=\"Nil\",O71,O71-O73)))","v":16447}]
[null,null,null,"Annual Income",null,"Men/Women below 60 years"]
[null,"Note:",null,null,null,null,null,null,null,null,null,null,null,null,null,null,null,null,null,null,null,null,null,null,null,null,null,null,null,"Income : upto 1.9 lacs","NO TAX"]
[null,null,null,"Below 2,50,000",null,"No Tax",null,null,null,null,null,null,null,null,null,null,null,null,null,null,null,null,null,null,null,null,null,null,null,"Income : 1.9 lacs to 3 lacs",0.1]
[null,null,null,"2,50,001-5,00,000",null,0.1,null,null,null,null,null,null,null,null,null,null,null,null,null,null,null,null,null,null,null,null,null,null,null,"Income : 3 lacs to 5 lacs",0.2]
[null,null,null,"5,00,001-10,00,000",null,0.2,null,null,null,null,null,null,null,null,null,null,null,null,null,null,null,null,null,null,null,null,null,null,null,"Income : above 5 lacs",0.3]
[null,null,null,"5,00,001 -10,00,000",null,0.2]
[null,null,null,"10,00,000 above",null,0.3,null,null,null,null,null,null,null,null,null,null,null,null,null,null,null,null,null,null,null,null,null,null,null,"Income Tax slabs 2009/2010 for Senior Citizen"]
[null,null,null,null,null,null,null,null,null,null,null,null,null,null,null,null,null,null,null,null,null,null,null,null,null,null,null,null,null,"Income : upto 2.4 lacs","NO TAX"]
[null,"Note:",null,"1.Deduct savings amount(col. No. 14) from taxable income Under section 80 C.C.E (Limit Rs.150000)    ",null,null,null,null,null,null,null,null,null,null,null,null,null,null,null,null,null,null,null,null,null,null,null,null,null,"Income : 2.4 lacs to 3 lacs",0.1]
[null,null,null,"2.Penalty u/s. 271F: Failure to furnish a return of income as required u/s.139 before the end of the relevant assessment",null,null,null,null,null,null,null,null,null,null,null,null,null,null,null,null,null,null,null,null,null,null,null,null,null,"Income : 3 lacs to 5 lacs",0.2]
[null,null,null," year shall entail the assessee liable for a penalty of Rs.5,000-00",null,null,null,null,null,null,null,null,null,null,null,null,null,null,null,null,null,null,null,null,null,null,null,null,null,"Income : above 5 lacs",0.3]
[]
[]
[null,"COUNTER SIGNED",null,null,null,null,null,"SIGNATURE OF EMPLOYEE"]
[]
[null,"Designed by G.S.Reddy,Venkatagiri,cell:9666570250"]

{"sheet":"SALARY TABLE","index":6,"n_rows":91,"n_cols":82,"rows_kept":91,"cut":false,"hidden":false,"merged":[[70,4,70,6],[55,19,57,20],[36,1,36,16],[1,28,34,28],[34,1,34,26],[31,22,31,26],[32,22,32,26],[33,22,33,26],[1,1,1,26],[2,1,2,26],[30,1,30,4],[16,1,16,2],[17,1,17,2],[27,1,27,2],[24,27,34,27]]}
[]
[null,{"$f":"CONCATENATE(\"Statement Showing Monthwise income of \",code2!G5,\" \",Data!U4,\" for the year \",RIGHT(Data!Q3,10))","v":"Statement Showing Monthwise income of Sri. G.Bhasker for the year  2016-2017"}]
[]
[null,"Month","Basic pay","D.A","D.A","H.R.A","AHRA","IR","HMA","SCA","CCA","AI","PP/Special pay","FPI","RA","CA\n(PHA)","Total \nIncome",{"$f":"Code!AD12","v":"ZPPF"},"G.I.S","L.I.C","A.P.G.L.I.S","EHF","PT","Advance Tax","CMRF/\nTWF\n/SWF","Total\ndeductions","Net",null,null,null,null,null,0]
[null,"2016-03-01",{"$f":"R59","v":42490},0.12052,{"$f":"IF(Code!$AM$3=1,ROUND(('SALARY TABLE'!S59*D5),0),ROUND((D5*C5),0))","v":5121},{"$f":"IF('SALARY TABLE'!S59*Code!$Z$4>=8000,8000,ROUND(IF(Code!$AM$3=1,ROUND(('SALARY TABLE'!S59*Code!$Z$4),0),Code!AP64),0))","v":6161},{"$f":"Code!AR64","v":0},null,{"$f":"Code!AV96","v":0},{"$f":"Code!AE121","v":0},{"$f":"Code!AE139","v":0},{"$f":"IF($C5=0,0,IF(Code!$AM$3=1,ROUND(Data!$U$21/2,0),Data!$U$21))","v":0},{"$f":"IF($C5=0,0,IF(Code!$AM$3=1,ROUND(Data!$U$22/2,0),Data!$U$22))","v":0},{"$f":"IF($C5=0,0,IF(Code!$AM$3=1,ROUND(Data!$U$23/2,0),Data!$U$23))","v":0},{"$f":"IF(Code!$W$111=\"Not Applicable\",0,Code!$W$111)","v":0},{"$f":"IF($C5=0,0,IF(Code!$AM$3=1,ROUND(Code!AL36/2,0),Code!AL36))","v":0},{"$f":"ROUND(C5+E5+F5+G5+H5+I5+J5+K5+L5+M5+N5+O5+P5,0)","v":53772},{"$f":"Code!AW33","v":6000},{"$f":"Code!M158","v":60},{"$f":"Code!AW48","v":3018},{"$f":"Code!AX18","v":1150},{"$f":"Code!AW119","v":120},{"$f":"IF(Code!$AE$3=2,Code!CC118,\" \")","v":200},{"$f":"IF(Code!$AB$96=1,'ADVANCE TAX'!C3,\" \")","v":0},{"$f":"ewf","v":20},{"$f":"SUM(R5:Y5)","v":10568},{"$f":"Q5-Z5","v":43204},null,null,null,null,null,3850,0]
[null,"2016-04-01",{"$f":"R60","v":42490},0.12052,{"$f":"IF(Code!$AM$3=1,ROUND(('SALARY TABLE'!S60*D6),0),ROUND((D6*C6),0))","v":5121},{"$f":"IF('SALARY TABLE'!S60*Code!$Z$4>=8000,8000,ROUND(IF(Code!$AM$3=1,ROUND(('SALARY TABLE'!S60*Code!$Z$4),0),Code!AP65),0))","v":6161},{"$f":"Code!AR65","v":0},null,{"$f":"Code!AV97","v":0},{"$f":"Code!AE122","v":0},{"$f":"Code!AE140","v":0},{"$f":"IF($C6=0,0,IF(Code!$AM$3=1,ROUND(Data!$U$21/2,0),Data!$U$21))","v":0},{"$f":"IF($C6=0,0,IF(Code!$AM$3=1,ROUND(Data!$U$22/2,0),Data!$U$22))","v":0},{"$f":"IF($C6=0,0,IF(Code!$AM$3=1,ROUND(Data!$U$23/2,0),Data!$U$23))","v":0},{"$f":"IF(Code!$W$111=\"Not Applicable\",0,Code!$W$111)","v":0},{"$f":"IF($C6=0,0,IF(Code!$AM$3=1,ROUND(Code!AL37/2,0),Code!AL37))","v":0},53772,{"$f":"Code!AW34","v":6000},{"$f":"Code!M159","v":60},{"$f":"Code!AW49","v":3018},{"$f":"Code!AX19","v":1150},{"$f":"Code!AW120","v":120},{"$f":"IF(Code!$AE$3=2,Code!CC119,\" \")","v":200},{"$f":"IF(Code!$AB$96=1,'ADVANCE TAX'!C4,\" \")","v":0},null,10548,43224,null,null,null,null,null,3950,30]
[null,"2016-05-01",42490,0.12052,{"$f":"IF(Code!$AM$3=1,ROUND(('SALARY TABLE'!S61*D7),0),ROUND((D7*C7),0))","v":5121},{"$f":"IF('SALARY TABLE'!S61*Code!$Z$4>=8000,8000,ROUND(IF(Code!$AM$3=1,ROUND(('SALARY TABLE'!S61*Code!$Z$4),0),Code!AP66),0))","v":6161},{"$f":"Code!AR66","v":0},null,{"$f":"Code!AV98","v":0},{"$f":"Code!AE123","v":0},{"$f":"Code!AE141","v":0},{"$f":"IF($C7=0,0,IF(Code!$AM$3=1,ROUND(Data!$U$21/2,0),Data!$U$21))","v":0},{"$f":"IF($C7=0,0,IF(Code!$AM$3=1,ROUND(Data!$U$22/2,0),Data!$U$22))","v":0},{"$f":"IF($C7=0,0,IF(Code!$AM$3=1,ROUND(Data!$U$23/2,0),Data!$U$23))","v":0},{"$f":"IF(Code!$W$111=\"Not Applicable\",0,Code!$W$111)","v":0},{"$f":"IF($C7=0,0,IF(Code!$AM$3=1,ROUND(Code!AL38/2,0),Code!AL38))","v":0},53772,{"$f":"Code!AW35","v":6000},{"$f":"Code!M160","v":60},{"$f":"Code!AW50","v":3018},{"$f":"Code!AX20","v":1150},{"$f":"Code!AW121","v":120},{"$f":"IF(Code!$AE$3=2,Code!CC120,\" \")","v":200},{"$f":"IF(Code!$AB$96=1,'ADVANCE TAX'!C5,\" \")","v":0},null,10548,43224,null,null,null,null,null,4050,60]
[null,"2016-06-01",42490,0.12052,{"$f":"IF(Code!$AM$3=1,ROUND(('SALARY TABLE'!S62*D8),0),ROUND((D8*C8),0))","v":5121},{"$f":"IF('SALARY TABLE'!S62*Code!$Z$4>=8000,8000,ROUND(IF(Code!$AM$3=1,ROUND(('SALARY TABLE'!S62*Code!$Z$4),0),Code!AP67),0))","v":6161},{"$f":"Code!AR67","v":0},null,{"$f":"Code!AV99","v":0},{"$f":"Code!AE124","v":0},{"$f":"Code!AE142","v":0},{"$f":"IF($C8=0,0,IF(Code!$AM$3=1,ROUND(Data!$U$21/2,0),Data!$U$21))","v":0},{"$f":"IF($C8=0,0,IF(Code!$AM$3=1,ROUND(Data!$U$22/2,0),Data!$U$22))","v":0},{"$f":"IF($C8=0,0,IF(Code!$AM$3=1,ROUND(Data!$U$23/2,0),Data!$U$23))","v":0},{"$f":"IF(Code!$W$111=\"Not Applicable\",0,Code!$W$111)","v":0},{"$f":"IF($C8=0,0,IF(Code!$AM$3=1,ROUND(Code!AL39/2,0),Code!AL39))","v":0},53772,{"$f":"Code!AW36","v":6000},{"$f":"Code!M161","v":60},{"$f":"Code!AW51","v":3018},{"$f":"Code!AX21","v":1150},{"$f":"Code!AW122","v":120},{"$f":"IF(Code!$AE$3=2,Code!CC121,\" \")","v":200},{"$f":"IF(Code!$AB$96=1,'ADVANCE TAX'!C6,\" \")","v":0},null,10548,43224,null,null,null,null,null,4150]
[null,"2016-07-01",42490,0.12052,{"$f":"IF(Code!$AM$3=1,ROUND(('SALARY TABLE'!S63*D9),0),ROUND((D9*C9),0))","v":5121},{"$f":"IF('SALARY TABLE'!S63*Code!$Z$4>=8000,8000,ROUND(IF(Code!$AM$3=1,ROUND(('SALARY TABLE'!S63*Code!$Z$4),0),Code!AP68),0))","v":6161},{"$f":"Code!AR68","v":0},null,{"$f":"Code!AV100","v":0},{"$f":"Code!AE125","v":0},{"$f":"Code!AE143","v":0},{"$f":"IF($C9=0,0,IF(Code!$AM$3=1,ROUND(Data!$U$21/2,0),Data!$U$21))","v":0},{"$f":"IF($C9=0,0,IF(Code!$AM$3=1,ROUND(Data!$U$22/2,0),Data!$U$22))","v":0},{"$f":"IF($C9=0,0,IF(Code!$AM$3=1,ROUND(Data!$U$23/2,0),Data!$U$23))","v":0},{"$f":"IF(Code!$W$111=\"Not Applicable\",0,Code!$W$111)","v":0},{"$f":"IF($C9=0,0,IF(Code!$AM$3=1,ROUND(Code!AL40/2,0),Code!AL40))","v":0},53772,{"$f":"Code!AW37","v":6000},{"$f":"Code!M162","v":60},{"$f":"Code!AW52","v":3018},{"$f":"Code!AX22","v":1150},{"$f":"Code!AW123","v":120},{"$f":"IF(Code!$AE$3=2,Code!CC122,\" \")","v":200},{"$f":"IF(Code!$AB$96=1,'ADVANCE TAX'!C7,\" \")","v":0},null,10548,43224,null,null,null,null,null,4260]
[null,"2016-08-01",42490,0.15196000000000001,{"$f":"IF(Code!$AM$3=1,ROUND(('SALARY TABLE'!S64*D10),0),ROUND((D10*C10),0))","v":6457},{"$f":"IF('SALARY TABLE'!S64*Code!$Z$4>=8000,8000,ROUND(IF(Code!$AM$3=1,ROUND(('SALARY TABLE'!S64*Code!$Z$4),0),Code!AP69),0))","v":6161},{"$f":"Code!AR69","v":0},null,{"$f":"Code!AV101","v":0},{"$f":"Code!AE126","v":0},{"$f":"Code!AE144","v":0},{"$f":"IF($C10=0,0,IF(Code!$AM$3=1,ROUND(Data!$U$21/2,0),Data!$U$21))","v":0},{"$f":"IF($C10=0,0,IF(Code!$AM$3=1,ROUND(Data!$U$22/2,0),Data!$U$22))","v":0},{"$f":"IF($C10=0,0,IF(Code!$AM$3=1,ROUND(Data!$U$23/2,0),Data!$U$23))","v":0},{"$f":"IF(Code!$W$111=\"Not Applicable\",0,Code!$W$111)","v":0},{"$f":"IF($C10=0,0,IF(Code!$AM$3=1,ROUND(Code!AL41/2,0),Code!AL41))","v":0},55108,{"$f":"Code!AW38","v":6000},{"$f":"Code!M163","v":60},{"$f":"Code!AW53","v":3018},{"$f":"Code!AX23","v":1150},{"$f":"Code!AW124","v":120},{"$f":"IF(Code!$AE$3=2,Code!CC123,\" \")","v":200},{"$f":"IF(Code!$AB$96=1,'ADVANCE TAX'!C8,\" \")","v":0},null,10548,44560,null,null,null,null,null,4370]
[null,"2016-09-01",42490,0.15196000000000001,{"$f":"IF(Code!$AM$3=1,ROUND(('SALARY TABLE'!S65*D11),0),ROUND((D11*C11),0))","v":6457},{"$f":"IF('SALARY TABLE'!S65*Code!$Z$4>=8000,8000,ROUND(IF(Code!$AM$3=1,ROUND(('SALARY TABLE'!S65*Code!$Z$4),0),Code!AP70),0))","v":6161},{"$f":"Code!AR70","v":0},null,{"$f":"Code!AV102","v":0},{"$f":"Code!AE127","v":0},{"$f":"Code!AE145","v":0},{"$f":"IF($C11=0,0,IF(Code!$AM$3=1,ROUND(Data!$U$21/2,0),Data!$U$21))","v":0},{"$f":"IF($C11=0,0,IF(Code!$AM$3=1,ROUND(Data!$U$22/2,0),Data!$U$22))","v":0},{"$f":"IF($C11=0,0,IF(Code!$AM$3=1,ROUND(Data!$U$23/2,0),Data!$U$23))","v":0},{"$f":"IF(Code!$W$111=\"Not Applicable\",0,Code!$W$111)","v":0},{"$f":"IF($C11=0,0,IF(Code!$AM$3=1,ROUND(Code!AL42/2,0),Code!AL42))","v":0},55108,{"$f":"Code!AW39","v":6000},{"$f":"Code!M164","v":60},{"$f":"Code!AW54","v":3018},{"$f":"Code!AX24","v":1150},{"$f":"Code!AW125","v":120},{"$f":"IF(Code!$AE$3=2,Code!CC124,\" \")","v":200},{"$f":"IF(Code!$AB$96=1,'ADVANCE TAX'!C9,\" \")","v":0},null,10548,44560,null,null,null,null,null,4480]
[null,"2016-10-01",42490,0.15196000000000001,{"$f":"IF(Code!$AM$3=1,ROUND(('SALARY TABLE'!S66*D12),0),ROUND((D12*C12),0))","v":6457},{"$f":"IF('SALARY TABLE'!S66*Code!$Z$4>=8000,8000,ROUND(IF(Code!$AM$3=1,ROUND(('SALARY TABLE'!S66*Code!$Z$4),0),Code!AP71),0))","v":6161},{"$f":"Code!AR71","v":0},null,{"$f":"Code!AV103","v":0},{"$f":"Code!AE128","v":0},{"$f":"Code!AE146","v":0},{"$f":"IF($C12=0,0,IF(Code!$AM$3=1,ROUND(Data!$U$21/2,0),Data!$U$21))","v":0},{"$f":"IF($C12=0,0,IF(Code!$AM$3=1,ROUND(Data!$U$22/2,0),Data!$U$22))","v":0},{"$f":"IF($C12=0,0,IF(Code!$AM$3=1,ROUND(Data!$U$23/2,0),Data!$U$23))","v":0},{"$f":"IF(Code!$W$111=\"Not Applicable\",0,Code!$W$111)","v":0},{"$f":"IF($C12=0,0,IF(Code!$AM$3=1,ROUND(Code!AL43/2,0),Code!AL43))","v":0},55108,{"$f":"Code!AW40","v":6000},{"$f":"Code!M165","v":60},{"$f":"Code!AW55","v":3018},{"$f":"Code!AX25","v":1150},{"$f":"Code!AW126","v":120},{"$f":"IF(Code!$AE$3=2,Code!CC125,\" \")","v":200},{"$f":"IF(Code!$AB$96=1,'ADVANCE TAX'!C10,\" \")","v":0},null,10548,44560,null,null,null,null,null,4595]
[null,"2016-11-01",42490,0.15196000000000001,{"$f":"IF(Code!$AM$3=1,ROUND(('SALARY TABLE'!S67*D13),0),ROUND((D13*C13),0))","v":6457},{"$f":"IF('SALARY TABLE'!S67*Code!$Z$4>=8000,8000,ROUND(IF(Code!$AM$3=1,ROUND(('SALARY TABLE'!S67*Code!$Z$4),0),Code!AP72),0))","v":6161},{"$f":"Code!AR72","v":0},null,{"$f":"Code!AV104","v":0},{"$f":"Code!AE129","v":0},{"$f":"Code!AE147","v":0},{"$f":"IF($C13=0,0,IF(Code!$AM$3=1,ROUND(Data!$U$21/2,0),Data!$U$21))","v":0},{"$f":"IF($C13=0,0,IF(Code!$AM$3=1,ROUND(Data!$U$22/2,0),Data!$U$22))","v":0},{"$f":"IF($C13=0,0,IF(Code!$AM$3=1,ROUND(Data!$U$23/2,0),Data!$U$23))","v":0},{"$f":"IF(Code!$W$111=\"Not Applicable\",0,Code!$W$111)","v":0},{"$f":"IF($C13=0,0,IF(Code!$AM$3=1,ROUND(Code!AL44/2,0),Code!AL44))","v":0},55108,{"$f":"Code!AW41","v":6000},{"$f":"Code!M166","v":60},{"$f":"Code!AW56","v":3018},{"$f":"Code!AX26","v":1150},{"$f":"Code!AW127","v":120},{"$f":"IF(Code!$AE$3=2,Code!CC126,\" \")","v":200},{"$f":"IF(Code!$AB$96=1,'ADVANCE TAX'!C11,\" \")","v":0},null,10548,44560,null,null,null,null,null,4710]
[null,"2016-12-01",42490,0.15196000000000001,{"$f":"IF(Code!$AM$3=1,ROUND(('SALARY TABLE'!S68*D14),0),ROUND((D14*C14),0))","v":6457},{"$f":"IF('SALARY TABLE'!S68*Code!$Z$4>=8000,8000,ROUND(IF(Code!$AM$3=1,ROUND(('SALARY TABLE'!S68*Code!$Z$4),0),Code!AP73),0))","v":6161},{"$f":"Code!AR73","v":0},null,{"$f":"Code!AV105","v":0},{"$f":"Code!AE130","v":0},{"$f":"Code!AE148","v":0},{"$f":"IF($C14=0,0,IF(Code!$AM$3=1,ROUND(Data!$U$21/2,0),Data!$U$21))","v":0},{"$f":"IF($C14=0,0,IF(Code!$AM$3=1,ROUND(Data!$U$22/2,0),Data!$U$22))","v":0},{"$f":"IF($C14=0,0,IF(Code!$AM$3=1,ROUND(Data!$U$23/2,0),Data!$U$23))","v":0},{"$f":"IF(Code!$W$111=\"Not Applicable\",0,Code!$W$111)","v":0},{"$f":"IF($C14=0,0,IF(Code!$AM$3=1,ROUND(Code!AL45/2,0),Code!AL45))","v":0},55108,{"$f":"Code!AW42","v":6000},{"$f":"Code!M167","v":60},{"$f":"Code!AW57","v":3018},{"$f":"Code!AX27","v":1150},{"$f":"Code!AW128","v":120},{"$f":"IF(Code!$AE$3=2,Code!CC127,\" \")","v":200},{"$f":"IF(Code!$AB$96=1,'ADVANCE TAX'!C12,\" \")","v":0},{"$f":"swf","v":20},10568,44540,null,null,null,null,null,4825]
[null,"2017-01-01",43680,0.15196000000000001,{"$f":"IF(Code!$AM$3=1,ROUND(('SALARY TABLE'!S69*D15),0),ROUND((D15*C15),0))","v":6638},{"$f":"IF('SALARY TABLE'!S69*Code!$Z$4>=8000,8000,ROUND(IF(Code!$AM$3=1,ROUND(('SALARY TABLE'!S69*Code!$Z$4),0),Code!AP74),0))","v":6334},{"$f":"Code!AR74","v":0},null,{"$f":"Code!AV106","v":0},{"$f":"Code!AE131","v":0},{"$f":"Code!AE149","v":0},{"$f":"IF($C15=0,0,IF(Code!$AM$3=1,ROUND(Data!$U$21/2,0),Data!$U$21))","v":0},{"$f":"IF($C15=0,0,IF(Code!$AM$3=1,ROUND(Data!$U$22/2,0),Data!$U$22))","v":0},{"$f":"IF($C15=0,0,IF(Code!$AM$3=1,ROUND(Data!$U$23/2,0),Data!$U$23))","v":0},{"$f":"IF(Code!$W$111=\"Not Applicable\",0,Code!$W$111)","v":0},{"$f":"IF($C15=0,0,IF(Code!$AM$3=1,ROUND(Code!AL46/2,0),Code!AL46))","v":0},56652,{"$f":"Code!AW43","v":8000},{"$f":"Code!M168","v":60},{"$f":"Code!AW58","v":3018},{"$f":"Code!AX28","v":1150},{"$f":"Code!AW129","v":120},{"$f":"IF(Code!$AE$3=2,Code!CC128,\" \")","v":200},{"$f":"IF(Code!$AB$96=1,'ADVANCE TAX'!C13,\" \")","v":3000},null,15548,41104,null,null,null,null,null,4950]
[null,"2017-02-01",43680,0.15196000000000001,{"$f":"IF(Code!$AM$3=1,ROUND(('SALARY TABLE'!S70*D16),0),ROUND((D16*C16),0))","v":6638},{"$f":"IF('SALARY TABLE'!S70*Code!$Z$4>=8000,8000,ROUND(IF(Code!$AM$3=1,ROUND(('SALARY TABLE'!S70*Code!$Z$4),0),Code!AP75),0))","v":6334},{"$f":"Code!AR75","v":0},null,{"$f":"Code!AV107","v":0},{"$f":"Code!AE132","v":0},{"$f":"Code!AE150","v":0},{"$f":"IF($C16=0,0,IF(Code!$AM$3=1,ROUND(Data!$U$21/2,0),Data!$U$21))","v":0},{"$f":"IF($C16=0,0,IF(Code!$AM$3=1,ROUND(Data!$U$22/2,0),Data!$U$22))","v":0},{"$f":"IF($C16=0,0,IF(Code!$AM$3=1,ROUND(Data!$U$23/2,0),Data!$U$23))","v":0},{"$f":"IF(Code!$W$111=\"Not Applicable\",0,Code!$W$111)","v":0},{"$f":"IF($C16=0,0,IF(Code!$AM$3=1,ROUND(Code!AL47/2,0),Code!AL47))","v":0},56652,{"$f":"Code!AW44","v":8000},{"$f":"Code!M169","v":60},{"$f":"Code!AW59","v":3018},{"$f":"Code!AX29","v":1150},{"$f":"Code!AW130","v":120},{"$f":"IF(Code!$AE$3=2,Code!CC129,\" \")","v":200},{"$f":"IF(Code!$AB$96=1,'ADVANCE TAX'!C14,\" \")","v":0},null,12548,44104,null,null,null,null,null,5075]
[null,"D.A Arrears\n(Jan 15 to Feb 16) 14M",null,null,{"$f":"'DA calculation'!I18","v":17252},{"$f":"ROUND((Code!Z4*C17),0)","v":0},null,null,null,null,null,null,null,null,null,null,{"$f":"E17","v":17252},{"$f":"Q17","v":17252},null,null,null,null,null,null,null,{"$f":"SUM(R17:Y17)","v":17252},0,null,null,null,null,null,5200]
[null,"D.A Arrears(July 15 to July 16) 13 M",null,{"$f":"IF(Code!W23=1,H67,0)","v":4046},{"$f":"'DA calculation'!I22","v":16744},{"$f":"ROUND((Code!Z4*C18),0)","v":0},null,null,null,null,null,null,null,null,null,null,{"$f":"E18","v":16744},{"$f":"Q18","v":16744},null,null,null,null,null,null,null,16744,0,null,null,null,null,null,5335]
[null,"surrender leave",{"$f":"IF(Code!AD3=15,ROUND('SALARY TABLE'!M57/2,0),IF(Code!AD3=30,ROUND('SALARY TABLE'!M57,0),0))","v":21840},null,{"$f":"ELDA+IF(Code!W19=1,IF(Code!AL15=\" \",\" \",IF(Code!AD3=15,ROUND(LOOKUP(Code!AL15,'SALARY TABLE'!B57:B70,'SALARY TABLE'!F57:F70)/2,0),ROUND(LOOKUP(Code!AL15,'SALARY TABLE'!B57:B70,'SALARY TABLE'!F57:F70),0))),0)","v":3319},{"$f":"ROUND((V59*C19),0)","v":3167},null,null,null,null,null,{"$f":"IF(Code!$AD$3=15,ROUND(LOOKUP(Code!$AL$15,'SALARY TABLE'!$B$5:$B$16,'SALARY TABLE'!L5:L16)/2,0),IF(Code!$AD$3=30,ROUND(LOOKUP(Code!$AL$15,'SALARY TABLE'!$B$5:$B$16,'SALARY TABLE'!L5:L16),0),0))","v":0},{"$f":"IF(Code!$AD$3=15,ROUND(LOOKUP(Code!$AL$15,'SALARY TABLE'!$B$5:$B$16,'SALARY TABLE'!M5:M16)/2,0),IF(Code!$AD$3=30,ROUND(LOOKUP(Code!$AL$15,'SALARY TABLE'!$B$5:$B$16,'SALARY TABLE'!M5:M16),0),0))","v":0},{"$f":"IF(Code!$AD$3=15,ROUND(LOOKUP(Code!$AL$15,'SALARY TABLE'!$B$5:$B$16,'SALARY TABLE'!N5:N16)/2,0),IF(Code!$AD$3=30,ROUND(LOOKUP(Code!$AL$15,'SALARY TABLE'!$B$5:$B$16,'SALARY TABLE'!N5:N16),0),0))","v":0},null,null,{"$f":"C19+E19+F19+G19+H19+I19+J19+K19+L19+M19+N19+O19+P19","v":28326},null,null,null,null,null,null,null,null,0,28326,null,null,null,null,null,5470]
[null,"AAS ARREARS",null,null,null,null,null,null,null,null,null,null,null,null,null,null,{"$f":"C20+E20+F20+G20+H20+I20+J20+K20+L20+M20+N20+O20+P20","v":0},{"$f":"IF($R$4=\"cps\",\" \",Q20-W20)","v":0},null,null,null,null,null,null,null,0,0]
[null,"RPS Arrears",null,null,null,null,null,null,null,null,null,null,null,null,null,null,0,null,null,null,null,null,null,null,null,0,0]
[null,"6/12/18/24 Y Fixation",{"$f":"IF(Code!AC17=1,0,IF(Code!AG18=1,Code!AF38,0))","v":0},{"$f":"Code!AF39","v":0.15196000000000001},{"$f":"ROUND(IF(Code!AC17=1,0,IF(Code!AG18=1,Code!AF38*D22,0)),0)","v":0},{"$f":"ROUND((Code!Z4*C22),0)","v":0},null,null,null,null,null,null,null,null,null,null,0,{"$f":"IF($R$4=\"cps\",\" \",Q22-W22)","v":0},null,null,null,null,null,null,null,0,0,null,null,null,null,null,5605]
[null,"Haly pay arrears",{"$f":"Code!CC75","v":0},null,null,null,null,null,null,null,null,null,null,null,null,null,0,{"$f":"IF($R$4=\"cps\",\" \",Q23-W23)","v":0},null,null,null,null,null,null,null,0,0,null,null,null,null,null,5750]
[null,"Child Education Consession",null,null,null,null,null,null,null,null,null,null,null,null,null,null,0,null,null,null,null,null,null,null,null,0,0]
[null,"setpup arrears",{"$f":"IF(Code!AG26=1,0,IF(Code!AG23=1,Code!AF50,0))","v":0},null,{"$f":"ROUND(IF(Code!AG26=1,0,IF(Code!AG23=1,Code!AF50*D25,0)),0)","v":0},{"$f":"ROUND((Code!Z4*C25),0)","v":0},null,null,null,null,null,null,null,null,null,null,0,{"$f":"IF($R$4=\"cps\",\" \",Q25-W25)","v":0},null,null,null,null,null,null,null,0,0,"Password:gsreddy"]
[null,{"$f":"Data!W47","v":"NOTIONAL INC ARREARS"},null,null,null,null,null,null,null,null,null,null,null,null,null,null,0,{"$f":"IF($R$4=\"cps\",\" \",Q26-W26)","v":0},null,null,null,null,null,null,null,0,{"$f":"Q26-Z26","v":0}]
[null,"Loss of Pay",{"$f":"Code!CC110","v":0},null,{"$f":"Code!CE110","v":0},{"$f":"Code!CH110","v":0},null,null,null,null,null,null,null,null,null,null,0,null,null,null,null,null,null,null,null,0,0]
[null,"P Tax(RPS 10)",null,null,null,null,null,null,null,null,null,null,null,null,null,null,0,null,null,null,null,null,{"$f":"Data!$Z$50","v":0},null,null,{"$f":"W28","v":0}]
[null,"Prephonement",null,null,null,null,null,null,null,null,null,null,null,null,null,null,0]
[null,"Total",{"$f":"ROUND(SUM(C5:C29),0)","v":534100},null,{"$f":"ROUND(SUM(E5:E29),0)","v":108481},77445,0,0,0,0,0,0,0,0,0,0,720026,109996,720,36216,13800,1440,2400,3000,40,167612,552414,null,null,null,null,null,5895]
[null,null,null,null,null,null,null,null,null,null,null,null,null,null,null,null,null,null,null,null,null,null,null,null,null,null,null,null,null,null,null,null,6195]
[null,null,null,null,null,null,null,null,null,null,null,null,null,null,null,null,null,null,null,null,null,null,"SIGNATURE OF EMPLOYEE",null,null,null,null,null,null,null,null,null,6350]
[null,null,null,null,null,null,null,null,null,null,null,null,null,null,null,null,null,null,null,null,null,null,null,null,null,null,null,null,null,null,null,null,6505]
[]
[null,"Designed by G.S.Reddy,SA(Maths)Nellore,Cell:9666570250 ",null,null,null,null,null,null,null,null,null,null,null,null,null,null,null,null,null,null,null,null,null,null,null,null,null,null,null,null,null,null,6675]
[null,null,null,null,null,null,null,null,null,null,null,null,null,null,null,null,null,null,null,null,null,null,null,null,null,null,null,null,null,null,null,null,6845]
[null,null,null,null,null,null,null,null,null,null,null,null,null,null,null,null,null,null,null,null,null,null,null,null,null,null,null,null,null,null,null,null,7015]
[null,null,null,null,null,null,null,null,null,null,null,null,null,null,null,null,null,null,null,null,null,null,null,null,null,null,null,null,null,null,null,null,7200]
[null,null,null,null,null,null,null,null,null,null,null,null,null,null,null,null,null,null,null,null,null,null,null,null,null,null,null,null,null,null,null,null,7385]
[null,null,null,null,null,null,null,null,null,null,null,null,null,null,null,null,null,null,null,null,null,null,null,null,null,null,null,null,null,null,null,null,7570]
[null,null,null,null,null,null,null,null,null,null,null,null,null,null,null,null,null,null,null,null,null,null,null,null,null,null,null,null,null,null,null,null,7770]
[null,null,null,null,null,null,null,null,null,null,null,null,null,null,null,null,null,null,null,null,null,null,null,null,null,null,null,null,null,null,null,null,7970]
[null,null,null,null,null,null,null,null,null,null,null,null,null,null,null,null,null,null,null,null,null,null,null,null,null,null,null,null,null,null,null,null,8170]
[null,null,null,null,null,null,null,null,null,null,null,null,null,null,null,null,null,null,null,null,null,null,null,null,null,null,null,null,null,null,null,null,8385]
[null,null,null,null,null,null,null,null,null,null,null,null,null,null,null,null,null,null,null,null,null,null,null,null,null,null,null,null,null,null,null,null,8600]
[null,null,null,null,null,null,null,null,null,null,null,null,null,null,null,null,null,null,null,null,null,null,null,null,null,null,null,null,null,null,null,null,8815]
[null,null,null,null,null,null,null,null,null,null,null,null,null,null,null,null,null,null,null,null,null,null,null,null,null,null,null,null,null,null,null,null,9050]
[null,{"$f":"I","v":42736},null,null,null,null,null,null,null,null,null,null,null,null,null,null,null,null,null,null,null,null,null,null,null,null,null,null,null,null,null,null,9285]
[null,null,null,null,null,null,null,null,null,null,null,null,null,null,null,null,null,null,null,null,null,null,null,null,null,null,null,null,null,null,null,null,9520]
[null,13000,13390,13780,14170,14600,15030,15460,15930,16400,16870,17380,17890,18400,18950,19500,20050,20640,21230,21820,22460,23100,23740,24440,25140,25840,26600,27360,28120,28940,29760,30580,31460,32340,33220,34170,35120,36070,37100,38130,39160,40270,41380,42490,43680,44870,46060,47330,48600,49870,51230,52590,53950,55410,56870,58330,59890,61450,63010,64670,66330,67990,69750,71510,73270,75150,77030,78910,80930,82950,84970,87130,89290,91450,93780,96110,98440,100770,103290,105810,108330,110850]
[null,13390,13780,14170,14600,15030,15460,15930,16400,16870,17380,17890,18400,18950,19500,20050,20640,21230,21820,22460,23100,23740,24440,25140,25840,26600,27360,28120,28940,29760,30580,31460,32340,33220,34170,35120,36070,37100,38130,39160,40270,41380,42490,43680,44870,46060,47330,48600,49870,51230,52590,53950,55410,56870,58330,59890,61450,63010,64670,66330,67990,69750,71510,73270,75150,77030,78910,80930,82950,84970,87130,89290,91450,93780,96110,98440,100770,103290,105810,108330,110850,56960]
[null,null,null,null,null,null,null,null,null,null,null,null,null,null,null,null,null,null,null,null,null,null,null,null,null,null,null,null,null,null,null,null,10285]
[null,null,"Already","Tobe",null,null,null,null,null,null,null,null,null,null,null,null,null,null,null,null,null,null,null,null,null,null,null,null,null,null,null,null,10565]
[null,null,0.12052,0.15196000000000001,{"$f":"Data!Y42","v":0},null,null,null,null,null,null,null,null,null,null,null,null,null,null,null,null,null,null,null,null,null,null,null,null,null,null,null,10845]
[null,null,null,null,null,null,null,null,"1 incre",null,null,null,null,null,null,null,null,null,null,null,null,null,null,null,null,null,null,null,null,null,null,null,11125]
[null,null,null,"Already","To be",null,null,null,"8/16/24y",null,null,null,null,null,null,"Half Pay",null,"Loss of Pay","stepup","HRA",null,null,null,null,null,null,null,null,null,null,null,null,11440]
[1,"2016-01-01",{"$f":"Code!W3","v":42490},{"$f":"ROUND(I57*$C$54,0)","v":5121},{"$f":"ROUND(I57*$D$54,0)","v":6457},{"$f":"E57-D57","v":1336},{"$f":"10%*F57","v":133.6},null,{"$f":"C57","v":42490},null,null,0,{"$f":"LOOKUP(Code!AL15,B5:B16,C5:C16)","v":43680},null,1,{"$f":"Code!CB61","v":42490},null,{"$f":"Code!CB96","v":42490},{"$f":"C57","v":42490},null,null,"EL","CPS",null,null,null,null,null,null,null,null,null,11755]
[2,"2016-02-01",{"$f":"VLOOKUP(Code!V3,Code!U5:V84,2)","v":42490},5121,6457,1336,133.6,null,{"$f":"C58","v":42490},null,null,0,null,"DA",2,{"$f":"Code!CB62","v":42490},null,{"$f":"Code!CB97","v":42490},{"$f":"C58","v":42490},null,null,null,null,null,null,null,null,null,null,null,null,null,12070]
[3,"2016-03-01",{"$f":"IF(B5=I,HLOOKUP(Code!W3,B50:CC51,2,B51:CC51),'SALARY TABLE'!C58)","v":42490},5121,6457,1336,133.6,null,{"$f":"IF(Code!AG18=1,IF('SALARY TABLE'!B59>=Code!AF31,LOOKUP(C59,B50:CC50,B51:CC51),C59),C59)","v":42490},null,null,{"$f":"D5","v":0.12052},null,{"$f":"ROUND(S59*L59,0)","v":5121},3,{"$f":"Code!CB63","v":42490},null,{"$f":"Code!CB98","v":42490},{"$f":"IF(Code!$AG$23=1,IF('SALARY TABLE'!B59>=Code!$AF$43,LOOKUP(I59,$B$50:$CC$50,$B$51:$CC$51),I59),I59)","v":42490},1,{"$f":"Code!AS64","v":0.14499999999999999},{"$f":"LOOKUP(Code!AK15,'SALARY TABLE'!T59:U70,U59:U70)","v":0.14499999999999999},{"$f":"IF(Code!$AC$12=1,(C5+E5)*10%,0)","v":0},null,null,null,null,null,null,null,null,null,12385]
[10,"2016-04-01",{"$f":"IF(B6=I,HLOOKUP(Code!W3,B50:CC51,2,B51:CC51),'SALARY TABLE'!C59)","v":42490},5121,6457,1336,133.6,null,{"$f":"IF(Code!AG18=1,IF('SALARY TABLE'!B60>=Code!AF31,LOOKUP(C60,B50:CC50,B51:CC51),C60),C60)","v":42490},null,null,0.12052,null,{"$f":"ROUND(S60*L60,0)","v":5121},4,{"$f":"Code!CB64","v":42490},null,{"$f":"Code!CB99","v":42490},{"$f":"IF(Code!$AG$23=1,IF('SALARY TABLE'!B60>=Code!$AF$43,LOOKUP(I60,$B$50:$CC$50,$B$51:$CC$51),I60),I60)","v":42490},2,{"$f":"Code!AS65","v":0.14499999999999999},null,{"$f":"IF(Code!$AC$12=1,(C6+E6)*10%,0)","v":0},null,null,null,null,null,null,null,null,null,12700]
[11,"2016-05-01",{"$f":"IF(B7=I,HLOOKUP(Code!W3,B50:CC51,2,B51:CC51),'SALARY TABLE'!C60)","v":42490},5121,6457,1336,133.6,{"$f":"SUM(F57:F69)","v":17406},{"$f":"IF(Code!AG18=1,IF('SALARY TABLE'!B61>=Code!AF31,LOOKUP(C61,B50:CC50,B51:CC51),C61),C61)","v":42490},null,null,0.12052,null,5121,5,{"$f":"Code!CB65","v":42490},null,{"$f":"Code!CB100","v":42490},{"$f":"IF(Code!$AG$23=1,IF('SALARY TABLE'!B61>=Code!$AF$43,LOOKUP(I61,$B$50:$CC$50,$B$51:$CC$51),I61),I61)","v":42490},3,{"$f":"Code!AS66","v":0.14499999999999999},null,{"$f":"IF(Code!$AC$12=1,(C7+E7)*10%,0)","v":0},null,null,null,null,null,null,null,null,null,13030]
[12,"2016-06-01",{"$f":"IF(B8=I,HLOOKUP(Code!W3,B50:CC51,2,B51:CC51),'SALARY TABLE'!C61)","v":42490},5121,6457,1336,133.6,null,{"$f":"IF(Code!AG18=1,IF('SALARY TABLE'!B62>=Code!AF31,LOOKUP(C62,B50:CC50,B51:CC51),C62),C62)","v":42490},null,null,0.12052,null,5121,6,{"$f":"Code!CB66","v":42490},null,{"$f":"Code!CB101","v":42490},{"$f":"IF(Code!$AG$23=1,IF('SALARY TABLE'!B62>=Code!$AF$43,LOOKUP(I62,$B$50:$CC$50,$B$51:$CC$51),I62),I62)","v":42490},4,{"$f":"Code!AS67","v":0.14499999999999999},null,{"$f":"IF(Code!$AC$12=1,(C8+E8)*10%,0)","v":0},null,null,null,null,null,null,null,null,null,13390]
[13,"2016-07-01",{"$f":"IF(B9=I,HLOOKUP(Code!W3,B50:CC51,2,B51:CC51),'SALARY TABLE'!C62)","v":42490},5121,6457,1336,{"$f":"10%*F63","v":133.6},null,{"$f":"IF(Code!AG18=1,IF('SALARY TABLE'!B63>=Code!AF31,LOOKUP(C63,B50:CC50,B51:CC51),C63),C63)","v":42490},null,null,0.12052,null,5121,7,{"$f":"Code!CB67","v":42490},null,{"$f":"Code!CB102","v":42490},{"$f":"IF(Code!$AG$23=1,IF('SALARY TABLE'!B63>=Code!$AF$43,LOOKUP(I63,$B$50:$CC$50,$B$51:$CC$51),I63),I63)","v":42490},5,{"$f":"Code!AS68","v":0.14499999999999999},null,{"$f":"IF(Code!$AC$12=1,(N63+S63)*10%,0)","v":0},null,null,null,null,null,null,null,null,null,13750]
[14,"2016-08-01",{"$f":"IF(B10=I,HLOOKUP(Code!W3,B50:CC51,2,B51:CC51),'SALARY TABLE'!C63)","v":42490},5121,6457,1336,{"$f":"10%*F64","v":133.6},null,{"$f":"IF(Code!AG18=1,IF('SALARY TABLE'!B64>=Code!AF31,LOOKUP(C64,B50:CC50,B51:CC51),C64),C64)","v":42490},null,null,0.15196000000000001,null,6457,8,{"$f":"Code!CB68","v":42490},null,{"$f":"Code!CB103","v":42490},{"$f":"IF(Code!$AG$23=1,IF('SALARY TABLE'!B64>=Code!$AF$43,LOOKUP(I64,$B$50:$CC$50,$B$51:$CC$51),I64),I64)","v":42490},6,{"$f":"Code!AS69","v":0.14499999999999999},null,{"$f":"IF(Code!$AC$12=1,(N64+S64)*10%,0)","v":0},null,null,null,null,null,null,null,null,null,14175]
[15,"2016-09-01",{"$f":"IF(B11=I,HLOOKUP(Code!W3,B50:CC51,2,B51:CC51),'SALARY TABLE'!C64)","v":42490},5121,6457,1336,{"$f":"10%*F65","v":133.6},null,{"$f":"IF(Code!AG18=1,IF('SALARY TABLE'!B65>=Code!AF31,LOOKUP(C65,B50:CC50,B51:CC51),C65),C65)","v":42490},null,null,0.15196000000000001,null,6457,9,{"$f":"Code!CB69","v":42490},null,{"$f":"Code!CB104","v":42490},{"$f":"IF(Code!$AG$23=1,IF('SALARY TABLE'!B65>=Code!$AF$43,LOOKUP(I65,$B$50:$CC$50,$B$51:$CC$51),I65),I65)","v":42490},7,{"$f":"Code!AS70","v":0.14499999999999999},null,{"$f":"IF(Code!$AC$12=1,(N65+S65)*10%,0)","v":0},null,null,null,null,null,null,null,null,null,14600]
[16,"2016-10-01",{"$f":"IF(B12=I,HLOOKUP(Code!W3,B50:CC51,2,B51:CC51),'SALARY TABLE'!C65)","v":42490},5121,6457,1336,{"$f":"10%*F66","v":133.6},{"$f":"SUM(F63:F66)","v":5344},{"$f":"IF(Code!AG18=1,IF('SALARY TABLE'!B66>=Code!AF31,LOOKUP(C66,B50:CC50,B51:CC51),C66),C66)","v":42490},null,null,0.15196000000000001,null,6457,10,{"$f":"Code!CB70","v":42490},null,{"$f":"Code!CB105","v":42490},{"$f":"IF(Code!$AG$23=1,IF('SALARY TABLE'!B66>=Code!$AF$43,LOOKUP(I66,$B$50:$CC$50,$B$51:$CC$51),I66),I66)","v":42490},8,{"$f":"Code!AS71","v":0.14499999999999999},null,{"$f":"IF(Code!$AC$12=1,(N66+S66)*10%,0)","v":0},null,null,null,null,null,null,null,null,null,15025]
[17,"2016-11-01",{"$f":"IF(B13=I,HLOOKUP(Code!W3,B50:CC51,2,B51:CC51),'SALARY TABLE'!C66)","v":42490},{"$f":"ROUND(I67*$C$54,0)","v":5121},6457,1336,null,{"$f":"SUM(F67:F69)","v":4046},{"$f":"IF(Code!AG18=1,IF('SALARY TABLE'!B67>=Code!AF31,LOOKUP(C67,B50:CC50,B51:CC51),C67),C67)","v":42490},null,null,0.15196000000000001,null,6457,11,{"$f":"Code!CB71","v":42490},null,{"$f":"Code!CB106","v":42490},{"$f":"IF(Code!$AG$23=1,IF('SALARY TABLE'!B67>=Code!$AF$43,LOOKUP(I67,$B$50:$CC$50,$B$51:$CC$51),I67),I67)","v":42490},9,{"$f":"Code!AS72","v":0.14499999999999999},null,{"$f":"IF(Code!$AC$12=1,(N67+S67)*10%,0)","v":0},null,null,null,null,null,null,null,null,null,15500]
[18,"2016-12-01",{"$f":"IF(B14=I,HLOOKUP(Code!W3,B50:CC51,2,B51:CC51),'SALARY TABLE'!C67)","v":42490},{"$f":"ROUND(I68*$C$54,0)","v":5121},6457,1336,null,null,{"$f":"IF(Code!AG18=1,IF('SALARY TABLE'!B68>=Code!AF31,LOOKUP(C68,B50:CC50,B51:CC51),C68),C68)","v":42490},null,null,0.15196000000000001,null,6457,12,{"$f":"Code!CB72","v":42490},null,{"$f":"Code!CB107","v":42490},{"$f":"IF(Code!$AG$23=1,IF('SALARY TABLE'!B68>=Code!$AF$43,LOOKUP(I68,$B$50:$CC$50,$B$51:$CC$51),I68),I68)","v":42490},10,{"$f":"Code!AS73","v":0.14499999999999999},null,{"$f":"IF(Code!$AC$12=1,(N68+S68)*10%,0)","v":0},null,null,null,null,null,null,null,null,null,15975]
[19,"2017-01-01",{"$f":"IF(B15=I,HLOOKUP(Code!W3,B50:CC51,2,B51:CC51),'SALARY TABLE'!C68)","v":43680},{"$f":"ROUND(I69*$C$54,0)","v":5264},6638,1374,null,null,{"$f":"IF(Code!AG18=1,IF('SALARY TABLE'!B69>=Code!AF31,LOOKUP(C69,B50:CC50,B51:CC51),C69),C69)","v":43680},null,null,0.15196000000000001,null,6638,13,{"$f":"Code!CB73","v":43680},null,{"$f":"Code!CB108","v":43680},{"$f":"IF(Code!$AG$23=1,IF('SALARY TABLE'!B69>=Code!$AF$43,LOOKUP(I69,$B$50:$CC$50,$B$51:$CC$51),I69),I69)","v":43680},11,{"$f":"Code!AS74","v":0.14499999999999999},null,{"$f":"IF(Code!$AC$12=1,(N69+S69)*10%,0)","v":0},null,null,null,null,null,null,null,null,null,16450]
[20,"2017-02-01",{"$f":"IF(B16=I,HLOOKUP(Code!W3,B50:CC51,2,B51:CC51),'SALARY TABLE'!C69)","v":43680},{"$f":"ROUND(I70*$D$54,0)","v":6638},6638,0,null,null,{"$f":"IF(Code!AG18=1,IF('SALARY TABLE'!B70>=Code!AF31,LOOKUP(C70,B50:CC50,B51:CC51),C70),C70)","v":43680},null,null,0.15196000000000001,null,6638,14,{"$f":"Code!CB74","v":43680},null,{"$f":"Code!CB109","v":43680},{"$f":"IF(Code!$AG$23=1,IF('SALARY TABLE'!B70>=Code!$AF$43,LOOKUP(I70,$B$50:$CC$50,$B$51:$CC$51),I70),I70)","v":43680},12,{"$f":"Code!AS75","v":0.14499999999999999},null,{"$f":"IF(Code!$AC$12=1,(N70+S70)*10%,0)","v":0},null,null,null,null,null,null,null,null,null,16925]
[null,null,null,null,"DA",null,null,"To Zp","Total",null,null,null,null,null,null,null,null,null,null,null,null,null,null,null,null,null,null,null,null,null,null,null,17475]
[null,"EL",{"$f":"IF(Code!AC8=1,SUM(IF(Code!AD3=15,ROUND(LOOKUP(Code!AN15,'SALARY TABLE'!A57:L70,'SALARY TABLE'!L57:L70)*C19+ROUND(LOOKUP(Code!AL15,'SALARY TABLE'!B57:B70,'SALARY TABLE'!F57:F70)/2,0),ROUND(LOOKUP(Code!AN15,'SALARY TABLE'!A57:L70,'SALARY TABLE'!L57:L70)*C19+ROUND(LOOKUP(Code!AL15,'SALARY TABLE'!B57:B70,'SALARY TABLE'!F57:F70),0),0)))))","v":3318.8063999999999},null,{"$f":"LOOKUP(Code!AN15,'SALARY TABLE'!A57:L70,'SALARY TABLE'!L57:L70)","v":0.15196000000000001},{"$f":"ROUND(E72*C19,0)","v":3319},null,{"$f":"ROUND(LOOKUP(Code!AN15,'SALARY TABLE'!A57:F70,'SALARY TABLE'!F57:F70)/2,0)","v":668},{"$f":"F72+H72","v":3987},null,{"$f":"IF(Code!AD3=15,'SALARY TABLE'!F72,IF(Code!AD3=30,'SALARY TABLE'!F72,0))","v":3319},null,null,null,null,null,null,null,null,null,null,null,null,null,null,null,null,null,null,null,null,null,18025]
[null,null,null,null,null,null,null,{"$f":"ROUND(LOOKUP(Code!AN15,'SALARY TABLE'!A57:F70,'SALARY TABLE'!F57:F70),0)","v":1336},{"$f":"F72+H73","v":4655},null,null,null,null,null,null,null,null,null,null,null,null,null,null,null,null,null,null,null,null,null,null,null,18575]
[null,null,null,null,null,null,null,null,null,null,null,null,null,null,null,null,null,null,null,null,null,null,null,null,null,null,null,null,null,null,null,null,19125]
[null,null,null,null,null,null,null,null,null,null,null,null,null,null,null,null,null,null,null,null,null,null,null,null,null,null,null,null,null,null,null,null,19675]
[null,null,null,null,null,null,null,null,null,null,null,null,null,null,null,null,null,null,null,null,null,null,null,null,null,null,null,null,null,null,null,null,20300]
[null,null,null,null,null,null,null,null,null,null,null,null,null,null,null,null,null,null,null,null,null,null,null,null,null,null,null,null,null,null,null,null,20925]
[null,null,null,null,null,null,null,null,null,null,null,null,null,null,null,null,null,null,null,null,null,null,null,null,null,null,null,null,null,null,null,null,21550]
[null,null,null,null,null,null,null,null,null,null,null,null,null,null,null,null,null,null,null,null,null,null,null,null,null,null,null,null,null,null,null,null,22175]
[null,null,null,null,null,null,null,null,null,null,null,null,null,null,null,null,null,null,null,null,null,null,null,null,null,null,null,null,null,null,null,null,22800]
[null,null,null,null,null,null,null,null,null,null,null,null,null,null,null,null,null,null,null,null,null,null,null,null,null,null,null,null,null,null,null,null,23500]
[null,null,null,null,null,null,null,null,null,null,null,null,null,null,null,null,null,null,null,null,null,null,null,null,null,null,null,null,null,null,null,null,24200]
[null,null,null,null,null,null,null,null,null,null,null,null,null,null,null,null,null,null,null,null,null,null,null,null,null,null,null,null,null,null,null,null,24900]
[null,null,null,null,null,null,null,null,null,null,null,null,null,null,null,null,null,null,null,null,null,null,null,null,null,null,null,null,null,null,null,null,25600]
[null,null,null,null,null,null,null,null,null,null,null,null,null,null,null,null,null,null,null,null,null,null,null,null,null,null,null,null,null,null,null,null,26300]
[null,null,null,null,null,null,null,null,null,null,null,null,null,null,null,null,null,null,null,null,null,null,null,null,null,null,null,null,null,null,null,null,27000]
[null,null,null,null,null,null,null,null,null,null,null,null,null,null,null,null,null,null,null,null,null,null,null,null,null,null,null,null,null,null,null,null,27750]
[null,null,null,null,null,null,null,null,null,null,null,null,null,null,null,null,null,null,null,null,null,null,null,null,null,null,null,null,null,null,null,null,28500]
[null,null,null,null,null,null,null,null,null,null,null,null,null,null,null,null,null,null,null,null,null,null,null,null,null,null,null,null,null,null,null,null,29250]
[null,null,null,null,null,null,null,null,null,null,null,null,null,null,null,null,null,null,null,null,null,null,null,null,null,null,null,null,null,null,null,null,30000]
[null,null,null,null,null,null,null,null,null,null,null,null,null,null,null,null,null,null,null,null,null,null,null,null,null,null,null,null,null,null,null,null,30765]

{"sheet":"ADVANCE TAX","index":7,"n_rows":15,"n_cols":5,"rows_kept":15,"cut":false,"hidden":false,"merged":[[1,1,1,2],[6,4,8,9],[13,1,13,2]]}
[]
[null,"Advance tax"]
["2016-03-01",{"$f":"IF(Code!$AB$96=1,A3,\"Not Applicable  \")","v":"2016-03-01"}]
["2016-04-01",{"$f":"IF(Code!$AB$96=1,A4,\"Not Applicable  \")","v":"2016-04-01"}]
["2016-05-01",{"$f":"IF(Code!$AB$96=1,A5,\"Not Applicable  \")","v":"2016-05-01"}]
["2016-06-01",{"$f":"IF(Code!$AB$96=1,A6,\"Not Applicable  \")","v":"2016-06-01"}]
["2016-07-01",{"$f":"IF(Code!$AB$96=1,A7,\"Not Applicable  \")","v":"2016-07-01"},null,null,"If Advance Tax not Paid.\nClear all cell values"]
["2016-08-01",{"$f":"IF(Code!$AB$96=1,A8,\"Not Applicable  \")","v":"2016-08-01"}]
["2016-09-01",{"$f":"IF(Code!$AB$96=1,A9,\"Not Applicable  \")","v":"2016-09-01"}]
["2016-10-01",{"$f":"IF(Code!$AB$96=1,A10,\"Not Applicable  \")","v":"2016-10-01"}]
["2016-11-01",{"$f":"IF(Code!$AB$96=1,A11,\"Not Applicable  \")","v":"2016-11-01"}]
["2016-12-01",{"$f":"IF(Code!$AB$96=1,A12,\"Not Applicable  \")","v":"2016-12-01"}]
["2017-01-01",{"$f":"IF(Code!$AB$96=1,A13,\"Not Applicable  \")","v":"2017-01-01"},3000]
["2017-02-01"]
[null,null,{"$f":"SUM(C3:C14)","v":3000}]

{"sheet":"Rent Receipt","index":8,"n_rows":25,"n_cols":13,"rows_kept":25,"cut":false,"hidden":false,"merged":[[2,2,2,9],[15,4,15,6],[14,4,14,7],[25,2,25,4],[21,2,21,4],[22,2,22,4],[23,2,23,4],[24,2,24,4],[5,2,5,9],[7,2,7,9],[9,2,9,9],[16,5,16,9],[19,2,19,4],[20,2,20,4],[18,5,20,9],[3,1,3,10],[25,11,25,12],[16,11,16,12]]}
[]
[]
[null,null,"RENT RECEIPT",null,null,null,null,null,null,null,null,null,"Password"]
[null,"under section 1(13A) of income tax act.",null,null,null,null,null,null,null,null,null,null,"gsreddy"]
[]
[null,null,{"$f":"\" Received a sum of Rs. \"&12*Data!V19&\".00 per month \"&Data!V19&\"-00 \"","v":" Received a sum of Rs. 141600.00 per month 11800-00 "}]
[]
[null,null,{"$f":"\" ,being  the  rent  for the  month /\"&\"period  of March 2016 to Feb 2017 from \"","v":" ,being  the  rent  for the  month /period  of March 2016 to Feb 2017 from "}]
[]
[null,null,{"$f":"code2!G5&Data!U4&\" in  respect\"&\"of  \"&\"House  No.\"&M21&\".\"","v":"Sri.G.Bhasker in  respectof  House  No.15-274."}]
[]
[]
[]
[]
[null,null,{"$f":"\"Date:\"&DAY(M20)&\"-\"&MONTH(M20)&\"-\"&YEAR(M20)","v":"Date:2-2-2017"}]
[null,null,{"$f":"\"Place:\"&M23","v":"Place:Venkatagiri"}]
[null,null,null,null,null,"Signature of the House Owner",null,null,null,null,null,"Enter Details here"]
[]
[null,null,"Residential Address",null,null,{"$f":"\"Full Name:\"&M19","v":"Full Name:G.Sivarami Reddy"},null,null,null,null,null,"Owner Name","G.Sivarami Reddy"]
[null,null,{"$f":"\"House No.\"&M21","v":"House No.15-274"},null,null,null,null,null,null,null,null,"Date  ","2017-02-02"]
[null,null,{"$f":"IF(M22>0,M22,\" \")","v":"Potti sriramulu street"},null,null,null,null,null,null,null,null,"House No","15-274"]
[null,null,{"$f":"IF(M23>0,M23,\" \")","v":"Venkatagiri"},null,null,null,null,null,null,null,null,"Address","Potti sriramulu street"]
[null,null,{"$f":"IF(M24>0,M24,\" \")","v":"Nellore District"},null,null,null,null,null,null,null,null,null,"Venkatagiri"]
[null,null,{"$f":"IF(M25>0,\"PIN:\"&M25,\" \")","v":"PIN:524132"},null,null,null,null,null,null,null,null,null,"Nellore District"]
[null,null,{"$f":"IF(M27>0,M27,\" \")","v":" "},null,null,null,null,null,null,null,null,"Pin",524132]

{"sheet":"10 i","index":9,"n_rows":24,"n_cols":7,"rows_kept":24,"cut":false,"hidden":false,"merged":[[5,2,5,4],[6,2,6,4],[9,2,9,4],[10,2,10,4],[12,1,12,4],[1,1,1,5],[2,1,2,5],[3,1,3,5],[24,1,24,4],[20,1,20,4],[23,3,23,5],[22,3,22,4],[15,1,15,4],[16,3,17,3],[18,3,18,5],[4,2,4,3],[7,2,7,3],[8,2,8,3],[11,1,11,4],[17,4,17,5],[14,1,14,4]]}
[]
[null,"FORM NO. 10-I"]
[null,"[See rule 11DD]"]
[null,"Certificate of prescribed authority for the purposes of section 80DDB"]
[null,1,"Name of the Patient"]
[null,2,"Address"]
[null,3,"Father’s name"]
[null,4,"Name and address of the person on  whom the patient is dependent\nand his relationship with the patient."]
[null,5,"Name of the disease or ailment\n(please see rule 11DD)"]
[null,6,"For diseases  or ailments  mentioned in item (i) of clause (a) of\nsub-rule (1), whether the disability is 40% or more (Please specify\nthe extent)."]
[null,7,"Name, address, registration number and qualification of the\nspecialist issuing the certificate, along with the name and address\nof the Government  hospital [see rule 11DD(2)]"]
[null,"Verification",null,null,null,null,"Password:\ngsreddy"]
[null,"                This   is   to   verify   that  I,Dr.________________________________________________ s/o   (w/o)\nShri_____________________, in  the case of the patient Shri/Smt./Ms.________________________,  after \nconsidering  the  entire history  of  illness,  careful  examination  and  appropriate  investigations,  am  of \n the opinion  that  the  patient is   suffering from______________________________disease/ailment  during \nthe previous year ending on 31st March,_______________________"]
[]
[null,"                     I  also certify (only in  case of  neurological  disease) that the extent  of disability is  more  than 40%) (Strike off, if not applicable)."]
[null,"                                               I certify that the information furnished above is  true to the best of my knowledge."]
[null,"Date","___________"]
[null,"Place","___________",null,"Signature"]
[null,null,null,"                                                                                                     (Name and Address)"]
[]
[null,"                                                To  be  countersigned   by   the  Head  of   the  Government   hospital,   where  the  prescribed   authority  is   a specialist with post-graduate degree  in General or Internal Medicine."]
[null,"Date","___________"]
[null,"Place","___________","                                     Signature"]
[null,null,null,"                                                                         (Name and Address)"]

{"sheet":"Sections","index":10,"n_rows":59,"n_cols":4,"rows_kept":59,"cut":false,"hidden":false,"merged":[[18,1,23,1],[18,2,23,2],[18,3,23,3],[1,1,4,1],[1,2,4,2],[1,3,4,3],[5,1,11,1],[5,2,9,2],[5,3,11,3],[12,1,17,1],[12,2,14,2],[12,3,14,3],[15,2,17,2],[15,3,17,3],[24,1,25,1],[24,3,25,3],[27,1,36,1],[27,3,30,3],[37,3,57,3]]}
[]
[null,"80CCC","Payment of premia for annuity The premium must plan of LIC or any other insurer, be deposited to keep Deduction is available upto a in force a contract for maximum of Rs. 10,000","The premium must be deposited to keep in force a contract for an annuity plan of the LIC or any other insurer for receiving pension from the fund"]
[]
[]
[]
[null,"80D","Payment of medical insurance premia. Deduction is available upto Rs. 10,000","The premium is to be paid by cheque and the insurance scheme should be framed by the General Insurance Corporation of India & approved by the Central Govt. or any other insurer and approved by the regulatory authority & Development authority.The premium should be paid in respect of health insurance of the assessee or his family members"]
[]
[]
[]
[]
[]
[]
[null,"80DD ","Deduction of Rs. 40,000 in respect of a) expenditure incurred on medical treatment, (including nursing), training and rehabi­litation of a handicapped dependent relative.","The handicapped dependent should be a dependent relative suffering a perma­nent disability (including blindness) or mentally retarded, as certified by a specified physician or psychiatrist."]
[]
[]
[null,null,"b) Payment or deposit to specified scheme for maintenance of dependent handicapped relative","Note : The new section 80DD replace the earlier sections of 80DD and 80DDA which are now clubbed together under the new section."]
[]
[]
[null,"80DDB","Deduction of Rs. 40,000 in respect of medical expenditure incurred","Expenditure must be actually incurred by resident assessee on himself or dependant relative for medical treatment of specified disease or ailment. The diseases have been specified in Rule HDD. A certificate in form 101 is to be furnished by the assessee from any registered doctor"]
[]
[]
[]
[]
[]
[null,"80E","Deduction in respect of repayment of loan taken ","This provision has been introduced to provide relief to students taking loans for higher studies. The repayment of the principal amount of loan and interest thereon will be allowed as deduction upto Rs. 3.2 lakhs over a period of 8 years."]
[null,null,"upto Rs. 40,000 per year."]
[null,"80G","Donations to certain funds,charitable institutions etc.","The various donations specified in Sec.80G are eligible for deduction upto either 100% or 50% with or without restriction as provided in Sec 80G"]
[null,"80GG","Deduction available is the least of","1) Assessee or his total spouse or minor child should not own residential accommodation   at the place of employment. "]
[]
[null,null,"(i) Rent paid less 10% of total income"]
[null,null,"(ii) Rs. 2,000 per month"]
[null,null,"(iii) 25% of total income","2)  He should not be"]
[null,null,null,"in  receipt  of house"]
[null,null,null,"rent allowance."]
[null,null,null,"3)   He   should   not"]
[null,null,null,"have a self occupied"]
[null,null,null,"residential premises in any other place"]
[null,"80L","Interest/Dividend/Income from :","Rs. 9000 plus an addition deduction of Rs. 3000 allowed in respect of interest on any Central/State Govt. Securities"]
[null,null,"a) any Govt. Security (Central or State)"]
[null,null,"b) NSC, VI, VII & VIII issues "]
[null,null,"c)Notified  debentures   of public sector undertakings,"]
[null,null,"cooperative societies/Land mortgage bank or land "]
[null,null,"development bank."]
[null,null,"d)  Notified   National   Deposit Scheme"]
[null,null,"e)  Any other deposit Scheme framed"]
[null,null,"by Central Govt. and notified."]
[null,null,"f)  Deposit   under   Post   Office Monthly Income"]
[null,null,"Account   rules,1987"]
[null,null,"g)    deposits with banking companies, banking co-op,"]
[null,null,"societie, land mortgage or land development bank."]
[null,null,"h) deposits with banks established under any law made by Parliament."]
[null,null,"i)     Deposits   with     financial corporations approved by Central Government "]
[null,null,"j)   Deposits   with   any   authority constituted in India under any law for   planning,development   or  improvement of cities, towns and villages etc."]
[null,null,"k) Deposits with co-op. Societies."]
[null,null,"1)   Deposits,   with   any   public companies   providing   long   term finance for construction or purchase of houses."]
[null,null,"m) Income from U.T.I."]
[null,null,"n) Income from Units of Mutual Fund specified under clause (23D) of Sec. 10."]
[]
[null,"80U","Deduction of Rs. 40,000/- to an individual who suffers from a physical disability (including blindness) or mental retardation","Certificate should be obtained from a Govt. Doctor. The relevant rule is Rule 11D."]

{"sheet":"FORM 16","index":11,"n_rows":144,"n_cols":13,"rows_kept":144,"cut":false,"hidden":false,"merged":[[14,11,14,12],[53,2,53,5],[147,2,147,5],[147,6,147,7],[147,8,147,9],[148,2,148,5],[148,6,148,7],[148,8,148,9],[144,2,144,5],[144,6,144,7],[144,8,144,9],[146,2,146,5],[146,6,146,7],[146,8,146,9],[142,2,142,5],[142,6,142,7],[142,8,142,9],[143,2,143,5],[143,6,143,7],[143,8,143,9],[140,2,140,5],[140,6,140,7],[140,8,140,9],[141,2,141,5],[141,6,141,7],[141,8,141,9],[138,2,138,5],[138,6,138,7],[138,8,138,9],[139,2,139,5],[139,6,139,7],[139,8,139,9],[136,2,136,5],[136,6,136,7],[136,8,136,9],[137,2,137,5],[137,6,137,7],[137,8,137,9],[134,2,134,5],[134,6,134,7],[134,8,134,9],[135,2,135,5],[135,6,135,7],[135,8,135,9],[132,2,132,5],[132,6,132,7],[132,8,132,9],[133,2,133,5],[133,6,133,7],[133,8,133,9],[129,1,130,1],[129,2,130,5],[129,6,129,10],[130,6,130,7],[130,8,130,9],[131,2,131,5],[131,6,131,7],[131,8,131,9],[120,2,120,5],[121,2,121,5],[122,2,122,5],[126,1,126,10],[127,1,127,10],[128,1,128,10],[115,2,115,5],[116,2,116,5],[117,2,117,5],[118,2,118,5],[119,2,119,5],[110,2,110,5],[111,2,111,5],[112,2,112,5],[113,2,113,5],[114,2,114,5],[107,1,107,10],[108,6,108,10],[109,6,109,7],[109,8,109,9],[84,1,84,3],[84,4,84,5],[84,7,84,10],[85,7,85,10],[85,1,85,4],[85,5,85,6],[77,1,77,10],[83,1,83,3],[83,4,83,5],[83,7,83,10],[73,2,73,5],[74,2,74,5],[76,2,76,4],[105,1,105,10],[106,1,106,10],[70,2,70,6],[71,2,71,5],[72,2,72,5],[64,2,64,5],[67,2,67,5],[65,2,65,5],[66,2,66,5],[68,2,68,6],[69,2,69,5],[58,9,58,10],[59,9,59,10],[60,9,60,10],[61,9,61,10],[62,9,62,10],[63,2,63,6],[63,9,63,10],[54,2,54,5],[54,9,54,10],[55,2,55,6],[55,9,55,10],[56,9,56,10],[57,9,57,10],[49,9,49,10],[50,2,50,5],[50,9,50,10],[51,2,51,5],[51,9,51,10],[52,2,52,5],[52,9,52,10],[40,2,40,6],[41,2,41,6],[42,2,42,6],[43,2,43,6],[48,2,48,6],[49,2,49,6],[34,3,34,5],[35,3,35,5],[37,3,37,5],[38,3,38,5],[39,2,39,5],[27,2,27,5],[28,2,28,5],[29,2,29,5],[30,2,30,5],[31,2,31,5],[32,2,32,6],[36,3,36,5],[25,3,25,5],[26,2,26,6],[19,1,19,10],[20,1,20,10],[21,2,21,6],[21,9,21,10],[22,3,22,6],[22,9,22,10],[33,2,33,5],[15,7,15,8],[15,9,15,10],[16,1,16,3],[16,4,16,6],[16,7,16,8],[16,9,16,10],[23,3,23,6],[23,9,23,10],[24,3,24,6],[24,9,24,10],[1,1,1,10],[2,1,2,10],[3,1,3,10],[4,1,4,10],[5,1,5,6],[5,7,5,10],[13,1,13,10],[14,1,14,3],[14,4,14,6],[14,7,14,8],[14,9,14,10],[9,1,9,6],[9,7,9,8],[9,9,9,10],[10,7,11,7],[10,8,11,8],[11,1,11,6],[10,1,10,6],[12,1,12,4],[12,5,12,6],[10,11,10,12],[108,1,109,1],[108,2,109,5],[78,1,81,10],[87,1,87,2],[131,12,140,12],[6,1,6,6],[7,1,7,4],[7,5,7,6],[7,7,7,10],[8,1,8,4],[8,5,8,6],[8,7,8,10],[6,7,6,10],[17,1,17,3],[17,4,17,6],[17,7,17,8],[17,9,17,10],[18,1,18,3],[18,4,18,6],[18,7,18,8],[18,9,18,10],[15,1,15,3],[15,4,15,6]]}
[]
[null,"FORM NO.16"]
[null,"[See rule 31(1)(a)]"]
[null,"Certificate under section 203 of the Income-tax Act, 1961 for Tax deducted at source on Salary "]
[null,"PART- A"]
[null,"Name and address of the Deductor",null,null,null,null,null,"Name and designation of the employee"]
[null,{"$f":"CONCATENATE(code2!G6,\" \",M12)","v":"Smt. B.Sreelakshmi"},null,null,null,null,null,{"$f":"CONCATENATE(code2!G5,UPPER(Data!U4),\"\",'INCOME TAX'!J5)","v":"Sri.G.BHASKER"}]
[null,"PAN NO.of  Deductor",null,null,null,"TAN No.of the Deductor",null,"PAN NO. of the Employee"]
[null,{"$f":"IF(M13=0,\" \",M13)","v":"AGJPB9123C"},null,null,null,{"$f":"IF(M14=0,\" \",M14)","v":"HYDZ05638D"},null,{"$f":"Data!U6","v":"AKRPG8547M"}]
[null,"CIT (TDS)",null,null,null,null,null,"Assessment Year",null,"Period"]
[null,{"$f":"\"Address:\"&M17&\",\"&M16","v":"Address:Headmaster,ZPHS,Venkatagiri"},null,null,null,null,null,{"$f":"RIGHT(Data!Q3,4)","v":"2017"},{"$f":"H11+1","v":2018},"From                                                                                                                                                                                                                         ","To                                                                                                                                                                                                                         ","Enter Details I Green color cells"]
[null,null,null,null,null,null,null,null,null,{"$f":"\"March \"&H11-1","v":"March 2016"},{"$f":"\"Feb \"&H11","v":"Feb 2017"},"DDO Name","B.Sreelakshmi"]
[null,"City:",null,null,null,{"$f":"\"Pin Code:\"&M18","v":"Pin Code:524132"},null,null,null,null,null,"DDO PAN No.","AGJPB9123C"]
[null,"Summary of tax deducted at source",null,null,null,null,null,null,null,null,null,"DDO TAN No.","HYDZ05638D"]
[null,"Quarter",null,null,"Receipt Numbers of original statements of TDS under sub-section (3) of section 200",null,null,"Amount of tax deducted in respect of the employee",null,"Amount of tax deposited remitted in respect of the employee"]
[null,"Q 1",null,null,null,null,null,{"$f":"IF(SUM('ADVANCE TAX'!C3:C5)>0,\"Rs.\"&SUM('ADVANCE TAX'!C3:C5)&\".00\",\" \")","v":" "},null,{"$f":"H16","v":" "},null,"DDO Office","ZPHS,Venkatagiri"]
[null,"Q 2",null,null,null,null,null,{"$f":"IF(SUM('ADVANCE TAX'!C6:C8)>0,\"Rs.\"&SUM('ADVANCE TAX'!C6:C8)&\".00\",\" \")","v":" "},null,{"$f":"H17","v":" "},null,"Designation","Headmaster"]
[null,"Q 3",null,null,null,null,null,{"$f":"IF(SUM('ADVANCE TAX'!C9:C11)>0,\"Rs.\"&SUM('ADVANCE TAX'!C9:C11)&\".00\",\" \")","v":" "},null,{"$f":"H18","v":" "},null,"PIN code",524132]
[null,"Q 4",null,null,null,null,null,{"$f":"IF(SUM('ADVANCE TAX'!C12:C14)>0,\"Rs.\"&SUM('ADVANCE TAX'!C12:C14)&\".00\",\" \")","v":"Rs.3000.00"},null,{"$f":"H19","v":"Rs.3000.00"}]
[null,"PART- B (Refer Note 1)"]
[null,"Details of Salary paid and any other income and tax deducted"]
[null,1,"Gross Salary ",null,null,null,null,"IN RUPEES","IN RUPEES","IN RUPEES"]
[null,null,"(a) ","Salary as per provisions contained in section 17(1)",null,null,null,{"$f":"'SALARY TABLE'!Q30","v":720026}]
[null,null,"(b) ","Value of perquisites under section 17(2)(as per Form No. 12BA,wherever applicable)",null,null,null,0]
[null,null,"(c) ","Profits in lieu of salary under section 17(3)(as per Form No. 12BA, wherever applicable)",null,null,null,0]
[null,null,"(d) ","TOTAL",null,null,null,null,{"$f":"SUM(H23:H25)","v":720026}]
[null,2,"Less: Exempted Allowance u/s 10"]
[null,null,"Allowance",null,null,null,"Rs."]
[null,"(i)","H.R.A Exemption",null,null,null,{"$f":"'INCOME TAX'!O22","v":77342},"Rs.",{"$f":"G29","v":77342},null,null,null,"Password"]
[null,"(ii)","Convences Allowances Exemp",null,null,null,{"$f":"'SALARY TABLE'!P30","v":0},null,null,null,null,null,"gsreddy"]
[null,"(iii)","Childr Edu Allownc Exemp",null,null,null,{"$f":"'SALARY TABLE'!Q24","v":0}]
[null,"(v)","Medical Reimbursment Exemp"]
[null,3,"Balance(1-2) ",null,null,null,null,"Rs.",{"$f":"I26-SUM(G29:G32)","v":642684}]
[null,4,"Deductions : "]
[null,null,"(a) ","H.B.Loan Int.(Max-1,50,000/-)      u/s 24(B)",null,null,{"$f":"Data!V53","v":0}]
[null,null,"(b)","Tax on employment",null,null,{"$f":"'SALARY TABLE'!W30","v":2400}]
[null,null,"(c)","Leave Travel Allowances"]
[null,null,"(d)","T.W.F/E.W.F/S.W.F/FLAGFUND",null,null,{"$f":"'INCOME TAX'!$K$31","v":40}]
[null,null,"(e)","CM Relief",null,null,{"$f":"'INCOME TAX'!K29","v":0}]
[null,5,"Aggregate of 4(a) to (f)",null,null,null,null,{"$f":"SUM(G35:G39)","v":2440}]
[null,6,"Income chargeable under the head 'salaries'                                                                                                                                                    (3-5) ",null,null,null,null,null,{"$f":"I33-H40","v":640244}]
[null,7,"Add: Any other income reported by the employee "]
[null,null,"a)Income form N.S.C./Bank int.etc.",null,null,null,null,"Rs.",0]
[null,8,"Gross total income (6+7) ",null,null,null,null,null,"Rs.",{"$f":"I41+I43","v":640244}]
[]
[]
[]
[]
[null,9,"Deductions under Chapter VIA "]
[null,"A"," U/s 80C (Aggregate amount Max.Rs.1,50,000/-)                                     ",null,null,null,null,null,"Gross Amount","Deductible Amount Rs."]
[null,null,{"$f":"\"(a)(i)Sec.80C-\"&'SALARY TABLE'!R4","v":"(a)(i)Sec.80C-ZPPF"},null,null,null,"Rs.",{"$f":"'SALARY TABLE'!R30","v":109996}]
[null,null,"(ii) G.I.S.",null,null,null,"Rs.",{"$f":"'SALARY TABLE'!S30","v":720}]
[null,null,"(iii) L.I.C.+P,L.I.+U.LIP+Tuition Fees+NSC+Tax Savings Bond etc",null,null,null,"Rs.",{"$f":"'SALARY TABLE'!T30+Data!T38+Data!V43+Data!V44+Data!V42+Data!V46+Data!V47+Data!V48+Data!V49+Data!V50","v":44592}]
[null,null,"(iv) APGLI( S & L )",null,null,null,"Rs.",{"$f":"'SALARY TABLE'!U30","v":13800}]
[null,null,"(v) H.B.LOAN(PRINCIPAL)",null,null,null,"Rs.",{"$f":"Data!V41","v":0},{"$f":"SUM(H51:H55)","v":169108},{"$f":"IF(I55<=150000,I55,150000)","v":150000}]
[null,"B"," Other sections e.g.,80E,80G,etc under chapter VI A",null,null,null,null,"Gross Amount","Qualify amount","Deductible Amount Rs."]
[null,null,"(a)","Section",null,"80 E","Rs.",{"$f":"'INCOME TAX'!K58","v":0},{"$f":"H57","v":0}]
[null,null,"(b)","Section",null,"80 G","Rs.",{"$f":"Data!V55","v":0},0]
[null,null,"( c )","Section",null,"80U","Rs.",0,0]
[null,null,"(d) ","Section",null,"80DD","Rs.",{"$f":"Data!V56","v":0},0]
[null,null,"(e) ","Section",null,"80D","Rs.",{"$f":"'INCOME TAX'!K61+'INCOME TAX'!K59","v":1440},1440]
[null,null,"f)","Section",null,"80CC","Rs.",0,0]
[null,null,"G)","Section",null,"80DDB","Rs.",{"$f":"Data!V57","v":0}]
[null,10,"Aggregate of deductible amount under Chap. VIA ",null,null,null,null,null,null,{"$f":"J55+SUM(H57:H63)","v":151440}]
[null,11,"Total Income",null,null,null,null,null,null,null,{"$f":"IF(I55>150000,J44-150000-I61,J44-I61-I55)","v":488804}]
[null,12,{"$f":"'INCOME TAX'!$C$64","v":"No Tax for income upto Rs.250000"},null,null,null,null,null,null,null,{"$f":"'INCOME TAX'!O64","v":250000}]
[null,13,"Final Tax Amount",null,null,null,null,null,null,null,{"$f":"IF((K65-K66)<0,\"Nil\",ROUND(K65-K66,-1))","v":238800}]
[null,14,"Tax on total income ",null,null,null,null,null,null,null,{"$f":"'INCOME TAX'!O66","v":23880}]
[null,15,"Tax examption(See: S.No:11 below 5 laksh examption tax Rs.2000)",null,null,null,null,null,null,null,{"$f":"IF(K67=\"Nil\",\"Nil\",IF(K65<=500000,2000,\"Nil\"))","v":2000}]
[null,16,"Tax Payable (14)-(15)",null,null,null,null,null,null,null,{"$f":"IF(K68=\"Nil\",IF(K69=\"Nil\",\"Nil\",IF(K68<>\"Nil\",IF(K69=\"Nil\",K68,K68-K69))),IF(K69<>\"Nil\",K68-K69,K68))","v":21880}]
[null,17,"Education & cess @3% on col.no.12",null,null,null,null,null,null,null,{"$f":"IF(K67=\"Nil\",\"Nil\",'INCOME TAX'!O69+'INCOME TAX'!O70)","v":567}]
[null,18,"Tax payable (16+17) ",null,null,null,null,null,null,null,{"$f":"IF(K71=\"Nil\",\"Nil\",K70+K71)","v":22447}]
[null,19,"Less Relief U/s 89(1)(attach details)",null,null,null,null,null,null,null,0]
[null,20,"Tax payable/refundable",null,null,null,null,null,null,null,{"$f":"IF(K68=\"Nil\",\"Nil\",ROUND(K72-J73,0))","v":22447}]
[null,21,"Less (a) Tax deducted at source",null,null,null,null,null,null,null,{"$f":"IF(K67=\"Nil\",\"Nil\",SUM('ADVANCE TAX'!C3:C14))","v":3000}]
[]
[null,22,"Net Tax",null,null,{"$f":"IF(K75=\"nil\",\" \",IF(K74<=K75,\"Refundable\",))","v":0},null,null,null,null,{"$f":"'INCOME TAX'!O74","v":16447}]
[null,"Verification"]
[null,{"$f":"\"                                    I \"&B7&\" working in the capacity of \"&M17&\"(designation) do hereby certify that a sum of \"&K77&\" (Rupees:\"&code2!D36&\") has been deducted  and deposited to the credit of the Central Governement. I further certifify that the information given about is true, complete and correct and is based on the books of account, documents, \"&\"TDS statement ,TDS deposited and other available records.\"","v":"                                    I Smt. B.Sreelakshmi working in the capacity of Headmaster(designation) do hereby certify that a sum of 16447 (Rupees:Sixteen Thousand Four Hundred and Forty seven rupees only) has been deducted  and deposited to the credit of the Central Governement. I further certifify that the information given about is true, complete and correct and is based on the books of account, documents, TDS statement ,TDS deposited and other available records."}]
[]
[]
[]
[]
[null,"Place:-"]
[null,"Date:-",null,null,null,null,null,"Signature of person responsible for deduction of tax"]
[null,"Designation:",null,null,null,{"$f":"M17","v":"Headmaster"},null,{"$f":"\"Full Name:-\"&UPPER(M12)","v":"Full Name:-B.SREELAKSHMI"}]
[]
[null,"Note:-"]
[null,null,1,"If an assessee is employed under more than one employer during the year, each of the employers shall issue Part A"]
[null,null,"       of the certificate in Form No. 16 pertaining to the period for which such assessee was employed with "]
[null,null,"       each of the employers. Part B may be issued by each of the employers or the last employer at the "]
[null,null,"       option of the assessee."]
[null,null,2,"Government deductors to enclose Annexure-A if tax is paid without production of an income-tax "]
[null,null,null,"challan and Annexure-B if tax is paid accomanied by an income-tax challan."]
[]
[null,null,3,"Non-Government deducto5rs to enclose Annexure-B"]
[]
[null,null,4,"The deductor shall furnish the address of the Commissioner of Income-tax(TDS) having jurisdiction"]
[null,null,null,"as regards TDS statements of the assesee."]
[]
[null,null,5,"This Form shall be applicable only in respect of tax deducted on or after 1st day of April, 2010."]
[]
[]
[]
[]
[null,"ANNEXURE-A"]
[null,"DETAILS OF TAX DEDUCTED AND DEPOSITED IN THE CENT5RAL GOVERNMENT ACCOUNT THROUGH BOOK ENTRY"]
[null,"(The Employer to provide payment wise details of tax deducted and deposited with respect to the employee)"]
[null,"Sl.No","Tax Deposited in respefct on of the employee (Rs.)",null,null,null,"Book  Identification Number (BIN)"]
[null,null,null,null,null,null,"Receipt Numbers of                 Form    No 24G",null,"DDO Sequence Number in the Book Adjustment Mini Statement",null,"Date on which tax deposited (dd/mm/yy)"]
[]
[]
[]
[]
[]
[]
[]
[]
[]
[]
[]
[]
[null,null,"Note:-"]
[null,null,"1. In the column for TDS, give total amount for TDS,Surcharge(if applicable) and education cess."]
[]
[]
[null,"ANNEXURE-B"]
[null,"DETAILS OF TAX DEDUCTED  AND DEPOSITED IN THE CENTRAL GOVERNMENT ACCOUNT THROUGH CHALLAN"]
[null,"(The Employer to provide payment wise details of tax deducted and deposited with respect to employee)"]
[null,"Sl.No","Tax Deposited in respect on of the employee (Rs.)",null,null,null,"Challan Identification Number ( C I N )"]
[null,null,null,null,null,null,"BSR Code of the Bank Branch",null,"Date on which tax deposited  (dd/mm/yy)",null,"Challan Serial Number"]
[null,1,{"$f":"IF('ADVANCE TAX'!C3>0,\"Rs.\"&'ADVANCE TAX'!C3&\".00\",\" \")","v":" "},null,null,null,null,null,null,null,null,null,"Enter details of Challan here"]
[null,2,{"$f":"IF('ADVANCE TAX'!C4>0,\"Rs.\"&'ADVANCE TAX'!C4&\".00\",\" \")","v":" "}]
[null,3,{"$f":"IF('ADVANCE TAX'!C5>0,\"Rs.\"&'ADVANCE TAX'!C5&\".00\",\" \")","v":" "}]
[null,4,{"$f":"IF('ADVANCE TAX'!C6>0,\"Rs.\"&'ADVANCE TAX'!C6&\".00\",\" \")","v":" "}]
[null,5,{"$f":"IF('ADVANCE TAX'!C7>0,\"Rs.\"&'ADVANCE TAX'!C7&\".00\",\" \")","v":" "}]
[null,6,{"$f":"IF('ADVANCE TAX'!C8>0,\"Rs.\"&'ADVANCE TAX'!C8&\".00\",\" \")","v":" "}]
[null,7,{"$f":"IF('ADVANCE TAX'!C9>0,\"Rs.\"&'ADVANCE TAX'!C9&\".00\",\" \")","v":" "}]
[null,8,{"$f":"IF('ADVANCE TAX'!C10>0,\"Rs.\"&'ADVANCE TAX'!C10&\".00\",\" \")","v":" "}]
[null,9,{"$f":"IF('ADVANCE TAX'!C11>0,\"Rs.\"&'ADVANCE TAX'!C11&\".00\",\" \")","v":" "}]
[null,10,{"$f":"IF('ADVANCE TAX'!C12>0,\"Rs.\"&'ADVANCE TAX'!C12&\".00\",\" \")","v":" "}]
[null,11,{"$f":"IF('ADVANCE TAX'!C13>0,\"Rs.\"&'ADVANCE TAX'!C13&\".00\",\" \")","v":"Rs.3000.00"}]
[null,12,{"$f":"IF('ADVANCE TAX'!C14>0,\"Rs.\"&'ADVANCE TAX'!C14&\".00\",\" \")","v":" "}]
[null,"Total",{"$f":"\"Rs.\"&SUM('ADVANCE TAX'!C3:C14)&\".00\"","v":"Rs.3000.00"}]

{"sheet":"Steps","index":12,"n_rows":37,"n_cols":3,"rows_kept":37,"cut":false,"hidden":false,"merged":[[36,2,36,6],[18,2,18,13],[20,2,20,13],[22,2,22,13],[24,2,24,13],[26,2,26,13],[29,2,29,13],[4,2,4,13],[2,2,2,13],[31,2,31,13],[33,2,33,13],[35,2,35,12],[6,2,6,13],[8,2,8,13],[11,2,11,13],[13,2,13,13],[15,2,15,13]]}
[]
[]
[null,null,"Steps of Computation of Income tax for Individuals and HUFs for the Assessment Year 2016-17"]
[]
[null,null,"Calculate Your Income Tax Liability for the Financial Year 2014-15 with following simple steps"]
[]
[null,null,"Step I :Calculate your Gross Income for the Financial Year 2016-17"]
[]
[null,null,"Procedure to calculate your Gross Income of the year=Monthly Income multiplied by number of months of "]
[null,null,"the year income received (i.e. Monthly Income X 12)"]
[]
[null,null,"Step II :Investments/ Deductions u/s 80C, 80CCC, 80CCD & 80D for self / family 80D for parents And Other deduction"]
[]
[null,null,"Step III :Deduction under Section 80G:"]
[]
[null,null,"Calculate the various donations made during the year specified in Sec. 80G are eligible for deduction upto either 100% or 50% "]
[null,null,"with or without restriction as provided in Sec. 80G"]
[]
[null,null,"Step IV :Computation of Taxable Income as per Income Tax Act"]
[]
[null,null,"Please calculate taxable income with following simple steps"]
[]
[null,null,"Amount arrived at above Step I - ( Amount arrived at above Step II + Amount arrived at above Step III)=Taxable Income"]
[]
[null,null,"Step V :Calculation of Income Tax"]
[]
[null,null,"For calculation of Income tax on taxable income please refer to the tax rates / slabs as under according "]
[null,null,"to your income and calculate your Income tax."]
[]
[null,null,"Step VI:Education Cess"]
[]
[null,null,"Education Cess is 3 % of income tax arrived at step V"]
[]
[null,null,"Step VII:Calculate total Income Tax Liability"]
[]
[null,null,"Please add amount of Education Cess arrived at step VI to the amount of Income tax arrived at Step V to calculate "]
[null,null,"Total amount of Income Tax payable"]

{"sheet":"DA S0FTWARE","index":13,"n_rows":47,"n_cols":24,"rows_kept":47,"cut":false,"hidden":false,"merged":[[44,9,44,15],[45,1,45,15],[46,1,46,15],[33,9,35,9],[35,1,37,1],[36,9,39,9],[38,1,40,1],[40,9,42,9],[41,1,43,1],[43,9,43,15],[20,1,22,1],[21,9,23,9],[23,1,25,1],[24,9,26,9],[26,1,28,1],[27,9,29,9],[29,1,31,1],[30,9,32,9],[32,1,34,1],[1,1,1,3],[2,1,2,15],[2,17,2,18],[3,8,44,8],[3,17,3,18],[8,17,8,18],[9,9,11,9],[11,1,13,1],[12,9,14,9],[12,17,12,18],[13,17,13,18],[14,1,16,1],[15,9,17,9],[15,17,15,18],[17,1,19,1],[18,9,20,9],[3,20,17,21],[4,1,7,1],[4,9,5,9],[6,9,8,9],[8,1,10,1]]}
[]
[]
[null,{"$f":"CONCATENATE(\"D.A enhanced from \",S6*100,\"%  to \",S5*100,\"%. \",\"Enhancement : \",(S5-S6)*100,\"% \",\"The D.A arrears from \",DAY(DATE('DA code'!M8,'DA code'!K8,1)),\"-\",MONTH(DATE('DA code'!M8,'DA code'!K8,1)),\"-\",YEAR(DATE('DA code'!M8,'DA code'!K8,1)),\" to \",IF('DA code'!R8=3,'DA code'!Q6,CONCATENATE('DA code'!R4,\"-\",'DA code'!O8,\"-\",'DA code'!Q8)),\" will be adjusted to the \",'DA code'!S8,\" Accounts. Cash will be paid from \",IF('DA code'!R8=3,'DA code'!Q6,CONCATENATE(DAY('DA code'!T22),\"-\",MONTH('DA code'!T22),\"-\",YEAR('DA code'!T22))))","v":"D.A enhanced from 12.052%  to 15.196%. Enhancement : 3.144% The D.A arrears from 1-7-2015 to 31-7-2016 will be adjusted to the ZPPF Accounts. Cash will be paid from 1-8-2016"}]
[null,"Increment Rate","Basic Pay  ",{"$f":"CONCATENATE(\"D.A To be Drawn (\",S5*100,\"%)\")","v":"D.A To be Drawn (15.196%)"},{"$f":"CONCATENATE(\"D.A already Drawn (\",S6*100,\"%)\")","v":"D.A already Drawn (12.052%)"},{"$f":"CONCATENATE(\"difference (\",(S5-S6)*100,\"%)\")","v":"difference (3.144%)"},{"$f":"CONCATENATE('DA code'!S8,\":\",'DA code'!K8,\"/\",RIGHT('DA code'!M8,2),\" to \",'DA code'!W25,\"    (\",'DA code'!P23,\" months)\")","v":"ZPPF:7/15 to 7/16    (13 months)"},{"$f":"CONCATENATE(\"CASH:\",\" \",'DA code'!W8,\"/\",'DA code'!Q8,\"             (\",'DA code'!U8,\" months)\")","v":"CASH: 8/2016             (1 months)"},null,"Increment Rate",{"$f":"C4","v":"Basic Pay  "},"D.A To be Drawn (15.196%)","D.A already Drawn (12.052%)","difference (3.144%)",{"$f":"G4","v":"ZPPF:7/15 to 7/16    (13 months)"},"CASH: 8/2016             (1 months)",null,"D.A\n(For Print Use legal Pepar)",null,null,"Edit only Green color cells"]
[null,200,{"$f":"'DA code'!H2","v":13000},{"$f":"ROUND((C5*S5),0)","v":1975},{"$f":"ROUND((C5*S6),0)","v":1567},{"$f":"D5-E5","v":408},{"$f":"ROUND((F5*'DA code'!$P$23),0)","v":5304},{"$f":"ROUND((F5*'DA code'!$U$8),0)","v":408},null,570,{"$f":"'DA code'!H43","v":41380},{"$f":"ROUND((K5*$S$5),0)","v":6288},{"$f":"ROUND((K5*$S$6),0)","v":4987},{"$f":"L5-M5","v":1301},{"$f":"ROUND((N5*'DA code'!$P$23),0)","v":16913},{"$f":"ROUND((N5*'DA code'!$U$8),0)","v":1301},null,"To Be",0.15196000000000001]
[null,null,{"$f":"'DA code'!H3","v":13390},{"$f":"ROUND((C6*S5),0)","v":2035},{"$f":"ROUND((C6*S6),0)","v":1614},421,{"$f":"ROUND((F6*'DA code'!$P$23),0)","v":5473},{"$f":"ROUND((F6*'DA code'!$U$8),0)","v":421},null,null,{"$f":"'DA code'!H44","v":42490},{"$f":"ROUND((K6*$S$5),0)","v":6457},{"$f":"ROUND((K6*$S$6),0)","v":5121},1336,{"$f":"ROUND((N6*'DA code'!$P$23),0)","v":17368},{"$f":"ROUND((N6*'DA code'!$U$8),0)","v":1336},null,"Already",0.12052]
[null,null,{"$f":"'DA code'!H4","v":13780},{"$f":"ROUND((C7*S5),0)","v":2094},{"$f":"ROUND((C7*S6),0)","v":1661},433,{"$f":"ROUND((F7*'DA code'!$P$23),0)","v":5629},{"$f":"ROUND((F7*'DA code'!$U$8),0)","v":433},null,610,{"$f":"'DA code'!H45","v":43680},6638,5264,1374,{"$f":"ROUND((N7*'DA code'!$P$23),0)","v":17862},{"$f":"ROUND((N7*'DA code'!$U$8),0)","v":1374}]
[null,null,{"$f":"'DA code'!H5","v":14170},{"$f":"ROUND((C8*S5),0)","v":2153},{"$f":"ROUND((C8*S6),0)","v":1708},445,{"$f":"ROUND((F8*'DA code'!$P$23),0)","v":5785},{"$f":"ROUND((F8*'DA code'!$U$8),0)","v":445},null,null,{"$f":"'DA code'!H46","v":44870},6818,5408,1410,{"$f":"ROUND((N8*'DA code'!$P$23),0)","v":18330},{"$f":"ROUND((N8*'DA code'!$U$8),0)","v":1410}]
[null,220,{"$f":"'DA code'!H6","v":14600},{"$f":"ROUND((C9*S5),0)","v":2219},{"$f":"ROUND((C9*S6),0)","v":1760},459,{"$f":"ROUND((F9*'DA code'!$P$23),0)","v":5967},{"$f":"ROUND((F9*'DA code'!$U$8),0)","v":459},null,null,{"$f":"'DA code'!H47","v":46060},6999,5551,1448,{"$f":"ROUND((N9*'DA code'!$P$23),0)","v":18824},{"$f":"ROUND((N9*'DA code'!$U$8),0)","v":1448}]
[null,null,{"$f":"'DA code'!H7","v":15030},{"$f":"ROUND((C10*S5),0)","v":2284},{"$f":"ROUND((C10*S6),0)","v":1811},473,{"$f":"ROUND((F10*'DA code'!$P$23),0)","v":6149},{"$f":"ROUND((F10*'DA code'!$U$8),0)","v":473},null,650,{"$f":"'DA code'!H48","v":47330},7192,5704,1488,{"$f":"ROUND((N10*'DA code'!$P$23),0)","v":19344},{"$f":"ROUND((N10*'DA code'!$U$8),0)","v":1488},null,"To ZPPF","              TO"]
[null,null,{"$f":"'DA code'!H8","v":15460},{"$f":"ROUND((C11*S5),0)","v":2349},{"$f":"ROUND((C11*S6),0)","v":1863},486,{"$f":"ROUND((F11*'DA code'!$P$23),0)","v":6318},{"$f":"ROUND((F11*'DA code'!$U$8),0)","v":486},null,null,{"$f":"'DA code'!H49","v":48600},7385,5857,1528,{"$f":"ROUND((N11*'DA code'!$P$23),0)","v":19864},{"$f":"ROUND((N11*'DA code'!$U$8),0)","v":1528},null,"CASH"]
[null,240,{"$f":"'DA code'!H9","v":15930},{"$f":"ROUND((C12*S5),0)","v":2421},{"$f":"ROUND((C12*S6),0)","v":1920},501,{"$f":"ROUND((F12*'DA code'!$P$23),0)","v":6513},{"$f":"ROUND((F12*'DA code'!$U$8),0)","v":501},null,null,{"$f":"'DA code'!H50","v":49870},7578,6010,1568,{"$f":"ROUND((N12*'DA code'!$P$23),0)","v":20384},{"$f":"ROUND((N12*'DA code'!$U$8),0)","v":1568}]
[null,null,{"$f":"'DA code'!H10","v":16400},{"$f":"ROUND((C13*S5),0)","v":2492},{"$f":"ROUND((C13*S6),0)","v":1977},515,{"$f":"ROUND((F13*'DA code'!$P$23),0)","v":6695},{"$f":"ROUND((F13*'DA code'!$U$8),0)","v":515},null,700,{"$f":"'DA code'!H51","v":51230},7785,6174,1611,{"$f":"ROUND((N13*'DA code'!$P$23),0)","v":20943},{"$f":"ROUND((N13*'DA code'!$U$8),0)","v":1611},null,"Teacher's Union Name",null,null,null,null,null,{"$f":"UPPER(R14)","v":"APYSRTF"}]
[null,null,{"$f":"'DA code'!H11","v":16870},{"$f":"ROUND((C14*S5),0)","v":2564},{"$f":"ROUND((C14*S6),0)","v":2033},531,{"$f":"ROUND((F14*'DA code'!$P$23),0)","v":6903},{"$f":"ROUND((F14*'DA code'!$U$8),0)","v":531},null,null,{"$f":"'DA code'!H52","v":52590},7992,6338,1654,{"$f":"ROUND((N14*'DA code'!$P$23),0)","v":21502},{"$f":"ROUND((N14*'DA code'!$U$8),0)","v":1654},null,"apysrtf"]
[null,260,{"$f":"'DA code'!H12","v":17380},{"$f":"ROUND((C15*S5),0)","v":2641},{"$f":"ROUND((C15*S6),0)","v":2095},546,{"$f":"ROUND((F15*'DA code'!$P$23),0)","v":7098},{"$f":"ROUND((F15*'DA code'!$U$8),0)","v":546},null,null,{"$f":"'DA code'!H53","v":53950},8198,6502,1696,{"$f":"ROUND((N15*'DA code'!$P$23),0)","v":22048},{"$f":"ROUND((N15*'DA code'!$U$8),0)","v":1696}]
[null,null,{"$f":"'DA code'!H13","v":17890},{"$f":"ROUND((C16*S5),0)","v":2719},{"$f":"ROUND((C16*S6),0)","v":2156},563,{"$f":"ROUND((F16*'DA code'!$P$23),0)","v":7319},{"$f":"ROUND((F16*'DA code'!$U$8),0)","v":563},null,750,{"$f":"'DA code'!H54","v":55410},8420,6678,1742,{"$f":"ROUND((N16*'DA code'!$P$23),0)","v":22646},{"$f":"ROUND((N16*'DA code'!$U$8),0)","v":1742},null,"DA GO(P)  No"]
[null,null,{"$f":"'DA code'!H14","v":18400},{"$f":"ROUND((C17*S5),0)","v":2796},{"$f":"ROUND((C17*S6),0)","v":2218},578,{"$f":"ROUND((F17*'DA code'!$P$23),0)","v":7514},{"$f":"ROUND((F17*'DA code'!$U$8),0)","v":578},null,null,{"$f":"'DA code'!H55","v":56870},8642,6854,1788,{"$f":"ROUND((N17*'DA code'!$P$23),0)","v":23244},{"$f":"ROUND((N17*'DA code'!$U$8),0)","v":1788},null,"No","Date"]
[null,280,{"$f":"'DA code'!H15","v":18950},{"$f":"ROUND((C18*S5),0)","v":2880},{"$f":"ROUND((C18*S6),0)","v":2284},596,{"$f":"ROUND((F18*'DA code'!$P$23),0)","v":7748},{"$f":"ROUND((F18*'DA code'!$U$8),0)","v":596},null,null,{"$f":"'DA code'!H56","v":58330},8864,7030,1834,{"$f":"ROUND((N18*'DA code'!$P$23),0)","v":23842},{"$f":"ROUND((N18*'DA code'!$U$8),0)","v":1834},null,198]
[null,null,{"$f":"'DA code'!H16","v":19500},{"$f":"ROUND((C19*S5),0)","v":2963},{"$f":"ROUND((C19*S6),0)","v":2350},613,{"$f":"ROUND((F19*'DA code'!$P$23),0)","v":7969},{"$f":"ROUND((F19*'DA code'!$U$8),0)","v":613},null,800,{"$f":"'DA code'!H57","v":59890},9101,7218,1883,{"$f":"ROUND((N19*'DA code'!$P$23),0)","v":24479},{"$f":"ROUND((N19*'DA code'!$U$8),0)","v":1883}]
[null,null,{"$f":"'DA code'!H17","v":20050},{"$f":"ROUND((C20*S5),0)","v":3047},{"$f":"ROUND((C20*S6),0)","v":2416},631,{"$f":"ROUND((F20*'DA code'!$P$23),0)","v":8203},{"$f":"ROUND((F20*'DA code'!$U$8),0)","v":631},null,null,{"$f":"'DA code'!H58","v":61450},9338,7406,1932,{"$f":"ROUND((N20*'DA code'!$P$23),0)","v":25116},{"$f":"ROUND((N20*'DA code'!$U$8),0)","v":1932},null,"UNIT","Venkatagiri"]
[null,300,{"$f":"'DA code'!H18","v":20640},{"$f":"ROUND((C21*S5),0)","v":3136},{"$f":"ROUND((C21*S6),0)","v":2488},648,{"$f":"ROUND((F21*'DA code'!$P$23),0)","v":8424},{"$f":"ROUND((F21*'DA code'!$U$8),0)","v":648},null,null,{"$f":"'DA code'!H59","v":63010},9575,7594,1981,{"$f":"ROUND((N21*'DA code'!$P$23),0)","v":25753},{"$f":"ROUND((N21*'DA code'!$U$8),0)","v":1981}]
[null,null,{"$f":"'DA code'!H19","v":21230},{"$f":"ROUND((C22*S5),0)","v":3226},{"$f":"ROUND((C22*S6),0)","v":2559},667,{"$f":"ROUND((F22*'DA code'!$P$23),0)","v":8671},{"$f":"ROUND((F22*'DA code'!$U$8),0)","v":667},null,850,{"$f":"'DA code'!H60","v":64670},9827,7794,2033,{"$f":"ROUND((N22*'DA code'!$P$23),0)","v":26429},{"$f":"ROUND((N22*'DA code'!$U$8),0)","v":2033},null,"President","G.Bhasker Reddy"]
[null,null,{"$f":"'DA code'!H20","v":21820},{"$f":"ROUND((C23*S5),0)","v":3316},{"$f":"ROUND((C23*S6),0)","v":2630},686,{"$f":"ROUND((F23*'DA code'!$P$23),0)","v":8918},{"$f":"ROUND((F23*'DA code'!$U$8),0)","v":686},null,null,{"$f":"'DA code'!H61","v":66330},10080,7994,2086,{"$f":"ROUND((N23*'DA code'!$P$23),0)","v":27118},{"$f":"ROUND((N23*'DA code'!$U$8),0)","v":2086},null,"Gen Sec","M.Venu Gopal Reddy"]
[null,330,{"$f":"'DA code'!H21","v":22460},{"$f":"ROUND((C24*S5),0)","v":3413},{"$f":"ROUND((C24*S6),0)","v":2707},706,{"$f":"ROUND((F24*'DA code'!$P$23),0)","v":9178},{"$f":"ROUND((F24*'DA code'!$U$8),0)","v":706},null,null,{"$f":"'DA code'!H62","v":67990},10332,8194,2138,{"$f":"ROUND((N24*'DA code'!$P$23),0)","v":27794},{"$f":"ROUND((N24*'DA code'!$U$8),0)","v":2138}]
[null,null,{"$f":"'DA code'!H22","v":23100},{"$f":"ROUND((C25*S5),0)","v":3510},{"$f":"ROUND((C25*S6),0)","v":2784},726,{"$f":"ROUND((F25*'DA code'!$P$23),0)","v":9438},{"$f":"ROUND((F25*'DA code'!$U$8),0)","v":726},null,900,{"$f":"'DA code'!H63","v":69750},10599,8406,2193,{"$f":"ROUND((N25*'DA code'!$P$23),0)","v":28509},{"$f":"ROUND((N25*'DA code'!$U$8),0)","v":2193}]
[null,null,{"$f":"'DA code'!H23","v":23740},{"$f":"ROUND((C26*S5),0)","v":3608},{"$f":"ROUND((C26*S6),0)","v":2861},747,{"$f":"ROUND((F26*'DA code'!$P$23),0)","v":9711},{"$f":"ROUND((F26*'DA code'!$U$8),0)","v":747},null,null,{"$f":"'DA code'!H64","v":71510},10867,8618,2249,{"$f":"ROUND((N26*'DA code'!$P$23),0)","v":29237},{"$f":"ROUND((N26*'DA code'!$U$8),0)","v":2249}]
[null,360,{"$f":"'DA code'!H24","v":24440},{"$f":"ROUND((C27*S5),0)","v":3714},{"$f":"ROUND((C27*S6),0)","v":2946},768,{"$f":"ROUND((F27*'DA code'!$P$23),0)","v":9984},{"$f":"ROUND((F27*'DA code'!$U$8),0)","v":768},null,null,{"$f":"'DA code'!H65","v":73270},11134,8831,2303,{"$f":"ROUND((N27*'DA code'!$P$23),0)","v":29939},{"$f":"ROUND((N27*'DA code'!$U$8),0)","v":2303}]
[null,null,{"$f":"'DA code'!H25","v":25140},{"$f":"ROUND((C28*S5),0)","v":3820},{"$f":"ROUND((C28*S6),0)","v":3030},790,{"$f":"ROUND((F28*'DA code'!$P$23),0)","v":10270},{"$f":"ROUND((F28*'DA code'!$U$8),0)","v":790},null,970,{"$f":"'DA code'!H66","v":75150},11420,9057,2363,{"$f":"ROUND((N28*'DA code'!$P$23),0)","v":30719},{"$f":"ROUND((N28*'DA code'!$U$8),0)","v":2363}]
[null,null,{"$f":"'DA code'!H26","v":25840},{"$f":"ROUND((C29*S5),0)","v":3927},{"$f":"ROUND((C29*S6),0)","v":3114},813,{"$f":"ROUND((F29*'DA code'!$P$23),0)","v":10569},{"$f":"ROUND((F29*'DA code'!$U$8),0)","v":813},null,null,{"$f":"'DA code'!H67","v":77030},11705,9284,2421,{"$f":"ROUND((N29*'DA code'!$P$23),0)","v":31473},{"$f":"ROUND((N29*'DA code'!$U$8),0)","v":2421}]
[null,390,{"$f":"'DA code'!H27","v":26600},{"$f":"ROUND((C30*S5),0)","v":4042},{"$f":"ROUND((C30*S6),0)","v":3206},836,{"$f":"ROUND((F30*'DA code'!$P$23),0)","v":10868},{"$f":"ROUND((F30*'DA code'!$U$8),0)","v":836},null,null,{"$f":"'DA code'!H68","v":78910},11991,9510,2481,{"$f":"ROUND((N30*'DA code'!$P$23),0)","v":32253},{"$f":"ROUND((N30*'DA code'!$U$8),0)","v":2481}]
[null,null,{"$f":"'DA code'!H28","v":27360},{"$f":"ROUND((C31*S5),0)","v":4158},{"$f":"ROUND((C31*S6),0)","v":3297},861,{"$f":"ROUND((F31*'DA code'!$P$23),0)","v":11193},{"$f":"ROUND((F31*'DA code'!$U$8),0)","v":861},null,1040,{"$f":"'DA code'!H69","v":80930},12298,9754,2544,{"$f":"ROUND((N31*'DA code'!$P$23),0)","v":33072},{"$f":"ROUND((N31*'DA code'!$U$8),0)","v":2544}]
[null,null,{"$f":"'DA code'!H29","v":28120},{"$f":"ROUND((C32*S5),0)","v":4273},{"$f":"ROUND((C32*S6),0)","v":3389},884,{"$f":"ROUND((F32*'DA code'!$P$23),0)","v":11492},{"$f":"ROUND((F32*'DA code'!$U$8),0)","v":884},null,null,{"$f":"'DA code'!H70","v":82950},12605,9997,2608,{"$f":"ROUND((N32*'DA code'!$P$23),0)","v":33904},{"$f":"ROUND((N32*'DA code'!$U$8),0)","v":2608}]
[null,420,{"$f":"'DA code'!H30","v":28940},{"$f":"ROUND((C33*S5),0)","v":4398},{"$f":"ROUND((C33*S6),0)","v":3488},910,{"$f":"ROUND((F33*'DA code'!$P$23),0)","v":11830},{"$f":"ROUND((F33*'DA code'!$U$8),0)","v":910},null,null,{"$f":"'DA code'!H71","v":84970},12912,10241,2671,{"$f":"ROUND((N33*'DA code'!$P$23),0)","v":34723},{"$f":"ROUND((N33*'DA code'!$U$8),0)","v":2671}]
[null,null,{"$f":"'DA code'!H31","v":29760},{"$f":"ROUND((C34*S5),0)","v":4522},{"$f":"ROUND((C34*S6),0)","v":3587},935,{"$f":"ROUND((F34*'DA code'!$P$23),0)","v":12155},{"$f":"ROUND((F34*'DA code'!$U$8),0)","v":935},null,1110,{"$f":"'DA code'!H72","v":87130},13240,10501,2739,{"$f":"ROUND((N34*'DA code'!$P$23),0)","v":35607},{"$f":"ROUND((N34*'DA code'!$U$8),0)","v":2739}]
[null,null,{"$f":"'DA code'!H32","v":30580},{"$f":"ROUND((C35*S5),0)","v":4647},{"$f":"ROUND((C35*S6),0)","v":3686},961,{"$f":"ROUND((F35*'DA code'!$P$23),0)","v":12493},{"$f":"ROUND((F35*'DA code'!$U$8),0)","v":961},null,null,{"$f":"'DA code'!H73","v":89290},13569,10761,2808,{"$f":"ROUND((N35*'DA code'!$P$23),0)","v":36504},{"$f":"ROUND((N35*'DA code'!$U$8),0)","v":2808}]
[null,450,{"$f":"'DA code'!H33","v":31460},{"$f":"ROUND((C36*$S$5),0)","v":4781},{"$f":"ROUND((C36*$S$6),0)","v":3792},989,{"$f":"ROUND((F36*'DA code'!$P$23),0)","v":12857},{"$f":"ROUND((F36*'DA code'!$U$8),0)","v":989},null,null,{"$f":"'DA code'!H74","v":91450},13897,11022,2875,{"$f":"ROUND((N36*'DA code'!$P$23),0)","v":37375},{"$f":"ROUND((N36*'DA code'!$U$8),0)","v":2875}]
[null,null,{"$f":"'DA code'!H34","v":32340},{"$f":"ROUND((C37*$S$5),0)","v":4914},{"$f":"ROUND((C37*$S$6),0)","v":3898},1016,{"$f":"ROUND((F37*'DA code'!$P$23),0)","v":13208},{"$f":"ROUND((F37*'DA code'!$U$8),0)","v":1016},null,1200,{"$f":"'DA code'!H75","v":93780},14251,11302,2949,{"$f":"ROUND((N37*'DA code'!$P$23),0)","v":38337},{"$f":"ROUND((N37*'DA code'!$U$8),0)","v":2949}]
[null,null,{"$f":"'DA code'!H35","v":33220},5048,4004,1044,{"$f":"ROUND((F38*'DA code'!$P$23),0)","v":13572},{"$f":"ROUND((F38*'DA code'!$U$8),0)","v":1044},null,null,{"$f":"'DA code'!H76","v":96110},14605,11583,3022,{"$f":"ROUND((N38*'DA code'!$P$23),0)","v":39286},{"$f":"ROUND((N38*'DA code'!$U$8),0)","v":3022}]
[null,490,{"$f":"'DA code'!H36","v":34170},5192,4118,1074,{"$f":"ROUND((F39*'DA code'!$P$23),0)","v":13962},{"$f":"ROUND((F39*'DA code'!$U$8),0)","v":1074},null,null,{"$f":"'DA code'!H77","v":98440},14959,11864,3095,{"$f":"ROUND((N39*'DA code'!$P$23),0)","v":40235},{"$f":"ROUND((N39*'DA code'!$U$8),0)","v":3095}]
[null,null,{"$f":"'DA code'!H37","v":35120},5337,4233,1104,{"$f":"ROUND((F40*'DA code'!$P$23),0)","v":14352},{"$f":"ROUND((F40*'DA code'!$U$8),0)","v":1104},null,null,{"$f":"'DA code'!H78","v":100770},15313,12145,3168,{"$f":"ROUND((N40*'DA code'!$P$23),0)","v":41184},{"$f":"ROUND((N40*'DA code'!$U$8),0)","v":3168}]
[null,null,{"$f":"'DA code'!H38","v":36070},5481,4347,1134,{"$f":"ROUND((F41*'DA code'!$P$23),0)","v":14742},{"$f":"ROUND((F41*'DA code'!$U$8),0)","v":1134},null,1300,{"$f":"'DA code'!H79","v":103290},15696,12449,3247,{"$f":"ROUND((N41*'DA code'!$P$23),0)","v":42211},{"$f":"ROUND((N41*'DA code'!$U$8),0)","v":3247}]
[null,530,{"$f":"'DA code'!H39","v":37100},5638,4471,1167,{"$f":"ROUND((F42*'DA code'!$P$23),0)","v":15171},{"$f":"ROUND((F42*'DA code'!$U$8),0)","v":1167},null,null,{"$f":"'DA code'!H80","v":105810},16079,12752,3327,{"$f":"ROUND((N42*'DA code'!$P$23),0)","v":43251},{"$f":"ROUND((N42*'DA code'!$U$8),0)","v":3327}]
[null,null,{"$f":"'DA code'!H40","v":38130},5794,4595,1199,{"$f":"ROUND((F43*'DA code'!$P$23),0)","v":15587},{"$f":"ROUND((F43*'DA code'!$U$8),0)","v":1199},null,null,{"$f":"'DA code'!H81","v":108330},16462,13056,3406,{"$f":"ROUND((N43*'DA code'!$P$23),0)","v":44278},{"$f":"ROUND((N43*'DA code'!$U$8),0)","v":3406}]
[null,null,{"$f":"'DA code'!H41","v":39160},5951,4720,1231,{"$f":"ROUND((F44*'DA code'!$P$23),0)","v":16003},{"$f":"ROUND((F44*'DA code'!$U$8),0)","v":1231},null,{"$f":"\"President::\"&S22","v":"President::G.Bhasker Reddy"}]
[null,570,{"$f":"'DA code'!H42","v":40270},6119,4853,1266,{"$f":"ROUND((F45*'DA code'!$P$23),0)","v":16458},{"$f":"ROUND((F45*'DA code'!$U$8),0)","v":1266},null,{"$f":"\"Gen Sec::\"&S23","v":"Gen Sec::M.Venu Gopal Reddy"}]
[null,{"$f":"CONCATENATE(\"Prepared by:\",UPPER(R14),\" \",\" Visit:www.ysrtf.com,cell:9494796587,9666570250\")","v":"Prepared by:APYSRTF  Visit:www.ysrtf.com,cell:9494796587,9666570250"}]
[null,{"$f":"IF(S20=0,\" \",\"GS/PRE,\"&UPPER(S20)&\" UNIT\")","v":"GS/PRE,VENKATAGIRI UNIT"}]

{"sheet":"DA code","index":14,"n_rows":82,"n_cols":25,"rows_kept":82,"cut":false,"hidden":true,"merged":[[6,10,6,11],[6,14,6,15],[13,2,13,3],[69,9,69,11],[6,22,6,23]]}
[]
[null,null,null,null,null,null,1,13000,null,{"$f":"CONCATENATE(DAY(DATE('DA code'!M8,'DA code'!K8,1)),\"-\",MONTH(DATE('DA code'!M8,'DA code'!K8,1)),\"-\",YEAR(DATE('DA code'!M8,'DA code'!K8,1)))","v":"1-7-2015"}]
[null,null,null,null,null,null,2,13390,null,null,null,null,null,null,null,null,{"$f":"DATE('DA code'!M8,'DA code'!K8,1)","v":"2015-07-01"}]
[null,null,null,null,null,null,3,13780,null,null,null,null,null,null,null,null,null,{"$f":"LOOKUP(O8,C22:D33,D22:D33)","v":31}]
[null,null,null,null,"D.A READY RECKONER",null,4,14170]
[null,null,null,null,null,null,5,14600,null,{"$f":"DATE(M8,K8,1)","v":"2015-07-01"},{"$f":"DAY(J6)&\"-\"&MONTH(J6)&\"-\"&YEAR(J6)","v":"1-7-2015"},null,null,null,{"$f":"DATE(Q8,O8,1)","v":"2016-07-01"},{"$f":"DAY(O6)&\"-\"&R6&\"-\"&YEAR(O6)","v":"1-6-2016"},{"$f":"DAY(O6)&\"-\"&MONTH(O6)&\"-\"&YEAR(O6)","v":"1-7-2016"},{"$f":"IF(O8=1,12,O8-1)","v":6}]
[null,null,null,null,null,null,6,15030,null,null,"ZPPF",null,null,null,"ZPPF",null,null,null,null,null,null,null,"CASH"]
[null,null,null,null,null,null,7,15460,null,{"$f":"LOOKUP(K8,J9:K20,K9:K20)","v":"Jul"},7,1,{"$f":"LOOKUP(L8,J9:L11,L9:L11)","v":2015},{"$f":"LOOKUP(O8,N9:O20,O9:O20)","v":"Jul"},7,2,{"$f":"LOOKUP(P8,N9:P11,P9:P11)","v":2016},1,{"$f":"LOOKUP(R8,Q9:R11,R9:R11)","v":"ZPPF"},12,{"$f":"W8-O8","v":1},null,8,2,{"$f":"LOOKUP(X8,V9:X11,X9:X11)","v":2016}]
[null,null,null,null,5,null,8,15930,null,1,"Jan",2015,null,1,"Jan",{"$f":"L9","v":2015},1,"ZPPF",null,null,null,1,"Jan",{"$f":"P9","v":2015}]
[null,null,null,null,1,null,9,16400,null,2,"Feb",2016,null,2,"Feb",{"$f":"L10","v":2016},2,"GPF",null,null,null,2,"Feb",{"$f":"P10","v":2016}]
[null,null,null,null,null,null,10,16870,null,3,"Mar",2017,null,3,"Mar",{"$f":"L11","v":2017},3,"CPS",null,null,null,3,"Mar",{"$f":"P11","v":2017}]
[null,null,null,null,null,null,11,17380,null,4,"Apr",null,null,4,"Apr",null,null,null,null,null,{"$f":"UPPER(LEFT('DA S0FTWARE'!$R$14,1)&\"  \"&MID('DA S0FTWARE'!$R$14,2,1)&\"  \"&MID('DA S0FTWARE'!$R$14,3,1)&\"  \"&MID('DA S0FTWARE'!$R$14,4,1)&\"  \"&MID('DA S0FTWARE'!$R$14,5,1)&\"  \"&MID('DA S0FTWARE'!$R$14,6,1)&\"  \"&MID('DA S0FTWARE'!$R$14,7,1)&\"  \"&MID('DA S0FTWARE'!$R$14,8,1)&\"  \"&MID('DA S0FTWARE'!$R$14,9,1))","v":"A  P  Y  S  R  T  F    "},4,"Apr"]
[null,null,null,null,null,null,12,17890,null,5,"May",null,null,5,"May",null,null,null,null,null,{"$f":"UPPER('DA S0FTWARE'!$R$14)","v":"APYSRTF"},5,"May"]
[null,null,"Feb",null,null,null,13,18400,null,6,"Jun",null,null,6,"Jun",null,null,null,null,null,null,6,"Jun"]
[null,null,2012,28,null,null,14,18950,null,7,"Jul",null,null,7,"Jul",null,null,null,null,null,null,7,"Jul"]
[null,null,2013,28,null,null,15,19500,null,8,"Aug",null,null,8,"Aug",null,null,null,null,null,null,8,"Aug"]
[null,null,2014,29,null,null,16,20050,null,9,"Sep",null,null,9,"Sep",null,null,null,null,null,null,9,"Sep"]
[null,null,2015,28,null,null,17,20640,null,10,"Oct",null,null,10,"Oct",null,null,null,null,null,{"$f":"YEAR(T24)","v":2016},10,"Oct"]
[null,null,2016,28,null,null,18,21230,null,11,"Nov",null,null,11,"Nov",null,null,null,null,null,null,11,"Nov"]
[null,null,2017,28,null,null,19,21820,null,12,"Dec",null,null,12,"Dec",null,null,null,null,null,null,12,"Dec"]
[null,null,2018,29,null,null,20,22460]
[null,null,1,31,{"$f":"LOOKUP(V24,C22:D33,D22:D33)","v":31},null,21,23100,null,null,"ZPPF",null,null,"ZPPF",null,"Diff",null,null,null,{"$f":"DATE(U26,V24,1)","v":"2016-08-01"}]
[null,null,2,{"$f":"IF(OR(YEAR(T22)=2012,YEAR(T22)=2016),29,28)","v":29},null,null,22,23740,null,{"$f":"CONCATENATE(J8,\" \",RIGHT(M8,2))","v":"Jul 15"},{"$f":"MATCH(J23,K24:K59,0)","v":7},null,{"$f":"CONCATENATE(N8,\" \",RIGHT(Q8,2))","v":"Jul 16"},{"$f":"MATCH(M23,N24:N59,0)","v":19},null,{"$f":"(N23-K23)+1","v":13},null,null,null,{"$f":"T24","v":"Aug 16"}]
[null,{"$f":"IF('DA S0FTWARE'!$R$18=0,\" \",'DA code'!J24)","v":1},3,31,{"$f":"IF('DA S0FTWARE'!$R$18=0,\" \",'DA code'!K24)","v":"Jan 15"},null,23,24440,null,1,{"$f":"CONCATENATE(K9,\" \",RIGHT($L$9,2))","v":"Jan 15"},null,{"$f":"J24","v":1},{"$f":"CONCATENATE(K9,\" \",RIGHT($L$9,2))","v":"Jan 15"},null,null,1,{"$f":"K24","v":"Jan 15"},{"$f":"R25","v":"Feb 15"},{"$f":"LOOKUP(N23,Q24:R61,S24:S60)","v":"Aug 16"},{"$f":"LEFT(T24,3)","v":"Aug"},{"$f":"MATCH(U24,O9:O20,0)","v":8},{"$f":"CONCATENATE(V24,\"/\",RIGHT(T24,2))","v":"8/16"}]
[null,{"$f":"IF('DA S0FTWARE'!$R$18=0,\" \",'DA code'!J25)","v":2},4,30,{"$f":"IF('DA S0FTWARE'!$R$18=0,\" \",'DA code'!K25)","v":"Feb 15"},null,24,25140,null,2,{"$f":"CONCATENATE(K10,\" \",RIGHT($L$9,2))","v":"Feb 15"},null,2,{"$f":"CONCATENATE(K10,\" \",RIGHT($L$9,2))","v":"Feb 15"},null,null,2,{"$f":"K25","v":"Feb 15"},{"$f":"R26","v":"Mar 15"},{"$f":"M23","v":"Jul 16"},{"$f":"LEFT(T25,3)","v":"Jul"},{"$f":"MATCH(U25,O9:O20,0)","v":7},{"$f":"CONCATENATE(V25,\"/\",RIGHT(T25,2))","v":"7/16"}]
[null,{"$f":"IF('DA S0FTWARE'!$R$18=0,\" \",'DA code'!J26)","v":3},5,31,{"$f":"IF('DA S0FTWARE'!$R$18=0,\" \",'DA code'!K26)","v":"Mar 15"},null,25,25840,null,3,"Mar 15",null,3,"Mar 15",null,null,3,"Mar 15","Apr 15",null,{"$f":"\"20\"&RIGHT(T24,2)","v":"2016"}]
[null,{"$f":"IF('DA S0FTWARE'!$R$18=0,\" \",'DA code'!J27)","v":4},6,30,{"$f":"IF('DA S0FTWARE'!$R$18=0,\" \",'DA code'!K27)","v":"Apr 15"},null,26,26600,null,4,"Apr 15",null,4,"Apr 15",null,null,4,"Apr 15","May 15"]
[null,{"$f":"IF('DA S0FTWARE'!$R$18=0,\" \",'DA code'!J28)","v":5},7,31,{"$f":"IF('DA S0FTWARE'!$R$18=0,\" \",'DA code'!K28)","v":"May 15"},null,27,27360,null,5,"May 15",null,5,"May 15",null,null,5,"May 15","Jun 15"]
[null,{"$f":"IF('DA S0FTWARE'!$R$18=0,\" \",'DA code'!J29)","v":6},8,31,{"$f":"IF('DA S0FTWARE'!$R$18=0,\" \",'DA code'!K29)","v":"Jun 15"},null,28,28120,null,6,"Jun 15",null,6,"Jun 15",null,null,6,"Jun 15","Jul 15",null,{"$f":"LOOKUP(N23,Q24:R61,S24:S60)","v":"Aug 16"}]
[null,{"$f":"IF('DA S0FTWARE'!$R$18=0,\" \",'DA code'!J30)","v":7},9,30,{"$f":"IF('DA S0FTWARE'!$R$18=0,\" \",'DA code'!K30)","v":"Jul 15"},null,29,28940,null,7,"Jul 15",null,7,"Jul 15",null,null,7,"Jul 15","Aug 15"]
[null,{"$f":"IF('DA S0FTWARE'!$R$18=0,\" \",'DA code'!J31)","v":8},10,31,{"$f":"IF('DA S0FTWARE'!$R$18=0,\" \",'DA code'!K31)","v":"Aug 15"},null,30,29760,null,8,"Aug 15",null,8,"Aug 15",null,null,8,"Aug 15","Sep 15"]
[null,{"$f":"IF('DA S0FTWARE'!$R$18=0,\" \",'DA code'!J32)","v":9},11,30,{"$f":"IF('DA S0FTWARE'!$R$18=0,\" \",'DA code'!K32)","v":"Sep 15"},null,31,30580,null,9,"Sep 15",null,9,"Sep 15",null,null,9,"Sep 15","Oct 15"]
[null,{"$f":"IF('DA S0FTWARE'!$R$18=0,\" \",'DA code'!J33)","v":10},12,31,{"$f":"IF('DA S0FTWARE'!$R$18=0,\" \",'DA code'!K33)","v":"Oct 15"},null,32,31460,null,10,{"$f":"CONCATENATE(K18,\" \",RIGHT($L$9,2))","v":"Oct 15"},null,10,"Oct 15",null,null,10,"Oct 15","Nov 15"]
[null,{"$f":"IF('DA S0FTWARE'!$R$18=0,\" \",'DA code'!J34)","v":11},{"$f":"IF('DA S0FTWARE'!$R$18=0,\" \",'DA code'!K34)","v":"Nov 15"},null,{"$f":"IF('DA S0FTWARE'!$R$18=0,\" \",'DA code'!K34)","v":"Nov 15"},null,33,32340,null,11,"Nov 15",null,11,"Nov 15",null,null,11,"Nov 15","Dec 15"]
[null,{"$f":"IF('DA S0FTWARE'!$R$18=0,\" \",'DA code'!J35)","v":12},{"$f":"IF('DA S0FTWARE'!$R$18=0,\" \",'DA code'!K35)","v":"Dec 15"},null,{"$f":"IF('DA S0FTWARE'!$R$18=0,\" \",'DA code'!K35)","v":"Dec 15"},null,34,33220,null,12,"Dec 15",null,12,"Dec 15",null,null,12,"Dec 15","Jan 16"]
[null,{"$f":"IF('DA S0FTWARE'!$R$18=0,\" \",'DA code'!J36)","v":13},{"$f":"IF('DA S0FTWARE'!$R$18=0,\" \",'DA code'!K36)","v":"Jan 16"},null,{"$f":"IF('DA S0FTWARE'!$R$18=0,\" \",'DA code'!K36)","v":"Jan 16"},null,35,34170,null,13,{"$f":"CONCATENATE(K9,\" \",RIGHT($L$10,2))","v":"Jan 16"},null,13,{"$f":"CONCATENATE(K9,\" \",RIGHT($L$10,2))","v":"Jan 16"},null,null,13,"Jan 16","Feb 16"]
[null,{"$f":"IF('DA S0FTWARE'!$R$18=0,\" \",'DA code'!J37)","v":14},{"$f":"IF('DA S0FTWARE'!$R$18=0,\" \",'DA code'!K37)","v":"Feb 16"},null,{"$f":"IF('DA S0FTWARE'!$R$18=0,\" \",'DA code'!K37)","v":"Feb 16"},null,36,35120,null,14,{"$f":"CONCATENATE(K10,\" \",RIGHT($L$10,2))","v":"Feb 16"},null,14,{"$f":"CONCATENATE(K10,\" \",RIGHT($L$10,2))","v":"Feb 16"},null,null,14,"Feb 16","Mar 16"]
[null,{"$f":"IF('DA S0FTWARE'!$R$18=0,\" \",'DA code'!J38)","v":15},{"$f":"IF('DA S0FTWARE'!$R$18=0,\" \",'DA code'!K38)","v":"Mar 16"},null,{"$f":"IF('DA S0FTWARE'!$R$18=0,\" \",'DA code'!K38)","v":"Mar 16"},null,37,36070,null,15,"Mar 16",null,15,"Mar 16",null,null,15,"Mar 16","Apr 16"]
[null,{"$f":"IF('DA S0FTWARE'!$R$18=0,\" \",'DA code'!J39)","v":16},{"$f":"IF('DA S0FTWARE'!$R$18=0,\" \",'DA code'!K39)","v":"Apr 16"},null,{"$f":"IF('DA S0FTWARE'!$R$18=0,\" \",'DA code'!K39)","v":"Apr 16"},null,38,37100,null,16,"Apr 16",null,16,"Apr 16",null,null,16,"Apr 16","May 16"]
[null,{"$f":"IF('DA S0FTWARE'!$R$18=0,\" \",'DA code'!J40)","v":17},{"$f":"IF('DA S0FTWARE'!$R$18=0,\" \",'DA code'!K40)","v":"May 16"},null,{"$f":"IF('DA S0FTWARE'!$R$18=0,\" \",'DA code'!K40)","v":"May 16"},null,39,38130,null,17,"May 16",null,17,"May 16",null,null,17,"May 16","Jun 16"]
[null,{"$f":"IF('DA S0FTWARE'!$R$18=0,\" \",'DA code'!J41)","v":18},{"$f":"IF('DA S0FTWARE'!$R$18=0,\" \",'DA code'!K41)","v":"Jun 16"},null,{"$f":"IF('DA S0FTWARE'!$R$18=0,\" \",'DA code'!K41)","v":"Jun 16"},null,40,39160,null,18,"Jun 16",null,18,"Jun 16",null,null,18,"Jun 16","Jul 16"]
[null,{"$f":"IF('DA S0FTWARE'!$R$18=0,\" \",'DA code'!J42)","v":19},{"$f":"IF('DA S0FTWARE'!$R$18=0,\" \",'DA code'!K42)","v":"Jul 16"},null,{"$f":"IF('DA S0FTWARE'!$R$18=0,\" \",'DA code'!K42)","v":"Jul 16"},null,41,40270,null,19,"Jul 16",null,19,"Jul 16",null,null,19,"Jul 16","Aug 16"]
[null,{"$f":"IF('DA S0FTWARE'!$R$18=0,\" \",'DA code'!J43)","v":20},{"$f":"IF('DA S0FTWARE'!$R$18=0,\" \",'DA code'!K43)","v":"Aug 16"},null,{"$f":"IF('DA S0FTWARE'!$R$18=0,\" \",'DA code'!K43)","v":"Aug 16"},null,42,41380,null,20,"Aug 16",null,20,"Aug 16",null,null,20,"Aug 16","Sep 16"]
[null,{"$f":"IF('DA S0FTWARE'!$R$18=0,\" \",'DA code'!J44)","v":21},{"$f":"IF('DA S0FTWARE'!$R$18=0,\" \",'DA code'!K44)","v":"Sep 16"},null,{"$f":"IF('DA S0FTWARE'!$R$18=0,\" \",'DA code'!K44)","v":"Sep 16"},null,43,42490,null,21,"Sep 16",null,21,"Sep 16",null,null,21,"Sep 16","Oct 16"]
[null,{"$f":"IF('DA S0FTWARE'!$R$18=0,\" \",'DA code'!J45)","v":22},{"$f":"IF('DA S0FTWARE'!$R$18=0,\" \",'DA code'!K45)","v":"Oct 16"},null,{"$f":"IF('DA S0FTWARE'!$R$18=0,\" \",'DA code'!K45)","v":"Oct 16"},null,44,43680,null,22,"Oct 16",null,22,"Oct 16",null,null,22,"Oct 16","Nov 16"]
[null,{"$f":"IF('DA S0FTWARE'!$R$18=0,\" \",'DA code'!J46)","v":23},{"$f":"IF('DA S0FTWARE'!$R$18=0,\" \",'DA code'!K46)","v":"Nov 16"},null,{"$f":"IF('DA S0FTWARE'!$R$18=0,\" \",'DA code'!K46)","v":"Nov 16"},null,45,44870,null,23,"Nov 16",null,23,"Nov 16",null,null,23,"Nov 16","Dec 16"]
[null,{"$f":"IF('DA S0FTWARE'!$R$18=0,\" \",'DA code'!J47)","v":24},{"$f":"IF('DA S0FTWARE'!$R$18=0,\" \",'DA code'!K47)","v":"Dec 16"},null,{"$f":"IF('DA S0FTWARE'!$R$18=0,\" \",'DA code'!K47)","v":"Dec 16"},null,46,46060,null,24,"Dec 16",null,24,"Dec 16",null,null,24,"Dec 16","Jan 17"]
[null,{"$f":"IF('DA S0FTWARE'!$R$18=0,\" \",'DA code'!J48)","v":25},{"$f":"IF('DA S0FTWARE'!$R$18=0,\" \",'DA code'!K48)","v":"Jan 17"},null,{"$f":"IF('DA S0FTWARE'!$R$18=0,\" \",'DA code'!K48)","v":"Jan 17"},null,47,47330,null,25,{"$f":"CONCATENATE(K9,\" \",RIGHT($L$11,2))","v":"Jan 17"},null,25,{"$f":"CONCATENATE(K9,\" \",RIGHT($L$11,2))","v":"Jan 17"},null,null,25,"Jan 17","Feb 17"]
[null,{"$f":"IF('DA S0FTWARE'!$R$18=0,\" \",'DA code'!J49)","v":26},{"$f":"IF('DA S0FTWARE'!$R$18=0,\" \",'DA code'!K49)","v":"Feb 17"},null,{"$f":"IF('DA S0FTWARE'!$R$18=0,\" \",'DA code'!K49)","v":"Feb 17"},null,48,48600,null,26,{"$f":"CONCATENATE(K10,\" \",RIGHT($L$11,2))","v":"Feb 17"},null,26,{"$f":"CONCATENATE(K10,\" \",RIGHT($L$11,2))","v":"Feb 17"},null,null,26,"Feb 17","Mar 17"]
[null,{"$f":"IF('DA S0FTWARE'!$R$18=0,\" \",'DA code'!J50)","v":27},{"$f":"IF('DA S0FTWARE'!$R$18=0,\" \",'DA code'!K50)","v":"Mar 17"},null,{"$f":"IF('DA S0FTWARE'!$R$18=0,\" \",'DA code'!K50)","v":"Mar 17"},null,49,49870,null,27,"Mar 17",null,27,"Mar 17",null,null,27,"Mar 17","Apr 17"]
[null,{"$f":"IF('DA S0FTWARE'!$R$18=0,\" \",'DA code'!J51)","v":28},{"$f":"IF('DA S0FTWARE'!$R$18=0,\" \",'DA code'!K51)","v":"Apr 17"},null,{"$f":"IF('DA S0FTWARE'!$R$18=0,\" \",'DA code'!K51)","v":"Apr 17"},null,50,51230,null,28,"Apr 17",null,28,"Apr 17",null,null,28,"Apr 17","May 17"]
[null,{"$f":"IF('DA S0FTWARE'!$R$18=0,\" \",'DA code'!J52)","v":29},{"$f":"IF('DA S0FTWARE'!$R$18=0,\" \",'DA code'!K52)","v":"May 17"},null,{"$f":"IF('DA S0FTWARE'!$R$18=0,\" \",'DA code'!K52)","v":"May 17"},null,51,52590,null,29,"May 17",null,29,"May 17",null,null,29,"May 17","Jun 17"]
[null,{"$f":"IF('DA S0FTWARE'!$R$18=0,\" \",'DA code'!J53)","v":30},{"$f":"IF('DA S0FTWARE'!$R$18=0,\" \",'DA code'!K53)","v":"Jun 17"},null,{"$f":"IF('DA S0FTWARE'!$R$18=0,\" \",'DA code'!K53)","v":"Jun 17"},null,52,53950,null,30,"Jun 17",null,30,"Jun 17",null,null,30,"Jun 17","Jul 17"]
[null,{"$f":"IF('DA S0FTWARE'!$R$18=0,\" \",'DA code'!J54)","v":31},{"$f":"IF('DA S0FTWARE'!$R$18=0,\" \",'DA code'!K54)","v":"Jul 17"},null,{"$f":"IF('DA S0FTWARE'!$R$18=0,\" \",'DA code'!K54)","v":"Jul 17"},null,53,55410,null,31,"Jul 17",null,31,"Jul 17",null,null,31,"Jul 17","Aug 17"]
[null,{"$f":"IF('DA S0FTWARE'!$R$18=0,\" \",'DA code'!J55)","v":32},{"$f":"IF('DA S0FTWARE'!$R$18=0,\" \",'DA code'!K55)","v":"Aug 17"},null,{"$f":"IF('DA S0FTWARE'!$R$18=0,\" \",'DA code'!K55)","v":"Aug 17"},null,54,56870,null,32,"Aug 17",null,32,"Aug 17",null,null,32,"Aug 17","Sep 17"]
[null,{"$f":"IF('DA S0FTWARE'!$R$18=0,\" \",'DA code'!J56)","v":33},{"$f":"IF('DA S0FTWARE'!$R$18=0,\" \",'DA code'!K56)","v":"Sep 17"},null,{"$f":"IF('DA S0FTWARE'!$R$18=0,\" \",'DA code'!K56)","v":"Sep 17"},null,55,58330,null,33,"Sep 17",null,33,"Sep 17",null,null,33,"Sep 17","Oct 17"]
[null,{"$f":"IF('DA S0FTWARE'!$R$18=0,\" \",'DA code'!J57)","v":34},{"$f":"IF('DA S0FTWARE'!$R$18=0,\" \",'DA code'!K57)","v":"Oct 17"},null,{"$f":"IF('DA S0FTWARE'!$R$18=0,\" \",'DA code'!K57)","v":"Oct 17"},null,56,59890,null,34,"Oct 17",null,34,"Oct 17",null,null,34,"Oct 17","Nov 17"]
[null,{"$f":"IF('DA S0FTWARE'!$R$18=0,\" \",'DA code'!J58)","v":35},{"$f":"IF('DA S0FTWARE'!$R$18=0,\" \",'DA code'!K58)","v":"Nov 17"},null,{"$f":"IF('DA S0FTWARE'!$R$18=0,\" \",'DA code'!K58)","v":"Nov 17"},null,57,61450,null,35,"Nov 17",null,35,"Nov 17",null,null,35,"Nov 17","Dec 17"]
[null,{"$f":"IF('DA S0FTWARE'!$R$18=0,\" \",'DA code'!J59)","v":36},{"$f":"IF('DA S0FTWARE'!$R$18=0,\" \",'DA code'!K59)","v":"Dec 17"},null,{"$f":"IF('DA S0FTWARE'!$R$18=0,\" \",'DA code'!K59)","v":"Dec 17"},null,58,63010,null,36,"Dec 17",null,36,"Dec 17",null,null,36,"Dec 17"]
[null,null,null,null,null,null,59,64670,null,null,null,null,0,0,null,null,37]
[null,null,null,null,null,null,60,66330]
[null,null,null,null,null,null,61,67990,null,9,20,{"$f":"LOOKUP(K62,J24:K59,K24:K59)","v":"Aug 16"},{"$f":"IF('DA S0FTWARE'!R18>0,'DA code'!J62,0)","v":9}]
[null,null,null,null,null,null,62,69750,null,{"$f":"CONCATENATE(J62,\" \",L62)","v":"9 Aug 16"},{"$f":"MONTH(J63)","v":8},{"$f":"RIGHT(L62,2)","v":"16"}]
[null,null,null,null,null,null,63,71510,null,{"$f":"IF(M62>0,M62&\"-\"&K63&\"-\"&L63,0)","v":"9-8-16"}]
[null,null,null,null,null,null,64,73270]
[null,null,null,null,null,null,65,75150]
[null,null,null,null,null,null,66,77030,null,null,null,null,null,"_______"]
[null,null,null,null,null,null,67,78910,null,{"$f":"CONCATENATE(\"Enhanced D.A w.e.f \",DAY(DATE('DA code'!M8,'DA code'!K8,1)),\"-\",MONTH(DATE('DA code'!M8,'DA code'!K8,1)),\"-\",YEAR(DATE('DA code'!M8,'DA code'!K8,1)),\"                  G.O(P).No:\",N70,\",Dt:\",O70)","v":"Enhanced D.A w.e.f 1-7-2015                  G.O(P).No:198,Dt:9-8-16"}]
[null,null,null,null,null,null,68,80930]
[null,null,null,null,null,null,69,82950,null,{"$f":"IF('DA S0FTWARE'!R18=\" \",_________,'DA S0FTWARE'!R18)","v":198},null,null,null,{"$f":"IF('DA S0FTWARE'!R18=0,N67,'DA S0FTWARE'!R18)","v":198},{"$f":"IF('DA S0FTWARE'!R18=J64,N67,J64)","v":"9-8-16"}]
[null,null,null,null,null,null,70,84970]
[null,null,null,null,null,null,71,87130]
[null,null,null,null,null,null,72,89290]
[null,null,null,null,null,null,73,91450]
[null,null,null,null,null,null,74,93780]
[null,null,null,null,null,null,75,96110]
[null,null,null,null,null,null,76,98440]
[null,null,null,null,null,null,77,100770]
[null,null,null,null,null,null,78,103290]
[null,null,null,null,null,null,79,105810]
[null,null,null,null,null,null,80,108330]
[null,null,null,null,null,null,81,110850]

{"sheet":"DA calculation","index":15,"n_rows":71,"n_cols":89,"rows_kept":71,"cut":false,"hidden":false,"merged":[[12,19,13,22],[14,19,15,22],[8,10,8,14],[9,10,9,14],[10,10,10,14],[8,19,9,22],[10,19,11,22],[0,3,0,7],[1,3,2,3],[1,4,2,4],[1,7,2,7],[1,5,2,5],[1,6,2,6],[7,19,7,22],[7,10,7,15],[0,13,0,14],[0,10,0,11],[3,10,4,11],[3,13,4,14]]}
[null,null,null,"DA Calculation",null,null,null,null,null,null,"DA 1",null,null,"DA 2"]
[null,null,null,"Month","Basic","Already","Tobe","Difference",null,null,"Already","Tobe",null,"Already","Tobe"]
[null,"No increment",1,null,null,null,null,null,null,null,8.9080000000000006E-2,0.12052,null,0.12052,0.15196000000000001]
[null,"2015-01-01",2,"2015-01-01",{"$f":"J46","v":38130},{"$f":"ROUND(E4*$K$3,0)","v":3397},{"$f":"ROUND(E4*$L$3,0)","v":4595},{"$f":"G4-F4","v":1198},null,null,"From Jan 2015 to Feb 2016",null,null,"From July 2015 to July 2016"]
[null,"2015-02-01",3,"2015-02-01",{"$f":"J47","v":38130},{"$f":"ROUND(E5*$K$3,0)","v":3397},{"$f":"ROUND(E5*$L$3,0)","v":4595},1198]
[null,"2015-03-01",4,"2015-03-01",38130,3397,4595,1198]
[null,"2015-04-01",5,"2015-04-01",38130,3397,4595,1198]
[null,"2015-05-01",6,"2015-05-01",38130,3397,4595,1198,null,null,"Select Increment Month",null,null,null,null,null,null,null,null,"Previous Basic pays"]
[null,"2015-06-01",7,"2015-06-01",38130,3397,4595,1198,null,null,"Increment between Jan 16 to Feb 16",null,null,null,null,"2016-01-01",null,null,null,{"$f":"HLOOKUP(T11,H34:CK35,2,TRUE)","v":38130}]
[null,"2015-07-01",8,"2015-07-01",38130,{"$f":"ROUND(E10*$N$3,0)","v":4595},{"$f":"ROUND(E10*$O$3,0)","v":5794},{"$f":"G10-F10","v":1199},null,null,"Increment 1 between Jan 15 to Dec 15",null,null,null,null,"2015-09-01"]
[null,"2015-08-01",9,"2015-08-01",38130,4595,5794,{"$f":"G11-F11","v":1199},null,null,"Increment 2 between Jan 15 to Dec 15",null,null,null,null,"No increment",null,null,null,{"$f":"HLOOKUP(T13,H34:CK35,2,TRUE)","v":39160}]
[null,"2015-09-01",10,"2015-09-01",40270,4853,6119,1266]
[null,"2015-10-01",11,"2015-10-01",40270,4853,6119,1266,null,null,null,null,null,null,null,null,null,null,null,{"$f":"HLOOKUP(T15,H34:CK35,2,TRUE)","v":40270}]
[null,"2015-11-01",12,"2015-11-01",40270,4853,6119,1266]
[null,"2015-12-01",13,"2015-12-01",40270,4853,6119,1266,null,null,"If Not correct,Then manually enter DA Amounts in Salary Sheet",null,null,null,null,null,null,null,null,{"$f":"HLOOKUP(E18,H34:CK35,2,TRUE)","v":41380}]
[null,"No increment",14,"2016-01-01",41380,4987,6288,1301]
[null,"2016-01-01",15,"2016-02-01",41380,4987,6288,1301,"DA 1"]
[null,"2016-02-01",16,"2016-03-01",{"$f":"'SALARY TABLE'!C5","v":42490},5121,6457,1336,{"$f":"SUM(H4:H17)","v":17252}]
[null,null,null,"2016-04-01",{"$f":"'SALARY TABLE'!C6","v":42490},5121,6457,1336,null,null,null,null,null,null,null,null,{"$f":"INDEX(B16:C18,MATCH(P9,B16:B18,0),2)","v":15},{"$f":"IF(Q19=14,0,T15)","v":41380}]
[null,null,null,"2016-05-01",{"$f":"'SALARY TABLE'!C7","v":42490},5121,6457,1336,null,null,null,null,null,null,null,null,{"$f":"INDEX(B3:C15,MATCH(P10,B3:B15,0),2)","v":10},{"$f":"IF(Q20=1,IF(R19=0,R19,T13),T13)","v":40270}]
[null,null,null,"2016-06-01",{"$f":"'SALARY TABLE'!C8","v":42490},5121,6457,1336,"DA 2",null,null,null,null,null,null,null,{"$f":"INDEX(B3:C15,MATCH(P11,B3:B15,0),2)","v":1},{"$f":"IF(Q21=1,R20,T11)","v":40270}]
[null,null,null,"2016-07-01",{"$f":"'SALARY TABLE'!C9","v":42490},5121,6457,1336,{"$f":"SUM(H10:H22)","v":16744}]
[null,null,null,"2016-08-01",{"$f":"'SALARY TABLE'!C10","v":42490},5121,6457,1336]
[null,null,null,"2016-09-01",{"$f":"'SALARY TABLE'!C11","v":42490},5121,6457,1336]
[null,null,null,"2016-10-01",{"$f":"'SALARY TABLE'!C12","v":42490},5121,6457,1336]
[null,null,null,"2016-11-01",{"$f":"'SALARY TABLE'!C13","v":42490},5121,6457,1336]
[null,null,null,"2016-12-01",{"$f":"'SALARY TABLE'!C14","v":42490},5121,6457,1336]
[null,null,null,"2017-01-01",{"$f":"'SALARY TABLE'!C15","v":43680},5264,6638,1374]
[null,null,null,"2017-02-01",{"$f":"'SALARY TABLE'!C16","v":43680},5264,6638,1374]
[]
[]
[]
[]
[null,null,null,null,null,null,null,13000,13390,null,13780,14170,14600,15030,15460,15930,"1944-11-24",16870,17380,17890,18400,18950,19500,20050,20640,21230,21820,22460,23100,23740,24440,25140,25840,26600,27360,28120,28940,29760,30580,31460,32340,33220,34170,35120,36070,37100,38130,39160,40270,41380,42490,43680,44870,46060,47330,48600,49870,51230,52590,53950,55410,56870,58330,59890,61450,63010,64670,66330,67990,69750,71510,73270,75150,77030,78910,80930,82950,84970,87130,89290,91450,93780,96110,98440,100770,103290,105810,108330,110850]
[null,null,null,null,null,null,null,null,null,null,13390,13780,14170,14600,15030,15460,"1943-08-12",16400,16870,17380,17890,18400,18950,19500,20050,20640,21230,21820,22460,23100,23740,24440,25140,25840,26600,27360,28120,28940,29760,30580,31460,32340,33220,34170,35120,36070,37100,38130,39160,40270,41380,42490,43680,44870,46060,47330,48600,49870,51230,52590,53950,55410,56870,58330,59890,61450,63010,64670,66330,67990,69750,71510,73270,75150,77030,78910,80930,82950,84970,87130,89290,91450,93780,96110,98440,100770,103290,105810,108330]
[]
[]
[]
[]
[]
[]
[]
[]
[]
[null,null,null,null,null,"Incre 1","Incre 2","Incre 3",null,"Final Basic"]
[null,null,2,"2015-01-01",{"$f":"E47","v":42490},{"$f":"IF($Q$19=C46,$T$15,0)","v":0},{"$f":"IF($Q$20=C46,$T$13,0)","v":0},{"$f":"IF($Q$21=C46,$T$11,0)","v":0},{"$f":"MAX(F46:H46)","v":0},{"$f":"IF(I46=0,T9,LARGE(I46:I59,L47))","v":38130},null,{"$f":"COUNTIF(I46:I59,0)","v":12}]
[null,null,3,"2015-02-01",42490,0,0,0,{"$f":"MAX(F47:H47)","v":0},{"$f":"IF(I47=0,J46,I47)","v":38130},null,{"$f":"14-L46","v":2}]
[null,null,4,"2015-03-01",42490,0,0,0,0,{"$f":"IF(I48=0,J47,I48)","v":38130}]
[null,null,5,"2015-04-01",42490,0,0,0,0,{"$f":"IF(I49=0,J48,I49)","v":38130}]
[null,null,6,"2015-05-01",42490,0,0,0,0,38130]
[null,null,7,"2015-06-01",42490,0,0,0,0,38130]
[null,null,8,"2015-07-01",42490,0,0,0,0,38130]
[null,null,9,"2015-08-01",42490,0,0,0,0,38130]
[null,null,10,"2015-09-01",42490,0,40270,0,40270,40270]
[null,null,11,"2015-10-01",42490,0,0,0,0,40270]
[null,null,12,"2015-11-01",42490,0,0,0,0,40270]
[null,null,13,"2015-12-01",42490,0,0,0,0,40270]
[null,null,15,"2016-01-01",42490,41380,0,0,41380,41380]
[null,null,16,"2016-02-01",42490,0,0,0,0,41380]
[null,null,null,"2016-03-01",{"$f":"E18","v":42490},{"$f":"E60","v":42490},{"$f":"E60","v":42490},{"$f":"E60","v":42490},{"$f":"H60","v":42490},{"$f":"IF(I60=0,E60,I60)","v":42490}]
[null,null,null,"2016-04-01",42490,42490,42490,42490,42490,42490]
[null,null,null,"2016-05-01",42490,42490,42490,42490,42490,42490]
[null,null,null,"2016-06-01",42490,42490,42490,42490,42490,42490]
[null,null,null,"2016-07-01",42490,42490,42490,42490,42490,42490]
[null,null,null,"2016-08-01",42490,42490,42490,42490,42490,42490]
[null,null,null,"2016-09-01",42490,42490,42490,42490,42490,42490]
[null,null,null,"2016-10-01",42490,42490,42490,42490,42490,42490]
[null,null,null,"2016-11-01",42490,42490,42490,42490,42490,42490]
[null,null,null,"2016-12-01",42490,42490,42490,42490,42490,42490]
[null,null,null,"2017-01-01",43680,43680,43680,43680,43680,43680]
[null,null,null,"2017-02-01",43680,43680,43680,43680,43680,43680]